{"text_format":"1","workbook":"xlsx","n_sheets":20,"sheets":["Info","Gruppenplanung","Auf-Absteiger","Rangliste","Liga_1A","Liga_1B","Liga_2A","Liga_2B","Liga_2C","Liga_2D","Liga_3A","Liga_3B","Liga_3C","Liga_3D","Liga_3E","Liga_4A","Liga_4B","Liga_4C","Liga_4D","Liga_4E"],"not_rendered":{"charts":0,"images":0,"macros":1,"external_links":0,"defined_names":0,"comments":0,"pivot_tables":0},"unopened":[],"bounds":{"document_bytes":16777216,"sheet_cells":100000,"rows_first":2000,"rows_last":500,"rows_between":2000,"halvings":0,"cell_chars":16384,"cell_head_chars":4096},"cells_cut":0,"cells_raw":0,"read":"whole","date_system":"1900"}

{"sheet":"Info","index":0,"n_rows":16,"n_cols":19,"rows_kept":16,"cut":false,"hidden":true,"merged":[[2,14,2,19],[14,10,14,12],[15,14,16,19],[3,3,6,10],[7,3,8,10],[10,5,12,8],[14,5,14,8],[9,6,9,7],[13,6,13,7]]}
[]
[]
[null,null,null,null,null,null,null,null,null,null,null,null,null,null,"Neue Liga erstellen: Kopie Liga_1A - Umbenennen - Variablen ändern"]
[null,null,null,"A & G Computer GmbH - Bremer Heerstraße 122, 26135 Oldenburg"]
[]
[null,null,null,null,null,null,null,null,null,null,null,null,null,null,null,null,"alt aus 1A","Bedeutung","Neue Vari"]
[]
[null,null,null,"Tel. 04 41 - 36 11 56 60",null,null,null,null,null,null,null,null,null,null,null,null,"$T$17","Anzahl Mannschaften","$T$21"]
[null,null,null,null,null,null,null,null,null,null,null,null,null,null,null,null,"$E$8","Team 1","$H$17"]
[null,null,null,null,null,null,null,null,null,null,null,null,null,null,null,null,"$E$9","Team 2","$H$18"]
[null,null,null,null,null,"Version: 1.02 - 03.06.2020",null,null,null,null,null,null,null,null,null,null,"$E$10","Team 3","$H$19"]
[null,null,null,null,null,null,null,null,null,null,null,null,null,null,null,null,"$E$11","Team 4","$H$20"]
[null,null,null,null,null,null,null,null,null,null,null,null,null,null,null,null,"$E$12","Team 5","$H$21"]
[null,null,null,null,null,null,null,null,null,null,null,null,null,null,null,null,"$E$13","Team 6","$H$22"]
[null,null,null,null,null,"Dennis Struck"]
[null,null,null,null,null,null,null,null,null,null,null,null,null,null,"Kopie Rangliste Tabelle 1A - Anzahl Manschaften ändern, Vari Liga_1A ersetzen (Liga_6X)"]

{"sheet":"Gruppenplanung","index":1,"n_rows":138,"n_cols":21,"rows_kept":138,"cut":false,"hidden":false,"merged":[[15,19,15,20],[15,15,15,16],[15,12,15,13],[6,3,6,4],[6,15,6,16],[6,19,6,20],[33,15,33,16],[24,3,24,4],[24,6,24,7],[24,9,24,10],[24,12,24,13],[24,15,24,16],[6,1,12,1],[15,1,21,1],[24,1,30,1],[33,1,39,1],[6,6,10,13],[33,3,33,4],[33,6,33,7],[33,9,33,10],[33,12,33,13],[15,3,15,4],[15,6,15,7]]}
[]
[]
[]
[]
[]
[]
[null,1,null,"Liga 1A",null,null,2025,null,null,null,null,null,null,null,null,"Liga 1B",null,null,null,"Hilfstabelle"]
[null,null,null,1,"Deinster Geest",null,null,null,null,null,null,null,null,null,null,1,"Gleidingen",null,null,1]
[null,null,null,2,"Oberneuland 1",null,null,null,null,null,null,null,null,null,null,2,"Burgdorf",null,null,2]
[null,null,null,3,"Osnabrück",null,null,null,null,null,null,null,null,null,null,3,"Celle",null,null,3]
[null,null,null,4,"Worpswede",null,null,null,null,null,null,null,null,null,null,4,"Hedwigsburg",null,null,4]
[null,null,null,5,"Achim",null,null,null,null,null,null,null,null,null,null,5,"Hardenberg",null,null,5]
[null,null,null,null,null,null,null,null,null,null,null,null,null,null,null,null,null,null,null,6]
[]
[]
[null,2,null,"Liga 2A",null,null,"Liga 2B",null,null,null,null,null,"Liga 2C",null,null,"Liga 2D",null,null,null,"Mannschaftsanzahl"]
[null,null,null,1,"Bremer Schweiz 1",null,1,"Syke",null,null,null,null,1,"Bad Pyrmont",null,1,null,null,null,{"$f":"COUNTA(E8:E13)","v":5},"Liga 1A"]
[null,null,null,2,"Oberneuland 2",null,2,"Rehburg-Loccum",null,null,null,null,2,"Peine-Edemissen ",null,2,null,null,null,{"$f":"COUNTA(Q8:Q13)","v":5},"Liga 1B"]
[null,null,null,3,"Lütetsburg",null,3,"Verden",null,null,null,null,3,"Wolfsburg",null,3]
[null,null,null,4,"Vechta",null,4,"Bergen-Hohne",null,null,null,null,4,"Schaumburg",null,4,null,null,null,{"$f":"COUNTA(E17:E22)","v":5},"Liga 2A"]
[null,null,null,5,"Emstal-Lingen",null,5,"Hainhaus 1",null,null,null,null,5,"Wissmannshof",null,5,null,null,null,{"$f":"COUNTA(H17:H22)","v":5},"Liga 2B"]
[null,null,null,null,null,null,null,null,null,null,null,null,null,null,null,null,null,null,null,{"$f":"COUNTA(N17:N22)","v":5},"Liga 2C"]
[null,null,null,null,null,null,null,null,null,null,null,null,null,null,null,null,null,null,null,{"$f":"COUNTA(Q17:Q22)","v":0},"Liga 2D"]
[]
[null,3,null,"Liga 3A",null,null,"Liga 3B",null,null,"Liga 3C",null,null,"Liga 3D",null,null,"Liga 3E",null,null,null,{"$f":"COUNTA(E26:E31)","v":5},"Liga 3A"]
[null,null,null,1,"Oldenburger Land 1",null,1,"Bremer Schweiz 3",null,1,"Steinhude",null,1,null,null,1,null,null,null,{"$f":"COUNTA(H26:H31)","v":5},"Liga 3B"]
[null,null,null,2,"Lohne",null,2,"Sittensen",null,2,"Bad Salzdetfurth",null,2,null,null,2,null,null,null,{"$f":"COUNTA(K26:K31)","v":4},"Liga 3C"]
[null,null,null,3,"Bremer Schweiz 2",null,3,"Göhrde",null,3,"Burgwedel ",null,3,null,null,3,null,null,null,{"$f":"COUNTA(N26:N31)","v":0},"Liga 3D"]
[null,null,null,4,"Achim 2",null,4,"Oldenburger Land 2",null,4,"Hainhaus 2",null,4,null,null,4,null,null,null,{"$f":"COUNTA(Q26:Q31)","v":0},"Liga 3E"]
[null,null,null,5,"Rastede",null,5,"Wümme",null,5,null,null,5,null,null,5]
[null,null,null,null,null,null,null,null,null,null,null,null,null,null,null,null,null,null,null,{"$f":"COUNTA(E35:E40)","v":0},"Liga 4A"]
[null,null,null,null,null,null,null,null,null,null,null,null,null,null,null,null,null,null,null,{"$f":"COUNTA(H35:H40)","v":0},"Liga 4B"]
[null,null,null,null,null,null,null,null,null,null,null,null,null,null,null,null,null,null,null,{"$f":"COUNTA(K35:K40)","v":0},"Liga 4C"]
[null,4,null,"Liga 4A",null,null,"Liga 4B",null,null,"Liga 4C",null,null,"Liga 4D",null,null,"Liga 4E",null,null,null,{"$f":"COUNTA(N35:N40)","v":0},"Liga 4D"]
[null,null,null,1,null,null,1,null,null,1,null,null,1,null,null,1,null,null,null,{"$f":"COUNTA(Q35:Q40)","v":0},"Liga 4E"]
[null,null,null,2,null,null,2,null,null,2,null,null,2,null,null,2]
[null,null,null,3,null,null,3,null,null,3,null,null,3,null,null,3]
[null,null,null,4,null,null,4,null,null,4,null,null,4,null,null,4]
[null,null,null,5,null,null,5,null,null,5,null,null,5,null,null,5]
[null,null,null,6,null,null,6,null,null,6,null,null,6,null,null,6]
[]
[]
[]
[]
[]
[]
[]
[]
[null,null,null,null,"Mannschaften"]
[null,null,null,null,"Achim"]
[null,null,null,null,"Achim 2"]
[null,null,null,null,"Bad Pyrmont"]
[null,null,null,null,"Bad Salzdetfurth"]
[null,null,null,null,"Bergen-Hohne"]
[null,null,null,null,"Bremer Schweiz 1"]
[null,null,null,null,"Bremer Schweiz 2"]
[null,null,null,null,"Bremer Schweiz 3"]
[null,null,null,null,"Burgdorf"]
[null,null,null,null,"Burgwedel "]
[null,null,null,null,"Celle"]
[null,null,null,null,"Deinster Geest"]
[null,null,null,null,"Emstal-Lingen"]
[null,null,null,null,"Gleidingen"]
[null,null,null,null,"Göhrde"]
[null,null,null,null,"Hainhaus 1"]
[null,null,null,null,"Hainhaus 2"]
[null,null,null,null,"Hardenberg"]
[null,null,null,null,"Hedwigsburg"]
[null,null,null,null,"Lohne"]
[null,null,null,null,"Lütetsburg"]
[null,null,null,null,"Munster"]
[null,null,null,null,"Oberneuland 1"]
[null,null,null,null,"Oberneuland 2"]
[null,null,null,null,"Oldenburger Land 1"]
[null,null,null,null,"Oldenburger Land 2"]
[null,null,null,null,"Osnabrück"]
[null,null,null,null,"Peine-Edemissen "]
[null,null,null,null,"Rastede"]
[null,null,null,null,"Rehburg-Loccum"]
[null,null,null,null,"Schaumburg"]
[null,null,null,null,"Sittensen"]
[null,null,null,null,"Steinhude"]
[null,null,null,null,"Syke"]
[null,null,null,null,"Tietlingen"]
[null,null,null,null,"Vechta"]
[null,null,null,null,"Verden"]
[null,null,null,null,"Wissmannshof"]
[null,null,null,null,"Wolfsburg"]
[null,null,null,null,"Worpswede"]
[null,null,null,null,"Wümme"]
[]
[]
[]
[]
[]
[]
[]
[]
[]
[]
[]
[]
[]
[]
[]
[]
[]
[]
[]
[]
[]
[]
[]
[]
[]
[]
[]
[]
[]
[]
[]
[]
[]
[]
[]
[]
[]
[]
[]
[]
[]
[]
[]
[]
[]
[]
[]
[null,null,null,null,"xxxENDExxx"]

{"sheet":"Auf-Absteiger","index":2,"n_rows":40,"n_cols":21,"rows_kept":40,"cut":false,"hidden":true,"merged":[[15,19,15,20],[24,15,24,16],[15,9,15,10],[24,12,24,13],[33,6,33,7],[33,9,33,10],[33,12,33,13],[33,15,33,16],[6,15,6,16],[6,19,6,20],[33,1,39,1],[33,3,33,4],[6,1,12,1],[6,3,6,4],[6,6,10,13],[15,1,21,1],[15,3,15,4],[15,6,15,7],[15,12,15,13],[15,15,15,16],[24,1,30,1],[24,3,24,4],[24,6,24,7],[24,9,24,10]]}
[]
[]
[]
[]
[]
[]
[null,1,null,"Liga 1A",null,null,2024,null,null,null,null,null,null,null,null,"Liga 1B",null,null,null,"Hilfstabelle"]
[null,null,null,1,"Deinster Geest",null,null,null,null,null,null,null,null,null,null,1,"Wolfsburg",null,null,1]
[null,null,null,2,"Bremer Schweiz",null,null,null,null,null,null,null,null,null,null,2,"Burgdorf",null,null,2]
[null,null,null,3,"Worpswede",null,null,null,null,null,null,null,null,null,null,3,"Hedwigsburg",null,null,3]
[null,null,null,4,"Tietlingen",null,null,null,null,null,null,null,null,null,null,4,"Bergen-Hohne",null,null,4]
[null,null,null,5,"Emstal-Lingen",null,null,null,null,null,null,null,null,null,null,5,"Hainhaus 1",null,null,5]
[null,null,null,null,null,null,null,null,null,null,null,null,null,null,null,null,null,null,null,6]
[]
[]
[null,null,null,"Liga 2A",null,null,"Liga 2B",null,null,"Legende",null,null,"Liga 2C",null,null,null,null,null,null,"Mannschaftsanzahl"]
[null,null,null,1,"Oberneuland 1",null,1,"Wümme",null,null,"Aufsteiger",null,1,"Bad Pyrmont",null,1,null,null,null,{"$f":"COUNTA(E8:E13)","v":5},"Liga 1A"]
[null,null,null,2,"Osnabrück",null,2,"Rehburg-Loccum",null,null,"Absteiger",null,2,"Gleidingen",null,2,null,null,null,{"$f":"COUNTA(Q8:Q13)","v":5},"Liga 1B"]
[null,null,null,3,"Lütetsburg",null,3,"Celle",null,null,"Neuzugang",null,3,"Hainhaus 2",null,3]
[null,null,null,4,"Rastede",null,4,"Syke",null,null,null,null,4,"Hardenberg",null,4,null,null,null,{"$f":"COUNTA(E17:E22)","v":4},"Liga 2A"]
[null,null,null,5,null,null,5,"Achim",null,null,null,null,5,null,null,5,null,null,null,{"$f":"COUNTA(H17:H22)","v":5},"Liga 2B"]
[null,null,null,null,null,null,null,null,null,null,null,null,null,null,null,null,null,null,null,{"$f":"COUNTA(N17:N22)","v":4},"Liga 2C"]
[null,null,null,null,null,null,null,null,null,null,null,null,null,null,null,null,null,null,null,{"$f":"COUNTA(Q17:Q22)","v":0},"Liga 2D"]
[]
[null,2,null,"Liga 3A",null,null,"Liga 3B",null,null,null,null,null,"Liga 3C",null,null,null,null,null,null,{"$f":"COUNTA(E26:E31)","v":4},"Liga 3A"]
[null,null,null,1,"Oberneuland 2",null,1,"Steinhude",null,1,null,null,1,"Peine-Edemissen ",null,1,null,null,null,{"$f":"COUNTA(H26:H31)","v":4},"Liga 3B"]
[null,null,null,2,"Lohne",null,2,"Verden",null,2,null,null,2,"Bad Salzdetfurth",null,2,null,null,null,{"$f":"COUNTA(K26:K31)","v":0},"Liga 3C"]
[null,null,null,3,"Oldenburger Land",null,3,"Schaumburg",null,3,null,null,3,"Wissmannshof",null,3,null,null,null,{"$f":"COUNTA(N26:N31)","v":4},"Liga 3D"]
[null,null,null,4,"Vechta",null,4,"Munster",null,4,null,null,4,"Burgwedel ",null,4,null,null,null,{"$f":"COUNTA(Q26:Q31)","v":0},"Liga 3E"]
[null,null,null,5,null,null,5,null,null,5,null,null,5,null,null,5]
[null,null,null,null,null,null,null,null,null,null,null,null,null,null,null,null,null,null,null,{"$f":"COUNTA(E35:E40)","v":0},"Liga 4A"]
[null,null,null,null,null,null,null,null,null,null,null,null,null,null,null,null,null,null,null,{"$f":"COUNTA(H35:H40)","v":0},"Liga 4B"]
[null,null,null,null,null,null,null,null,null,null,null,null,null,null,null,null,null,null,null,{"$f":"COUNTA(K35:K40)","v":0},"Liga 4C"]
[null,null,null,null,null,null,null,null,null,null,null,null,null,null,null,null,null,null,null,{"$f":"COUNTA(N35:N40)","v":0},"Liga 4D"]
[null,null,null,1,null,null,1,null,null,1,null,null,1,null,null,1,null,null,null,{"$f":"COUNTA(Q35:Q40)","v":0},"Liga 4E"]
[null,null,null,2,null,null,2,null,null,2,null,null,2,null,null,2]
[null,null,null,3,null,null,3,null,null,3,null,null,3,null,null,3]
[null,null,null,4,null,null,4,null,null,4,null,null,4,null,null,4]
[null,null,null,5,null,null,5,null,null,5,null,null,5,null,null,5]
[null,null,null,6,null,null,6,null,null,6,null,null,6,null,null,6]

{"sheet":"Rangliste","index":3,"n_rows":147,"n_cols":37,"rows_kept":147,"cut":false,"hidden":false,"merged":[[103,2,103,7],[112,2,112,7],[121,2,121,7],[130,2,130,7],[139,2,139,7],[4,2,4,7],[13,2,13,7],[22,2,22,7],[31,2,31,7],[40,2,40,7],[67,2,67,7],[76,2,76,7],[85,2,85,7],[94,2,94,7],[49,2,49,7],[58,2,58,7]]}
[]
[null,null,null,null,null,null,null,null,"Spalte K - AK","Ausgeblendet"]
[]
[]
[null,null,"Liga 1A",null,null,null,null,null,null,null,null,"Punkte bei 4er Teams",null,"Punkte bei 5er Teams",null,"Punkte bei 6er Teams",null,null,"Spiele bei 4er Teams",null,"Spiele bei 5er Teams",null,"Spiele bei 6er Teams",null,null,"V. Punkte bei 4er Teams",null,"V. Punkte bei 5er Teams",null,"V. Punkte bei 6er Teams",null,null,"V. Spiele bei 4er Teams",null,"V. Spiele bei 5er Teams",null,"V. Spiele bei 6er Teams"]
[null,null,"Platz","Mannschaft","Punkte","V. Punkte","Spiele","V. Spiele",null,null,"Team 1",{"$f":"SUM(Liga_1A!$G$8,Liga_1A!$I$21,Liga_1A!$I$28)","v":0},null,{"$f":"SUM(Liga_1A!$G$8,Liga_1A!$G$21,Liga_1A!$I$38,Liga_1A!$G$51)","v":0},null,{"$f":"SUM(Liga_1A!$G$8,Liga_1A!$G$21,Liga_1A!$I$28,Liga_1A!$G$41,Liga_1A!$G$51)","v":0},null,"Team 1",{"$f":"SUM(Liga_1A!$G$7,Liga_1A!$I$20,Liga_1A!$I$27)","v":0},null,{"$f":"SUM(Liga_1A!$G$7,Liga_1A!$G$20,Liga_1A!$I$37,Liga_1A!$G$50)","v":0},null,{"$f":"SUM(Liga_1A!$G$7,Liga_1A!$G$20,Liga_1A!$I$27,Liga_1A!$G$40,Liga_1A!$G$50)","v":0},null,"Team 1",{"$f":"SUM(Liga_1A!$I$8,Liga_1A!$G$21,Liga_1A!$G$28)","v":0},null,{"$f":"SUM(Liga_1A!$I$8,Liga_1A!$I$21,Liga_1A!$G$38,Liga_1A!$I$51)","v":0},null,{"$f":"SUM(Liga_1A!$I$8,Liga_1A!$I$21,Liga_1A!$G$28,Liga_1A!$I$41,Liga_1A!$I$51)","v":0},null,"Team 1",{"$f":"SUM(Liga_1A!$I$7,Liga_1A!$G$20,Liga_1A!$G$27)","v":0},null,{"$f":"SUM(Liga_1A!$I$7,Liga_1A!$I$20,Liga_1A!$G$37,Liga_1A!$I$50)","v":0},null,{"$f":"SUM(Liga_1A!$I$7,Liga_1A!$I$20,Liga_1A!$G$27,Liga_1A!$I$40,Liga_1A!$I$50)","v":0}]
[null,null,1,{"$f":"Liga_1A!$G$6","v":"Deinster Geest"},{"$f":"IF(Gruppenplanung!$T$17=4,Rangliste!L6,IF(Gruppenplanung!$T$17=5,Rangliste!N6,Rangliste!P6))","v":0},{"$f":"IF(Gruppenplanung!$T$17=4,Rangliste!Z6,IF(Gruppenplanung!$T$17=5,Rangliste!AB6,Rangliste!AD6))","v":0},{"$f":"IF(Gruppenplanung!$T$17=4,Rangliste!S6,IF(Gruppenplanung!$T$17=5,Rangliste!U6,Rangliste!W6))","v":0},{"$f":"IF(Gruppenplanung!$T$17=4,Rangliste!AG6,IF(Gruppenplanung!$T$17=5,Rangliste!AI6,Rangliste!AK6))","v":0},null,null,"Team 2",{"$f":"SUM(Liga_1A!$I$8,Liga_1A!$G$18,Liga_1A!$G$31)","v":0},null,{"$f":"SUM(Liga_1A!$I$8,Liga_1A!$G$18,Liga_1A!$G$31,Liga_1A!$G$41)","v":0},null,{"$f":"SUM(Liga_1A!$I$8,Liga_1A!$G$18,Liga_1A!$G$31,Liga_1A!$G$44,Liga_1A!$G$54)","v":0},null,"Team 2",{"$f":"SUM(Liga_1A!$I$7,Liga_1A!$G$17,Liga_1A!$G$30)","v":0},null,{"$f":"SUM(Liga_1A!$I$7,Liga_1A!$G$17,Liga_1A!$G$30,Liga_1A!$G$40)","v":0},null,{"$f":"SUM(Liga_1A!$I$7,Liga_1A!$G$17,Liga_1A!$G$30,Liga_1A!$G$43,Liga_1A!$G$53)","v":0},null,"Team 2",{"$f":"SUM(Liga_1A!$G$8,Liga_1A!$I$18,Liga_1A!$I$31)","v":0},null,{"$f":"SUM(Liga_1A!$G$8,Liga_1A!$I$18,Liga_1A!$I$31,Liga_1A!$I$41)","v":0},null,{"$f":"SUM(Liga_1A!$G$8,Liga_1A!$I$18,Liga_1A!$I$31,Liga_1A!$I$44,Liga_1A!$I$54)","v":0},null,"Team 2",{"$f":"SUM(Liga_1A!$G$7,Liga_1A!$I$17,Liga_1A!$I$30)","v":0},null,{"$f":"SUM(Liga_1A!$G$7,Liga_1A!$I$17,Liga_1A!$I$30,Liga_1A!$I$40)","v":0},null,{"$f":"SUM(Liga_1A!$G$7,Liga_1A!$I$17,Liga_1A!$I$30,Liga_1A!$I$43,Liga_1A!$I$53)","v":0}]
[null,null,2,{"$f":"Liga_1A!$G$9","v":"Osnabrück"},{"$f":"IF(Gruppenplanung!$T$17=4,Rangliste!L8,IF(Gruppenplanung!$T$17=5,Rangliste!N8,Rangliste!P8))","v":0},{"$f":"IF(Gruppenplanung!$T$17=4,Rangliste!Z8,IF(Gruppenplanung!$T$17=5,Rangliste!AB8,Rangliste!AD8))","v":0},{"$f":"IF(Gruppenplanung!$T$17=4,Rangliste!S8,IF(Gruppenplanung!$T$17=5,Rangliste!U8,Rangliste!W8))","v":0},{"$f":"IF(Gruppenplanung!$T$17=4,Rangliste!AG8,IF(Gruppenplanung!$T$17=5,Rangliste!AI8,Rangliste!AK8))","v":0},null,null,"Team 3",{"$f":"SUM(Liga_1A!$G$11,Liga_1A!$I$18,Liga_1A!$G$28)","v":0},null,{"$f":"SUM(Liga_1A!$G$11,Liga_1A!$I$18,Liga_1A!$G$28,Liga_1A!$I$51)","v":0},null,{"$f":"SUM(Liga_1A!$G$11,Liga_1A!$G$24,Liga_1A!$G$28,Liga_1A!$I$44,Liga_1A!$I$48)","v":0},null,"Team 3",{"$f":"SUM(Liga_1A!$G$10,Liga_1A!$I$17,Liga_1A!$G$27)","v":0},null,{"$f":"SUM(Liga_1A!$G$10,Liga_1A!$I$17,Liga_1A!$G$27,Liga_1A!$I$50)","v":0},null,{"$f":"SUM(Liga_1A!$G$10,Liga_1A!$G$23,Liga_1A!$G$27,Liga_1A!$I$43,Liga_1A!$I$47)","v":0},null,"Team 3",{"$f":"SUM(Liga_1A!$I$11,Liga_1A!$G$18,Liga_1A!$I$28)","v":0},null,{"$f":"SUM(Liga_1A!$I$11,Liga_1A!$G$18,Liga_1A!$I$28,Liga_1A!$G$51)","v":0},null,{"$f":"SUM(Liga_1A!$I$11,Liga_1A!$I$24,Liga_1A!$I$28,Liga_1A!$G$44,Liga_1A!$G$48)","v":0},null,"Team 3",{"$f":"SUM(Liga_1A!$I$10,Liga_1A!$G$17,Liga_1A!$I$27)","v":0},null,{"$f":"SUM(Liga_1A!$I$10,Liga_1A!$G$17,Liga_1A!$I$27,Liga_1A!$G$50)","v":0},null,{"$f":"SUM(Liga_1A!$I$10,Liga_1A!$I$23,Liga_1A!$I$27,Liga_1A!$G$43,Liga_1A!$G$47)","v":0}]
[null,null,3,{"$f":"Liga_1A!$I$6","v":"Oberneuland 1"},{"$f":"IF(Gruppenplanung!$T$17=4,Rangliste!L7,IF(Gruppenplanung!$T$17=5,Rangliste!N7,Rangliste!P7))","v":0},{"$f":"IF(Gruppenplanung!$T$17=4,Rangliste!Z7,IF(Gruppenplanung!$T$17=5,Rangliste!AB7,Rangliste!AD7))","v":0},{"$f":"IF(Gruppenplanung!$T$17=4,Rangliste!S7,IF(Gruppenplanung!$T$17=5,Rangliste!U7,Rangliste!W7))","v":0},{"$f":"IF(Gruppenplanung!$T$17=4,Rangliste!AG7,IF(Gruppenplanung!$T$17=5,Rangliste!AI7,Rangliste!AK7))","v":0},null,null,"Team 4",{"$f":"SUM(Liga_1A!$I$11,Liga_1A!$G$21,Liga_1A!$I$31)","v":0},null,{"$f":"SUM(Liga_1A!$I$11,Liga_1A!$I$31,Liga_1A!$G$38,Liga_1A!$I$48)","v":0},null,{"$f":"SUM(Liga_1A!$I$11,Liga_1A!$I$18,Liga_1A!$G$34,Liga_1A!$G$38,Liga_1A!$I$51)","v":0},null,"Team 4",{"$f":"SUM(Liga_1A!$I$10,Liga_1A!$G$20,Liga_1A!$I$30)","v":0},null,{"$f":"SUM(Liga_1A!$I$10,Liga_1A!$I$30,Liga_1A!$G$37,Liga_1A!$I$47)","v":0},null,{"$f":"SUM(Liga_1A!$I$10,Liga_1A!$I$17,Liga_1A!$G$33,Liga_1A!$G$37,Liga_1A!$I$50)","v":0},null,"Team 4",{"$f":"SUM(Liga_1A!$G$11,Liga_1A!$I$21,Liga_1A!$G$31)","v":0},null,{"$f":"SUM(Liga_1A!$G$11,Liga_1A!$G$31,Liga_1A!$I$38,Liga_1A!$G$48)","v":0},null,{"$f":"SUM(Liga_1A!$G$11,Liga_1A!$G$18,Liga_1A!$I$34,Liga_1A!$I$38,Liga_1A!$G$51)","v":0},null,"Team 4",{"$f":"SUM(Liga_1A!$G$10,Liga_1A!$I$20,Liga_1A!$G$30)","v":0},null,{"$f":"SUM(Liga_1A!$G$10,Liga_1A!$G$30,Liga_1A!$I$37,Liga_1A!$G$47)","v":0},null,{"$f":"SUM(Liga_1A!$G$10,Liga_1A!$G$17,Liga_1A!$I$33,Liga_1A!$I$37,Liga_1A!$G$50)","v":0}]
[null,null,4,{"$f":"Liga_1A!$I$9","v":"Worpswede"},{"$f":"IF(Gruppenplanung!$T$17=4,Rangliste!L9,IF(Gruppenplanung!$T$17=5,Rangliste!N9,Rangliste!P9))","v":0},{"$f":"IF(Gruppenplanung!$T$17=4,Rangliste!Z9,IF(Gruppenplanung!$T$17=5,Rangliste!AB9,Rangliste!AD9))","v":0},{"$f":"IF(Gruppenplanung!$T$17=4,Rangliste!S9,IF(Gruppenplanung!$T$17=5,Rangliste!U9,Rangliste!W9))","v":0},{"$f":"IF(Gruppenplanung!$T$17=4,Rangliste!AG9,IF(Gruppenplanung!$T$17=5,Rangliste!AI9,Rangliste!AK9))","v":0},null,null,"Team 5",null,null,{"$f":"SUM(Liga_1A!$I$21,Liga_1A!$I$28,Liga_1A!$I$41,Liga_1A!$G$48)","v":0},null,{"$f":"SUM(Liga_1A!$G$14,Liga_1A!$I$21,Liga_1A!$I$31,Liga_1A!$I$38,Liga_1A!$G$48)","v":0},null,"Team 5",null,null,{"$f":"SUM(Liga_1A!$I$20,Liga_1A!$I$27,Liga_1A!$I$40,Liga_1A!$G$47)","v":0},null,{"$f":"SUM(Liga_1A!$G$13,Liga_1A!$I$20,Liga_1A!$I$30,Liga_1A!$I$37,Liga_1A!$G$47)","v":0},null,"Team 5","-",null,{"$f":"SUM(Liga_1A!$G$21,Liga_1A!$G$28,Liga_1A!$G$41,Liga_1A!$I$48)","v":0},null,{"$f":"SUM(Liga_1A!$I$14,Liga_1A!$G$21,Liga_1A!$G$31,Liga_1A!$G$38,Liga_1A!$I$48)","v":0},null,"Team 5","-",null,{"$f":"SUM(Liga_1A!$G$20,Liga_1A!$G$27,Liga_1A!$G$40,Liga_1A!$I$47)","v":0},null,{"$f":"SUM(Liga_1A!$I$13,Liga_1A!$G$20,Liga_1A!$G$30,Liga_1A!$G$37,Liga_1A!$I$47)","v":0}]
[null,null,5,{"$f":"IF(Gruppenplanung!$T$17>4,Liga_1A!$G$46,\"-\")","v":"Achim"},{"$f":"IF(Gruppenplanung!$T$17=4,0,IF(Gruppenplanung!$T$17=5,Rangliste!N10,Rangliste!P10))","v":0},{"$f":"IF(Gruppenplanung!$T$17=4,0,IF(Gruppenplanung!$T$17=5,Rangliste!AB10,Rangliste!AD10))","v":0},{"$f":"IF(Gruppenplanung!$T$17=4,0,IF(Gruppenplanung!$T$17=5,Rangliste!U10,Rangliste!W10))","v":0},{"$f":"IF(Gruppenplanung!$T$17=4,0,IF(Gruppenplanung!$T$17=5,Rangliste!AI10,Rangliste!AK10))","v":0},null,null,"Team 6",null,null,null,null,{"$f":"SUM(Liga_1A!$I$14,Liga_1A!$I$24,Liga_1A!$I$34,Liga_1A!$I$41,Liga_1A!$I$54)","v":0},null,"Team 6",null,null,null,null,{"$f":"SUM(Liga_1A!$I$13,Liga_1A!$I$23,Liga_1A!$I$33,Liga_1A!$I$40,Liga_1A!$I$53)","v":0},null,"Team 6","-",null,"-",null,{"$f":"SUM(Liga_1A!$G$14,Liga_1A!$G$24,Liga_1A!$G$34,Liga_1A!$G$41,Liga_1A!$G$54)","v":0},null,"Team 6","-",null,"-",null,{"$f":"SUM(Liga_1A!$G$13,Liga_1A!$G$23,Liga_1A!$G$33,Liga_1A!$G$40,Liga_1A!$G$53)","v":0}]
[null,null,6,{"$f":"IF(Gruppenplanung!$T$17=6,Liga_1A!$I$12,\"-\")","v":"-"},{"$f":"IF(Gruppenplanung!$T$17=4,0,IF(Gruppenplanung!$T$17=5,0,Rangliste!P11))","v":0},{"$f":"IF(Gruppenplanung!$T$17=4,0,IF(Gruppenplanung!$T$17=5,0,Rangliste!AD11))","v":0},{"$f":"IF(Gruppenplanung!$T$17=4,0,IF(Gruppenplanung!$T$17=5,0,Rangliste!W11))","v":0},{"$f":"IF(Gruppenplanung!$T$17=4,0,IF(Gruppenplanung!$T$17=5,0,Rangliste!AK11))","v":0}]
[]
[null,null,"Liga 1B",null,null,null,null,null,null,null,null,"Punkte bei 4er Teams",null,"Punkte bei 5er Teams",null,"Punkte bei 6er Teams",null,null,"Spiele bei 4er Teams",null,"Spiele bei 5er Teams",null,"Spiele bei 6er Teams",null,null,"V. Punkte bei 4er Teams",null,"V. Punkte bei 5er Teams",null,"V. Punkte bei 6er Teams",null,null,"V. Spiele bei 4er Teams",null,"V. Spiele bei 5er Teams",null,"V. Spiele bei 6er Teams"]
[null,null,"Platz","Mannschaft","Punkte","V. Punkte","Spiele","V. Spiele",null,null,"Team 1",{"$f":"SUM(Liga_1B!$G$8,Liga_1B!$I$21,Liga_1B!$I$28)","v":0},null,{"$f":"SUM(Liga_1B!$G$8,Liga_1B!$G$21,Liga_1B!$I$38,Liga_1B!$G$51)","v":0},null,{"$f":"SUM(Liga_1B!$G$8,Liga_1B!$G$21,Liga_1B!$I$28,Liga_1B!$G$41,Liga_1B!$G$51)","v":0},null,"Team 1",{"$f":"SUM(Liga_1B!$G$7,Liga_1B!$I$20,Liga_1B!$I$27)","v":0},null,{"$f":"SUM(Liga_1B!$G$7,Liga_1B!$G$20,Liga_1B!$I$37,Liga_1B!$G$50)","v":0},null,{"$f":"SUM(Liga_1B!$G$7,Liga_1B!$G$20,Liga_1B!$I$27,Liga_1B!$G$40,Liga_1B!$G$50)","v":0},null,"Team 1",{"$f":"SUM(Liga_1B!$I$8,Liga_1B!$G$21,Liga_1B!$G$28)","v":0},null,{"$f":"SUM(Liga_1B!$I$8,Liga_1B!$I$21,Liga_1B!$G$38,Liga_1B!$I$51)","v":0},null,{"$f":"SUM(Liga_1B!$I$8,Liga_1B!$I$21,Liga_1B!$G$28,Liga_1B!$I$41,Liga_1B!$I$51)","v":0},null,"Team 1",{"$f":"SUM(Liga_1B!$I$7,Liga_1B!$G$20,Liga_1B!$G$27)","v":0},null,{"$f":"SUM(Liga_1B!$I$7,Liga_1B!$I$20,Liga_1B!$G$37,Liga_1B!$I$50)","v":0},null,{"$f":"SUM(Liga_1B!$I$7,Liga_1B!$I$20,Liga_1B!$G$27,Liga_1B!$I$40,Liga_1B!$I$50)","v":0}]
[null,null,1,{"$f":"Liga_1B!$I$6","v":"Burgdorf"},{"$f":"IF(Gruppenplanung!$T$18=4,Rangliste!L16,IF(Gruppenplanung!$T$18=5,Rangliste!N16,Rangliste!P16))","v":0},{"$f":"IF(Gruppenplanung!$T$18=4,Rangliste!Z16,IF(Gruppenplanung!$T$18=5,Rangliste!AB16,Rangliste!AD16))","v":0},{"$f":"IF(Gruppenplanung!$T$18=4,Rangliste!S16,IF(Gruppenplanung!$T$18=5,Rangliste!U16,Rangliste!W16))","v":0},{"$f":"IF(Gruppenplanung!$T$18=4,Rangliste!AG16,IF(Gruppenplanung!$T$18=5,Rangliste!AI16,Rangliste!AK16))","v":0},null,null,"Team 2",{"$f":"SUM(Liga_1B!$I$8,Liga_1B!$G$18,Liga_1B!$G$31)","v":0},null,{"$f":"SUM(Liga_1B!$I$8,Liga_1B!$G$18,Liga_1B!$G$31,Liga_1B!$G$41)","v":0},null,{"$f":"SUM(Liga_1B!$I$8,Liga_1B!$G$18,Liga_1B!$G$31,Liga_1B!$G$44,Liga_1B!$G$54)","v":0},null,"Team 2",{"$f":"SUM(Liga_1B!$I$7,Liga_1B!$G$17,Liga_1B!$G$30)","v":0},null,{"$f":"SUM(Liga_1B!$I$7,Liga_1B!$G$17,Liga_1B!$G$30,Liga_1B!$G$40)","v":0},null,{"$f":"SUM(Liga_1B!$I$7,Liga_1B!$G$17,Liga_1B!$G$30,Liga_1B!$G$43,Liga_1B!$G$53)","v":0},null,"Team 2",{"$f":"SUM(Liga_1B!$G$8,Liga_1B!$I$18,Liga_1B!$I$31)","v":0},null,{"$f":"SUM(Liga_1B!$G$8,Liga_1B!$I$18,Liga_1B!$I$31,Liga_1B!$I$41)","v":0},null,{"$f":"SUM(Liga_1B!$G$8,Liga_1B!$I$18,Liga_1B!$I$31,Liga_1B!$I$44,Liga_1B!$I$54)","v":0},null,"Team 2",{"$f":"SUM(Liga_1B!$G$7,Liga_1B!$I$17,Liga_1B!$I$30)","v":0},null,{"$f":"SUM(Liga_1B!$G$7,Liga_1B!$I$17,Liga_1B!$I$30,Liga_1B!$I$40)","v":0},null,{"$f":"SUM(Liga_1B!$G$7,Liga_1B!$I$17,Liga_1B!$I$30,Liga_1B!$I$43,Liga_1B!$I$53)","v":0}]
[null,null,2,{"$f":"Liga_1B!$G$9","v":"Celle"},{"$f":"IF(Gruppenplanung!$T$18=4,Rangliste!L17,IF(Gruppenplanung!$T$18=5,Rangliste!N17,Rangliste!P17))","v":0},{"$f":"IF(Gruppenplanung!$T$18=4,Rangliste!Z17,IF(Gruppenplanung!$T$18=5,Rangliste!AB17,Rangliste!AD17))","v":0},{"$f":"IF(Gruppenplanung!$T$18=4,Rangliste!S17,IF(Gruppenplanung!$T$18=5,Rangliste!U17,Rangliste!W17))","v":0},{"$f":"IF(Gruppenplanung!$T$18=4,Rangliste!AG17,IF(Gruppenplanung!$T$18=5,Rangliste!AI17,Rangliste!AK17))","v":0},null,null,"Team 3",{"$f":"SUM(Liga_1B!$G$11,Liga_1B!$I$18,Liga_1B!$G$28)","v":0},null,{"$f":"SUM(Liga_1B!$G$11,Liga_1B!$I$18,Liga_1B!$G$28,Liga_1B!$I$51)","v":0},null,{"$f":"SUM(Liga_1B!$G$11,Liga_1B!$G$24,Liga_1B!$G$28,Liga_1B!$I$44,Liga_1B!$I$48)","v":0},null,"Team 3",{"$f":"SUM(Liga_1B!$G$10,Liga_1B!$I$17,Liga_1B!$G$27)","v":0},null,{"$f":"SUM(Liga_1B!$G$10,Liga_1B!$I$17,Liga_1B!$G$27,Liga_1B!$I$50)","v":0},null,{"$f":"SUM(Liga_1B!$G$10,Liga_1B!$G$23,Liga_1B!$G$27,Liga_1B!$I$43,Liga_1B!$I$47)","v":0},null,"Team 3",{"$f":"SUM(Liga_1B!$I$11,Liga_1B!$G$18,Liga_1B!$I$28)","v":0},null,{"$f":"SUM(Liga_1B!$I$11,Liga_1B!$G$18,Liga_1B!$I$28,Liga_1B!$G$51)","v":0},null,{"$f":"SUM(Liga_1B!$I$11,Liga_1B!$I$24,Liga_1B!$I$28,Liga_1B!$G$44,Liga_1B!$G$48)","v":0},null,"Team 3",{"$f":"SUM(Liga_1B!$I$10,Liga_1B!$G$17,Liga_1B!$I$27)","v":0},null,{"$f":"SUM(Liga_1B!$I$10,Liga_1B!$G$17,Liga_1B!$I$27,Liga_1B!$G$50)","v":0},null,{"$f":"SUM(Liga_1B!$I$10,Liga_1B!$I$23,Liga_1B!$I$27,Liga_1B!$G$43,Liga_1B!$G$47)","v":0}]
[null,null,3,{"$f":"IF(Gruppenplanung!$T$18>4,Liga_1B!$G$46,\"-\")","v":"Hardenberg"},{"$f":"IF(Gruppenplanung!$T$18=4,0,IF(Gruppenplanung!$T$18=5,Rangliste!N19,Rangliste!P19))","v":0},{"$f":"IF(Gruppenplanung!$T$18=4,0,IF(Gruppenplanung!$T$18=5,Rangliste!AB19,Rangliste!AD19))","v":0},{"$f":"IF(Gruppenplanung!$T$18=4,0,IF(Gruppenplanung!$T$18=5,Rangliste!U19,Rangliste!W19))","v":0},{"$f":"IF(Gruppenplanung!$T$18=4,0,IF(Gruppenplanung!$T$18=5,Rangliste!AI19,Rangliste!AK19))","v":0},null,null,"Team 4",{"$f":"SUM(Liga_1B!$I$11,Liga_1B!$G$21,Liga_1B!$I$31)","v":0},null,{"$f":"SUM(Liga_1B!$I$11,Liga_1B!$I$31,Liga_1B!$G$38,Liga_1B!$I$48)","v":0},null,{"$f":"SUM(Liga_1B!$I$11,Liga_1B!$I$18,Liga_1B!$G$34,Liga_1B!$G$38,Liga_1B!$I$51)","v":0},null,"Team 4",{"$f":"SUM(Liga_1B!$I$10,Liga_1B!$G$20,Liga_1B!$I$30)","v":0},null,{"$f":"SUM(Liga_1B!$I$10,Liga_1B!$I$30,Liga_1B!$G$37,Liga_1B!$I$47)","v":0},null,{"$f":"SUM(Liga_1B!$I$10,Liga_1B!$I$17,Liga_1B!$G$33,Liga_1B!$G$37,Liga_1B!$I$50)","v":0},null,"Team 4",{"$f":"SUM(Liga_1B!$G$11,Liga_1B!$I$21,Liga_1B!$G$31)","v":0},null,{"$f":"SUM(Liga_1B!$G$11,Liga_1B!$G$31,Liga_1B!$I$38,Liga_1B!$G$48)","v":0},null,{"$f":"SUM(Liga_1B!$G$11,Liga_1B!$G$18,Liga_1B!$I$34,Liga_1B!$I$38,Liga_1B!$G$51)","v":0},null,"Team 4",{"$f":"SUM(Liga_1B!$G$10,Liga_1B!$I$20,Liga_1B!$G$30)","v":0},null,{"$f":"SUM(Liga_1B!$G$10,Liga_1B!$G$30,Liga_1B!$I$37,Liga_1B!$G$47)","v":0},null,{"$f":"SUM(Liga_1B!$G$10,Liga_1B!$G$17,Liga_1B!$I$33,Liga_1B!$I$37,Liga_1B!$G$50)","v":0}]
[null,null,4,{"$f":"Liga_1B!$G$6","v":"Gleidingen"},{"$f":"IF(Gruppenplanung!$T$18=4,Rangliste!L15,IF(Gruppenplanung!$T$18=5,Rangliste!N15,Rangliste!P15))","v":0},{"$f":"IF(Gruppenplanung!$T$18=4,Rangliste!Z15,IF(Gruppenplanung!$T$18=5,Rangliste!AB15,Rangliste!AD15))","v":0},{"$f":"IF(Gruppenplanung!$T$18=4,Rangliste!S15,IF(Gruppenplanung!$T$18=5,Rangliste!U15,Rangliste!W15))","v":0},{"$f":"IF(Gruppenplanung!$T$18=4,Rangliste!AG15,IF(Gruppenplanung!$T$18=5,Rangliste!AI15,Rangliste!AK15))","v":0},null,null,"Team 5",null,null,{"$f":"SUM(Liga_1B!$I$21,Liga_1B!$I$28,Liga_1B!$I$41,Liga_1B!$G$48)","v":0},null,{"$f":"SUM(Liga_1B!$G$14,Liga_1B!$I$21,Liga_1B!$I$31,Liga_1B!$I$38,Liga_1B!$G$48)","v":0},null,"Team 5",null,null,{"$f":"SUM(Liga_1B!$I$20,Liga_1B!$I$27,Liga_1B!$I$40,Liga_1B!$G$47)","v":0},null,{"$f":"SUM(Liga_1B!$G$13,Liga_1B!$I$20,Liga_1B!$I$30,Liga_1B!$I$37,Liga_1B!$G$47)","v":0},null,"Team 5","-",null,{"$f":"SUM(Liga_1B!$G$21,Liga_1B!$G$28,Liga_1B!$G$41,Liga_1B!$I$48)","v":0},null,{"$f":"SUM(Liga_1B!$I$14,Liga_1B!$G$21,Liga_1B!$G$31,Liga_1B!$G$38,Liga_1B!$I$48)","v":0},null,"Team 5","-",null,{"$f":"SUM(Liga_1B!$G$20,Liga_1B!$G$27,Liga_1B!$G$40,Liga_1B!$I$47)","v":0},null,{"$f":"SUM(Liga_1B!$I$13,Liga_1B!$G$20,Liga_1B!$G$30,Liga_1B!$G$37,Liga_1B!$I$47)","v":0}]
[null,null,5,{"$f":"Liga_1B!$I$9","v":"Hedwigsburg"},{"$f":"IF(Gruppenplanung!$T$18=4,Rangliste!L18,IF(Gruppenplanung!$T$18=5,Rangliste!N18,Rangliste!P18))","v":0},{"$f":"IF(Gruppenplanung!$T$18=4,Rangliste!Z18,IF(Gruppenplanung!$T$18=5,Rangliste!AB18,Rangliste!AD18))","v":0},{"$f":"IF(Gruppenplanung!$T$18=4,Rangliste!S18,IF(Gruppenplanung!$T$18=5,Rangliste!U18,Rangliste!W18))","v":0},{"$f":"IF(Gruppenplanung!$T$18=4,Rangliste!AG18,IF(Gruppenplanung!$T$18=5,Rangliste!AI18,Rangliste!AK18))","v":0},null,null,"Team 6",null,null,null,null,{"$f":"SUM(Liga_1B!$I$14,Liga_1B!$I$24,Liga_1B!$I$34,Liga_1B!$I$41,Liga_1B!$I$54)","v":0},null,"Team 6",null,null,null,null,{"$f":"SUM(Liga_1B!$I$13,Liga_1B!$I$23,Liga_1B!$I$33,Liga_1B!$I$40,Liga_1B!$I$53)","v":0},null,"Team 6","-",null,"-",null,{"$f":"SUM(Liga_1B!$G$14,Liga_1B!$G$24,Liga_1B!$G$34,Liga_1B!$G$41,Liga_1B!$G$54)","v":0},null,"Team 6","-",null,"-",null,{"$f":"SUM(Liga_1B!$G$13,Liga_1B!$G$23,Liga_1B!$G$33,Liga_1B!$G$40,Liga_1B!$G$53)","v":0}]
[null,null,6,{"$f":"IF(Gruppenplanung!$T$18=6,Liga_1B!$I$12,\"-\")","v":"-"},{"$f":"IF(Gruppenplanung!$T$18=4,0,IF(Gruppenplanung!$T$18=5,0,Rangliste!P20))","v":0},{"$f":"IF(Gruppenplanung!$T$18=4,0,IF(Gruppenplanung!$T$18=5,0,Rangliste!AD20))","v":0},{"$f":"IF(Gruppenplanung!$T$18=4,0,IF(Gruppenplanung!$T$18=5,0,Rangliste!W20))","v":0},{"$f":"IF(Gruppenplanung!$T$18=4,0,IF(Gruppenplanung!$T$18=5,0,Rangliste!AK20))","v":0}]
[]
[null,null,"Liga 2A",null,null,null,null,null,null,null,null,"Punkte bei 4er Teams",null,"Punkte bei 5er Teams",null,"Punkte bei 6er Teams",null,null,"Spiele bei 4er Teams",null,"Spiele bei 5er Teams",null,"Spiele bei 6er Teams",null,null,"V. Punkte bei 4er Teams",null,"V. Punkte bei 5er Teams",null,"V. Punkte bei 6er Teams",null,null,"V. Spiele bei 4er Teams",null,"V. Spiele bei 5er Teams",null,"V. Spiele bei 6er Teams"]
[null,null,"Platz","Mannschaft","Punkte","V. Punkte","Spiele","V. Spiele",null,null,"Team 1",{"$f":"SUM(Liga_2A!$G$8,Liga_2A!$I$21,Liga_2A!$I$28)","v":0},null,{"$f":"SUM(Liga_2A!$G$8,Liga_2A!$G$21,Liga_2A!$I$38,Liga_2A!$G$51)","v":0},null,{"$f":"SUM(Liga_2A!$G$8,Liga_2A!$G$21,Liga_2A!$I$28,Liga_2A!$G$41,Liga_2A!$G$51)","v":0},null,"Team 1",{"$f":"SUM(Liga_2A!$G$7,Liga_2A!$I$20,Liga_2A!$I$27)","v":0},null,{"$f":"SUM(Liga_2A!$G$7,Liga_2A!$G$20,Liga_2A!$I$37,Liga_2A!$G$50)","v":0},null,{"$f":"SUM(Liga_2A!$G$7,Liga_2A!$G$20,Liga_2A!$I$27,Liga_2A!$G$40,Liga_2A!$G$50)","v":0},null,"Team 1",{"$f":"SUM(Liga_2A!$I$8,Liga_2A!$G$21,Liga_2A!$G$28)","v":0},null,{"$f":"SUM(Liga_2A!$I$8,Liga_2A!$I$21,Liga_2A!$G$38,Liga_2A!$I$51)","v":0},null,{"$f":"SUM(Liga_2A!$I$8,Liga_2A!$I$21,Liga_2A!$G$28,Liga_2A!$I$41,Liga_2A!$I$51)","v":0},null,"Team 1",{"$f":"SUM(Liga_2A!$I$7,Liga_2A!$G$20,Liga_2A!$G$27)","v":0},null,{"$f":"SUM(Liga_2A!$I$7,Liga_2A!$I$20,Liga_2A!$G$37,Liga_2A!$I$50)","v":0},null,{"$f":"SUM(Liga_2A!$I$7,Liga_2A!$I$20,Liga_2A!$G$27,Liga_2A!$I$40,Liga_2A!$I$50)","v":0}]
[null,null,1,{"$f":"Liga_2A!$G$6","v":"Bremer Schweiz 1"},{"$f":"IF(Gruppenplanung!$T$20=4,Rangliste!L24,IF(Gruppenplanung!$T$20=5,Rangliste!N24,Rangliste!P24))","v":0},{"$f":"IF(Gruppenplanung!$T$20=4,Rangliste!Z24,IF(Gruppenplanung!$T$20=5,Rangliste!AB24,Rangliste!AD24))","v":0},{"$f":"IF(Gruppenplanung!$T$20=4,Rangliste!S24,IF(Gruppenplanung!$T$20=5,Rangliste!U24,Rangliste!W24))","v":0},{"$f":"IF(Gruppenplanung!$T$20=4,Rangliste!AG24,IF(Gruppenplanung!$T$20=5,Rangliste!AI24,Rangliste!AK24))","v":0},null,null,"Team 2",{"$f":"SUM(Liga_2A!$I$8,Liga_2A!$G$18,Liga_2A!$G$31)","v":0},null,{"$f":"SUM(Liga_2A!$I$8,Liga_2A!$G$18,Liga_2A!$G$31,Liga_2A!$G$41)","v":0},null,{"$f":"SUM(Liga_2A!$I$8,Liga_2A!$G$18,Liga_2A!$G$31,Liga_2A!$G$44,Liga_2A!$G$54)","v":0},null,"Team 2",{"$f":"SUM(Liga_2A!$I$7,Liga_2A!$G$17,Liga_2A!$G$30)","v":0},null,{"$f":"SUM(Liga_2A!$I$7,Liga_2A!$G$17,Liga_2A!$G$30,Liga_2A!$G$40)","v":0},null,{"$f":"SUM(Liga_2A!$I$7,Liga_2A!$G$17,Liga_2A!$G$30,Liga_2A!$G$43,Liga_2A!$G$53)","v":0},null,"Team 2",{"$f":"SUM(Liga_2A!$G$8,Liga_2A!$I$18,Liga_2A!$I$31)","v":0},null,{"$f":"SUM(Liga_2A!$G$8,Liga_2A!$I$18,Liga_2A!$I$31,Liga_2A!$I$41)","v":0},null,{"$f":"SUM(Liga_2A!$G$8,Liga_2A!$I$18,Liga_2A!$I$31,Liga_2A!$I$44,Liga_2A!$I$54)","v":0},null,"Team 2",{"$f":"SUM(Liga_2A!$G$7,Liga_2A!$I$17,Liga_2A!$I$30)","v":0},null,{"$f":"SUM(Liga_2A!$G$7,Liga_2A!$I$17,Liga_2A!$I$30,Liga_2A!$I$40)","v":0},null,{"$f":"SUM(Liga_2A!$G$7,Liga_2A!$I$17,Liga_2A!$I$30,Liga_2A!$I$43,Liga_2A!$I$53)","v":0}]
[null,null,2,{"$f":"Liga_2A!$I$6","v":"Oberneuland 2"},{"$f":"IF(Gruppenplanung!$T$20=4,Rangliste!L25,IF(Gruppenplanung!$T$20=5,Rangliste!N25,Rangliste!P25))","v":0},{"$f":"IF(Gruppenplanung!$T$20=4,Rangliste!Z25,IF(Gruppenplanung!$T$20=5,Rangliste!AB25,Rangliste!AD25))","v":0},{"$f":"IF(Gruppenplanung!$T$20=4,Rangliste!S25,IF(Gruppenplanung!$T$20=5,Rangliste!U25,Rangliste!W25))","v":0},{"$f":"IF(Gruppenplanung!$T$20=4,Rangliste!AG25,IF(Gruppenplanung!$T$20=5,Rangliste!AI25,Rangliste!AK25))","v":0},null,null,"Team 3",{"$f":"SUM(Liga_2A!$G$11,Liga_2A!$I$18,Liga_2A!$G$28)","v":0},null,{"$f":"SUM(Liga_2A!$G$11,Liga_2A!$I$18,Liga_2A!$G$28,Liga_2A!$I$51)","v":0},null,{"$f":"SUM(Liga_2A!$G$11,Liga_2A!$G$24,Liga_2A!$G$28,Liga_2A!$I$44,Liga_2A!$I$48)","v":0},null,"Team 3",{"$f":"SUM(Liga_2A!$G$10,Liga_2A!$I$17,Liga_2A!$G$27)","v":0},null,{"$f":"SUM(Liga_2A!$G$10,Liga_2A!$I$17,Liga_2A!$G$27,Liga_2A!$I$50)","v":0},null,{"$f":"SUM(Liga_2A!$G$10,Liga_2A!$G$23,Liga_2A!$G$27,Liga_2A!$I$43,Liga_2A!$I$47)","v":0},null,"Team 3",{"$f":"SUM(Liga_2A!$I$11,Liga_2A!$G$18,Liga_2A!$I$28)","v":0},null,{"$f":"SUM(Liga_2A!$I$11,Liga_2A!$G$18,Liga_2A!$I$28,Liga_2A!$G$51)","v":0},null,{"$f":"SUM(Liga_2A!$I$11,Liga_2A!$I$24,Liga_2A!$I$28,Liga_2A!$G$44,Liga_2A!$G$48)","v":0},null,"Team 3",{"$f":"SUM(Liga_2A!$I$10,Liga_2A!$G$17,Liga_2A!$I$27)","v":0},null,{"$f":"SUM(Liga_2A!$I$10,Liga_2A!$G$17,Liga_2A!$I$27,Liga_2A!$G$50)","v":0},null,{"$f":"SUM(Liga_2A!$I$10,Liga_2A!$I$23,Liga_2A!$I$27,Liga_2A!$G$43,Liga_2A!$G$47)","v":0}]
[null,null,3,{"$f":"Liga_2A!$G$9","v":"Lütetsburg"},{"$f":"IF(Gruppenplanung!$T$20=4,Rangliste!L26,IF(Gruppenplanung!$T$20=5,Rangliste!N26,Rangliste!P26))","v":0},{"$f":"IF(Gruppenplanung!$T$20=4,Rangliste!Z26,IF(Gruppenplanung!$T$20=5,Rangliste!AB26,Rangliste!AD26))","v":0},{"$f":"IF(Gruppenplanung!$T$20=4,Rangliste!S26,IF(Gruppenplanung!$T$20=5,Rangliste!U26,Rangliste!W26))","v":0},{"$f":"IF(Gruppenplanung!$T$20=4,Rangliste!AG26,IF(Gruppenplanung!$T$20=5,Rangliste!AI26,Rangliste!AK26))","v":0},null,null,"Team 4",{"$f":"SUM(Liga_2A!$I$11,Liga_2A!$G$21,Liga_2A!$I$31)","v":0},null,{"$f":"SUM(Liga_2A!$I$11,Liga_2A!$I$31,Liga_2A!$G$38,Liga_2A!$I$48)","v":0},null,{"$f":"SUM(Liga_2A!$I$11,Liga_2A!$I$18,Liga_2A!$G$34,Liga_2A!$G$38,Liga_2A!$I$51)","v":0},null,"Team 4",{"$f":"SUM(Liga_2A!$I$10,Liga_2A!$G$20,Liga_2A!$I$30)","v":0},null,{"$f":"SUM(Liga_2A!$I$10,Liga_2A!$I$30,Liga_2A!$G$37,Liga_2A!$I$47)","v":0},null,{"$f":"SUM(Liga_2A!$I$10,Liga_2A!$I$17,Liga_2A!$G$33,Liga_2A!$G$37,Liga_2A!$I$50)","v":0},null,"Team 4",{"$f":"SUM(Liga_2A!$G$11,Liga_2A!$I$21,Liga_2A!$G$31)","v":0},null,{"$f":"SUM(Liga_2A!$G$11,Liga_2A!$G$31,Liga_2A!$I$38,Liga_2A!$G$48)","v":0},null,{"$f":"SUM(Liga_2A!$G$11,Liga_2A!$G$18,Liga_2A!$I$34,Liga_2A!$I$38,Liga_2A!$G$51)","v":0},null,"Team 4",{"$f":"SUM(Liga_2A!$G$10,Liga_2A!$I$20,Liga_2A!$G$30)","v":0},null,{"$f":"SUM(Liga_2A!$G$10,Liga_2A!$G$30,Liga_2A!$I$37,Liga_2A!$G$47)","v":0},null,{"$f":"SUM(Liga_2A!$G$10,Liga_2A!$G$17,Liga_2A!$I$33,Liga_2A!$I$37,Liga_2A!$G$50)","v":0}]
[null,null,4,{"$f":"Liga_2A!$I$9","v":"Vechta"},{"$f":"IF(Gruppenplanung!$T$20=4,Rangliste!L27,IF(Gruppenplanung!$T$20=5,Rangliste!N27,Rangliste!P27))","v":0},{"$f":"IF(Gruppenplanung!$T$20=4,Rangliste!Z27,IF(Gruppenplanung!$T$20=5,Rangliste!AB27,Rangliste!AD27))","v":0},{"$f":"IF(Gruppenplanung!$T$20=4,Rangliste!S27,IF(Gruppenplanung!$T$20=5,Rangliste!U27,Rangliste!W27))","v":0},{"$f":"IF(Gruppenplanung!$T$20=4,Rangliste!AG27,IF(Gruppenplanung!$T$20=5,Rangliste!AI27,Rangliste!AK27))","v":0},null,null,"Team 5",null,null,{"$f":"SUM(Liga_2A!$I$21,Liga_2A!$I$28,Liga_2A!$I$41,Liga_2A!$G$48)","v":0},null,{"$f":"SUM(Liga_2A!$G$14,Liga_2A!$I$21,Liga_2A!$I$31,Liga_2A!$I$38,Liga_2A!$G$48)","v":0},null,"Team 5",null,null,{"$f":"SUM(Liga_2A!$I$20,Liga_2A!$I$27,Liga_2A!$I$40,Liga_2A!$G$47)","v":0},null,{"$f":"SUM(Liga_2A!$G$13,Liga_2A!$I$20,Liga_2A!$I$30,Liga_2A!$I$37,Liga_2A!$G$47)","v":0},null,"Team 5","-",null,{"$f":"SUM(Liga_2A!$G$21,Liga_2A!$G$28,Liga_2A!$G$41,Liga_2A!$I$48)","v":0},null,{"$f":"SUM(Liga_2A!$I$14,Liga_2A!$G$21,Liga_2A!$G$31,Liga_2A!$G$38,Liga_2A!$I$48)","v":0},null,"Team 5","-",null,{"$f":"SUM(Liga_2A!$G$20,Liga_2A!$G$27,Liga_2A!$G$40,Liga_2A!$I$47)","v":0},null,{"$f":"SUM(Liga_2A!$I$13,Liga_2A!$G$20,Liga_2A!$G$30,Liga_2A!$G$37,Liga_2A!$I$47)","v":0}]
[null,null,5,{"$f":"IF(Gruppenplanung!$T$20>4,Liga_2A!$G$46,\"-\")","v":"Emstal-Lingen"},{"$f":"IF(Gruppenplanung!$T$20=4,0,IF(Gruppenplanung!$T$20=5,Rangliste!N28,Rangliste!P28))","v":0},{"$f":"IF(Gruppenplanung!$T$20=4,0,IF(Gruppenplanung!$T$20=5,Rangliste!AB28,Rangliste!AD28))","v":0},{"$f":"IF(Gruppenplanung!$T$20=4,0,IF(Gruppenplanung!$T$20=5,Rangliste!U28,Rangliste!W28))","v":0},{"$f":"IF(Gruppenplanung!$T$20=4,0,IF(Gruppenplanung!$T$20=5,Rangliste!AI28,Rangliste!AK28))","v":0},null,null,"Team 6",null,null,null,null,{"$f":"SUM(Liga_2A!$I$14,Liga_2A!$I$24,Liga_2A!$I$34,Liga_2A!$I$41,Liga_2A!$I$54)","v":0},null,"Team 6",null,null,null,null,{"$f":"SUM(Liga_2A!$I$13,Liga_2A!$I$23,Liga_2A!$I$33,Liga_2A!$I$40,Liga_2A!$I$53)","v":0},null,"Team 6","-",null,"-",null,{"$f":"SUM(Liga_2A!$G$14,Liga_2A!$G$24,Liga_2A!$G$34,Liga_2A!$G$41,Liga_2A!$G$54)","v":0},null,"Team 6","-",null,"-",null,{"$f":"SUM(Liga_2A!$G$13,Liga_2A!$G$23,Liga_2A!$G$33,Liga_2A!$G$40,Liga_2A!$G$53)","v":0}]
[null,null,6,{"$f":"IF(Gruppenplanung!$T$20=6,Liga_2A!$I$12,\"-\")","v":"-"},{"$f":"IF(Gruppenplanung!$T$20=4,0,IF(Gruppenplanung!$T$20=5,0,Rangliste!P29))","v":0},{"$f":"IF(Gruppenplanung!$T$20=4,0,IF(Gruppenplanung!$T$20=5,0,Rangliste!AD29))","v":0},{"$f":"IF(Gruppenplanung!$T$20=4,0,IF(Gruppenplanung!$T$20=5,0,Rangliste!W29))","v":0},{"$f":"IF(Gruppenplanung!$T$20=4,0,IF(Gruppenplanung!$T$20=5,0,Rangliste!AK29))","v":0}]
[]
[null,null,"Liga 2B",null,null,null,null,null,null,null,null,"Punkte bei 4er Teams",null,"Punkte bei 5er Teams",null,"Punkte bei 6er Teams",null,null,"Spiele bei 4er Teams",null,"Spiele bei 5er Teams",null,"Spiele bei 6er Teams",null,null,"V. Punkte bei 4er Teams",null,"V. Punkte bei 5er Teams",null,"V. Punkte bei 6er Teams",null,null,"V. Spiele bei 4er Teams",null,"V. Spiele bei 5er Teams",null,"V. Spiele bei 6er Teams"]
[null,null,"Platz","Mannschaft","Punkte","V. Punkte","Spiele","V. Spiele",null,null,"Team 1",{"$f":"SUM(Liga_2B!$G$8,Liga_2B!$I$21,Liga_2B!$I$28)","v":0},null,{"$f":"SUM(Liga_2B!$G$8,Liga_2B!$G$21,Liga_2B!$I$38,Liga_2B!$G$51)","v":0},null,{"$f":"SUM(Liga_2B!$G$8,Liga_2B!$G$21,Liga_2B!$I$28,Liga_2B!$G$41,Liga_2B!$G$51)","v":0},null,"Team 1",{"$f":"SUM(Liga_2B!$G$7,Liga_2B!$I$20,Liga_2B!$I$27)","v":0},null,{"$f":"SUM(Liga_2B!$G$7,Liga_2B!$G$20,Liga_2B!$I$37,Liga_2B!$G$50)","v":0},null,{"$f":"SUM(Liga_2B!$G$7,Liga_2B!$G$20,Liga_2B!$I$27,Liga_2B!$G$40,Liga_2B!$G$50)","v":0},null,"Team 1",{"$f":"SUM(Liga_2B!$I$8,Liga_2B!$G$21,Liga_2B!$G$28)","v":0},null,{"$f":"SUM(Liga_2B!$I$8,Liga_2B!$I$21,Liga_2B!$G$38,Liga_2B!$I$51)","v":0},null,{"$f":"SUM(Liga_2B!$I$8,Liga_2B!$I$21,Liga_2B!$G$28,Liga_2B!$I$41,Liga_2B!$I$51)","v":0},null,"Team 1",{"$f":"SUM(Liga_2B!$I$7,Liga_2B!$G$20,Liga_2B!$G$27)","v":0},null,{"$f":"SUM(Liga_2B!$I$7,Liga_2B!$I$20,Liga_2B!$G$37,Liga_2B!$I$50)","v":0},null,{"$f":"SUM(Liga_2B!$I$7,Liga_2B!$I$20,Liga_2B!$G$27,Liga_2B!$I$40,Liga_2B!$I$50)","v":0}]
[null,null,1,{"$f":"IF(Gruppenplanung!$T$21>4,Liga_2B!$G$46,\"-\")","v":"Hainhaus 1"},{"$f":"IF(Gruppenplanung!$T$21=4,0,IF(Gruppenplanung!$T$21=5,Rangliste!N37,Rangliste!P37))","v":0},{"$f":"IF(Gruppenplanung!$T$21=4,0,IF(Gruppenplanung!$T$21=5,Rangliste!AB37,Rangliste!AD37))","v":0},{"$f":"IF(Gruppenplanung!$T$21=4,0,IF(Gruppenplanung!$T$21=5,Rangliste!U37,Rangliste!W37))","v":0},{"$f":"IF(Gruppenplanung!$T$21=4,0,IF(Gruppenplanung!$T$21=5,Rangliste!AI37,Rangliste!AK37))","v":0},null,null,"Team 2",{"$f":"SUM(Liga_2B!$I$8,Liga_2B!$G$18,Liga_2B!$G$31)","v":0},null,{"$f":"SUM(Liga_2B!$I$8,Liga_2B!$G$18,Liga_2B!$G$31,Liga_2B!$G$41)","v":0},null,{"$f":"SUM(Liga_2B!$I$8,Liga_2B!$G$18,Liga_2B!$G$31,Liga_2B!$G$44,Liga_2B!$G$54)","v":0},null,"Team 2",{"$f":"SUM(Liga_2B!$I$7,Liga_2B!$G$17,Liga_2B!$G$30)","v":0},null,{"$f":"SUM(Liga_2B!$I$7,Liga_2B!$G$17,Liga_2B!$G$30,Liga_2B!$G$40)","v":0},null,{"$f":"SUM(Liga_2B!$I$7,Liga_2B!$G$17,Liga_2B!$G$30,Liga_2B!$G$43,Liga_2B!$G$53)","v":0},null,"Team 2",{"$f":"SUM(Liga_2B!$G$8,Liga_2B!$I$18,Liga_2B!$I$31)","v":0},null,{"$f":"SUM(Liga_2B!$G$8,Liga_2B!$I$18,Liga_2B!$I$31,Liga_2B!$I$41)","v":0},null,{"$f":"SUM(Liga_2B!$G$8,Liga_2B!$I$18,Liga_2B!$I$31,Liga_2B!$I$44,Liga_2B!$I$54)","v":0},null,"Team 2",{"$f":"SUM(Liga_2B!$G$7,Liga_2B!$I$17,Liga_2B!$I$30)","v":0},null,{"$f":"SUM(Liga_2B!$G$7,Liga_2B!$I$17,Liga_2B!$I$30,Liga_2B!$I$40)","v":0},null,{"$f":"SUM(Liga_2B!$G$7,Liga_2B!$I$17,Liga_2B!$I$30,Liga_2B!$I$43,Liga_2B!$I$53)","v":0}]
[null,null,2,{"$f":"Liga_2B!$G$9","v":"Verden"},{"$f":"IF(Gruppenplanung!$T$21=4,Rangliste!L35,IF(Gruppenplanung!$T$21=5,Rangliste!N35,Rangliste!P35))","v":0},{"$f":"IF(Gruppenplanung!$T$21=4,Rangliste!Z35,IF(Gruppenplanung!$T$21=5,Rangliste!AB35,Rangliste!AD35))","v":0},{"$f":"IF(Gruppenplanung!$T$21=4,Rangliste!S35,IF(Gruppenplanung!$T$21=5,Rangliste!U35,Rangliste!W35))","v":0},{"$f":"IF(Gruppenplanung!$T$21=4,Rangliste!AG35,IF(Gruppenplanung!$T$21=5,Rangliste!AI35,Rangliste!AK35))","v":0},null,null,"Team 3",{"$f":"SUM(Liga_2B!$G$11,Liga_2B!$I$18,Liga_2B!$G$28)","v":0},null,{"$f":"SUM(Liga_2B!$G$11,Liga_2B!$I$18,Liga_2B!$G$28,Liga_2B!$I$51)","v":0},null,{"$f":"SUM(Liga_2B!$G$11,Liga_2B!$G$24,Liga_2B!$G$28,Liga_2B!$I$44,Liga_2B!$I$48)","v":0},null,"Team 3",{"$f":"SUM(Liga_2B!$G$10,Liga_2B!$I$17,Liga_2B!$G$27)","v":0},null,{"$f":"SUM(Liga_2B!$G$10,Liga_2B!$I$17,Liga_2B!$G$27,Liga_2B!$I$50)","v":0},null,{"$f":"SUM(Liga_2B!$G$10,Liga_2B!$G$23,Liga_2B!$G$27,Liga_2B!$I$43,Liga_2B!$I$47)","v":0},null,"Team 3",{"$f":"SUM(Liga_2B!$I$11,Liga_2B!$G$18,Liga_2B!$I$28)","v":0},null,{"$f":"SUM(Liga_2B!$I$11,Liga_2B!$G$18,Liga_2B!$I$28,Liga_2B!$G$51)","v":0},null,{"$f":"SUM(Liga_2B!$I$11,Liga_2B!$I$24,Liga_2B!$I$28,Liga_2B!$G$44,Liga_2B!$G$48)","v":0},null,"Team 3",{"$f":"SUM(Liga_2B!$I$10,Liga_2B!$G$17,Liga_2B!$I$27)","v":0},null,{"$f":"SUM(Liga_2B!$I$10,Liga_2B!$G$17,Liga_2B!$I$27,Liga_2B!$G$50)","v":0},null,{"$f":"SUM(Liga_2B!$I$10,Liga_2B!$I$23,Liga_2B!$I$27,Liga_2B!$G$43,Liga_2B!$G$47)","v":0}]
[null,null,3,{"$f":"Liga_2B!$I$9","v":"Bergen-Hohne"},{"$f":"IF(Gruppenplanung!$T$21=4,Rangliste!L36,IF(Gruppenplanung!$T$21=5,Rangliste!N36,Rangliste!P36))","v":0},{"$f":"IF(Gruppenplanung!$T$21=4,Rangliste!Z36,IF(Gruppenplanung!$T$21=5,Rangliste!AB36,Rangliste!AD36))","v":0},{"$f":"IF(Gruppenplanung!$T$21=4,Rangliste!S36,IF(Gruppenplanung!$T$21=5,Rangliste!U36,Rangliste!W36))","v":0},{"$f":"IF(Gruppenplanung!$T$21=4,Rangliste!AG36,IF(Gruppenplanung!$T$21=5,Rangliste!AI36,Rangliste!AK36))","v":0},null,null,"Team 4",{"$f":"SUM(Liga_2B!$I$11,Liga_2B!$G$21,Liga_2B!$I$31)","v":0},null,{"$f":"SUM(Liga_2B!$I$11,Liga_2B!$I$31,Liga_2B!$G$38,Liga_2B!$I$48)","v":0},null,{"$f":"SUM(Liga_2B!$I$11,Liga_2B!$I$18,Liga_2B!$G$34,Liga_2B!$G$38,Liga_2B!$I$51)","v":0},null,"Team 4",{"$f":"SUM(Liga_2B!$I$10,Liga_2B!$G$20,Liga_2B!$I$30)","v":0},null,{"$f":"SUM(Liga_2B!$I$10,Liga_2B!$I$30,Liga_2B!$G$37,Liga_2B!$I$47)","v":0},null,{"$f":"SUM(Liga_2B!$I$10,Liga_2B!$I$17,Liga_2B!$G$33,Liga_2B!$G$37,Liga_2B!$I$50)","v":0},null,"Team 4",{"$f":"SUM(Liga_2B!$G$11,Liga_2B!$I$21,Liga_2B!$G$31)","v":0},null,{"$f":"SUM(Liga_2B!$G$11,Liga_2B!$G$31,Liga_2B!$I$38,Liga_2B!$G$48)","v":0},null,{"$f":"SUM(Liga_2B!$G$11,Liga_2B!$G$18,Liga_2B!$I$34,Liga_2B!$I$38,Liga_2B!$G$51)","v":0},null,"Team 4",{"$f":"SUM(Liga_2B!$G$10,Liga_2B!$I$20,Liga_2B!$G$30)","v":0},null,{"$f":"SUM(Liga_2B!$G$10,Liga_2B!$G$30,Liga_2B!$I$37,Liga_2B!$G$47)","v":0},null,{"$f":"SUM(Liga_2B!$G$10,Liga_2B!$G$17,Liga_2B!$I$33,Liga_2B!$I$37,Liga_2B!$G$50)","v":0}]
[null,null,4,{"$f":"Liga_2B!$I$6","v":"Rehburg-Loccum"},{"$f":"IF(Gruppenplanung!$T$21=4,Rangliste!L34,IF(Gruppenplanung!$T$21=5,Rangliste!N34,Rangliste!P34))","v":0},{"$f":"IF(Gruppenplanung!$T$21=4,Rangliste!Z34,IF(Gruppenplanung!$T$21=5,Rangliste!AB34,Rangliste!AD34))","v":0},{"$f":"IF(Gruppenplanung!$T$21=4,Rangliste!S34,IF(Gruppenplanung!$T$21=5,Rangliste!U34,Rangliste!W34))","v":0},{"$f":"IF(Gruppenplanung!$T$21=4,Rangliste!AG34,IF(Gruppenplanung!$T$21=5,Rangliste!AI34,Rangliste!AK34))","v":0},null,null,"Team 5",null,null,{"$f":"SUM(Liga_2B!$I$21,Liga_2B!$I$28,Liga_2B!$I$41,Liga_2B!$G$48)","v":0},null,{"$f":"SUM(Liga_2B!$G$14,Liga_2B!$I$21,Liga_2B!$I$31,Liga_2B!$I$38,Liga_2B!$G$48)","v":0},null,"Team 5",null,null,{"$f":"SUM(Liga_2B!$I$20,Liga_2B!$I$27,Liga_2B!$I$40,Liga_2B!$G$47)","v":0},null,{"$f":"SUM(Liga_2B!$G$13,Liga_2B!$I$20,Liga_2B!$I$30,Liga_2B!$I$37,Liga_2B!$G$47)","v":0},null,"Team 5","-",null,{"$f":"SUM(Liga_2B!$G$21,Liga_2B!$G$28,Liga_2B!$G$41,Liga_2B!$I$48)","v":0},null,{"$f":"SUM(Liga_2B!$I$14,Liga_2B!$G$21,Liga_2B!$G$31,Liga_2B!$G$38,Liga_2B!$I$48)","v":0},null,"Team 5","-",null,{"$f":"SUM(Liga_2B!$G$20,Liga_2B!$G$27,Liga_2B!$G$40,Liga_2B!$I$47)","v":0},null,{"$f":"SUM(Liga_2B!$I$13,Liga_2B!$G$20,Liga_2B!$G$30,Liga_2B!$G$37,Liga_2B!$I$47)","v":0}]
[null,null,5,{"$f":"Liga_2B!$G$6","v":"Syke"},{"$f":"IF(Gruppenplanung!$T$21=4,Rangliste!L33,IF(Gruppenplanung!$T$21=5,Rangliste!N33,Rangliste!P33))","v":0},{"$f":"IF(Gruppenplanung!$T$21=4,Rangliste!Z33,IF(Gruppenplanung!$T$21=5,Rangliste!AB33,Rangliste!AD33))","v":0},{"$f":"IF(Gruppenplanung!$T$21=4,Rangliste!S33,IF(Gruppenplanung!$T$21=5,Rangliste!U33,Rangliste!W33))","v":0},{"$f":"IF(Gruppenplanung!$T$21=4,Rangliste!AG33,IF(Gruppenplanung!$T$21=5,Rangliste!AI33,Rangliste!AK33))","v":0},null,null,"Team 6",null,null,null,null,{"$f":"SUM(Liga_2B!$I$14,Liga_2B!$I$24,Liga_2B!$I$34,Liga_2B!$I$41,Liga_2B!$I$54)","v":0},null,"Team 6",null,null,null,null,{"$f":"SUM(Liga_2B!$I$13,Liga_2B!$I$23,Liga_2B!$I$33,Liga_2B!$I$40,Liga_2B!$I$53)","v":0},null,"Team 6","-",null,"-",null,{"$f":"SUM(Liga_2B!$G$14,Liga_2B!$G$24,Liga_2B!$G$34,Liga_2B!$G$41,Liga_2B!$G$54)","v":0},null,"Team 6","-",null,"-",null,{"$f":"SUM(Liga_2B!$G$13,Liga_2B!$G$23,Liga_2B!$G$33,Liga_2B!$G$40,Liga_2B!$G$53)","v":0}]
[null,null,6,{"$f":"IF(Gruppenplanung!$T$21=6,Liga_2B!$I$12,\"-\")","v":"-"},{"$f":"IF(Gruppenplanung!$T$21=4,0,IF(Gruppenplanung!$T$21=5,0,Rangliste!P38))","v":0},{"$f":"IF(Gruppenplanung!$T$21=4,0,IF(Gruppenplanung!$T$21=5,0,Rangliste!AD38))","v":0},{"$f":"IF(Gruppenplanung!$T$21=4,0,IF(Gruppenplanung!$T$21=5,0,Rangliste!W38))","v":0},{"$f":"IF(Gruppenplanung!$T$21=4,0,IF(Gruppenplanung!$T$21=5,0,Rangliste!AK38))","v":0}]
[]
[null,null,"Liga 2C",null,null,null,null,null,null,null,null,"Punkte bei 4er Teams",null,"Punkte bei 5er Teams",null,"Punkte bei 6er Teams",null,null,"Spiele bei 4er Teams",null,"Spiele bei 5er Teams",null,"Spiele bei 6er Teams",null,null,"V. Punkte bei 4er Teams",null,"V. Punkte bei 5er Teams",null,"V. Punkte bei 6er Teams",null,null,"V. Spiele bei 4er Teams",null,"V. Spiele bei 5er Teams",null,"V. Spiele bei 6er Teams"]
[null,null,"Platz","Mannschaft","Punkte","V. Punkte","Spiele","V. Spiele",null,null,"Team 1",{"$f":"SUM(Liga_2C!$G$8,Liga_2C!$I$21,Liga_2C!$I$28)","v":0},null,{"$f":"SUM(Liga_2C!$G$8,Liga_2C!$G$21,Liga_2C!$I$38,Liga_2C!$G$51)","v":0},null,{"$f":"SUM(Liga_2C!$G$8,Liga_2C!$G$21,Liga_2C!$I$28,Liga_2C!$G$41,Liga_2C!$G$51)","v":0},null,"Team 1",{"$f":"SUM(Liga_2C!$G$7,Liga_2C!$I$20,Liga_2C!$I$27)","v":0},null,{"$f":"SUM(Liga_2C!$G$7,Liga_2C!$G$20,Liga_2C!$I$37,Liga_2C!$G$50)","v":0},null,{"$f":"SUM(Liga_2C!$G$7,Liga_2C!$G$20,Liga_2C!$I$27,Liga_2C!$G$40,Liga_2C!$G$50)","v":0},null,"Team 1",{"$f":"SUM(Liga_2C!$I$8,Liga_2C!$G$21,Liga_2C!$G$28)","v":0},null,{"$f":"SUM(Liga_2C!$I$8,Liga_2C!$I$21,Liga_2C!$G$38,Liga_2C!$I$51)","v":0},null,{"$f":"SUM(Liga_2C!$I$8,Liga_2C!$I$21,Liga_2C!$G$28,Liga_2C!$I$41,Liga_2C!$I$51)","v":0},null,"Team 1",{"$f":"SUM(Liga_2C!$I$7,Liga_2C!$G$20,Liga_2C!$G$27)","v":0},null,{"$f":"SUM(Liga_2C!$I$7,Liga_2C!$I$20,Liga_2C!$G$37,Liga_2C!$I$50)","v":0},null,{"$f":"SUM(Liga_2C!$I$7,Liga_2C!$I$20,Liga_2C!$G$27,Liga_2C!$I$40,Liga_2C!$I$50)","v":0}]
[null,null,1,{"$f":"Liga_2C!$I$9","v":"Schaumburg"},{"$f":"IF(Gruppenplanung!$T$22=4,Rangliste!L45,IF(Gruppenplanung!$T$22=5,Rangliste!N45,Rangliste!P45))","v":0},{"$f":"IF(Gruppenplanung!$T$22=4,Rangliste!Z45,IF(Gruppenplanung!$T$22=5,Rangliste!AB45,Rangliste!AD45))","v":0},{"$f":"IF(Gruppenplanung!$T$22=4,Rangliste!S45,IF(Gruppenplanung!$T$22=5,Rangliste!U45,Rangliste!W45))","v":0},{"$f":"IF(Gruppenplanung!$T$22=4,Rangliste!AG45,IF(Gruppenplanung!$T$22=5,Rangliste!AI45,Rangliste!AK45))","v":0},null,null,"Team 2",{"$f":"SUM(Liga_2C!$I$8,Liga_2C!$G$18,Liga_2C!$G$31)","v":0},null,{"$f":"SUM(Liga_2C!$I$8,Liga_2C!$G$18,Liga_2C!$G$31,Liga_2C!$G$41)","v":0},null,{"$f":"SUM(Liga_2C!$I$8,Liga_2C!$G$18,Liga_2C!$G$31,Liga_2C!$G$44,Liga_2C!$G$54)","v":0},null,"Team 2",{"$f":"SUM(Liga_2C!$I$7,Liga_2C!$G$17,Liga_2C!$G$30)","v":0},null,{"$f":"SUM(Liga_2C!$I$7,Liga_2C!$G$17,Liga_2C!$G$30,Liga_2C!$G$40)","v":0},null,{"$f":"SUM(Liga_2C!$I$7,Liga_2C!$G$17,Liga_2C!$G$30,Liga_2C!$G$43,Liga_2C!$G$53)","v":0},null,"Team 2",{"$f":"SUM(Liga_2C!$G$8,Liga_2C!$I$18,Liga_2C!$I$31)","v":0},null,{"$f":"SUM(Liga_2C!$G$8,Liga_2C!$I$18,Liga_2C!$I$31,Liga_2C!$I$41)","v":0},null,{"$f":"SUM(Liga_2C!$G$8,Liga_2C!$I$18,Liga_2C!$I$31,Liga_2C!$I$44,Liga_2C!$I$54)","v":0},null,"Team 2",{"$f":"SUM(Liga_2C!$G$7,Liga_2C!$I$17,Liga_2C!$I$30)","v":0},null,{"$f":"SUM(Liga_2C!$G$7,Liga_2C!$I$17,Liga_2C!$I$30,Liga_2C!$I$40)","v":0},null,{"$f":"SUM(Liga_2C!$G$7,Liga_2C!$I$17,Liga_2C!$I$30,Liga_2C!$I$43,Liga_2C!$I$53)","v":0}]
[null,null,2,{"$f":"Liga_2C!$I$6","v":"Peine-Edemissen "},{"$f":"IF(Gruppenplanung!$T$22=4,Rangliste!L43,IF(Gruppenplanung!$T$22=5,Rangliste!N43,Rangliste!P43))","v":0},{"$f":"IF(Gruppenplanung!$T$22=4,Rangliste!Z43,IF(Gruppenplanung!$T$22=5,Rangliste!AB43,Rangliste!AD43))","v":0},{"$f":"IF(Gruppenplanung!$T$22=4,Rangliste!S43,IF(Gruppenplanung!$T$22=5,Rangliste!U43,Rangliste!W43))","v":0},{"$f":"IF(Gruppenplanung!$T$22=4,Rangliste!AG43,IF(Gruppenplanung!$T$22=5,Rangliste!AI43,Rangliste!AK43))","v":0},null,null,"Team 3",{"$f":"SUM(Liga_2C!$G$11,Liga_2C!$I$18,Liga_2C!$G$28)","v":0},null,{"$f":"SUM(Liga_2C!$G$11,Liga_2C!$I$18,Liga_2C!$G$28,Liga_2C!$I$51)","v":0},null,{"$f":"SUM(Liga_2C!$G$11,Liga_2C!$G$24,Liga_2C!$G$28,Liga_2C!$I$44,Liga_2C!$I$48)","v":0},null,"Team 3",{"$f":"SUM(Liga_2C!$G$10,Liga_2C!$I$17,Liga_2C!$G$27)","v":0},null,{"$f":"SUM(Liga_2C!$G$10,Liga_2C!$I$17,Liga_2C!$G$27,Liga_2C!$I$50)","v":0},null,{"$f":"SUM(Liga_2C!$G$10,Liga_2C!$G$23,Liga_2C!$G$27,Liga_2C!$I$43,Liga_2C!$I$47)","v":0},null,"Team 3",{"$f":"SUM(Liga_2C!$I$11,Liga_2C!$G$18,Liga_2C!$I$28)","v":0},null,{"$f":"SUM(Liga_2C!$I$11,Liga_2C!$G$18,Liga_2C!$I$28,Liga_2C!$G$51)","v":0},null,{"$f":"SUM(Liga_2C!$I$11,Liga_2C!$I$24,Liga_2C!$I$28,Liga_2C!$G$44,Liga_2C!$G$48)","v":0},null,"Team 3",{"$f":"SUM(Liga_2C!$I$10,Liga_2C!$G$17,Liga_2C!$I$27)","v":0},null,{"$f":"SUM(Liga_2C!$I$10,Liga_2C!$G$17,Liga_2C!$I$27,Liga_2C!$G$50)","v":0},null,{"$f":"SUM(Liga_2C!$I$10,Liga_2C!$I$23,Liga_2C!$I$27,Liga_2C!$G$43,Liga_2C!$G$47)","v":0}]
[null,null,3,{"$f":"Liga_2C!$G$6","v":"Bad Pyrmont"},{"$f":"IF(Gruppenplanung!$T$22=4,Rangliste!L42,IF(Gruppenplanung!$T$22=5,Rangliste!N42,Rangliste!P42))","v":0},{"$f":"IF(Gruppenplanung!$T$22=4,Rangliste!Z42,IF(Gruppenplanung!$T$22=5,Rangliste!AB42,Rangliste!AD42))","v":0},{"$f":"IF(Gruppenplanung!$T$22=4,Rangliste!S42,IF(Gruppenplanung!$T$22=5,Rangliste!U42,Rangliste!W42))","v":0},{"$f":"IF(Gruppenplanung!$T$22=4,Rangliste!AG42,IF(Gruppenplanung!$T$22=5,Rangliste!AI42,Rangliste!AK42))","v":0},null,null,"Team 4",{"$f":"SUM(Liga_2C!$I$11,Liga_2C!$G$21,Liga_2C!$I$31)","v":0},null,{"$f":"SUM(Liga_2C!$I$11,Liga_2C!$I$31,Liga_2C!$G$38,Liga_2C!$I$48)","v":0},null,{"$f":"SUM(Liga_2C!$I$11,Liga_2C!$I$18,Liga_2C!$G$34,Liga_2C!$G$38,Liga_2C!$I$51)","v":0},null,"Team 4",{"$f":"SUM(Liga_2C!$I$10,Liga_2C!$G$20,Liga_2C!$I$30)","v":0},null,{"$f":"SUM(Liga_2C!$I$10,Liga_2C!$I$30,Liga_2C!$G$37,Liga_2C!$I$47)","v":0},null,{"$f":"SUM(Liga_2C!$I$10,Liga_2C!$I$17,Liga_2C!$G$33,Liga_2C!$G$37,Liga_2C!$I$50)","v":0},null,"Team 4",{"$f":"SUM(Liga_2C!$G$11,Liga_2C!$I$21,Liga_2C!$G$31)","v":0},null,{"$f":"SUM(Liga_2C!$G$11,Liga_2C!$G$31,Liga_2C!$I$38,Liga_2C!$G$48)","v":0},null,{"$f":"SUM(Liga_2C!$G$11,Liga_2C!$G$18,Liga_2C!$I$34,Liga_2C!$I$38,Liga_2C!$G$51)","v":0},null,"Team 4",{"$f":"SUM(Liga_2C!$G$10,Liga_2C!$I$20,Liga_2C!$G$30)","v":0},null,{"$f":"SUM(Liga_2C!$G$10,Liga_2C!$G$30,Liga_2C!$I$37,Liga_2C!$G$47)","v":0},null,{"$f":"SUM(Liga_2C!$G$10,Liga_2C!$G$17,Liga_2C!$I$33,Liga_2C!$I$37,Liga_2C!$G$50)","v":0}]
[null,null,4,{"$f":"Liga_2C!$G$9","v":"Wolfsburg"},{"$f":"IF(Gruppenplanung!$T$22=4,Rangliste!L44,IF(Gruppenplanung!$T$22=5,Rangliste!N44,Rangliste!P44))","v":0},{"$f":"IF(Gruppenplanung!$T$22=4,Rangliste!Z44,IF(Gruppenplanung!$T$22=5,Rangliste!AB44,Rangliste!AD44))","v":0},{"$f":"IF(Gruppenplanung!$T$22=4,Rangliste!S44,IF(Gruppenplanung!$T$22=5,Rangliste!U44,Rangliste!W44))","v":0},{"$f":"IF(Gruppenplanung!$T$22=4,Rangliste!AG44,IF(Gruppenplanung!$T$22=5,Rangliste!AI44,Rangliste!AK44))","v":0},null,null,"Team 5",null,null,{"$f":"SUM(Liga_2C!$I$21,Liga_2C!$I$28,Liga_2C!$I$41,Liga_2C!$G$48)","v":0},null,{"$f":"SUM(Liga_2C!$G$14,Liga_2C!$I$21,Liga_2C!$I$31,Liga_2C!$I$38,Liga_2C!$G$48)","v":0},null,"Team 5",null,null,{"$f":"SUM(Liga_2C!$I$20,Liga_2C!$I$27,Liga_2C!$I$40,Liga_2C!$G$47)","v":0},null,{"$f":"SUM(Liga_2C!$G$13,Liga_2C!$I$20,Liga_2C!$I$30,Liga_2C!$I$37,Liga_2C!$G$47)","v":0},null,"Team 5","-",null,{"$f":"SUM(Liga_2C!$G$21,Liga_2C!$G$28,Liga_2C!$G$41,Liga_2C!$I$48)","v":0},null,{"$f":"SUM(Liga_2C!$I$14,Liga_2C!$G$21,Liga_2C!$G$31,Liga_2C!$G$38,Liga_2C!$I$48)","v":0},null,"Team 5","-",null,{"$f":"SUM(Liga_2C!$G$20,Liga_2C!$G$27,Liga_2C!$G$40,Liga_2C!$I$47)","v":0},null,{"$f":"SUM(Liga_2C!$I$13,Liga_2C!$G$20,Liga_2C!$G$30,Liga_2C!$G$37,Liga_2C!$I$47)","v":0}]
[null,null,5,{"$f":"IF(Gruppenplanung!$T$22>4,Liga_2C!$G$46,\"-\")","v":"Wissmannshof"},{"$f":"IF(Gruppenplanung!$T$22=4,0,IF(Gruppenplanung!$T$22=5,Rangliste!N46,Rangliste!P46))","v":0},{"$f":"IF(Gruppenplanung!$T$22=4,0,IF(Gruppenplanung!$T$22=5,Rangliste!AB46,Rangliste!AD46))","v":0},{"$f":"IF(Gruppenplanung!$T$22=4,0,IF(Gruppenplanung!$T$22=5,Rangliste!U46,Rangliste!W46))","v":0},{"$f":"IF(Gruppenplanung!$T$22=4,0,IF(Gruppenplanung!$T$22=5,Rangliste!AI46,Rangliste!AK46))","v":0},null,null,"Team 6",null,null,null,null,{"$f":"SUM(Liga_2C!$I$14,Liga_2C!$I$24,Liga_2C!$I$34,Liga_2C!$I$41,Liga_2C!$I$54)","v":0},null,"Team 6",null,null,null,null,{"$f":"SUM(Liga_2C!$I$13,Liga_2C!$I$23,Liga_2C!$I$33,Liga_2C!$I$40,Liga_2C!$I$53)","v":0},null,"Team 6","-",null,"-",null,{"$f":"SUM(Liga_2C!$G$14,Liga_2C!$G$24,Liga_2C!$G$34,Liga_2C!$G$41,Liga_2C!$G$54)","v":0},null,"Team 6","-",null,"-",null,{"$f":"SUM(Liga_2C!$G$13,Liga_2C!$G$23,Liga_2C!$G$33,Liga_2C!$G$40,Liga_2C!$G$53)","v":0}]
[null,null,6,{"$f":"IF(Gruppenplanung!$T$22=6,Liga_2C!$I$12,\"-\")","v":"-"},{"$f":"IF(Gruppenplanung!$T$22=4,0,IF(Gruppenplanung!$T$22=5,0,Rangliste!P47))","v":0},{"$f":"IF(Gruppenplanung!$T$22=4,0,IF(Gruppenplanung!$T$22=5,0,Rangliste!AD47))","v":0},{"$f":"IF(Gruppenplanung!$T$22=4,0,IF(Gruppenplanung!$T$22=5,0,Rangliste!W47))","v":0},{"$f":"IF(Gruppenplanung!$T$22=4,0,IF(Gruppenplanung!$T$22=5,0,Rangliste!AK47))","v":0}]
[]
[null,null,"Liga 2D",null,null,null,null,null,null,null,null,"Punkte bei 4er Teams",null,"Punkte bei 5er Teams",null,"Punkte bei 6er Teams",null,null,"Spiele bei 4er Teams",null,"Spiele bei 5er Teams",null,"Spiele bei 6er Teams",null,null,"V. Punkte bei 4er Teams",null,"V. Punkte bei 5er Teams",null,"V. Punkte bei 6er Teams",null,null,"V. Spiele bei 4er Teams",null,"V. Spiele bei 5er Teams",null,"V. Spiele bei 6er Teams"]
[null,null,"Platz","Mannschaft","Punkte","V. Punkte","Spiele","V. Spiele",null,null,"Team 1",{"$f":"SUM(Liga_2D!$G$8,Liga_2D!$I$21,Liga_2D!$I$28)","v":0},null,{"$f":"SUM(Liga_2D!$G$8,Liga_2D!$G$21,Liga_2D!$I$38,Liga_2D!$G$51)","v":0},null,{"$f":"SUM(Liga_2D!$G$8,Liga_2D!$G$21,Liga_2D!$I$28,Liga_2D!$G$41,Liga_2D!$G$51)","v":0},null,"Team 1",{"$f":"SUM(Liga_2D!$G$7,Liga_2D!$I$20,Liga_2D!$I$27)","v":0},null,{"$f":"SUM(Liga_2D!$G$7,Liga_2D!$G$20,Liga_2D!$I$37,Liga_2D!$G$50)","v":0},null,{"$f":"SUM(Liga_2D!$G$7,Liga_2D!$G$20,Liga_2D!$I$27,Liga_2D!$G$40,Liga_2D!$G$50)","v":0},null,"Team 1",{"$f":"SUM(Liga_2D!$I$8,Liga_2D!$G$21,Liga_2D!$G$28)","v":0},null,{"$f":"SUM(Liga_2D!$I$8,Liga_2D!$I$21,Liga_2D!$G$38,Liga_2D!$I$51)","v":0},null,{"$f":"SUM(Liga_2D!$I$8,Liga_2D!$I$21,Liga_2D!$G$28,Liga_2D!$I$41,Liga_2D!$I$51)","v":0},null,"Team 1",{"$f":"SUM(Liga_2D!$I$7,Liga_2D!$G$20,Liga_2D!$G$27)","v":0},null,{"$f":"SUM(Liga_2D!$I$7,Liga_2D!$I$20,Liga_2D!$G$37,Liga_2D!$I$50)","v":0},null,{"$f":"SUM(Liga_2D!$I$7,Liga_2D!$I$20,Liga_2D!$G$27,Liga_2D!$I$40,Liga_2D!$I$50)","v":0}]
[null,null,1,{"$f":"Liga_2D!$I$9","v":0},{"$f":"IF(Gruppenplanung!$T$23=4,Rangliste!L54,IF(Gruppenplanung!$T$23=5,Rangliste!N54,Rangliste!P54))","v":0},{"$f":"IF(Gruppenplanung!$T$23=4,Rangliste!Z54,IF(Gruppenplanung!$T$23=5,Rangliste!AB54,Rangliste!AD54))","v":0},{"$f":"IF(Gruppenplanung!$T$23=4,Rangliste!S54,IF(Gruppenplanung!$T$23=5,Rangliste!U54,Rangliste!W54))","v":0},{"$f":"IF(Gruppenplanung!$T$23=4,Rangliste!AG54,IF(Gruppenplanung!$T$23=5,Rangliste!AI54,Rangliste!AK54))","v":0},null,null,"Team 2",{"$f":"SUM(Liga_2D!$I$8,Liga_2D!$G$18,Liga_2D!$G$31)","v":0},null,{"$f":"SUM(Liga_2D!$I$8,Liga_2D!$G$18,Liga_2D!$G$31,Liga_2D!$G$41)","v":0},null,{"$f":"SUM(Liga_2D!$I$8,Liga_2D!$G$18,Liga_2D!$G$31,Liga_2D!$G$44,Liga_2D!$G$54)","v":0},null,"Team 2",{"$f":"SUM(Liga_2D!$I$7,Liga_2D!$G$17,Liga_2D!$G$30)","v":0},null,{"$f":"SUM(Liga_2D!$I$7,Liga_2D!$G$17,Liga_2D!$G$30,Liga_2D!$G$40)","v":0},null,{"$f":"SUM(Liga_2D!$I$7,Liga_2D!$G$17,Liga_2D!$G$30,Liga_2D!$G$43,Liga_2D!$G$53)","v":0},null,"Team 2",{"$f":"SUM(Liga_2D!$G$8,Liga_2D!$I$18,Liga_2D!$I$31)","v":0},null,{"$f":"SUM(Liga_2D!$G$8,Liga_2D!$I$18,Liga_2D!$I$31,Liga_2D!$I$41)","v":0},null,{"$f":"SUM(Liga_2D!$G$8,Liga_2D!$I$18,Liga_2D!$I$31,Liga_2D!$I$44,Liga_2D!$I$54)","v":0},null,"Team 2",{"$f":"SUM(Liga_2D!$G$7,Liga_2D!$I$17,Liga_2D!$I$30)","v":0},null,{"$f":"SUM(Liga_2D!$G$7,Liga_2D!$I$17,Liga_2D!$I$30,Liga_2D!$I$40)","v":0},null,{"$f":"SUM(Liga_2D!$G$7,Liga_2D!$I$17,Liga_2D!$I$30,Liga_2D!$I$43,Liga_2D!$I$53)","v":0}]
[null,null,2,{"$f":"Liga_2D!$G$6","v":0},{"$f":"IF(Gruppenplanung!$T$23=4,Rangliste!L51,IF(Gruppenplanung!$T$23=5,Rangliste!N51,Rangliste!P51))","v":0},{"$f":"IF(Gruppenplanung!$T$23=4,Rangliste!Z51,IF(Gruppenplanung!$T$23=5,Rangliste!AB51,Rangliste!AD51))","v":0},{"$f":"IF(Gruppenplanung!$T$23=4,Rangliste!S51,IF(Gruppenplanung!$T$23=5,Rangliste!U51,Rangliste!W51))","v":0},{"$f":"IF(Gruppenplanung!$T$23=4,Rangliste!AG51,IF(Gruppenplanung!$T$23=5,Rangliste!AI51,Rangliste!AK51))","v":0},null,null,"Team 3",{"$f":"SUM(Liga_2D!$G$11,Liga_2D!$I$18,Liga_2D!$G$28)","v":0},null,{"$f":"SUM(Liga_2D!$G$11,Liga_2D!$I$18,Liga_2D!$G$28,Liga_2D!$I$51)","v":0},null,{"$f":"SUM(Liga_2D!$G$11,Liga_2D!$G$24,Liga_2D!$G$28,Liga_2D!$I$44,Liga_2D!$I$48)","v":0},null,"Team 3",{"$f":"SUM(Liga_2D!$G$10,Liga_2D!$I$17,Liga_2D!$G$27)","v":0},null,{"$f":"SUM(Liga_2D!$G$10,Liga_2D!$I$17,Liga_2D!$G$27,Liga_2D!$I$50)","v":0},null,{"$f":"SUM(Liga_2D!$G$10,Liga_2D!$G$23,Liga_2D!$G$27,Liga_2D!$I$43,Liga_2D!$I$47)","v":0},null,"Team 3",{"$f":"SUM(Liga_2D!$I$11,Liga_2D!$G$18,Liga_2D!$I$28)","v":0},null,{"$f":"SUM(Liga_2D!$I$11,Liga_2D!$G$18,Liga_2D!$I$28,Liga_2D!$G$51)","v":0},null,{"$f":"SUM(Liga_2D!$I$11,Liga_2D!$I$24,Liga_2D!$I$28,Liga_2D!$G$44,Liga_2D!$G$48)","v":0},null,"Team 3",{"$f":"SUM(Liga_2D!$I$10,Liga_2D!$G$17,Liga_2D!$I$27)","v":0},null,{"$f":"SUM(Liga_2D!$I$10,Liga_2D!$G$17,Liga_2D!$I$27,Liga_2D!$G$50)","v":0},null,{"$f":"SUM(Liga_2D!$I$10,Liga_2D!$I$23,Liga_2D!$I$27,Liga_2D!$G$43,Liga_2D!$G$47)","v":0}]
[null,null,3,{"$f":"IF(Gruppenplanung!$T$23>4,Liga_2D!$G$46,\"-\")","v":"-"},{"$f":"IF(Gruppenplanung!$T$23=4,0,IF(Gruppenplanung!$T$23=5,Rangliste!N55,Rangliste!P55))","v":0},{"$f":"IF(Gruppenplanung!$T$23=4,0,IF(Gruppenplanung!$T$23=5,Rangliste!AB55,Rangliste!AD55))","v":0},{"$f":"IF(Gruppenplanung!$T$23=4,0,IF(Gruppenplanung!$T$23=5,Rangliste!U55,Rangliste!W55))","v":0},{"$f":"IF(Gruppenplanung!$T$23=4,0,IF(Gruppenplanung!$T$23=5,Rangliste!AI55,Rangliste!AK55))","v":0},null,null,"Team 4",{"$f":"SUM(Liga_2D!$I$11,Liga_2D!$G$21,Liga_2D!$I$31)","v":0},null,{"$f":"SUM(Liga_2D!$I$11,Liga_2D!$I$31,Liga_2D!$G$38,Liga_2D!$I$48)","v":0},null,{"$f":"SUM(Liga_2D!$I$11,Liga_2D!$I$18,Liga_2D!$G$34,Liga_2D!$G$38,Liga_2D!$I$51)","v":0},null,"Team 4",{"$f":"SUM(Liga_2D!$I$10,Liga_2D!$G$20,Liga_2D!$I$30)","v":0},null,{"$f":"SUM(Liga_2D!$I$10,Liga_2D!$I$30,Liga_2D!$G$37,Liga_2D!$I$47)","v":0},null,{"$f":"SUM(Liga_2D!$I$10,Liga_2D!$I$17,Liga_2D!$G$33,Liga_2D!$G$37,Liga_2D!$I$50)","v":0},null,"Team 4",{"$f":"SUM(Liga_2D!$G$11,Liga_2D!$I$21,Liga_2D!$G$31)","v":0},null,{"$f":"SUM(Liga_2D!$G$11,Liga_2D!$G$31,Liga_2D!$I$38,Liga_2D!$G$48)","v":0},null,{"$f":"SUM(Liga_2D!$G$11,Liga_2D!$G$18,Liga_2D!$I$34,Liga_2D!$I$38,Liga_2D!$G$51)","v":0},null,"Team 4",{"$f":"SUM(Liga_2D!$G$10,Liga_2D!$I$20,Liga_2D!$G$30)","v":0},null,{"$f":"SUM(Liga_2D!$G$10,Liga_2D!$G$30,Liga_2D!$I$37,Liga_2D!$G$47)","v":0},null,{"$f":"SUM(Liga_2D!$G$10,Liga_2D!$G$17,Liga_2D!$I$33,Liga_2D!$I$37,Liga_2D!$G$50)","v":0}]
[null,null,4,{"$f":"Liga_2D!$I$6","v":0},{"$f":"IF(Gruppenplanung!$T$23=4,Rangliste!L52,IF(Gruppenplanung!$T$23=5,Rangliste!N52,Rangliste!P52))","v":0},{"$f":"IF(Gruppenplanung!$T$23=4,Rangliste!Z52,IF(Gruppenplanung!$T$23=5,Rangliste!AB52,Rangliste!AD52))","v":0},{"$f":"IF(Gruppenplanung!$T$23=4,Rangliste!S52,IF(Gruppenplanung!$T$23=5,Rangliste!U52,Rangliste!W52))","v":0},{"$f":"IF(Gruppenplanung!$T$23=4,Rangliste!AG52,IF(Gruppenplanung!$T$23=5,Rangliste!AI52,Rangliste!AK52))","v":0},null,null,"Team 5",null,null,{"$f":"SUM(Liga_2D!$I$21,Liga_2D!$I$28,Liga_2D!$I$41,Liga_2D!$G$48)","v":0},null,{"$f":"SUM(Liga_2D!$G$14,Liga_2D!$I$21,Liga_2D!$I$31,Liga_2D!$I$38,Liga_2D!$G$48)","v":0},null,"Team 5",null,null,{"$f":"SUM(Liga_2D!$I$20,Liga_2D!$I$27,Liga_2D!$I$40,Liga_2D!$G$47)","v":0},null,{"$f":"SUM(Liga_2D!$G$13,Liga_2D!$I$20,Liga_2D!$I$30,Liga_2D!$I$37,Liga_2D!$G$47)","v":0},null,"Team 5","-",null,{"$f":"SUM(Liga_2D!$G$21,Liga_2D!$G$28,Liga_2D!$G$41,Liga_2D!$I$48)","v":0},null,{"$f":"SUM(Liga_2D!$I$14,Liga_2D!$G$21,Liga_2D!$G$31,Liga_2D!$G$38,Liga_2D!$I$48)","v":0},null,"Team 5","-",null,{"$f":"SUM(Liga_2D!$G$20,Liga_2D!$G$27,Liga_2D!$G$40,Liga_2D!$I$47)","v":0},null,{"$f":"SUM(Liga_2D!$I$13,Liga_2D!$G$20,Liga_2D!$G$30,Liga_2D!$G$37,Liga_2D!$I$47)","v":0}]
[null,null,5,{"$f":"Liga_2D!$G$9","v":0},{"$f":"IF(Gruppenplanung!$T$23=4,Rangliste!L53,IF(Gruppenplanung!$T$23=5,Rangliste!N53,Rangliste!P53))","v":0},{"$f":"IF(Gruppenplanung!$T$23=4,Rangliste!Z53,IF(Gruppenplanung!$T$23=5,Rangliste!AB53,Rangliste!AD53))","v":0},{"$f":"IF(Gruppenplanung!$T$23=4,Rangliste!S53,IF(Gruppenplanung!$T$23=5,Rangliste!U53,Rangliste!W53))","v":0},{"$f":"IF(Gruppenplanung!$T$23=4,Rangliste!AG53,IF(Gruppenplanung!$T$23=5,Rangliste!AI53,Rangliste!AK53))","v":0},null,null,"Team 6",null,null,null,null,{"$f":"SUM(Liga_2D!$I$14,Liga_2D!$I$24,Liga_2D!$I$34,Liga_2D!$I$41,Liga_2D!$I$54)","v":0},null,"Team 6",null,null,null,null,{"$f":"SUM(Liga_2D!$I$13,Liga_2D!$I$23,Liga_2D!$I$33,Liga_2D!$I$40,Liga_2D!$I$53)","v":0},null,"Team 6","-",null,"-",null,{"$f":"SUM(Liga_2D!$G$14,Liga_2D!$G$24,Liga_2D!$G$34,Liga_2D!$G$41,Liga_2D!$G$54)","v":0},null,"Team 6","-",null,"-",null,{"$f":"SUM(Liga_2D!$G$13,Liga_2D!$G$23,Liga_2D!$G$33,Liga_2D!$G$40,Liga_2D!$G$53)","v":0}]
[null,null,6,{"$f":"IF(Gruppenplanung!$T$23=6,Liga_2D!$I$12,\"-\")","v":"-"},{"$f":"IF(Gruppenplanung!$T$23=4,0,IF(Gruppenplanung!$T$23=5,0,Rangliste!P56))","v":0},{"$f":"IF(Gruppenplanung!$T$23=4,0,IF(Gruppenplanung!$T$23=5,0,Rangliste!AD56))","v":0},{"$f":"IF(Gruppenplanung!$T$23=4,0,IF(Gruppenplanung!$T$23=5,0,Rangliste!W56))","v":0},{"$f":"IF(Gruppenplanung!$T$23=4,0,IF(Gruppenplanung!$T$23=5,0,Rangliste!AK56))","v":0}]
[]
[null,null,"Liga 3A",null,null,null,null,null,null,null,null,"Punkte bei 4er Teams",null,"Punkte bei 5er Teams",null,"Punkte bei 6er Teams",null,null,"Spiele bei 4er Teams",null,"Spiele bei 5er Teams",null,"Spiele bei 6er Teams",null,null,"V. Punkte bei 4er Teams",null,"V. Punkte bei 5er Teams",null,"V. Punkte bei 6er Teams",null,null,"V. Spiele bei 4er Teams",null,"V. Spiele bei 5er Teams",null,"V. Spiele bei 6er Teams"]
[null,null,"Platz","Mannschaft","Punkte","V. Punkte","Spiele","V. Spiele",null,null,"Team 1",{"$f":"SUM(Liga_3A!$G$8,Liga_3A!$I$21,Liga_3A!$I$28)","v":0},null,{"$f":"SUM(Liga_3A!$G$8,Liga_3A!$G$21,Liga_3A!$I$38,Liga_3A!$G$51)","v":0},null,{"$f":"SUM(Liga_3A!$G$8,Liga_3A!$G$21,Liga_3A!$I$28,Liga_3A!$G$41,Liga_3A!$G$51)","v":0},null,"Team 1",{"$f":"SUM(Liga_3A!$G$7,Liga_3A!$I$20,Liga_3A!$I$27)","v":0},null,{"$f":"SUM(Liga_3A!$G$7,Liga_3A!$G$20,Liga_3A!$I$37,Liga_3A!$G$50)","v":0},null,{"$f":"SUM(Liga_3A!$G$7,Liga_3A!$G$20,Liga_3A!$I$27,Liga_3A!$G$40,Liga_3A!$G$50)","v":0},null,"Team 1",{"$f":"SUM(Liga_3A!$I$8,Liga_3A!$G$21,Liga_3A!$G$28)","v":0},null,{"$f":"SUM(Liga_3A!$I$8,Liga_3A!$I$21,Liga_3A!$G$38,Liga_3A!$I$51)","v":0},null,{"$f":"SUM(Liga_3A!$I$8,Liga_3A!$I$21,Liga_3A!$G$28,Liga_3A!$I$41,Liga_3A!$I$51)","v":0},null,"Team 1",{"$f":"SUM(Liga_3A!$I$7,Liga_3A!$G$20,Liga_3A!$G$27)","v":0},null,{"$f":"SUM(Liga_3A!$I$7,Liga_3A!$I$20,Liga_3A!$G$37,Liga_3A!$I$50)","v":0},null,{"$f":"SUM(Liga_3A!$I$7,Liga_3A!$I$20,Liga_3A!$G$27,Liga_3A!$I$40,Liga_3A!$I$50)","v":0}]
[null,null,1,{"$f":"Liga_3A!$I$9","v":"Achim 2"},{"$f":"IF(Gruppenplanung!$T$25=4,Rangliste!L63,IF(Gruppenplanung!$T$25=5,Rangliste!N63,Rangliste!P63))","v":0},{"$f":"IF(Gruppenplanung!$T$25=4,Rangliste!Z63,IF(Gruppenplanung!$T$25=5,Rangliste!AB63,Rangliste!AD63))","v":0},{"$f":"IF(Gruppenplanung!$T$25=4,Rangliste!S63,IF(Gruppenplanung!$T$25=5,Rangliste!U63,Rangliste!W63))","v":0},{"$f":"IF(Gruppenplanung!$T$25=4,Rangliste!AG63,IF(Gruppenplanung!$T$25=5,Rangliste!AI63,Rangliste!AK63))","v":0},null,null,"Team 2",{"$f":"SUM(Liga_3A!$I$8,Liga_3A!$G$18,Liga_3A!$G$31)","v":0},null,{"$f":"SUM(Liga_3A!$I$8,Liga_3A!$G$18,Liga_3A!$G$31,Liga_3A!$G$41)","v":0},null,{"$f":"SUM(Liga_3A!$I$8,Liga_3A!$G$18,Liga_3A!$G$31,Liga_3A!$G$44,Liga_3A!$G$54)","v":0},null,"Team 2",{"$f":"SUM(Liga_3A!$I$7,Liga_3A!$G$17,Liga_3A!$G$30)","v":0},null,{"$f":"SUM(Liga_3A!$I$7,Liga_3A!$G$17,Liga_3A!$G$30,Liga_3A!$G$40)","v":0},null,{"$f":"SUM(Liga_3A!$I$7,Liga_3A!$G$17,Liga_3A!$G$30,Liga_3A!$G$43,Liga_3A!$G$53)","v":0},null,"Team 2",{"$f":"SUM(Liga_3A!$G$8,Liga_3A!$I$18,Liga_3A!$I$31)","v":0},null,{"$f":"SUM(Liga_3A!$G$8,Liga_3A!$I$18,Liga_3A!$I$31,Liga_3A!$I$41)","v":0},null,{"$f":"SUM(Liga_3A!$G$8,Liga_3A!$I$18,Liga_3A!$I$31,Liga_3A!$I$44,Liga_3A!$I$54)","v":0},null,"Team 2",{"$f":"SUM(Liga_3A!$G$7,Liga_3A!$I$17,Liga_3A!$I$30)","v":0},null,{"$f":"SUM(Liga_3A!$G$7,Liga_3A!$I$17,Liga_3A!$I$30,Liga_3A!$I$40)","v":0},null,{"$f":"SUM(Liga_3A!$G$7,Liga_3A!$I$17,Liga_3A!$I$30,Liga_3A!$I$43,Liga_3A!$I$53)","v":0}]
[null,null,2,{"$f":"Liga_3A!$G$6","v":"Oldenburger Land 1"},{"$f":"IF(Gruppenplanung!$T$25=4,Rangliste!L60,IF(Gruppenplanung!$T$25=5,Rangliste!N60,Rangliste!P60))","v":0},{"$f":"IF(Gruppenplanung!$T$25=4,Rangliste!Z60,IF(Gruppenplanung!$T$25=5,Rangliste!AB60,Rangliste!AD60))","v":0},{"$f":"IF(Gruppenplanung!$T$25=4,Rangliste!S60,IF(Gruppenplanung!$T$25=5,Rangliste!U60,Rangliste!W60))","v":0},{"$f":"IF(Gruppenplanung!$T$25=4,Rangliste!AG60,IF(Gruppenplanung!$T$25=5,Rangliste!AI60,Rangliste!AK60))","v":0},null,null,"Team 3",{"$f":"SUM(Liga_3A!$G$11,Liga_3A!$I$18,Liga_3A!$G$28)","v":0},null,{"$f":"SUM(Liga_3A!$G$11,Liga_3A!$I$18,Liga_3A!$G$28,Liga_3A!$I$51)","v":0},null,{"$f":"SUM(Liga_3A!$G$11,Liga_3A!$G$24,Liga_3A!$G$28,Liga_3A!$I$44,Liga_3A!$I$48)","v":0},null,"Team 3",{"$f":"SUM(Liga_3A!$G$10,Liga_3A!$I$17,Liga_3A!$G$27)","v":0},null,{"$f":"SUM(Liga_3A!$G$10,Liga_3A!$I$17,Liga_3A!$G$27,Liga_3A!$I$50)","v":0},null,{"$f":"SUM(Liga_3A!$G$10,Liga_3A!$G$23,Liga_3A!$G$27,Liga_3A!$I$43,Liga_3A!$I$47)","v":0},null,"Team 3",{"$f":"SUM(Liga_3A!$I$11,Liga_3A!$G$18,Liga_3A!$I$28)","v":0},null,{"$f":"SUM(Liga_3A!$I$11,Liga_3A!$G$18,Liga_3A!$I$28,Liga_3A!$G$51)","v":0},null,{"$f":"SUM(Liga_3A!$I$11,Liga_3A!$I$24,Liga_3A!$I$28,Liga_3A!$G$44,Liga_3A!$G$48)","v":0},null,"Team 3",{"$f":"SUM(Liga_3A!$I$10,Liga_3A!$G$17,Liga_3A!$I$27)","v":0},null,{"$f":"SUM(Liga_3A!$I$10,Liga_3A!$G$17,Liga_3A!$I$27,Liga_3A!$G$50)","v":0},null,{"$f":"SUM(Liga_3A!$I$10,Liga_3A!$I$23,Liga_3A!$I$27,Liga_3A!$G$43,Liga_3A!$G$47)","v":0}]
[null,null,3,{"$f":"Liga_3A!$I$6","v":"Lohne"},{"$f":"IF(Gruppenplanung!$T$25=4,Rangliste!L61,IF(Gruppenplanung!$T$25=5,Rangliste!N61,Rangliste!P61))","v":0},{"$f":"IF(Gruppenplanung!$T$25=4,Rangliste!Z61,IF(Gruppenplanung!$T$25=5,Rangliste!AB61,Rangliste!AD61))","v":0},{"$f":"IF(Gruppenplanung!$T$25=4,Rangliste!S61,IF(Gruppenplanung!$T$25=5,Rangliste!U61,Rangliste!W61))","v":0},{"$f":"IF(Gruppenplanung!$T$25=4,Rangliste!AG61,IF(Gruppenplanung!$T$25=5,Rangliste!AI61,Rangliste!AK61))","v":0},null,null,"Team 4",{"$f":"SUM(Liga_3A!$I$11,Liga_3A!$G$21,Liga_3A!$I$31)","v":0},null,{"$f":"SUM(Liga_3A!$I$11,Liga_3A!$I$31,Liga_3A!$G$38,Liga_3A!$I$48)","v":0},null,{"$f":"SUM(Liga_3A!$I$11,Liga_3A!$I$18,Liga_3A!$G$34,Liga_3A!$G$38,Liga_3A!$I$51)","v":0},null,"Team 4",{"$f":"SUM(Liga_3A!$I$10,Liga_3A!$G$20,Liga_3A!$I$30)","v":0},null,{"$f":"SUM(Liga_3A!$I$10,Liga_3A!$I$30,Liga_3A!$G$37,Liga_3A!$I$47)","v":0},null,{"$f":"SUM(Liga_3A!$I$10,Liga_3A!$I$17,Liga_3A!$G$33,Liga_3A!$G$37,Liga_3A!$I$50)","v":0},null,"Team 4",{"$f":"SUM(Liga_3A!$G$11,Liga_3A!$I$21,Liga_3A!$G$31)","v":0},null,{"$f":"SUM(Liga_3A!$G$11,Liga_3A!$G$31,Liga_3A!$I$38,Liga_3A!$G$48)","v":0},null,{"$f":"SUM(Liga_3A!$G$11,Liga_3A!$G$18,Liga_3A!$I$34,Liga_3A!$I$38,Liga_3A!$G$51)","v":0},null,"Team 4",{"$f":"SUM(Liga_3A!$G$10,Liga_3A!$I$20,Liga_3A!$G$30)","v":0},null,{"$f":"SUM(Liga_3A!$G$10,Liga_3A!$G$30,Liga_3A!$I$37,Liga_3A!$G$47)","v":0},null,{"$f":"SUM(Liga_3A!$G$10,Liga_3A!$G$17,Liga_3A!$I$33,Liga_3A!$I$37,Liga_3A!$G$50)","v":0}]
[null,null,4,{"$f":"Liga_3A!$G$9","v":"Bremer Schweiz 2"},{"$f":"IF(Gruppenplanung!$T$25=4,Rangliste!L62,IF(Gruppenplanung!$T$25=5,Rangliste!N62,Rangliste!P62))","v":0},{"$f":"IF(Gruppenplanung!$T$25=4,Rangliste!Z62,IF(Gruppenplanung!$T$25=5,Rangliste!AB62,Rangliste!AD62))","v":0},{"$f":"IF(Gruppenplanung!$T$25=4,Rangliste!S62,IF(Gruppenplanung!$T$25=5,Rangliste!U62,Rangliste!W62))","v":0},{"$f":"IF(Gruppenplanung!$T$25=4,Rangliste!AG62,IF(Gruppenplanung!$T$25=5,Rangliste!AI62,Rangliste!AK62))","v":0},null,null,"Team 5",null,null,{"$f":"SUM(Liga_3A!$I$21,Liga_3A!$I$28,Liga_3A!$I$41,Liga_3A!$G$48)","v":0},null,{"$f":"SUM(Liga_3A!$G$14,Liga_3A!$I$21,Liga_3A!$I$31,Liga_3A!$I$38,Liga_3A!$G$48)","v":0},null,"Team 5",null,null,{"$f":"SUM(Liga_3A!$I$20,Liga_3A!$I$27,Liga_3A!$I$40,Liga_3A!$G$47)","v":0},null,{"$f":"SUM(Liga_3A!$G$13,Liga_3A!$I$20,Liga_3A!$I$30,Liga_3A!$I$37,Liga_3A!$G$47)","v":0},null,"Team 5","-",null,{"$f":"SUM(Liga_3A!$G$21,Liga_3A!$G$28,Liga_3A!$G$41,Liga_3A!$I$48)","v":0},null,{"$f":"SUM(Liga_3A!$I$14,Liga_3A!$G$21,Liga_3A!$G$31,Liga_3A!$G$38,Liga_3A!$I$48)","v":0},null,"Team 5","-",null,{"$f":"SUM(Liga_3A!$G$20,Liga_3A!$G$27,Liga_3A!$G$40,Liga_3A!$I$47)","v":0},null,{"$f":"SUM(Liga_3A!$I$13,Liga_3A!$G$20,Liga_3A!$G$30,Liga_3A!$G$37,Liga_3A!$I$47)","v":0}]
[null,null,5,{"$f":"IF(Gruppenplanung!$T$25>4,Liga_3A!$G$46,\"-\")","v":"Rastede"},{"$f":"IF(Gruppenplanung!$T$25=4,0,IF(Gruppenplanung!$T$25=5,Rangliste!N64,Rangliste!P64))","v":0},{"$f":"IF(Gruppenplanung!$T$25=4,0,IF(Gruppenplanung!$T$25=5,Rangliste!AB64,Rangliste!AD64))","v":0},{"$f":"IF(Gruppenplanung!$T$25=4,0,IF(Gruppenplanung!$T$25=5,Rangliste!U64,Rangliste!W64))","v":0},{"$f":"IF(Gruppenplanung!$T$25=4,0,IF(Gruppenplanung!$T$25=5,Rangliste!AI64,Rangliste!AK64))","v":0},null,null,"Team 6",null,null,null,null,{"$f":"SUM(Liga_3A!$I$14,Liga_3A!$I$24,Liga_3A!$I$34,Liga_3A!$I$41,Liga_3A!$I$54)","v":0},null,"Team 6",null,null,null,null,{"$f":"SUM(Liga_3A!$I$13,Liga_3A!$I$23,Liga_3A!$I$33,Liga_3A!$I$40,Liga_3A!$I$53)","v":0},null,"Team 6","-",null,"-",null,{"$f":"SUM(Liga_3A!$G$14,Liga_3A!$G$24,Liga_3A!$G$34,Liga_3A!$G$41,Liga_3A!$G$54)","v":0},null,"Team 6","-",null,"-",null,{"$f":"SUM(Liga_3A!$G$13,Liga_3A!$G$23,Liga_3A!$G$33,Liga_3A!$G$40,Liga_3A!$G$53)","v":0}]
[null,null,6,{"$f":"IF(Gruppenplanung!$T$25=6,Liga_3A!$I$12,\"-\")","v":"-"},{"$f":"IF(Gruppenplanung!$T$25=4,0,IF(Gruppenplanung!$T$25=5,0,Rangliste!P65))","v":0},{"$f":"IF(Gruppenplanung!$T$25=4,0,IF(Gruppenplanung!$T$25=5,0,Rangliste!AD65))","v":0},{"$f":"IF(Gruppenplanung!$T$25=4,0,IF(Gruppenplanung!$T$25=5,0,Rangliste!W65))","v":0},{"$f":"IF(Gruppenplanung!$T$25=4,0,IF(Gruppenplanung!$T$25=5,0,Rangliste!AK65))","v":0}]
[]
[null,null,"Liga 3B",null,null,null,null,null,null,null,null,"Punkte bei 4er Teams",null,"Punkte bei 5er Teams",null,"Punkte bei 6er Teams",null,null,"Spiele bei 4er Teams",null,"Spiele bei 5er Teams",null,"Spiele bei 6er Teams",null,null,"V. Punkte bei 4er Teams",null,"V. Punkte bei 5er Teams",null,"V. Punkte bei 6er Teams",null,null,"V. Spiele bei 4er Teams",null,"V. Spiele bei 5er Teams",null,"V. Spiele bei 6er Teams"]
[null,null,"Platz","Mannschaft","Punkte","V. Punkte","Spiele","V. Spiele",null,null,"Team 1",{"$f":"SUM(Liga_3B!$G$8,Liga_3B!$I$21,Liga_3B!$I$28)","v":0},null,{"$f":"SUM(Liga_3B!$G$8,Liga_3B!$G$21,Liga_3B!$I$38,Liga_3B!$G$51)","v":0},null,{"$f":"SUM(Liga_3B!$G$8,Liga_3B!$G$21,Liga_3B!$I$28,Liga_3B!$G$41,Liga_3B!$G$51)","v":0},null,"Team 1",{"$f":"SUM(Liga_3B!$G$7,Liga_3B!$I$20,Liga_3B!$I$27)","v":0},null,{"$f":"SUM(Liga_3B!$G$7,Liga_3B!$G$20,Liga_3B!$I$37,Liga_3B!$G$50)","v":0},null,{"$f":"SUM(Liga_3B!$G$7,Liga_3B!$G$20,Liga_3B!$I$27,Liga_3B!$G$40,Liga_3B!$G$50)","v":0},null,"Team 1",{"$f":"SUM(Liga_3B!$I$8,Liga_3B!$G$21,Liga_3B!$G$28)","v":0},null,{"$f":"SUM(Liga_3B!$I$8,Liga_3B!$I$21,Liga_3B!$G$38,Liga_3B!$I$51)","v":0},null,{"$f":"SUM(Liga_3B!$I$8,Liga_3B!$I$21,Liga_3B!$G$28,Liga_3B!$I$41,Liga_3B!$I$51)","v":0},null,"Team 1",{"$f":"SUM(Liga_3B!$I$7,Liga_3B!$G$20,Liga_3B!$G$27)","v":0},null,{"$f":"SUM(Liga_3B!$I$7,Liga_3B!$I$20,Liga_3B!$G$37,Liga_3B!$I$50)","v":0},null,{"$f":"SUM(Liga_3B!$I$7,Liga_3B!$I$20,Liga_3B!$G$27,Liga_3B!$I$40,Liga_3B!$I$50)","v":0}]
[null,null,1,{"$f":"Liga_3B!$G$9","v":"Göhrde"},{"$f":"IF(Gruppenplanung!$T$26=4,Rangliste!L71,IF(Gruppenplanung!$T$26=5,Rangliste!N71,Rangliste!P71))","v":0},{"$f":"IF(Gruppenplanung!$T$26=4,Rangliste!Z71,IF(Gruppenplanung!$T$26=5,Rangliste!AB71,Rangliste!AD71))","v":0},{"$f":"IF(Gruppenplanung!$T$26=4,Rangliste!S71,IF(Gruppenplanung!$T$26=5,Rangliste!U71,Rangliste!W71))","v":0},{"$f":"IF(Gruppenplanung!$T$26=4,Rangliste!AG71,IF(Gruppenplanung!$T$26=5,Rangliste!AI71,Rangliste!AK71))","v":0},null,null,"Team 2",{"$f":"SUM(Liga_3B!$I$8,Liga_3B!$G$18,Liga_3B!$G$31)","v":0},null,{"$f":"SUM(Liga_3B!$I$8,Liga_3B!$G$18,Liga_3B!$G$31,Liga_3B!$G$41)","v":0},null,{"$f":"SUM(Liga_3B!$I$8,Liga_3B!$G$18,Liga_3B!$G$31,Liga_3B!$G$44,Liga_3B!$G$54)","v":0},null,"Team 2",{"$f":"SUM(Liga_3B!$I$7,Liga_3B!$G$17,Liga_3B!$G$30)","v":0},null,{"$f":"SUM(Liga_3B!$I$7,Liga_3B!$G$17,Liga_3B!$G$30,Liga_3B!$G$40)","v":0},null,{"$f":"SUM(Liga_3B!$I$7,Liga_3B!$G$17,Liga_3B!$G$30,Liga_3B!$G$43,Liga_3B!$G$53)","v":0},null,"Team 2",{"$f":"SUM(Liga_3B!$G$8,Liga_3B!$I$18,Liga_3B!$I$31)","v":0},null,{"$f":"SUM(Liga_3B!$G$8,Liga_3B!$I$18,Liga_3B!$I$31,Liga_3B!$I$41)","v":0},null,{"$f":"SUM(Liga_3B!$G$8,Liga_3B!$I$18,Liga_3B!$I$31,Liga_3B!$I$44,Liga_3B!$I$54)","v":0},null,"Team 2",{"$f":"SUM(Liga_3B!$G$7,Liga_3B!$I$17,Liga_3B!$I$30)","v":0},null,{"$f":"SUM(Liga_3B!$G$7,Liga_3B!$I$17,Liga_3B!$I$30,Liga_3B!$I$40)","v":0},null,{"$f":"SUM(Liga_3B!$G$7,Liga_3B!$I$17,Liga_3B!$I$30,Liga_3B!$I$43,Liga_3B!$I$53)","v":0}]
[null,null,2,{"$f":"Liga_3B!$I$9","v":"Oldenburger Land 2"},{"$f":"IF(Gruppenplanung!$T$26=4,Rangliste!L72,IF(Gruppenplanung!$T$26=5,Rangliste!N72,Rangliste!P72))","v":0},{"$f":"IF(Gruppenplanung!$T$26=4,Rangliste!Z72,IF(Gruppenplanung!$T$26=5,Rangliste!AB72,Rangliste!AD72))","v":0},{"$f":"IF(Gruppenplanung!$T$26=4,Rangliste!S72,IF(Gruppenplanung!$T$26=5,Rangliste!U72,Rangliste!W72))","v":0},{"$f":"IF(Gruppenplanung!$T$26=4,Rangliste!AG72,IF(Gruppenplanung!$T$26=5,Rangliste!AI72,Rangliste!AK72))","v":0},null,null,"Team 3",{"$f":"SUM(Liga_3B!$G$11,Liga_3B!$I$18,Liga_3B!$G$28)","v":0},null,{"$f":"SUM(Liga_3B!$G$11,Liga_3B!$I$18,Liga_3B!$G$28,Liga_3B!$I$51)","v":0},null,{"$f":"SUM(Liga_3B!$G$11,Liga_3B!$G$24,Liga_3B!$G$28,Liga_3B!$I$44,Liga_3B!$I$48)","v":0},null,"Team 3",{"$f":"SUM(Liga_3B!$G$10,Liga_3B!$I$17,Liga_3B!$G$27)","v":0},null,{"$f":"SUM(Liga_3B!$G$10,Liga_3B!$I$17,Liga_3B!$G$27,Liga_3B!$I$50)","v":0},null,{"$f":"SUM(Liga_3B!$G$10,Liga_3B!$G$23,Liga_3B!$G$27,Liga_3B!$I$43,Liga_3B!$I$47)","v":0},null,"Team 3",{"$f":"SUM(Liga_3B!$I$11,Liga_3B!$G$18,Liga_3B!$I$28)","v":0},null,{"$f":"SUM(Liga_3B!$I$11,Liga_3B!$G$18,Liga_3B!$I$28,Liga_3B!$G$51)","v":0},null,{"$f":"SUM(Liga_3B!$I$11,Liga_3B!$I$24,Liga_3B!$I$28,Liga_3B!$G$44,Liga_3B!$G$48)","v":0},null,"Team 3",{"$f":"SUM(Liga_3B!$I$10,Liga_3B!$G$17,Liga_3B!$I$27)","v":0},null,{"$f":"SUM(Liga_3B!$I$10,Liga_3B!$G$17,Liga_3B!$I$27,Liga_3B!$G$50)","v":0},null,{"$f":"SUM(Liga_3B!$I$10,Liga_3B!$I$23,Liga_3B!$I$27,Liga_3B!$G$43,Liga_3B!$G$47)","v":0}]
[null,null,3,{"$f":"Liga_3B!$I$6","v":"Sittensen"},{"$f":"IF(Gruppenplanung!$T$26=4,Rangliste!L70,IF(Gruppenplanung!$T$26=5,Rangliste!N70,Rangliste!P70))","v":0},{"$f":"IF(Gruppenplanung!$T$26=4,Rangliste!Z70,IF(Gruppenplanung!$T$26=5,Rangliste!AB70,Rangliste!AD70))","v":0},{"$f":"IF(Gruppenplanung!$T$26=4,Rangliste!S70,IF(Gruppenplanung!$T$26=5,Rangliste!U70,Rangliste!W70))","v":0},{"$f":"IF(Gruppenplanung!$T$26=4,Rangliste!AG70,IF(Gruppenplanung!$T$26=5,Rangliste!AI70,Rangliste!AK70))","v":0},null,null,"Team 4",{"$f":"SUM(Liga_3B!$I$11,Liga_3B!$G$21,Liga_3B!$I$31)","v":0},null,{"$f":"SUM(Liga_3B!$I$11,Liga_3B!$I$31,Liga_3B!$G$38,Liga_3B!$I$48)","v":0},null,{"$f":"SUM(Liga_3B!$I$11,Liga_3B!$I$18,Liga_3B!$G$34,Liga_3B!$G$38,Liga_3B!$I$51)","v":0},null,"Team 4",{"$f":"SUM(Liga_3B!$I$10,Liga_3B!$G$20,Liga_3B!$I$30)","v":0},null,{"$f":"SUM(Liga_3B!$I$10,Liga_3B!$I$30,Liga_3B!$G$37,Liga_3B!$I$47)","v":0},null,{"$f":"SUM(Liga_3B!$I$10,Liga_3B!$I$17,Liga_3B!$G$33,Liga_3B!$G$37,Liga_3B!$I$50)","v":0},null,"Team 4",{"$f":"SUM(Liga_3B!$G$11,Liga_3B!$I$21,Liga_3B!$G$31)","v":0},null,{"$f":"SUM(Liga_3B!$G$11,Liga_3B!$G$31,Liga_3B!$I$38,Liga_3B!$G$48)","v":0},null,{"$f":"SUM(Liga_3B!$G$11,Liga_3B!$G$18,Liga_3B!$I$34,Liga_3B!$I$38,Liga_3B!$G$51)","v":0},null,"Team 4",{"$f":"SUM(Liga_3B!$G$10,Liga_3B!$I$20,Liga_3B!$G$30)","v":0},null,{"$f":"SUM(Liga_3B!$G$10,Liga_3B!$G$30,Liga_3B!$I$37,Liga_3B!$G$47)","v":0},null,{"$f":"SUM(Liga_3B!$G$10,Liga_3B!$G$17,Liga_3B!$I$33,Liga_3B!$I$37,Liga_3B!$G$50)","v":0}]
[null,null,4,{"$f":"Liga_3B!$G$6","v":"Bremer Schweiz 3"},{"$f":"IF(Gruppenplanung!$T$26=4,Rangliste!L69,IF(Gruppenplanung!$T$26=5,Rangliste!N69,Rangliste!P69))","v":0},{"$f":"IF(Gruppenplanung!$T$26=4,Rangliste!Z69,IF(Gruppenplanung!$T$26=5,Rangliste!AB69,Rangliste!AD69))","v":0},{"$f":"IF(Gruppenplanung!$T$26=4,Rangliste!S69,IF(Gruppenplanung!$T$26=5,Rangliste!U69,Rangliste!W69))","v":0},{"$f":"IF(Gruppenplanung!$T$26=4,Rangliste!AG69,IF(Gruppenplanung!$T$26=5,Rangliste!AI69,Rangliste!AK69))","v":0},null,null,"Team 5",null,null,{"$f":"SUM(Liga_3B!$I$21,Liga_3B!$I$28,Liga_3B!$I$41,Liga_3B!$G$48)","v":0},null,{"$f":"SUM(Liga_3B!$G$14,Liga_3B!$I$21,Liga_3B!$I$31,Liga_3B!$I$38,Liga_3B!$G$48)","v":0},null,"Team 5",null,null,{"$f":"SUM(Liga_3B!$I$20,Liga_3B!$I$27,Liga_3B!$I$40,Liga_3B!$G$47)","v":0},null,{"$f":"SUM(Liga_3B!$G$13,Liga_3B!$I$20,Liga_3B!$I$30,Liga_3B!$I$37,Liga_3B!$G$47)","v":0},null,"Team 5","-",null,{"$f":"SUM(Liga_3B!$G$21,Liga_3B!$G$28,Liga_3B!$G$41,Liga_3B!$I$48)","v":0},null,{"$f":"SUM(Liga_3B!$I$14,Liga_3B!$G$21,Liga_3B!$G$31,Liga_3B!$G$38,Liga_3B!$I$48)","v":0},null,"Team 5","-",null,{"$f":"SUM(Liga_3B!$G$20,Liga_3B!$G$27,Liga_3B!$G$40,Liga_3B!$I$47)","v":0},null,{"$f":"SUM(Liga_3B!$I$13,Liga_3B!$G$20,Liga_3B!$G$30,Liga_3B!$G$37,Liga_3B!$I$47)","v":0}]
[null,null,5,{"$f":"IF(Gruppenplanung!$T$26>4,Liga_3B!$G$46,\"-\")","v":"Wümme"},{"$f":"IF(Gruppenplanung!$T$26=4,0,IF(Gruppenplanung!$T$26=5,Rangliste!N73,Rangliste!P73))","v":0},{"$f":"IF(Gruppenplanung!$T$26=4,0,IF(Gruppenplanung!$T$26=5,Rangliste!AB73,Rangliste!AD73))","v":0},{"$f":"IF(Gruppenplanung!$T$26=4,0,IF(Gruppenplanung!$T$26=5,Rangliste!U73,Rangliste!W73))","v":0},{"$f":"IF(Gruppenplanung!$T$26=4,0,IF(Gruppenplanung!$T$26=5,Rangliste!AI73,Rangliste!AK73))","v":0},null,null,"Team 6",null,null,null,null,{"$f":"SUM(Liga_3B!$I$14,Liga_3B!$I$24,Liga_3B!$I$34,Liga_3B!$I$41,Liga_3B!$I$54)","v":0},null,"Team 6",null,null,null,null,{"$f":"SUM(Liga_3B!$I$13,Liga_3B!$I$23,Liga_3B!$I$33,Liga_3B!$I$40,Liga_3B!$I$53)","v":0},null,"Team 6","-",null,"-",null,{"$f":"SUM(Liga_3B!$G$14,Liga_3B!$G$24,Liga_3B!$G$34,Liga_3B!$G$41,Liga_3B!$G$54)","v":0},null,"Team 6","-",null,"-",null,{"$f":"SUM(Liga_3B!$G$13,Liga_3B!$G$23,Liga_3B!$G$33,Liga_3B!$G$40,Liga_3B!$G$53)","v":0}]
[null,null,6,{"$f":"IF(Gruppenplanung!$T$26=6,Liga_3B!$I$12,\"-\")","v":"-"},{"$f":"IF(Gruppenplanung!$T$26=4,0,IF(Gruppenplanung!$T$26=5,0,Rangliste!P74))","v":0},{"$f":"IF(Gruppenplanung!$T$26=4,0,IF(Gruppenplanung!$T$26=5,0,Rangliste!AD74))","v":0},{"$f":"IF(Gruppenplanung!$T$26=4,0,IF(Gruppenplanung!$T$26=5,0,Rangliste!W74))","v":0},{"$f":"IF(Gruppenplanung!$T$26=4,0,IF(Gruppenplanung!$T$26=5,0,Rangliste!AK74))","v":0}]
[]
[null,null,"Liga 3C",null,null,null,null,null,null,null,null,"Punkte bei 4er Teams",null,"Punkte bei 5er Teams",null,"Punkte bei 6er Teams",null,null,"Spiele bei 4er Teams",null,"Spiele bei 5er Teams",null,"Spiele bei 6er Teams",null,null,"V. Punkte bei 4er Teams",null,"V. Punkte bei 5er Teams",null,"V. Punkte bei 6er Teams",null,null,"V. Spiele bei 4er Teams",null,"V. Spiele bei 5er Teams",null,"V. Spiele bei 6er Teams"]
[null,null,"Platz","Mannschaft","Punkte","V. Punkte","Spiele","V. Spiele",null,null,"Team 1",{"$f":"SUM(Liga_3C!$G$8,Liga_3C!$I$21,Liga_3C!$I$28)","v":0},null,{"$f":"SUM(Liga_3C!$G$8,Liga_3C!$G$21,Liga_3C!$I$38,Liga_3C!$G$51)","v":0},null,{"$f":"SUM(Liga_3C!$G$8,Liga_3C!$G$21,Liga_3C!$I$28,Liga_3C!$G$41,Liga_3C!$G$51)","v":0},null,"Team 1",{"$f":"SUM(Liga_3C!$G$7,Liga_3C!$I$20,Liga_3C!$I$27)","v":0},null,{"$f":"SUM(Liga_3C!$G$7,Liga_3C!$G$20,Liga_3C!$I$37,Liga_3C!$G$50)","v":0},null,{"$f":"SUM(Liga_3C!$G$7,Liga_3C!$G$20,Liga_3C!$I$27,Liga_3C!$G$40,Liga_3C!$G$50)","v":0},null,"Team 1",{"$f":"SUM(Liga_3C!$I$8,Liga_3C!$G$21,Liga_3C!$G$28)","v":0},null,{"$f":"SUM(Liga_3C!$I$8,Liga_3C!$I$21,Liga_3C!$G$38,Liga_3C!$I$51)","v":0},null,{"$f":"SUM(Liga_3C!$I$8,Liga_3C!$I$21,Liga_3C!$G$28,Liga_3C!$I$41,Liga_3C!$I$51)","v":0},null,"Team 1",{"$f":"SUM(Liga_3C!$I$7,Liga_3C!$G$20,Liga_3C!$G$27)","v":0},null,{"$f":"SUM(Liga_3C!$I$7,Liga_3C!$I$20,Liga_3C!$G$37,Liga_3C!$I$50)","v":0},null,{"$f":"SUM(Liga_3C!$I$7,Liga_3C!$I$20,Liga_3C!$G$27,Liga_3C!$I$40,Liga_3C!$I$50)","v":0}]
[null,null,1,{"$f":"Liga_3C!$G$9","v":"Burgwedel "},{"$f":"IF(Gruppenplanung!$T$27=4,Rangliste!L80,IF(Gruppenplanung!$T$27=5,Rangliste!N80,Rangliste!P80))","v":0},{"$f":"IF(Gruppenplanung!$T$27=4,Rangliste!Z80,IF(Gruppenplanung!$T$27=5,Rangliste!AB80,Rangliste!AD80))","v":0},{"$f":"IF(Gruppenplanung!$T$27=4,Rangliste!S80,IF(Gruppenplanung!$T$27=5,Rangliste!U80,Rangliste!W80))","v":0},{"$f":"IF(Gruppenplanung!$T$27=4,Rangliste!AG80,IF(Gruppenplanung!$T$27=5,Rangliste!AI80,Rangliste!AK80))","v":0},null,null,"Team 2",{"$f":"SUM(Liga_3C!$I$8,Liga_3C!$G$18,Liga_3C!$G$31)","v":0},null,{"$f":"SUM(Liga_3C!$I$8,Liga_3C!$G$18,Liga_3C!$G$31,Liga_3C!$G$41)","v":0},null,{"$f":"SUM(Liga_3C!$I$8,Liga_3C!$G$18,Liga_3C!$G$31,Liga_3C!$G$44,Liga_3C!$G$54)","v":0},null,"Team 2",{"$f":"SUM(Liga_3C!$I$7,Liga_3C!$G$17,Liga_3C!$G$30)","v":0},null,{"$f":"SUM(Liga_3C!$I$7,Liga_3C!$G$17,Liga_3C!$G$30,Liga_3C!$G$40)","v":0},null,{"$f":"SUM(Liga_3C!$I$7,Liga_3C!$G$17,Liga_3C!$G$30,Liga_3C!$G$43,Liga_3C!$G$53)","v":0},null,"Team 2",{"$f":"SUM(Liga_3C!$G$8,Liga_3C!$I$18,Liga_3C!$I$31)","v":0},null,{"$f":"SUM(Liga_3C!$G$8,Liga_3C!$I$18,Liga_3C!$I$31,Liga_3C!$I$41)","v":0},null,{"$f":"SUM(Liga_3C!$G$8,Liga_3C!$I$18,Liga_3C!$I$31,Liga_3C!$I$44,Liga_3C!$I$54)","v":0},null,"Team 2",{"$f":"SUM(Liga_3C!$G$7,Liga_3C!$I$17,Liga_3C!$I$30)","v":0},null,{"$f":"SUM(Liga_3C!$G$7,Liga_3C!$I$17,Liga_3C!$I$30,Liga_3C!$I$40)","v":0},null,{"$f":"SUM(Liga_3C!$G$7,Liga_3C!$I$17,Liga_3C!$I$30,Liga_3C!$I$43,Liga_3C!$I$53)","v":0}]
[null,null,2,{"$f":"Liga_3C!$G$6","v":"Steinhude"},{"$f":"IF(Gruppenplanung!$T$27=4,Rangliste!L78,IF(Gruppenplanung!$T$27=5,Rangliste!N78,Rangliste!P78))","v":0},{"$f":"IF(Gruppenplanung!$T$27=4,Rangliste!Z78,IF(Gruppenplanung!$T$27=5,Rangliste!AB78,Rangliste!AD78))","v":0},{"$f":"IF(Gruppenplanung!$T$27=4,Rangliste!S78,IF(Gruppenplanung!$T$27=5,Rangliste!U78,Rangliste!W78))","v":0},{"$f":"IF(Gruppenplanung!$T$27=4,Rangliste!AG78,IF(Gruppenplanung!$T$27=5,Rangliste!AI78,Rangliste!AK78))","v":0},null,null,"Team 3",{"$f":"SUM(Liga_3C!$G$11,Liga_3C!$I$18,Liga_3C!$G$28)","v":0},null,{"$f":"SUM(Liga_3C!$G$11,Liga_3C!$I$18,Liga_3C!$G$28,Liga_3C!$I$51)","v":0},null,{"$f":"SUM(Liga_3C!$G$11,Liga_3C!$G$24,Liga_3C!$G$28,Liga_3C!$I$44,Liga_3C!$I$48)","v":0},null,"Team 3",{"$f":"SUM(Liga_3C!$G$10,Liga_3C!$I$17,Liga_3C!$G$27)","v":0},null,{"$f":"SUM(Liga_3C!$G$10,Liga_3C!$I$17,Liga_3C!$G$27,Liga_3C!$I$50)","v":0},null,{"$f":"SUM(Liga_3C!$G$10,Liga_3C!$G$23,Liga_3C!$G$27,Liga_3C!$I$43,Liga_3C!$I$47)","v":0},null,"Team 3",{"$f":"SUM(Liga_3C!$I$11,Liga_3C!$G$18,Liga_3C!$I$28)","v":0},null,{"$f":"SUM(Liga_3C!$I$11,Liga_3C!$G$18,Liga_3C!$I$28,Liga_3C!$G$51)","v":0},null,{"$f":"SUM(Liga_3C!$I$11,Liga_3C!$I$24,Liga_3C!$I$28,Liga_3C!$G$44,Liga_3C!$G$48)","v":0},null,"Team 3",{"$f":"SUM(Liga_3C!$I$10,Liga_3C!$G$17,Liga_3C!$I$27)","v":0},null,{"$f":"SUM(Liga_3C!$I$10,Liga_3C!$G$17,Liga_3C!$I$27,Liga_3C!$G$50)","v":0},null,{"$f":"SUM(Liga_3C!$I$10,Liga_3C!$I$23,Liga_3C!$I$27,Liga_3C!$G$43,Liga_3C!$G$47)","v":0}]
[null,null,3,{"$f":"Liga_3C!$I$9","v":"Hainhaus 2"},{"$f":"IF(Gruppenplanung!$T$27=4,Rangliste!L81,IF(Gruppenplanung!$T$27=5,Rangliste!N81,Rangliste!P81))","v":0},{"$f":"IF(Gruppenplanung!$T$27=4,Rangliste!Z81,IF(Gruppenplanung!$T$27=5,Rangliste!AB81,Rangliste!AD81))","v":0},{"$f":"IF(Gruppenplanung!$T$27=4,Rangliste!S81,IF(Gruppenplanung!$T$27=5,Rangliste!U81,Rangliste!W81))","v":0},{"$f":"IF(Gruppenplanung!$T$27=4,Rangliste!AG81,IF(Gruppenplanung!$T$27=5,Rangliste!AI81,Rangliste!AK81))","v":0},null,null,"Team 4",{"$f":"SUM(Liga_3C!$I$11,Liga_3C!$G$21,Liga_3C!$I$31)","v":0},null,{"$f":"SUM(Liga_3C!$I$11,Liga_3C!$I$31,Liga_3C!$G$38,Liga_3C!$I$48)","v":0},null,{"$f":"SUM(Liga_3C!$I$11,Liga_3C!$I$18,Liga_3C!$G$34,Liga_3C!$G$38,Liga_3C!$I$51)","v":0},null,"Team 4",{"$f":"SUM(Liga_3C!$I$10,Liga_3C!$G$20,Liga_3C!$I$30)","v":0},null,{"$f":"SUM(Liga_3C!$I$10,Liga_3C!$I$30,Liga_3C!$G$37,Liga_3C!$I$47)","v":0},null,{"$f":"SUM(Liga_3C!$I$10,Liga_3C!$I$17,Liga_3C!$G$33,Liga_3C!$G$37,Liga_3C!$I$50)","v":0},null,"Team 4",{"$f":"SUM(Liga_3C!$G$11,Liga_3C!$I$21,Liga_3C!$G$31)","v":0},null,{"$f":"SUM(Liga_3C!$G$11,Liga_3C!$G$31,Liga_3C!$I$38,Liga_3C!$G$48)","v":0},null,{"$f":"SUM(Liga_3C!$G$11,Liga_3C!$G$18,Liga_3C!$I$34,Liga_3C!$I$38,Liga_3C!$G$51)","v":0},null,"Team 4",{"$f":"SUM(Liga_3C!$G$10,Liga_3C!$I$20,Liga_3C!$G$30)","v":0},null,{"$f":"SUM(Liga_3C!$G$10,Liga_3C!$G$30,Liga_3C!$I$37,Liga_3C!$G$47)","v":0},null,{"$f":"SUM(Liga_3C!$G$10,Liga_3C!$G$17,Liga_3C!$I$33,Liga_3C!$I$37,Liga_3C!$G$50)","v":0}]
[null,null,4,{"$f":"Liga_3C!$I$6","v":"Bad Salzdetfurth"},{"$f":"IF(Gruppenplanung!$T$27=4,Rangliste!L79,IF(Gruppenplanung!$T$27=5,Rangliste!N79,Rangliste!P79))","v":0},{"$f":"IF(Gruppenplanung!$T$27=4,Rangliste!Z79,IF(Gruppenplanung!$T$27=5,Rangliste!AB79,Rangliste!AD79))","v":0},{"$f":"IF(Gruppenplanung!$T$27=4,Rangliste!S79,IF(Gruppenplanung!$T$27=5,Rangliste!U79,Rangliste!W79))","v":0},{"$f":"IF(Gruppenplanung!$T$27=4,Rangliste!AG79,IF(Gruppenplanung!$T$27=5,Rangliste!AI79,Rangliste!AK79))","v":0},null,null,"Team 5",null,null,{"$f":"SUM(Liga_3C!$I$21,Liga_3C!$I$28,Liga_3C!$I$41,Liga_3C!$G$48)","v":0},null,{"$f":"SUM(Liga_3C!$G$14,Liga_3C!$I$21,Liga_3C!$I$31,Liga_3C!$I$38,Liga_3C!$G$48)","v":0},null,"Team 5",null,null,{"$f":"SUM(Liga_3C!$I$20,Liga_3C!$I$27,Liga_3C!$I$40,Liga_3C!$G$47)","v":0},null,{"$f":"SUM(Liga_3C!$G$13,Liga_3C!$I$20,Liga_3C!$I$30,Liga_3C!$I$37,Liga_3C!$G$47)","v":0},null,"Team 5","-",null,{"$f":"SUM(Liga_3C!$G$21,Liga_3C!$G$28,Liga_3C!$G$41,Liga_3C!$I$48)","v":0},null,{"$f":"SUM(Liga_3C!$I$14,Liga_3C!$G$21,Liga_3C!$G$31,Liga_3C!$G$38,Liga_3C!$I$48)","v":0},null,"Team 5","-",null,{"$f":"SUM(Liga_3C!$G$20,Liga_3C!$G$27,Liga_3C!$G$40,Liga_3C!$I$47)","v":0},null,{"$f":"SUM(Liga_3C!$I$13,Liga_3C!$G$20,Liga_3C!$G$30,Liga_3C!$G$37,Liga_3C!$I$47)","v":0}]
[null,null,5,{"$f":"IF(Gruppenplanung!$T$27>4,Liga_3C!$G$46,\"-\")","v":"-"},{"$f":"IF(Gruppenplanung!$T$27=4,0,IF(Gruppenplanung!$T$27=5,Rangliste!N82,Rangliste!P82))","v":0},{"$f":"IF(Gruppenplanung!$T$27=4,0,IF(Gruppenplanung!$T$27=5,Rangliste!AB82,Rangliste!AD82))","v":0},{"$f":"IF(Gruppenplanung!$T$27=4,0,IF(Gruppenplanung!$T$27=5,Rangliste!U82,Rangliste!W82))","v":0},{"$f":"IF(Gruppenplanung!$T$27=4,0,IF(Gruppenplanung!$T$27=5,Rangliste!AI82,Rangliste!AK82))","v":0},null,null,"Team 6",null,null,null,null,{"$f":"SUM(Liga_3C!$I$14,Liga_3C!$I$24,Liga_3C!$I$34,Liga_3C!$I$41,Liga_3C!$I$54)","v":0},null,"Team 6",null,null,null,null,{"$f":"SUM(Liga_3C!$I$13,Liga_3C!$I$23,Liga_3C!$I$33,Liga_3C!$I$40,Liga_3C!$I$53)","v":0},null,"Team 6","-",null,"-",null,{"$f":"SUM(Liga_3C!$G$14,Liga_3C!$G$24,Liga_3C!$G$34,Liga_3C!$G$41,Liga_3C!$G$54)","v":0},null,"Team 6","-",null,"-",null,{"$f":"SUM(Liga_3C!$G$13,Liga_3C!$G$23,Liga_3C!$G$33,Liga_3C!$G$40,Liga_3C!$G$53)","v":0}]
[null,null,6,{"$f":"IF(Gruppenplanung!$T$27=6,Liga_3C!$I$12,\"-\")","v":"-"},{"$f":"IF(Gruppenplanung!$T$27=4,0,IF(Gruppenplanung!$T$27=5,0,Rangliste!P83))","v":0},{"$f":"IF(Gruppenplanung!$T$27=4,0,IF(Gruppenplanung!$T$27=5,0,Rangliste!AD83))","v":0},{"$f":"IF(Gruppenplanung!$T$27=4,0,IF(Gruppenplanung!$T$27=5,0,Rangliste!W83))","v":0},{"$f":"IF(Gruppenplanung!$T$27=4,0,IF(Gruppenplanung!$T$27=5,0,Rangliste!AK83))","v":0}]
[]
[null,null,"Liga 3D",null,null,null,null,null,null,null,null,"Punkte bei 4er Teams",null,"Punkte bei 5er Teams",null,"Punkte bei 6er Teams",null,null,"Spiele bei 4er Teams",null,"Spiele bei 5er Teams",null,"Spiele bei 6er Teams",null,null,"V. Punkte bei 4er Teams",null,"V. Punkte bei 5er Teams",null,"V. Punkte bei 6er Teams",null,null,"V. Spiele bei 4er Teams",null,"V. Spiele bei 5er Teams",null,"V. Spiele bei 6er Teams"]
[null,null,"Platz","Mannschaft","Punkte","V. Punkte","Spiele","V. Spiele",null,null,"Team 1",{"$f":"SUM(Liga_3D!$G$8,Liga_3D!$I$21,Liga_3D!$I$28)","v":0},null,{"$f":"SUM(Liga_3D!$G$8,Liga_3D!$G$21,Liga_3D!$I$38,Liga_3D!$G$51)","v":0},null,{"$f":"SUM(Liga_3D!$G$8,Liga_3D!$G$21,Liga_3D!$I$28,Liga_3D!$G$41,Liga_3D!$G$51)","v":0},null,"Team 1",{"$f":"SUM(Liga_3D!$G$7,Liga_3D!$I$20,Liga_3D!$I$27)","v":0},null,{"$f":"SUM(Liga_3D!$G$7,Liga_3D!$G$20,Liga_3D!$I$37,Liga_3D!$G$50)","v":0},null,{"$f":"SUM(Liga_3D!$G$7,Liga_3D!$G$20,Liga_3D!$I$27,Liga_3D!$G$40,Liga_3D!$G$50)","v":0},null,"Team 1",{"$f":"SUM(Liga_3D!$I$8,Liga_3D!$G$21,Liga_3D!$G$28)","v":0},null,{"$f":"SUM(Liga_3D!$I$8,Liga_3D!$I$21,Liga_3D!$G$38,Liga_3D!$I$51)","v":0},null,{"$f":"SUM(Liga_3D!$I$8,Liga_3D!$I$21,Liga_3D!$G$28,Liga_3D!$I$41,Liga_3D!$I$51)","v":0},null,"Team 1",{"$f":"SUM(Liga_3D!$I$7,Liga_3D!$G$20,Liga_3D!$G$27)","v":0},null,{"$f":"SUM(Liga_3D!$I$7,Liga_3D!$I$20,Liga_3D!$G$37,Liga_3D!$I$50)","v":0},null,{"$f":"SUM(Liga_3D!$I$7,Liga_3D!$I$20,Liga_3D!$G$27,Liga_3D!$I$40,Liga_3D!$I$50)","v":0}]
[null,null,1,{"$f":"Liga_3D!$G$6","v":0},{"$f":"IF(Gruppenplanung!$T$28=4,Rangliste!L87,IF(Gruppenplanung!$T$28=5,Rangliste!N87,Rangliste!P87))","v":0},{"$f":"IF(Gruppenplanung!$T$28=4,Rangliste!Z87,IF(Gruppenplanung!$T$28=5,Rangliste!AB87,Rangliste!AD87))","v":0},{"$f":"IF(Gruppenplanung!$T$28=4,Rangliste!S87,IF(Gruppenplanung!$T$28=5,Rangliste!U87,Rangliste!W87))","v":0},{"$f":"IF(Gruppenplanung!$T$28=4,Rangliste!AG87,IF(Gruppenplanung!$T$28=5,Rangliste!AI87,Rangliste!AK87))","v":0},null,null,"Team 2",{"$f":"SUM(Liga_3D!$I$8,Liga_3D!$G$18,Liga_3D!$G$31)","v":0},null,{"$f":"SUM(Liga_3D!$I$8,Liga_3D!$G$18,Liga_3D!$G$31,Liga_3D!$G$41)","v":0},null,{"$f":"SUM(Liga_3D!$I$8,Liga_3D!$G$18,Liga_3D!$G$31,Liga_3D!$G$44,Liga_3D!$G$54)","v":0},null,"Team 2",{"$f":"SUM(Liga_3D!$I$7,Liga_3D!$G$17,Liga_3D!$G$30)","v":0},null,{"$f":"SUM(Liga_3D!$I$7,Liga_3D!$G$17,Liga_3D!$G$30,Liga_3D!$G$40)","v":0},null,{"$f":"SUM(Liga_3D!$I$7,Liga_3D!$G$17,Liga_3D!$G$30,Liga_3D!$G$43,Liga_3D!$G$53)","v":0},null,"Team 2",{"$f":"SUM(Liga_3D!$G$8,Liga_3D!$I$18,Liga_3D!$I$31)","v":0},null,{"$f":"SUM(Liga_3D!$G$8,Liga_3D!$I$18,Liga_3D!$I$31,Liga_3D!$I$41)","v":0},null,{"$f":"SUM(Liga_3D!$G$8,Liga_3D!$I$18,Liga_3D!$I$31,Liga_3D!$I$44,Liga_3D!$I$54)","v":0},null,"Team 2",{"$f":"SUM(Liga_3D!$G$7,Liga_3D!$I$17,Liga_3D!$I$30)","v":0},null,{"$f":"SUM(Liga_3D!$G$7,Liga_3D!$I$17,Liga_3D!$I$30,Liga_3D!$I$40)","v":0},null,{"$f":"SUM(Liga_3D!$G$7,Liga_3D!$I$17,Liga_3D!$I$30,Liga_3D!$I$43,Liga_3D!$I$53)","v":0}]
[null,null,2,{"$f":"Liga_3D!$I$6","v":0},{"$f":"IF(Gruppenplanung!$T$28=4,Rangliste!L88,IF(Gruppenplanung!$T$28=5,Rangliste!N88,Rangliste!P88))","v":0},{"$f":"IF(Gruppenplanung!$T$28=4,Rangliste!Z88,IF(Gruppenplanung!$T$28=5,Rangliste!AB88,Rangliste!AD88))","v":0},{"$f":"IF(Gruppenplanung!$T$28=4,Rangliste!S88,IF(Gruppenplanung!$T$28=5,Rangliste!U88,Rangliste!W88))","v":0},{"$f":"IF(Gruppenplanung!$T$28=4,Rangliste!AG88,IF(Gruppenplanung!$T$28=5,Rangliste!AI88,Rangliste!AK88))","v":0},null,null,"Team 3",{"$f":"SUM(Liga_3D!$G$11,Liga_3D!$I$18,Liga_3D!$G$28)","v":0},null,{"$f":"SUM(Liga_3D!$G$11,Liga_3D!$I$18,Liga_3D!$G$28,Liga_3D!$I$51)","v":0},null,{"$f":"SUM(Liga_3D!$G$11,Liga_3D!$G$24,Liga_3D!$G$28,Liga_3D!$I$44,Liga_3D!$I$48)","v":0},null,"Team 3",{"$f":"SUM(Liga_3D!$G$10,Liga_3D!$I$17,Liga_3D!$G$27)","v":0},null,{"$f":"SUM(Liga_3D!$G$10,Liga_3D!$I$17,Liga_3D!$G$27,Liga_3D!$I$50)","v":0},null,{"$f":"SUM(Liga_3D!$G$10,Liga_3D!$G$23,Liga_3D!$G$27,Liga_3D!$I$43,Liga_3D!$I$47)","v":0},null,"Team 3",{"$f":"SUM(Liga_3D!$I$11,Liga_3D!$G$18,Liga_3D!$I$28)","v":0},null,{"$f":"SUM(Liga_3D!$I$11,Liga_3D!$G$18,Liga_3D!$I$28,Liga_3D!$G$51)","v":0},null,{"$f":"SUM(Liga_3D!$I$11,Liga_3D!$I$24,Liga_3D!$I$28,Liga_3D!$G$44,Liga_3D!$G$48)","v":0},null,"Team 3",{"$f":"SUM(Liga_3D!$I$10,Liga_3D!$G$17,Liga_3D!$I$27)","v":0},null,{"$f":"SUM(Liga_3D!$I$10,Liga_3D!$G$17,Liga_3D!$I$27,Liga_3D!$G$50)","v":0},null,{"$f":"SUM(Liga_3D!$I$10,Liga_3D!$I$23,Liga_3D!$I$27,Liga_3D!$G$43,Liga_3D!$G$47)","v":0}]
[null,null,3,{"$f":"Liga_3D!$G$9","v":0},{"$f":"IF(Gruppenplanung!$T$28=4,Rangliste!L89,IF(Gruppenplanung!$T$28=5,Rangliste!N89,Rangliste!P89))","v":0},{"$f":"IF(Gruppenplanung!$T$28=4,Rangliste!Z89,IF(Gruppenplanung!$T$28=5,Rangliste!AB89,Rangliste!AD89))","v":0},{"$f":"IF(Gruppenplanung!$T$28=4,Rangliste!S89,IF(Gruppenplanung!$T$28=5,Rangliste!U89,Rangliste!W89))","v":0},{"$f":"IF(Gruppenplanung!$T$28=4,Rangliste!AG89,IF(Gruppenplanung!$T$28=5,Rangliste!AI89,Rangliste!AK89))","v":0},null,null,"Team 4",{"$f":"SUM(Liga_3D!$I$11,Liga_3D!$G$21,Liga_3D!$I$31)","v":0},null,{"$f":"SUM(Liga_3D!$I$11,Liga_3D!$I$31,Liga_3D!$G$38,Liga_3D!$I$48)","v":0},null,{"$f":"SUM(Liga_3D!$I$11,Liga_3D!$I$18,Liga_3D!$G$34,Liga_3D!$G$38,Liga_3D!$I$51)","v":0},null,"Team 4",{"$f":"SUM(Liga_3D!$I$10,Liga_3D!$G$20,Liga_3D!$I$30)","v":0},null,{"$f":"SUM(Liga_3D!$I$10,Liga_3D!$I$30,Liga_3D!$G$37,Liga_3D!$I$47)","v":0},null,{"$f":"SUM(Liga_3D!$I$10,Liga_3D!$I$17,Liga_3D!$G$33,Liga_3D!$G$37,Liga_3D!$I$50)","v":0},null,"Team 4",{"$f":"SUM(Liga_3D!$G$11,Liga_3D!$I$21,Liga_3D!$G$31)","v":0},null,{"$f":"SUM(Liga_3D!$G$11,Liga_3D!$G$31,Liga_3D!$I$38,Liga_3D!$G$48)","v":0},null,{"$f":"SUM(Liga_3D!$G$11,Liga_3D!$G$18,Liga_3D!$I$34,Liga_3D!$I$38,Liga_3D!$G$51)","v":0},null,"Team 4",{"$f":"SUM(Liga_3D!$G$10,Liga_3D!$I$20,Liga_3D!$G$30)","v":0},null,{"$f":"SUM(Liga_3D!$G$10,Liga_3D!$G$30,Liga_3D!$I$37,Liga_3D!$G$47)","v":0},null,{"$f":"SUM(Liga_3D!$G$10,Liga_3D!$G$17,Liga_3D!$I$33,Liga_3D!$I$37,Liga_3D!$G$50)","v":0}]
[null,null,4,{"$f":"Liga_3D!$I$9","v":0},{"$f":"IF(Gruppenplanung!$T$28=4,Rangliste!L90,IF(Gruppenplanung!$T$28=5,Rangliste!N90,Rangliste!P90))","v":0},{"$f":"IF(Gruppenplanung!$T$28=4,Rangliste!Z90,IF(Gruppenplanung!$T$28=5,Rangliste!AB90,Rangliste!AD90))","v":0},{"$f":"IF(Gruppenplanung!$T$28=4,Rangliste!S90,IF(Gruppenplanung!$T$28=5,Rangliste!U90,Rangliste!W90))","v":0},{"$f":"IF(Gruppenplanung!$T$28=4,Rangliste!AG90,IF(Gruppenplanung!$T$28=5,Rangliste!AI90,Rangliste!AK90))","v":0},null,null,"Team 5",null,null,{"$f":"SUM(Liga_3D!$I$21,Liga_3D!$I$28,Liga_3D!$I$41,Liga_3D!$G$48)","v":0},null,{"$f":"SUM(Liga_3D!$G$14,Liga_3D!$I$21,Liga_3D!$I$31,Liga_3D!$I$38,Liga_3D!$G$48)","v":0},null,"Team 5",null,null,{"$f":"SUM(Liga_3D!$I$20,Liga_3D!$I$27,Liga_3D!$I$40,Liga_3D!$G$47)","v":0},null,{"$f":"SUM(Liga_3D!$G$13,Liga_3D!$I$20,Liga_3D!$I$30,Liga_3D!$I$37,Liga_3D!$G$47)","v":0},null,"Team 5","-",null,{"$f":"SUM(Liga_3D!$G$21,Liga_3D!$G$28,Liga_3D!$G$41,Liga_3D!$I$48)","v":0},null,{"$f":"SUM(Liga_3D!$I$14,Liga_3D!$G$21,Liga_3D!$G$31,Liga_3D!$G$38,Liga_3D!$I$48)","v":0},null,"Team 5","-",null,{"$f":"SUM(Liga_3D!$G$20,Liga_3D!$G$27,Liga_3D!$G$40,Liga_3D!$I$47)","v":0},null,{"$f":"SUM(Liga_3D!$I$13,Liga_3D!$G$20,Liga_3D!$G$30,Liga_3D!$G$37,Liga_3D!$I$47)","v":0}]
[null,null,5,{"$f":"IF(Gruppenplanung!$T$28>4,Liga_3D!$G$46,\"-\")","v":"-"},{"$f":"IF(Gruppenplanung!$T$28=4,0,IF(Gruppenplanung!$T$28=5,Rangliste!N91,Rangliste!P91))","v":0},{"$f":"IF(Gruppenplanung!$T$28=4,0,IF(Gruppenplanung!$T$28=5,Rangliste!AB91,Rangliste!AD91))","v":0},{"$f":"IF(Gruppenplanung!$T$28=4,0,IF(Gruppenplanung!$T$28=5,Rangliste!U91,Rangliste!W91))","v":0},{"$f":"IF(Gruppenplanung!$T$28=4,0,IF(Gruppenplanung!$T$28=5,Rangliste!AI91,Rangliste!AK91))","v":0},null,null,"Team 6",null,null,null,null,{"$f":"SUM(Liga_3D!$I$14,Liga_3D!$I$24,Liga_3D!$I$34,Liga_3D!$I$41,Liga_3D!$I$54)","v":0},null,"Team 6",null,null,null,null,{"$f":"SUM(Liga_3D!$I$13,Liga_3D!$I$23,Liga_3D!$I$33,Liga_3D!$I$40,Liga_3D!$I$53)","v":0},null,"Team 6","-",null,"-",null,{"$f":"SUM(Liga_3D!$G$14,Liga_3D!$G$24,Liga_3D!$G$34,Liga_3D!$G$41,Liga_3D!$G$54)","v":0},null,"Team 6","-",null,"-",null,{"$f":"SUM(Liga_3D!$G$13,Liga_3D!$G$23,Liga_3D!$G$33,Liga_3D!$G$40,Liga_3D!$G$53)","v":0}]
[null,null,6,{"$f":"IF(Gruppenplanung!$T$28=6,Liga_3D!$I$12,\"-\")","v":"-"},{"$f":"IF(Gruppenplanung!$T$28=4,0,IF(Gruppenplanung!$T$28=5,0,Rangliste!P92))","v":0},{"$f":"IF(Gruppenplanung!$T$28=4,0,IF(Gruppenplanung!$T$28=5,0,Rangliste!AD92))","v":0},{"$f":"IF(Gruppenplanung!$T$28=4,0,IF(Gruppenplanung!$T$28=5,0,Rangliste!W92))","v":0},{"$f":"IF(Gruppenplanung!$T$28=4,0,IF(Gruppenplanung!$T$28=5,0,Rangliste!AK92))","v":0}]
[]
[null,null,"Liga 3E",null,null,null,null,null,null,null,null,"Punkte bei 4er Teams",null,"Punkte bei 5er Teams",null,"Punkte bei 6er Teams",null,null,"Spiele bei 4er Teams",null,"Spiele bei 5er Teams",null,"Spiele bei 6er Teams",null,null,"V. Punkte bei 4er Teams",null,"V. Punkte bei 5er Teams",null,"V. Punkte bei 6er Teams",null,null,"V. Spiele bei 4er Teams",null,"V. Spiele bei 5er Teams",null,"V. Spiele bei 6er Teams"]
[null,null,"Platz","Mannschaft","Punkte","V. Punkte","Spiele","V. Spiele",null,null,"Team 1",{"$f":"SUM(Liga_3E!$G$8,Liga_3E!$I$21,Liga_3E!$I$28)","v":0},null,{"$f":"SUM(Liga_3E!$G$8,Liga_3E!$G$21,Liga_3E!$I$38,Liga_3E!$G$51)","v":0},null,{"$f":"SUM(Liga_3E!$G$8,Liga_3E!$G$21,Liga_3E!$I$28,Liga_3E!$G$41,Liga_3E!$G$51)","v":0},null,"Team 1",{"$f":"SUM(Liga_3E!$G$7,Liga_3E!$I$20,Liga_3E!$I$27)","v":0},null,{"$f":"SUM(Liga_3E!$G$7,Liga_3E!$G$20,Liga_3E!$I$37,Liga_3E!$G$50)","v":0},null,{"$f":"SUM(Liga_3E!$G$7,Liga_3E!$G$20,Liga_3E!$I$27,Liga_3E!$G$40,Liga_3E!$G$50)","v":0},null,"Team 1",{"$f":"SUM(Liga_3E!$I$8,Liga_3E!$G$21,Liga_3E!$G$28)","v":0},null,{"$f":"SUM(Liga_3E!$I$8,Liga_3E!$I$21,Liga_3E!$G$38,Liga_3E!$I$51)","v":0},null,{"$f":"SUM(Liga_3E!$I$8,Liga_3E!$I$21,Liga_3E!$G$28,Liga_3E!$I$41,Liga_3E!$I$51)","v":0},null,"Team 1",{"$f":"SUM(Liga_3E!$I$7,Liga_3E!$G$20,Liga_3E!$G$27)","v":0},null,{"$f":"SUM(Liga_3E!$I$7,Liga_3E!$I$20,Liga_3E!$G$37,Liga_3E!$I$50)","v":0},null,{"$f":"SUM(Liga_3E!$I$7,Liga_3E!$I$20,Liga_3E!$G$27,Liga_3E!$I$40,Liga_3E!$I$50)","v":0}]
[null,null,1,{"$f":"Liga_3E!$I$9","v":0},{"$f":"IF(Gruppenplanung!$T$29=4,Rangliste!L99,IF(Gruppenplanung!$T$29=5,Rangliste!N99,Rangliste!P99))","v":0},{"$f":"IF(Gruppenplanung!$T$29=4,Rangliste!Z99,IF(Gruppenplanung!$T$29=5,Rangliste!AB99,Rangliste!AD99))","v":0},{"$f":"IF(Gruppenplanung!$T$29=4,Rangliste!S99,IF(Gruppenplanung!$T$29=5,Rangliste!U99,Rangliste!W99))","v":0},{"$f":"IF(Gruppenplanung!$T$29=4,Rangliste!AG99,IF(Gruppenplanung!$T$29=5,Rangliste!AI99,Rangliste!AK99))","v":0},null,null,"Team 2",{"$f":"SUM(Liga_3E!$I$8,Liga_3E!$G$18,Liga_3E!$G$31)","v":0},null,{"$f":"SUM(Liga_3E!$I$8,Liga_3E!$G$18,Liga_3E!$G$31,Liga_3E!$G$41)","v":0},null,{"$f":"SUM(Liga_3E!$I$8,Liga_3E!$G$18,Liga_3E!$G$31,Liga_3E!$G$44,Liga_3E!$G$54)","v":0},null,"Team 2",{"$f":"SUM(Liga_3E!$I$7,Liga_3E!$G$17,Liga_3E!$G$30)","v":0},null,{"$f":"SUM(Liga_3E!$I$7,Liga_3E!$G$17,Liga_3E!$G$30,Liga_3E!$G$40)","v":0},null,{"$f":"SUM(Liga_3E!$I$7,Liga_3E!$G$17,Liga_3E!$G$30,Liga_3E!$G$43,Liga_3E!$G$53)","v":0},null,"Team 2",{"$f":"SUM(Liga_3E!$G$8,Liga_3E!$I$18,Liga_3E!$I$31)","v":0},null,{"$f":"SUM(Liga_3E!$G$8,Liga_3E!$I$18,Liga_3E!$I$31,Liga_3E!$I$41)","v":0},null,{"$f":"SUM(Liga_3E!$G$8,Liga_3E!$I$18,Liga_3E!$I$31,Liga_3E!$I$44,Liga_3E!$I$54)","v":0},null,"Team 2",{"$f":"SUM(Liga_3E!$G$7,Liga_3E!$I$17,Liga_3E!$I$30)","v":0},null,{"$f":"SUM(Liga_3E!$G$7,Liga_3E!$I$17,Liga_3E!$I$30,Liga_3E!$I$40)","v":0},null,{"$f":"SUM(Liga_3E!$G$7,Liga_3E!$I$17,Liga_3E!$I$30,Liga_3E!$I$43,Liga_3E!$I$53)","v":0}]
[null,null,2,{"$f":"Liga_3E!$G$6","v":0},{"$f":"IF(Gruppenplanung!$T$29=4,Rangliste!L96,IF(Gruppenplanung!$T$29=5,Rangliste!N96,Rangliste!P96))","v":0},{"$f":"IF(Gruppenplanung!$T$29=4,Rangliste!Z96,IF(Gruppenplanung!$T$29=5,Rangliste!AB96,Rangliste!AD96))","v":0},{"$f":"IF(Gruppenplanung!$T$29=4,Rangliste!S96,IF(Gruppenplanung!$T$29=5,Rangliste!U96,Rangliste!W96))","v":0},{"$f":"IF(Gruppenplanung!$T$29=4,Rangliste!AG96,IF(Gruppenplanung!$T$29=5,Rangliste!AI96,Rangliste!AK96))","v":0},null,null,"Team 3",{"$f":"SUM(Liga_3E!$G$11,Liga_3E!$I$18,Liga_3E!$G$28)","v":0},null,{"$f":"SUM(Liga_3E!$G$11,Liga_3E!$I$18,Liga_3E!$G$28,Liga_3E!$I$51)","v":0},null,{"$f":"SUM(Liga_3E!$G$11,Liga_3E!$G$24,Liga_3E!$G$28,Liga_3E!$I$44,Liga_3E!$I$48)","v":0},null,"Team 3",{"$f":"SUM(Liga_3E!$G$10,Liga_3E!$I$17,Liga_3E!$G$27)","v":0},null,{"$f":"SUM(Liga_3E!$G$10,Liga_3E!$I$17,Liga_3E!$G$27,Liga_3E!$I$50)","v":0},null,{"$f":"SUM(Liga_3E!$G$10,Liga_3E!$G$23,Liga_3E!$G$27,Liga_3E!$I$43,Liga_3E!$I$47)","v":0},null,"Team 3",{"$f":"SUM(Liga_3E!$I$11,Liga_3E!$G$18,Liga_3E!$I$28)","v":0},null,{"$f":"SUM(Liga_3E!$I$11,Liga_3E!$G$18,Liga_3E!$I$28,Liga_3E!$G$51)","v":0},null,{"$f":"SUM(Liga_3E!$I$11,Liga_3E!$I$24,Liga_3E!$I$28,Liga_3E!$G$44,Liga_3E!$G$48)","v":0},null,"Team 3",{"$f":"SUM(Liga_3E!$I$10,Liga_3E!$G$17,Liga_3E!$I$27)","v":0},null,{"$f":"SUM(Liga_3E!$I$10,Liga_3E!$G$17,Liga_3E!$I$27,Liga_3E!$G$50)","v":0},null,{"$f":"SUM(Liga_3E!$I$10,Liga_3E!$I$23,Liga_3E!$I$27,Liga_3E!$G$43,Liga_3E!$G$47)","v":0}]
[null,null,3,{"$f":"Liga_3E!$G$9","v":0},{"$f":"IF(Gruppenplanung!$T$29=4,Rangliste!L98,IF(Gruppenplanung!$T$29=5,Rangliste!N98,Rangliste!P98))","v":0},{"$f":"IF(Gruppenplanung!$T$29=4,Rangliste!Z98,IF(Gruppenplanung!$T$29=5,Rangliste!AB98,Rangliste!AD98))","v":0},{"$f":"IF(Gruppenplanung!$T$29=4,Rangliste!S98,IF(Gruppenplanung!$T$29=5,Rangliste!U98,Rangliste!W98))","v":0},{"$f":"IF(Gruppenplanung!$T$29=4,Rangliste!AG98,IF(Gruppenplanung!$T$29=5,Rangliste!AI98,Rangliste!AK98))","v":0},null,null,"Team 4",{"$f":"SUM(Liga_3E!$I$11,Liga_3E!$G$21,Liga_3E!$I$31)","v":0},null,{"$f":"SUM(Liga_3E!$I$11,Liga_3E!$I$31,Liga_3E!$G$38,Liga_3E!$I$48)","v":0},null,{"$f":"SUM(Liga_3E!$I$11,Liga_3E!$I$18,Liga_3E!$G$34,Liga_3E!$G$38,Liga_3E!$I$51)","v":0},null,"Team 4",{"$f":"SUM(Liga_3E!$I$10,Liga_3E!$G$20,Liga_3E!$I$30)","v":0},null,{"$f":"SUM(Liga_3E!$I$10,Liga_3E!$I$30,Liga_3E!$G$37,Liga_3E!$I$47)","v":0},null,{"$f":"SUM(Liga_3E!$I$10,Liga_3E!$I$17,Liga_3E!$G$33,Liga_3E!$G$37,Liga_3E!$I$50)","v":0},null,"Team 4",{"$f":"SUM(Liga_3E!$G$11,Liga_3E!$I$21,Liga_3E!$G$31)","v":0},null,{"$f":"SUM(Liga_3E!$G$11,Liga_3E!$G$31,Liga_3E!$I$38,Liga_3E!$G$48)","v":0},null,{"$f":"SUM(Liga_3E!$G$11,Liga_3E!$G$18,Liga_3E!$I$34,Liga_3E!$I$38,Liga_3E!$G$51)","v":0},null,"Team 4",{"$f":"SUM(Liga_3E!$G$10,Liga_3E!$I$20,Liga_3E!$G$30)","v":0},null,{"$f":"SUM(Liga_3E!$G$10,Liga_3E!$G$30,Liga_3E!$I$37,Liga_3E!$G$47)","v":0},null,{"$f":"SUM(Liga_3E!$G$10,Liga_3E!$G$17,Liga_3E!$I$33,Liga_3E!$I$37,Liga_3E!$G$50)","v":0}]
[null,null,4,{"$f":"Liga_3E!$I$6","v":0},{"$f":"IF(Gruppenplanung!$T$29=4,Rangliste!L97,IF(Gruppenplanung!$T$29=5,Rangliste!N97,Rangliste!P97))","v":0},{"$f":"IF(Gruppenplanung!$T$29=4,Rangliste!Z97,IF(Gruppenplanung!$T$29=5,Rangliste!AB97,Rangliste!AD97))","v":0},{"$f":"IF(Gruppenplanung!$T$29=4,Rangliste!S97,IF(Gruppenplanung!$T$29=5,Rangliste!U97,Rangliste!W97))","v":0},{"$f":"IF(Gruppenplanung!$T$29=4,Rangliste!AG97,IF(Gruppenplanung!$T$29=5,Rangliste!AI97,Rangliste!AK97))","v":0},null,null,"Team 5",null,null,{"$f":"SUM(Liga_3E!$I$21,Liga_3E!$I$28,Liga_3E!$I$41,Liga_3E!$G$48)","v":0},null,{"$f":"SUM(Liga_3E!$G$14,Liga_3E!$I$21,Liga_3E!$I$31,Liga_3E!$I$38,Liga_3E!$G$48)","v":0},null,"Team 5",null,null,{"$f":"SUM(Liga_3E!$I$20,Liga_3E!$I$27,Liga_3E!$I$40,Liga_3E!$G$47)","v":0},null,{"$f":"SUM(Liga_3E!$G$13,Liga_3E!$I$20,Liga_3E!$I$30,Liga_3E!$I$37,Liga_3E!$G$47)","v":0},null,"Team 5","-",null,{"$f":"SUM(Liga_3E!$G$21,Liga_3E!$G$28,Liga_3E!$G$41,Liga_3E!$I$48)","v":0},null,{"$f":"SUM(Liga_3E!$I$14,Liga_3E!$G$21,Liga_3E!$G$31,Liga_3E!$G$38,Liga_3E!$I$48)","v":0},null,"Team 5","-",null,{"$f":"SUM(Liga_3E!$G$20,Liga_3E!$G$27,Liga_3E!$G$40,Liga_3E!$I$47)","v":0},null,{"$f":"SUM(Liga_3E!$I$13,Liga_3E!$G$20,Liga_3E!$G$30,Liga_3E!$G$37,Liga_3E!$I$47)","v":0}]
[null,null,5,{"$f":"IF(Gruppenplanung!$T$29>4,Liga_3E!$G$46,\"-\")","v":"-"},{"$f":"IF(Gruppenplanung!$T$29=4,0,IF(Gruppenplanung!$T$29=5,Rangliste!N100,Rangliste!P100))","v":0},{"$f":"IF(Gruppenplanung!$T$29=4,0,IF(Gruppenplanung!$T$29=5,Rangliste!AB100,Rangliste!AD100))","v":0},{"$f":"IF(Gruppenplanung!$T$29=4,0,IF(Gruppenplanung!$T$29=5,Rangliste!U100,Rangliste!W100))","v":0},{"$f":"IF(Gruppenplanung!$T$29=4,0,IF(Gruppenplanung!$T$29=5,Rangliste!AI100,Rangliste!AK100))","v":0},null,null,"Team 6",null,null,null,null,{"$f":"SUM(Liga_3E!$I$14,Liga_3E!$I$24,Liga_3E!$I$34,Liga_3E!$I$41,Liga_3E!$I$54)","v":0},null,"Team 6",null,null,null,null,{"$f":"SUM(Liga_3E!$I$13,Liga_3E!$I$23,Liga_3E!$I$33,Liga_3E!$I$40,Liga_3E!$I$53)","v":0},null,"Team 6","-",null,"-",null,{"$f":"SUM(Liga_3E!$G$14,Liga_3E!$G$24,Liga_3E!$G$34,Liga_3E!$G$41,Liga_3E!$G$54)","v":0},null,"Team 6","-",null,"-",null,{"$f":"SUM(Liga_3E!$G$13,Liga_3E!$G$23,Liga_3E!$G$33,Liga_3E!$G$40,Liga_3E!$G$53)","v":0}]
[null,null,6,{"$f":"IF(Gruppenplanung!$T$29=6,Liga_3E!$I$12,\"-\")","v":"-"},{"$f":"IF(Gruppenplanung!$T$29=4,0,IF(Gruppenplanung!$T$29=5,0,Rangliste!P101))","v":0},{"$f":"IF(Gruppenplanung!$T$29=4,0,IF(Gruppenplanung!$T$29=5,0,Rangliste!AD101))","v":0},{"$f":"IF(Gruppenplanung!$T$29=4,0,IF(Gruppenplanung!$T$29=5,0,Rangliste!W101))","v":0},{"$f":"IF(Gruppenplanung!$T$29=4,0,IF(Gruppenplanung!$T$29=5,0,Rangliste!AK101))","v":0}]
[]
[null,null,"Liga 4A",null,null,null,null,null,null,null,null,"Punkte bei 4er Teams",null,"Punkte bei 5er Teams",null,"Punkte bei 6er Teams",null,null,"Spiele bei 4er Teams",null,"Spiele bei 5er Teams",null,"Spiele bei 6er Teams",null,null,"V. Punkte bei 4er Teams",null,"V. Punkte bei 5er Teams",null,"V. Punkte bei 6er Teams",null,null,"V. Spiele bei 4er Teams",null,"V. Spiele bei 5er Teams",null,"V. Spiele bei 6er Teams"]
[null,null,"Platz","Mannschaft","Punkte","V. Punkte","Spiele","V. Spiele",null,null,"Team 1",{"$f":"SUM(Liga_4A!$G$8,Liga_4A!$I$21,Liga_4A!$I$28)","v":0},null,{"$f":"SUM(Liga_4A!$G$8,Liga_4A!$G$21,Liga_4A!$I$38,Liga_4A!$G$51)","v":0},null,{"$f":"SUM(Liga_4A!$G$8,Liga_4A!$G$21,Liga_4A!$I$28,Liga_4A!$G$41,Liga_4A!$G$51)","v":0},null,"Team 1",{"$f":"SUM(Liga_4A!$G$7,Liga_4A!$I$20,Liga_4A!$I$27)","v":0},null,{"$f":"SUM(Liga_4A!$G$7,Liga_4A!$G$20,Liga_4A!$I$37,Liga_4A!$G$50)","v":0},null,{"$f":"SUM(Liga_4A!$G$7,Liga_4A!$G$20,Liga_4A!$I$27,Liga_4A!$G$40,Liga_4A!$G$50)","v":0},null,"Team 1",{"$f":"SUM(Liga_4A!$I$8,Liga_4A!$G$21,Liga_4A!$G$28)","v":0},null,{"$f":"SUM(Liga_4A!$I$8,Liga_4A!$I$21,Liga_4A!$G$38,Liga_4A!$I$51)","v":0},null,{"$f":"SUM(Liga_4A!$I$8,Liga_4A!$I$21,Liga_4A!$G$28,Liga_4A!$I$41,Liga_4A!$I$51)","v":0},null,"Team 1",{"$f":"SUM(Liga_4A!$I$7,Liga_4A!$G$20,Liga_4A!$G$27)","v":0},null,{"$f":"SUM(Liga_4A!$I$7,Liga_4A!$I$20,Liga_4A!$G$37,Liga_4A!$I$50)","v":0},null,{"$f":"SUM(Liga_4A!$I$7,Liga_4A!$I$20,Liga_4A!$G$27,Liga_4A!$I$40,Liga_4A!$I$50)","v":0}]
[null,null,1,{"$f":"Liga_4A!$I$9","v":0},{"$f":"IF(Gruppenplanung!$T$31=4,Rangliste!L108,IF(Gruppenplanung!$T$31=5,Rangliste!N108,Rangliste!P108))","v":0},{"$f":"IF(Gruppenplanung!$T$31=4,Rangliste!Z108,IF(Gruppenplanung!$T$31=5,Rangliste!AB108,Rangliste!AD108))","v":0},{"$f":"IF(Gruppenplanung!$T$31=4,Rangliste!S108,IF(Gruppenplanung!$T$31=5,Rangliste!U108,Rangliste!W108))","v":0},{"$f":"IF(Gruppenplanung!$T$31=4,Rangliste!AG108,IF(Gruppenplanung!$T$31=5,Rangliste!AI108,Rangliste!AK108))","v":0},null,null,"Team 2",{"$f":"SUM(Liga_4A!$I$8,Liga_4A!$G$18,Liga_4A!$G$31)","v":0},null,{"$f":"SUM(Liga_4A!$I$8,Liga_4A!$G$18,Liga_4A!$G$31,Liga_4A!$G$41)","v":0},null,{"$f":"SUM(Liga_4A!$I$8,Liga_4A!$G$18,Liga_4A!$G$31,Liga_4A!$G$44,Liga_4A!$G$54)","v":0},null,"Team 2",{"$f":"SUM(Liga_4A!$I$7,Liga_4A!$G$17,Liga_4A!$G$30)","v":0},null,{"$f":"SUM(Liga_4A!$I$7,Liga_4A!$G$17,Liga_4A!$G$30,Liga_4A!$G$40)","v":0},null,{"$f":"SUM(Liga_4A!$I$7,Liga_4A!$G$17,Liga_4A!$G$30,Liga_4A!$G$43,Liga_4A!$G$53)","v":0},null,"Team 2",{"$f":"SUM(Liga_4A!$G$8,Liga_4A!$I$18,Liga_4A!$I$31)","v":0},null,{"$f":"SUM(Liga_4A!$G$8,Liga_4A!$I$18,Liga_4A!$I$31,Liga_4A!$I$41)","v":0},null,{"$f":"SUM(Liga_4A!$G$8,Liga_4A!$I$18,Liga_4A!$I$31,Liga_4A!$I$44,Liga_4A!$I$54)","v":0},null,"Team 2",{"$f":"SUM(Liga_4A!$G$7,Liga_4A!$I$17,Liga_4A!$I$30)","v":0},null,{"$f":"SUM(Liga_4A!$G$7,Liga_4A!$I$17,Liga_4A!$I$30,Liga_4A!$I$40)","v":0},null,{"$f":"SUM(Liga_4A!$G$7,Liga_4A!$I$17,Liga_4A!$I$30,Liga_4A!$I$43,Liga_4A!$I$53)","v":0}]
[null,null,2,{"$f":"Liga_4A!$G$6","v":0},{"$f":"IF(Gruppenplanung!$T$31=4,Rangliste!L105,IF(Gruppenplanung!$T$31=5,Rangliste!N105,Rangliste!P105))","v":0},{"$f":"IF(Gruppenplanung!$T$31=4,Rangliste!Z105,IF(Gruppenplanung!$T$31=5,Rangliste!AB105,Rangliste!AD105))","v":0},{"$f":"IF(Gruppenplanung!$T$31=4,Rangliste!S105,IF(Gruppenplanung!$T$31=5,Rangliste!U105,Rangliste!W105))","v":0},{"$f":"IF(Gruppenplanung!$T$31=4,Rangliste!AG105,IF(Gruppenplanung!$T$31=5,Rangliste!AI105,Rangliste!AK105))","v":0},null,null,"Team 3",{"$f":"SUM(Liga_4A!$G$11,Liga_4A!$I$18,Liga_4A!$G$28)","v":0},null,{"$f":"SUM(Liga_4A!$G$11,Liga_4A!$I$18,Liga_4A!$G$28,Liga_4A!$I$51)","v":0},null,{"$f":"SUM(Liga_4A!$G$11,Liga_4A!$G$24,Liga_4A!$G$28,Liga_4A!$I$44,Liga_4A!$I$48)","v":0},null,"Team 3",{"$f":"SUM(Liga_4A!$G$10,Liga_4A!$I$17,Liga_4A!$G$27)","v":0},null,{"$f":"SUM(Liga_4A!$G$10,Liga_4A!$I$17,Liga_4A!$G$27,Liga_4A!$I$50)","v":0},null,{"$f":"SUM(Liga_4A!$G$10,Liga_4A!$G$23,Liga_4A!$G$27,Liga_4A!$I$43,Liga_4A!$I$47)","v":0},null,"Team 3",{"$f":"SUM(Liga_4A!$I$11,Liga_4A!$G$18,Liga_4A!$I$28)","v":0},null,{"$f":"SUM(Liga_4A!$I$11,Liga_4A!$G$18,Liga_4A!$I$28,Liga_4A!$G$51)","v":0},null,{"$f":"SUM(Liga_4A!$I$11,Liga_4A!$I$24,Liga_4A!$I$28,Liga_4A!$G$44,Liga_4A!$G$48)","v":0},null,"Team 3",{"$f":"SUM(Liga_4A!$I$10,Liga_4A!$G$17,Liga_4A!$I$27)","v":0},null,{"$f":"SUM(Liga_4A!$I$10,Liga_4A!$G$17,Liga_4A!$I$27,Liga_4A!$G$50)","v":0},null,{"$f":"SUM(Liga_4A!$I$10,Liga_4A!$I$23,Liga_4A!$I$27,Liga_4A!$G$43,Liga_4A!$G$47)","v":0}]
[null,null,3,{"$f":"IF(Gruppenplanung!$T$31>4,Liga_4A!$G$46,\"-\")","v":"-"},{"$f":"IF(Gruppenplanung!$T$31=4,0,IF(Gruppenplanung!$T$31=5,Rangliste!N109,Rangliste!P109))","v":0},{"$f":"IF(Gruppenplanung!$T$31=4,0,IF(Gruppenplanung!$T$31=5,Rangliste!AB109,Rangliste!AD109))","v":0},{"$f":"IF(Gruppenplanung!$T$31=4,0,IF(Gruppenplanung!$T$31=5,Rangliste!U109,Rangliste!W109))","v":0},{"$f":"IF(Gruppenplanung!$T$31=4,0,IF(Gruppenplanung!$T$31=5,Rangliste!AI109,Rangliste!AK109))","v":0},null,null,"Team 4",{"$f":"SUM(Liga_4A!$I$11,Liga_4A!$G$21,Liga_4A!$I$31)","v":0},null,{"$f":"SUM(Liga_4A!$I$11,Liga_4A!$I$31,Liga_4A!$G$38,Liga_4A!$I$48)","v":0},null,{"$f":"SUM(Liga_4A!$I$11,Liga_4A!$I$18,Liga_4A!$G$34,Liga_4A!$G$38,Liga_4A!$I$51)","v":0},null,"Team 4",{"$f":"SUM(Liga_4A!$I$10,Liga_4A!$G$20,Liga_4A!$I$30)","v":0},null,{"$f":"SUM(Liga_4A!$I$10,Liga_4A!$I$30,Liga_4A!$G$37,Liga_4A!$I$47)","v":0},null,{"$f":"SUM(Liga_4A!$I$10,Liga_4A!$I$17,Liga_4A!$G$33,Liga_4A!$G$37,Liga_4A!$I$50)","v":0},null,"Team 4",{"$f":"SUM(Liga_4A!$G$11,Liga_4A!$I$21,Liga_4A!$G$31)","v":0},null,{"$f":"SUM(Liga_4A!$G$11,Liga_4A!$G$31,Liga_4A!$I$38,Liga_4A!$G$48)","v":0},null,{"$f":"SUM(Liga_4A!$G$11,Liga_4A!$G$18,Liga_4A!$I$34,Liga_4A!$I$38,Liga_4A!$G$51)","v":0},null,"Team 4",{"$f":"SUM(Liga_4A!$G$10,Liga_4A!$I$20,Liga_4A!$G$30)","v":0},null,{"$f":"SUM(Liga_4A!$G$10,Liga_4A!$G$30,Liga_4A!$I$37,Liga_4A!$G$47)","v":0},null,{"$f":"SUM(Liga_4A!$G$10,Liga_4A!$G$17,Liga_4A!$I$33,Liga_4A!$I$37,Liga_4A!$G$50)","v":0}]
[null,null,4,{"$f":"Liga_4A!$I$6","v":0},{"$f":"IF(Gruppenplanung!$T$31=4,Rangliste!L106,IF(Gruppenplanung!$T$31=5,Rangliste!N106,Rangliste!P106))","v":0},{"$f":"IF(Gruppenplanung!$T$31=4,Rangliste!Z106,IF(Gruppenplanung!$T$31=5,Rangliste!AB106,Rangliste!AD106))","v":0},{"$f":"IF(Gruppenplanung!$T$31=4,Rangliste!S106,IF(Gruppenplanung!$T$31=5,Rangliste!U106,Rangliste!W106))","v":0},{"$f":"IF(Gruppenplanung!$T$31=4,Rangliste!AG106,IF(Gruppenplanung!$T$31=5,Rangliste!AI106,Rangliste!AK106))","v":0},null,null,"Team 5",null,null,{"$f":"SUM(Liga_4A!$I$21,Liga_4A!$I$28,Liga_4A!$I$41,Liga_4A!$G$48)","v":0},null,{"$f":"SUM(Liga_4A!$G$14,Liga_4A!$I$21,Liga_4A!$I$31,Liga_4A!$I$38,Liga_4A!$G$48)","v":0},null,"Team 5",null,null,{"$f":"SUM(Liga_4A!$I$20,Liga_4A!$I$27,Liga_4A!$I$40,Liga_4A!$G$47)","v":0},null,{"$f":"SUM(Liga_4A!$G$13,Liga_4A!$I$20,Liga_4A!$I$30,Liga_4A!$I$37,Liga_4A!$G$47)","v":0},null,"Team 5","-",null,{"$f":"SUM(Liga_4A!$G$21,Liga_4A!$G$28,Liga_4A!$G$41,Liga_4A!$I$48)","v":0},null,{"$f":"SUM(Liga_4A!$I$14,Liga_4A!$G$21,Liga_4A!$G$31,Liga_4A!$G$38,Liga_4A!$I$48)","v":0},null,"Team 5","-",null,{"$f":"SUM(Liga_4A!$G$20,Liga_4A!$G$27,Liga_4A!$G$40,Liga_4A!$I$47)","v":0},null,{"$f":"SUM(Liga_4A!$I$13,Liga_4A!$G$20,Liga_4A!$G$30,Liga_4A!$G$37,Liga_4A!$I$47)","v":0}]
[null,null,5,{"$f":"Liga_4A!$G$9","v":0},{"$f":"IF(Gruppenplanung!$T$31=4,Rangliste!L107,IF(Gruppenplanung!$T$31=5,Rangliste!N107,Rangliste!P107))","v":0},{"$f":"IF(Gruppenplanung!$T$31=4,Rangliste!Z107,IF(Gruppenplanung!$T$31=5,Rangliste!AB107,Rangliste!AD107))","v":0},{"$f":"IF(Gruppenplanung!$T$31=4,Rangliste!S107,IF(Gruppenplanung!$T$31=5,Rangliste!U107,Rangliste!W107))","v":0},{"$f":"IF(Gruppenplanung!$T$31=4,Rangliste!AG107,IF(Gruppenplanung!$T$31=5,Rangliste!AI107,Rangliste!AK107))","v":0},null,null,"Team 6",null,null,null,null,{"$f":"SUM(Liga_4A!$I$14,Liga_4A!$I$24,Liga_4A!$I$34,Liga_4A!$I$41,Liga_4A!$I$54)","v":0},null,"Team 6",null,null,null,null,{"$f":"SUM(Liga_4A!$I$13,Liga_4A!$I$23,Liga_4A!$I$33,Liga_4A!$I$40,Liga_4A!$I$53)","v":0},null,"Team 6","-",null,"-",null,{"$f":"SUM(Liga_4A!$G$14,Liga_4A!$G$24,Liga_4A!$G$34,Liga_4A!$G$41,Liga_4A!$G$54)","v":0},null,"Team 6","-",null,"-",null,{"$f":"SUM(Liga_4A!$G$13,Liga_4A!$G$23,Liga_4A!$G$33,Liga_4A!$G$40,Liga_4A!$G$53)","v":0}]
[null,null,6,{"$f":"IF(Gruppenplanung!$T$31=6,Liga_4A!$I$12,\"-\")","v":"-"},{"$f":"IF(Gruppenplanung!$T$31=4,0,IF(Gruppenplanung!$T$31=5,0,Rangliste!P110))","v":0},{"$f":"IF(Gruppenplanung!$T$31=4,0,IF(Gruppenplanung!$T$31=5,0,Rangliste!AD110))","v":0},{"$f":"IF(Gruppenplanung!$T$31=4,0,IF(Gruppenplanung!$T$31=5,0,Rangliste!W110))","v":0},{"$f":"IF(Gruppenplanung!$T$31=4,0,IF(Gruppenplanung!$T$31=5,0,Rangliste!AK110))","v":0}]
[]
[null,null,"Liga 4B",null,null,null,null,null,null,null,null,"Punkte bei 4er Teams",null,"Punkte bei 5er Teams",null,"Punkte bei 6er Teams",null,null,"Spiele bei 4er Teams",null,"Spiele bei 5er Teams",null,"Spiele bei 6er Teams",null,null,"V. Punkte bei 4er Teams",null,"V. Punkte bei 5er Teams",null,"V. Punkte bei 6er Teams",null,null,"V. Spiele bei 4er Teams",null,"V. Spiele bei 5er Teams",null,"V. Spiele bei 6er Teams"]
[null,null,"Platz","Mannschaft","Punkte","V. Punkte","Spiele","V. Spiele",null,null,"Team 1",{"$f":"SUM(Liga_4B!$G$8,Liga_4B!$I$21,Liga_4B!$I$28)","v":0},null,{"$f":"SUM(Liga_4B!$G$8,Liga_4B!$G$21,Liga_4B!$I$38,Liga_4B!$G$51)","v":0},null,{"$f":"SUM(Liga_4B!$G$8,Liga_4B!$G$21,Liga_4B!$I$28,Liga_4B!$G$41,Liga_4B!$G$51)","v":0},null,"Team 1",{"$f":"SUM(Liga_4B!$G$7,Liga_4B!$I$20,Liga_4B!$I$27)","v":0},null,{"$f":"SUM(Liga_4B!$G$7,Liga_4B!$G$20,Liga_4B!$I$37,Liga_4B!$G$50)","v":0},null,{"$f":"SUM(Liga_4B!$G$7,Liga_4B!$G$20,Liga_4B!$I$27,Liga_4B!$G$40,Liga_4B!$G$50)","v":0},null,"Team 1",{"$f":"SUM(Liga_4B!$I$8,Liga_4B!$G$21,Liga_4B!$G$28)","v":0},null,{"$f":"SUM(Liga_4B!$I$8,Liga_4B!$I$21,Liga_4B!$G$38,Liga_4B!$I$51)","v":0},null,{"$f":"SUM(Liga_4B!$I$8,Liga_4B!$I$21,Liga_4B!$G$28,Liga_4B!$I$41,Liga_4B!$I$51)","v":0},null,"Team 1",{"$f":"SUM(Liga_4B!$I$7,Liga_4B!$G$20,Liga_4B!$G$27)","v":0},null,{"$f":"SUM(Liga_4B!$I$7,Liga_4B!$I$20,Liga_4B!$G$37,Liga_4B!$I$50)","v":0},null,{"$f":"SUM(Liga_4B!$I$7,Liga_4B!$I$20,Liga_4B!$G$27,Liga_4B!$I$40,Liga_4B!$I$50)","v":0}]
[null,null,1,{"$f":"Liga_4B!$I$9","v":0},{"$f":"IF(Gruppenplanung!$T$32=4,Rangliste!L117,IF(Gruppenplanung!$T$32=5,Rangliste!N117,Rangliste!P117))","v":0},{"$f":"IF(Gruppenplanung!$T$32=4,Rangliste!Z117,IF(Gruppenplanung!$T$32=5,Rangliste!AB117,Rangliste!AD117))","v":0},{"$f":"IF(Gruppenplanung!$T$32=4,Rangliste!S117,IF(Gruppenplanung!$T$32=5,Rangliste!U117,Rangliste!W117))","v":0},{"$f":"IF(Gruppenplanung!$T$32=4,Rangliste!AG117,IF(Gruppenplanung!$T$32=5,Rangliste!AI117,Rangliste!AK117))","v":0},null,null,"Team 2",{"$f":"SUM(Liga_4B!$I$8,Liga_4B!$G$18,Liga_4B!$G$31)","v":0},null,{"$f":"SUM(Liga_4B!$I$8,Liga_4B!$G$18,Liga_4B!$G$31,Liga_4B!$G$41)","v":0},null,{"$f":"SUM(Liga_4B!$I$8,Liga_4B!$G$18,Liga_4B!$G$31,Liga_4B!$G$44,Liga_4B!$G$54)","v":0},null,"Team 2",{"$f":"SUM(Liga_4B!$I$7,Liga_4B!$G$17,Liga_4B!$G$30)","v":0},null,{"$f":"SUM(Liga_4B!$I$7,Liga_4B!$G$17,Liga_4B!$G$30,Liga_4B!$G$40)","v":0},null,{"$f":"SUM(Liga_4B!$I$7,Liga_4B!$G$17,Liga_4B!$G$30,Liga_4B!$G$43,Liga_4B!$G$53)","v":0},null,"Team 2",{"$f":"SUM(Liga_4B!$G$8,Liga_4B!$I$18,Liga_4B!$I$31)","v":0},null,{"$f":"SUM(Liga_4B!$G$8,Liga_4B!$I$18,Liga_4B!$I$31,Liga_4B!$I$41)","v":0},null,{"$f":"SUM(Liga_4B!$G$8,Liga_4B!$I$18,Liga_4B!$I$31,Liga_4B!$I$44,Liga_4B!$I$54)","v":0},null,"Team 2",{"$f":"SUM(Liga_4B!$G$7,Liga_4B!$I$17,Liga_4B!$I$30)","v":0},null,{"$f":"SUM(Liga_4B!$G$7,Liga_4B!$I$17,Liga_4B!$I$30,Liga_4B!$I$40)","v":0},null,{"$f":"SUM(Liga_4B!$G$7,Liga_4B!$I$17,Liga_4B!$I$30,Liga_4B!$I$43,Liga_4B!$I$53)","v":0}]
[null,null,2,{"$f":"Liga_4B!$G$6","v":0},{"$f":"IF(Gruppenplanung!$T$32=4,Rangliste!L114,IF(Gruppenplanung!$T$32=5,Rangliste!N114,Rangliste!P114))","v":0},{"$f":"IF(Gruppenplanung!$T$32=4,Rangliste!Z114,IF(Gruppenplanung!$T$32=5,Rangliste!AB114,Rangliste!AD114))","v":0},{"$f":"IF(Gruppenplanung!$T$32=4,Rangliste!S114,IF(Gruppenplanung!$T$32=5,Rangliste!U114,Rangliste!W114))","v":0},{"$f":"IF(Gruppenplanung!$T$32=4,Rangliste!AG114,IF(Gruppenplanung!$T$32=5,Rangliste!AI114,Rangliste!AK114))","v":0},null,null,"Team 3",{"$f":"SUM(Liga_4B!$G$11,Liga_4B!$I$18,Liga_4B!$G$28)","v":0},null,{"$f":"SUM(Liga_4B!$G$11,Liga_4B!$I$18,Liga_4B!$G$28,Liga_4B!$I$51)","v":0},null,{"$f":"SUM(Liga_4B!$G$11,Liga_4B!$G$24,Liga_4B!$G$28,Liga_4B!$I$44,Liga_4B!$I$48)","v":0},null,"Team 3",{"$f":"SUM(Liga_4B!$G$10,Liga_4B!$I$17,Liga_4B!$G$27)","v":0},null,{"$f":"SUM(Liga_4B!$G$10,Liga_4B!$I$17,Liga_4B!$G$27,Liga_4B!$I$50)","v":0},null,{"$f":"SUM(Liga_4B!$G$10,Liga_4B!$G$23,Liga_4B!$G$27,Liga_4B!$I$43,Liga_4B!$I$47)","v":0},null,"Team 3",{"$f":"SUM(Liga_4B!$I$11,Liga_4B!$G$18,Liga_4B!$I$28)","v":0},null,{"$f":"SUM(Liga_4B!$I$11,Liga_4B!$G$18,Liga_4B!$I$28,Liga_4B!$G$51)","v":0},null,{"$f":"SUM(Liga_4B!$I$11,Liga_4B!$I$24,Liga_4B!$I$28,Liga_4B!$G$44,Liga_4B!$G$48)","v":0},null,"Team 3",{"$f":"SUM(Liga_4B!$I$10,Liga_4B!$G$17,Liga_4B!$I$27)","v":0},null,{"$f":"SUM(Liga_4B!$I$10,Liga_4B!$G$17,Liga_4B!$I$27,Liga_4B!$G$50)","v":0},null,{"$f":"SUM(Liga_4B!$I$10,Liga_4B!$I$23,Liga_4B!$I$27,Liga_4B!$G$43,Liga_4B!$G$47)","v":0}]
[null,null,3,{"$f":"Liga_4B!$I$6","v":0},{"$f":"IF(Gruppenplanung!$T$32=4,Rangliste!L115,IF(Gruppenplanung!$T$32=5,Rangliste!N115,Rangliste!P115))","v":0},{"$f":"IF(Gruppenplanung!$T$32=4,Rangliste!Z115,IF(Gruppenplanung!$T$32=5,Rangliste!AB115,Rangliste!AD115))","v":0},{"$f":"IF(Gruppenplanung!$T$32=4,Rangliste!S115,IF(Gruppenplanung!$T$32=5,Rangliste!U115,Rangliste!W115))","v":0},{"$f":"IF(Gruppenplanung!$T$32=4,Rangliste!AG115,IF(Gruppenplanung!$T$32=5,Rangliste!AI115,Rangliste!AK115))","v":0},null,null,"Team 4",{"$f":"SUM(Liga_4B!$I$11,Liga_4B!$G$21,Liga_4B!$I$31)","v":0},null,{"$f":"SUM(Liga_4B!$I$11,Liga_4B!$I$31,Liga_4B!$G$38,Liga_4B!$I$48)","v":0},null,{"$f":"SUM(Liga_4B!$I$11,Liga_4B!$I$18,Liga_4B!$G$34,Liga_4B!$G$38,Liga_4B!$I$51)","v":0},null,"Team 4",{"$f":"SUM(Liga_4B!$I$10,Liga_4B!$G$20,Liga_4B!$I$30)","v":0},null,{"$f":"SUM(Liga_4B!$I$10,Liga_4B!$I$30,Liga_4B!$G$37,Liga_4B!$I$47)","v":0},null,{"$f":"SUM(Liga_4B!$I$10,Liga_4B!$I$17,Liga_4B!$G$33,Liga_4B!$G$37,Liga_4B!$I$50)","v":0},null,"Team 4",{"$f":"SUM(Liga_4B!$G$11,Liga_4B!$I$21,Liga_4B!$G$31)","v":0},null,{"$f":"SUM(Liga_4B!$G$11,Liga_4B!$G$31,Liga_4B!$I$38,Liga_4B!$G$48)","v":0},null,{"$f":"SUM(Liga_4B!$G$11,Liga_4B!$G$18,Liga_4B!$I$34,Liga_4B!$I$38,Liga_4B!$G$51)","v":0},null,"Team 4",{"$f":"SUM(Liga_4B!$G$10,Liga_4B!$I$20,Liga_4B!$G$30)","v":0},null,{"$f":"SUM(Liga_4B!$G$10,Liga_4B!$G$30,Liga_4B!$I$37,Liga_4B!$G$47)","v":0},null,{"$f":"SUM(Liga_4B!$G$10,Liga_4B!$G$17,Liga_4B!$I$33,Liga_4B!$I$37,Liga_4B!$G$50)","v":0}]
[null,null,4,{"$f":"Liga_4B!$G$9","v":0},{"$f":"IF(Gruppenplanung!$T$32=4,Rangliste!L116,IF(Gruppenplanung!$T$32=5,Rangliste!N116,Rangliste!P116))","v":0},{"$f":"IF(Gruppenplanung!$T$32=4,Rangliste!Z116,IF(Gruppenplanung!$T$32=5,Rangliste!AB116,Rangliste!AD116))","v":0},{"$f":"IF(Gruppenplanung!$T$32=4,Rangliste!S116,IF(Gruppenplanung!$T$32=5,Rangliste!U116,Rangliste!W116))","v":0},{"$f":"IF(Gruppenplanung!$T$32=4,Rangliste!AG116,IF(Gruppenplanung!$T$32=5,Rangliste!AI116,Rangliste!AK116))","v":0},null,null,"Team 5",null,null,{"$f":"SUM(Liga_4B!$I$21,Liga_4B!$I$28,Liga_4B!$I$41,Liga_4B!$G$48)","v":0},null,{"$f":"SUM(Liga_4B!$G$14,Liga_4B!$I$21,Liga_4B!$I$31,Liga_4B!$I$38,Liga_4B!$G$48)","v":0},null,"Team 5",null,null,{"$f":"SUM(Liga_4B!$I$20,Liga_4B!$I$27,Liga_4B!$I$40,Liga_4B!$G$47)","v":0},null,{"$f":"SUM(Liga_4B!$G$13,Liga_4B!$I$20,Liga_4B!$I$30,Liga_4B!$I$37,Liga_4B!$G$47)","v":0},null,"Team 5","-",null,{"$f":"SUM(Liga_4B!$G$21,Liga_4B!$G$28,Liga_4B!$G$41,Liga_4B!$I$48)","v":0},null,{"$f":"SUM(Liga_4B!$I$14,Liga_4B!$G$21,Liga_4B!$G$31,Liga_4B!$G$38,Liga_4B!$I$48)","v":0},null,"Team 5","-",null,{"$f":"SUM(Liga_4B!$G$20,Liga_4B!$G$27,Liga_4B!$G$40,Liga_4B!$I$47)","v":0},null,{"$f":"SUM(Liga_4B!$I$13,Liga_4B!$G$20,Liga_4B!$G$30,Liga_4B!$G$37,Liga_4B!$I$47)","v":0}]
[null,null,5,{"$f":"IF(Gruppenplanung!$T$32=6,Liga_4B!$I$12,\"-\")","v":"-"},{"$f":"IF(Gruppenplanung!$T$32=4,0,IF(Gruppenplanung!$T$32=5,0,Rangliste!P119))","v":0},{"$f":"IF(Gruppenplanung!$T$32=4,0,IF(Gruppenplanung!$T$32=5,0,Rangliste!AD119))","v":0},{"$f":"IF(Gruppenplanung!$T$32=4,0,IF(Gruppenplanung!$T$32=5,0,Rangliste!W119))","v":0},{"$f":"IF(Gruppenplanung!$T$32=4,0,IF(Gruppenplanung!$T$32=5,0,Rangliste!AK119))","v":0},null,null,"Team 6",null,null,null,null,{"$f":"SUM(Liga_4B!$I$14,Liga_4B!$I$24,Liga_4B!$I$34,Liga_4B!$I$41,Liga_4B!$I$54)","v":0},null,"Team 6",null,null,null,null,{"$f":"SUM(Liga_4B!$I$13,Liga_4B!$I$23,Liga_4B!$I$33,Liga_4B!$I$40,Liga_4B!$I$53)","v":0},null,"Team 6","-",null,"-",null,{"$f":"SUM(Liga_4B!$G$14,Liga_4B!$G$24,Liga_4B!$G$34,Liga_4B!$G$41,Liga_4B!$G$54)","v":0},null,"Team 6","-",null,"-",null,{"$f":"SUM(Liga_4B!$G$13,Liga_4B!$G$23,Liga_4B!$G$33,Liga_4B!$G$40,Liga_4B!$G$53)","v":0}]
[null,null,6,{"$f":"IF(Gruppenplanung!$T$32>4,Liga_4B!$G$46,\"-\")","v":"-"},{"$f":"IF(Gruppenplanung!$T$32=4,0,IF(Gruppenplanung!$T$32=5,Rangliste!N118,Rangliste!P118))","v":0},{"$f":"IF(Gruppenplanung!$T$32=4,0,IF(Gruppenplanung!$T$32=5,Rangliste!AB118,Rangliste!AD118))","v":0},{"$f":"IF(Gruppenplanung!$T$32=4,0,IF(Gruppenplanung!$T$32=5,Rangliste!U118,Rangliste!W118))","v":0},{"$f":"IF(Gruppenplanung!$T$32=4,0,IF(Gruppenplanung!$T$32=5,Rangliste!AI118,Rangliste!AK118))","v":0}]
[]
[null,null,"Liga 4C",null,null,null,null,null,null,null,null,"Punkte bei 4er Teams",null,"Punkte bei 5er Teams",null,"Punkte bei 6er Teams",null,null,"Spiele bei 4er Teams",null,"Spiele bei 5er Teams",null,"Spiele bei 6er Teams",null,null,"V. Punkte bei 4er Teams",null,"V. Punkte bei 5er Teams",null,"V. Punkte bei 6er Teams",null,null,"V. Spiele bei 4er Teams",null,"V. Spiele bei 5er Teams",null,"V. Spiele bei 6er Teams"]
[null,null,"Platz","Mannschaft","Punkte","V. Punkte","Spiele","V. Spiele",null,null,"Team 1",{"$f":"SUM(Liga_4C!$G$8,Liga_4C!$I$21,Liga_4C!$I$28)","v":0},null,{"$f":"SUM(Liga_4C!$G$8,Liga_4C!$G$21,Liga_4C!$I$38,Liga_4C!$G$51)","v":0},null,{"$f":"SUM(Liga_4C!$G$8,Liga_4C!$G$21,Liga_4C!$I$28,Liga_4C!$G$41,Liga_4C!$G$51)","v":0},null,"Team 1",{"$f":"SUM(Liga_4C!$G$7,Liga_4C!$I$20,Liga_4C!$I$27)","v":0},null,{"$f":"SUM(Liga_4C!$G$7,Liga_4C!$G$20,Liga_4C!$I$37,Liga_4C!$G$50)","v":0},null,{"$f":"SUM(Liga_4C!$G$7,Liga_4C!$G$20,Liga_4C!$I$27,Liga_4C!$G$40,Liga_4C!$G$50)","v":0},null,"Team 1",{"$f":"SUM(Liga_4C!$I$8,Liga_4C!$G$21,Liga_4C!$G$28)","v":0},null,{"$f":"SUM(Liga_4C!$I$8,Liga_4C!$I$21,Liga_4C!$G$38,Liga_4C!$I$51)","v":0},null,{"$f":"SUM(Liga_4C!$I$8,Liga_4C!$I$21,Liga_4C!$G$28,Liga_4C!$I$41,Liga_4C!$I$51)","v":0},null,"Team 1",{"$f":"SUM(Liga_4C!$I$7,Liga_4C!$G$20,Liga_4C!$G$27)","v":0},null,{"$f":"SUM(Liga_4C!$I$7,Liga_4C!$I$20,Liga_4C!$G$37,Liga_4C!$I$50)","v":0},null,{"$f":"SUM(Liga_4C!$I$7,Liga_4C!$I$20,Liga_4C!$G$27,Liga_4C!$I$40,Liga_4C!$I$50)","v":0}]
[null,null,1,{"$f":"Liga_4C!$I$9","v":0},{"$f":"IF(Gruppenplanung!$T$33=4,Rangliste!L126,IF(Gruppenplanung!$T$33=5,Rangliste!N126,Rangliste!P126))","v":0},{"$f":"IF(Gruppenplanung!$T$33=4,Rangliste!Z126,IF(Gruppenplanung!$T$33=5,Rangliste!AB126,Rangliste!AD126))","v":0},{"$f":"IF(Gruppenplanung!$T$33=4,Rangliste!S126,IF(Gruppenplanung!$T$33=5,Rangliste!U126,Rangliste!W126))","v":0},{"$f":"IF(Gruppenplanung!$T$33=4,Rangliste!AG126,IF(Gruppenplanung!$T$33=5,Rangliste!AI126,Rangliste!AK126))","v":0},null,null,"Team 2",{"$f":"SUM(Liga_4C!$I$8,Liga_4C!$G$18,Liga_4C!$G$31)","v":0},null,{"$f":"SUM(Liga_4C!$I$8,Liga_4C!$G$18,Liga_4C!$G$31,Liga_4C!$G$41)","v":0},null,{"$f":"SUM(Liga_4C!$I$8,Liga_4C!$G$18,Liga_4C!$G$31,Liga_4C!$G$44,Liga_4C!$G$54)","v":0},null,"Team 2",{"$f":"SUM(Liga_4C!$I$7,Liga_4C!$G$17,Liga_4C!$G$30)","v":0},null,{"$f":"SUM(Liga_4C!$I$7,Liga_4C!$G$17,Liga_4C!$G$30,Liga_4C!$G$40)","v":0},null,{"$f":"SUM(Liga_4C!$I$7,Liga_4C!$G$17,Liga_4C!$G$30,Liga_4C!$G$43,Liga_4C!$G$53)","v":0},null,"Team 2",{"$f":"SUM(Liga_4C!$G$8,Liga_4C!$I$18,Liga_4C!$I$31)","v":0},null,{"$f":"SUM(Liga_4C!$G$8,Liga_4C!$I$18,Liga_4C!$I$31,Liga_4C!$I$41)","v":0},null,{"$f":"SUM(Liga_4C!$G$8,Liga_4C!$I$18,Liga_4C!$I$31,Liga_4C!$I$44,Liga_4C!$I$54)","v":0},null,"Team 2",{"$f":"SUM(Liga_4C!$G$7,Liga_4C!$I$17,Liga_4C!$I$30)","v":0},null,{"$f":"SUM(Liga_4C!$G$7,Liga_4C!$I$17,Liga_4C!$I$30,Liga_4C!$I$40)","v":0},null,{"$f":"SUM(Liga_4C!$G$7,Liga_4C!$I$17,Liga_4C!$I$30,Liga_4C!$I$43,Liga_4C!$I$53)","v":0}]
[null,null,2,{"$f":"Liga_4C!$G$6","v":0},{"$f":"IF(Gruppenplanung!$T$33=4,Rangliste!L123,IF(Gruppenplanung!$T$33=5,Rangliste!N123,Rangliste!P123))","v":0},{"$f":"IF(Gruppenplanung!$T$33=4,Rangliste!Z123,IF(Gruppenplanung!$T$33=5,Rangliste!AB123,Rangliste!AD123))","v":0},{"$f":"IF(Gruppenplanung!$T$33=4,Rangliste!S123,IF(Gruppenplanung!$T$33=5,Rangliste!U123,Rangliste!W123))","v":0},{"$f":"IF(Gruppenplanung!$T$33=4,Rangliste!AG123,IF(Gruppenplanung!$T$33=5,Rangliste!AI123,Rangliste!AK123))","v":0},null,null,"Team 3",{"$f":"SUM(Liga_4C!$G$11,Liga_4C!$I$18,Liga_4C!$G$28)","v":0},null,{"$f":"SUM(Liga_4C!$G$11,Liga_4C!$I$18,Liga_4C!$G$28,Liga_4C!$I$51)","v":0},null,{"$f":"SUM(Liga_4C!$G$11,Liga_4C!$G$24,Liga_4C!$G$28,Liga_4C!$I$44,Liga_4C!$I$48)","v":0},null,"Team 3",{"$f":"SUM(Liga_4C!$G$10,Liga_4C!$I$17,Liga_4C!$G$27)","v":0},null,{"$f":"SUM(Liga_4C!$G$10,Liga_4C!$I$17,Liga_4C!$G$27,Liga_4C!$I$50)","v":0},null,{"$f":"SUM(Liga_4C!$G$10,Liga_4C!$G$23,Liga_4C!$G$27,Liga_4C!$I$43,Liga_4C!$I$47)","v":0},null,"Team 3",{"$f":"SUM(Liga_4C!$I$11,Liga_4C!$G$18,Liga_4C!$I$28)","v":0},null,{"$f":"SUM(Liga_4C!$I$11,Liga_4C!$G$18,Liga_4C!$I$28,Liga_4C!$G$51)","v":0},null,{"$f":"SUM(Liga_4C!$I$11,Liga_4C!$I$24,Liga_4C!$I$28,Liga_4C!$G$44,Liga_4C!$G$48)","v":0},null,"Team 3",{"$f":"SUM(Liga_4C!$I$10,Liga_4C!$G$17,Liga_4C!$I$27)","v":0},null,{"$f":"SUM(Liga_4C!$I$10,Liga_4C!$G$17,Liga_4C!$I$27,Liga_4C!$G$50)","v":0},null,{"$f":"SUM(Liga_4C!$I$10,Liga_4C!$I$23,Liga_4C!$I$27,Liga_4C!$G$43,Liga_4C!$G$47)","v":0}]
[null,null,3,{"$f":"IF(Gruppenplanung!$T$33>4,Liga_4C!$G$46,\"-\")","v":"-"},{"$f":"IF(Gruppenplanung!$T$33=4,0,IF(Gruppenplanung!$T$33=5,Rangliste!N127,Rangliste!P127))","v":0},{"$f":"IF(Gruppenplanung!$T$33=4,0,IF(Gruppenplanung!$T$33=5,Rangliste!AB127,Rangliste!AD127))","v":0},{"$f":"IF(Gruppenplanung!$T$33=4,0,IF(Gruppenplanung!$T$33=5,Rangliste!U127,Rangliste!W127))","v":0},{"$f":"IF(Gruppenplanung!$T$33=4,0,IF(Gruppenplanung!$T$33=5,Rangliste!AI127,Rangliste!AK127))","v":0},null,null,"Team 4",{"$f":"SUM(Liga_4C!$I$11,Liga_4C!$G$21,Liga_4C!$I$31)","v":0},null,{"$f":"SUM(Liga_4C!$I$11,Liga_4C!$I$31,Liga_4C!$G$38,Liga_4C!$I$48)","v":0},null,{"$f":"SUM(Liga_4C!$I$11,Liga_4C!$I$18,Liga_4C!$G$34,Liga_4C!$G$38,Liga_4C!$I$51)","v":0},null,"Team 4",{"$f":"SUM(Liga_4C!$I$10,Liga_4C!$G$20,Liga_4C!$I$30)","v":0},null,{"$f":"SUM(Liga_4C!$I$10,Liga_4C!$I$30,Liga_4C!$G$37,Liga_4C!$I$47)","v":0},null,{"$f":"SUM(Liga_4C!$I$10,Liga_4C!$I$17,Liga_4C!$G$33,Liga_4C!$G$37,Liga_4C!$I$50)","v":0},null,"Team 4",{"$f":"SUM(Liga_4C!$G$11,Liga_4C!$I$21,Liga_4C!$G$31)","v":0},null,{"$f":"SUM(Liga_4C!$G$11,Liga_4C!$G$31,Liga_4C!$I$38,Liga_4C!$G$48)","v":0},null,{"$f":"SUM(Liga_4C!$G$11,Liga_4C!$G$18,Liga_4C!$I$34,Liga_4C!$I$38,Liga_4C!$G$51)","v":0},null,"Team 4",{"$f":"SUM(Liga_4C!$G$10,Liga_4C!$I$20,Liga_4C!$G$30)","v":0},null,{"$f":"SUM(Liga_4C!$G$10,Liga_4C!$G$30,Liga_4C!$I$37,Liga_4C!$G$47)","v":0},null,{"$f":"SUM(Liga_4C!$G$10,Liga_4C!$G$17,Liga_4C!$I$33,Liga_4C!$I$37,Liga_4C!$G$50)","v":0}]
[null,null,4,{"$f":"Liga_4C!$I$6","v":0},{"$f":"IF(Gruppenplanung!$T$33=4,Rangliste!L124,IF(Gruppenplanung!$T$33=5,Rangliste!N124,Rangliste!P124))","v":0},{"$f":"IF(Gruppenplanung!$T$33=4,Rangliste!Z124,IF(Gruppenplanung!$T$33=5,Rangliste!AB124,Rangliste!AD124))","v":0},{"$f":"IF(Gruppenplanung!$T$33=4,Rangliste!S124,IF(Gruppenplanung!$T$33=5,Rangliste!U124,Rangliste!W124))","v":0},{"$f":"IF(Gruppenplanung!$T$33=4,Rangliste!AG124,IF(Gruppenplanung!$T$33=5,Rangliste!AI124,Rangliste!AK124))","v":0},null,null,"Team 5",null,null,{"$f":"SUM(Liga_4C!$I$21,Liga_4C!$I$28,Liga_4C!$I$41,Liga_4C!$G$48)","v":0},null,{"$f":"SUM(Liga_4C!$G$14,Liga_4C!$I$21,Liga_4C!$I$31,Liga_4C!$I$38,Liga_4C!$G$48)","v":0},null,"Team 5",null,null,{"$f":"SUM(Liga_4C!$I$20,Liga_4C!$I$27,Liga_4C!$I$40,Liga_4C!$G$47)","v":0},null,{"$f":"SUM(Liga_4C!$G$13,Liga_4C!$I$20,Liga_4C!$I$30,Liga_4C!$I$37,Liga_4C!$G$47)","v":0},null,"Team 5","-",null,{"$f":"SUM(Liga_4C!$G$21,Liga_4C!$G$28,Liga_4C!$G$41,Liga_4C!$I$48)","v":0},null,{"$f":"SUM(Liga_4C!$I$14,Liga_4C!$G$21,Liga_4C!$G$31,Liga_4C!$G$38,Liga_4C!$I$48)","v":0},null,"Team 5","-",null,{"$f":"SUM(Liga_4C!$G$20,Liga_4C!$G$27,Liga_4C!$G$40,Liga_4C!$I$47)","v":0},null,{"$f":"SUM(Liga_4C!$I$13,Liga_4C!$G$20,Liga_4C!$G$30,Liga_4C!$G$37,Liga_4C!$I$47)","v":0}]
[null,null,5,{"$f":"Liga_4C!$G$9","v":0},{"$f":"IF(Gruppenplanung!$T$33=4,Rangliste!L125,IF(Gruppenplanung!$T$33=5,Rangliste!N125,Rangliste!P125))","v":0},{"$f":"IF(Gruppenplanung!$T$33=4,Rangliste!Z125,IF(Gruppenplanung!$T$33=5,Rangliste!AB125,Rangliste!AD125))","v":0},{"$f":"IF(Gruppenplanung!$T$33=4,Rangliste!S125,IF(Gruppenplanung!$T$33=5,Rangliste!U125,Rangliste!W125))","v":0},{"$f":"IF(Gruppenplanung!$T$33=4,Rangliste!AG125,IF(Gruppenplanung!$T$33=5,Rangliste!AI125,Rangliste!AK125))","v":0},null,null,"Team 6",null,null,null,null,{"$f":"SUM(Liga_4C!$I$14,Liga_4C!$I$24,Liga_4C!$I$34,Liga_4C!$I$41,Liga_4C!$I$54)","v":0},null,"Team 6",null,null,null,null,{"$f":"SUM(Liga_4C!$I$13,Liga_4C!$I$23,Liga_4C!$I$33,Liga_4C!$I$40,Liga_4C!$I$53)","v":0},null,"Team 6","-",null,"-",null,{"$f":"SUM(Liga_4C!$G$14,Liga_4C!$G$24,Liga_4C!$G$34,Liga_4C!$G$41,Liga_4C!$G$54)","v":0},null,"Team 6","-",null,"-",null,{"$f":"SUM(Liga_4C!$G$13,Liga_4C!$G$23,Liga_4C!$G$33,Liga_4C!$G$40,Liga_4C!$G$53)","v":0}]
[null,null,6,{"$f":"IF(Gruppenplanung!$T$33=6,Liga_4C!$I$12,\"-\")","v":"-"},{"$f":"IF(Gruppenplanung!$T$33=4,0,IF(Gruppenplanung!$T$33=5,0,Rangliste!P128))","v":0},{"$f":"IF(Gruppenplanung!$T$33=4,0,IF(Gruppenplanung!$T$33=5,0,Rangliste!AD128))","v":0},{"$f":"IF(Gruppenplanung!$T$33=4,0,IF(Gruppenplanung!$T$33=5,0,Rangliste!W128))","v":0},{"$f":"IF(Gruppenplanung!$T$33=4,0,IF(Gruppenplanung!$T$33=5,0,Rangliste!AK128))","v":0}]
[]
[null,null,"Liga 4D",null,null,null,null,null,null,null,null,"Punkte bei 4er Teams",null,"Punkte bei 5er Teams",null,"Punkte bei 6er Teams",null,null,"Spiele bei 4er Teams",null,"Spiele bei 5er Teams",null,"Spiele bei 6er Teams",null,null,"V. Punkte bei 4er Teams",null,"V. Punkte bei 5er Teams",null,"V. Punkte bei 6er Teams",null,null,"V. Spiele bei 4er Teams",null,"V. Spiele bei 5er Teams",null,"V. Spiele bei 6er Teams"]
[null,null,"Platz","Mannschaft","Punkte","V. Punkte","Spiele","V. Spiele",null,null,"Team 1",{"$f":"SUM(Liga_4D!$G$8,Liga_4D!$I$21,Liga_4D!$I$28)","v":0},null,{"$f":"SUM(Liga_4D!$G$8,Liga_4D!$G$21,Liga_4D!$I$38,Liga_4D!$G$51)","v":0},null,{"$f":"SUM(Liga_4D!$G$8,Liga_4D!$G$21,Liga_4D!$I$28,Liga_4D!$G$41,Liga_4D!$G$51)","v":0},null,"Team 1",{"$f":"SUM(Liga_4D!$G$7,Liga_4D!$I$20,Liga_4D!$I$27)","v":0},null,{"$f":"SUM(Liga_4D!$G$7,Liga_4D!$G$20,Liga_4D!$I$37,Liga_4D!$G$50)","v":0},null,{"$f":"SUM(Liga_4D!$G$7,Liga_4D!$G$20,Liga_4D!$I$27,Liga_4D!$G$40,Liga_4D!$G$50)","v":0},null,"Team 1",{"$f":"SUM(Liga_4D!$I$8,Liga_4D!$G$21,Liga_4D!$G$28)","v":0},null,{"$f":"SUM(Liga_4D!$I$8,Liga_4D!$I$21,Liga_4D!$G$38,Liga_4D!$I$51)","v":0},null,{"$f":"SUM(Liga_4D!$I$8,Liga_4D!$I$21,Liga_4D!$G$28,Liga_4D!$I$41,Liga_4D!$I$51)","v":0},null,"Team 1",{"$f":"SUM(Liga_4D!$I$7,Liga_4D!$G$20,Liga_4D!$G$27)","v":0},null,{"$f":"SUM(Liga_4D!$I$7,Liga_4D!$I$20,Liga_4D!$G$37,Liga_4D!$I$50)","v":0},null,{"$f":"SUM(Liga_4D!$I$7,Liga_4D!$I$20,Liga_4D!$G$27,Liga_4D!$I$40,Liga_4D!$I$50)","v":0}]
[null,null,1,{"$f":"Liga_4D!$I$9","v":0},{"$f":"IF(Gruppenplanung!$T$34=4,Rangliste!L135,IF(Gruppenplanung!$T$34=5,Rangliste!N135,Rangliste!P135))","v":0},{"$f":"IF(Gruppenplanung!$T$34=4,Rangliste!Z135,IF(Gruppenplanung!$T$34=5,Rangliste!AB135,Rangliste!AD135))","v":0},{"$f":"IF(Gruppenplanung!$T$34=4,Rangliste!S135,IF(Gruppenplanung!$T$34=5,Rangliste!U135,Rangliste!W135))","v":0},{"$f":"IF(Gruppenplanung!$T$34=4,Rangliste!AG135,IF(Gruppenplanung!$T$34=5,Rangliste!AI135,Rangliste!AK135))","v":0},null,null,"Team 2",{"$f":"SUM(Liga_4D!$I$8,Liga_4D!$G$18,Liga_4D!$G$31)","v":0},null,{"$f":"SUM(Liga_4D!$I$8,Liga_4D!$G$18,Liga_4D!$G$31,Liga_4D!$G$41)","v":0},null,{"$f":"SUM(Liga_4D!$I$8,Liga_4D!$G$18,Liga_4D!$G$31,Liga_4D!$G$44,Liga_4D!$G$54)","v":0},null,"Team 2",{"$f":"SUM(Liga_4D!$I$7,Liga_4D!$G$17,Liga_4D!$G$30)","v":0},null,{"$f":"SUM(Liga_4D!$I$7,Liga_4D!$G$17,Liga_4D!$G$30,Liga_4D!$G$40)","v":0},null,{"$f":"SUM(Liga_4D!$I$7,Liga_4D!$G$17,Liga_4D!$G$30,Liga_4D!$G$43,Liga_4D!$G$53)","v":0},null,"Team 2",{"$f":"SUM(Liga_4D!$G$8,Liga_4D!$I$18,Liga_4D!$I$31)","v":0},null,{"$f":"SUM(Liga_4D!$G$8,Liga_4D!$I$18,Liga_4D!$I$31,Liga_4D!$I$41)","v":0},null,{"$f":"SUM(Liga_4D!$G$8,Liga_4D!$I$18,Liga_4D!$I$31,Liga_4D!$I$44,Liga_4D!$I$54)","v":0},null,"Team 2",{"$f":"SUM(Liga_4D!$G$7,Liga_4D!$I$17,Liga_4D!$I$30)","v":0},null,{"$f":"SUM(Liga_4D!$G$7,Liga_4D!$I$17,Liga_4D!$I$30,Liga_4D!$I$40)","v":0},null,{"$f":"SUM(Liga_4D!$G$7,Liga_4D!$I$17,Liga_4D!$I$30,Liga_4D!$I$43,Liga_4D!$I$53)","v":0}]
[null,null,2,{"$f":"Liga_4D!$G$6","v":0},{"$f":"IF(Gruppenplanung!$T$34=4,Rangliste!L132,IF(Gruppenplanung!$T$34=5,Rangliste!N132,Rangliste!P132))","v":0},{"$f":"IF(Gruppenplanung!$T$34=4,Rangliste!Z132,IF(Gruppenplanung!$T$34=5,Rangliste!AB132,Rangliste!AD132))","v":0},{"$f":"IF(Gruppenplanung!$T$34=4,Rangliste!S132,IF(Gruppenplanung!$T$34=5,Rangliste!U132,Rangliste!W132))","v":0},{"$f":"IF(Gruppenplanung!$T$34=4,Rangliste!AG132,IF(Gruppenplanung!$T$34=5,Rangliste!AI132,Rangliste!AK132))","v":0},null,null,"Team 3",{"$f":"SUM(Liga_4D!$G$11,Liga_4D!$I$18,Liga_4D!$G$28)","v":0},null,{"$f":"SUM(Liga_4D!$G$11,Liga_4D!$I$18,Liga_4D!$G$28,Liga_4D!$I$51)","v":0},null,{"$f":"SUM(Liga_4D!$G$11,Liga_4D!$G$24,Liga_4D!$G$28,Liga_4D!$I$44,Liga_4D!$I$48)","v":0},null,"Team 3",{"$f":"SUM(Liga_4D!$G$10,Liga_4D!$I$17,Liga_4D!$G$27)","v":0},null,{"$f":"SUM(Liga_4D!$G$10,Liga_4D!$I$17,Liga_4D!$G$27,Liga_4D!$I$50)","v":0},null,{"$f":"SUM(Liga_4D!$G$10,Liga_4D!$G$23,Liga_4D!$G$27,Liga_4D!$I$43,Liga_4D!$I$47)","v":0},null,"Team 3",{"$f":"SUM(Liga_4D!$I$11,Liga_4D!$G$18,Liga_4D!$I$28)","v":0},null,{"$f":"SUM(Liga_4D!$I$11,Liga_4D!$G$18,Liga_4D!$I$28,Liga_4D!$G$51)","v":0},null,{"$f":"SUM(Liga_4D!$I$11,Liga_4D!$I$24,Liga_4D!$I$28,Liga_4D!$G$44,Liga_4D!$G$48)","v":0},null,"Team 3",{"$f":"SUM(Liga_4D!$I$10,Liga_4D!$G$17,Liga_4D!$I$27)","v":0},null,{"$f":"SUM(Liga_4D!$I$10,Liga_4D!$G$17,Liga_4D!$I$27,Liga_4D!$G$50)","v":0},null,{"$f":"SUM(Liga_4D!$I$10,Liga_4D!$I$23,Liga_4D!$I$27,Liga_4D!$G$43,Liga_4D!$G$47)","v":0}]
[null,null,3,{"$f":"Liga_4D!$I$6","v":0},{"$f":"IF(Gruppenplanung!$T$34=4,Rangliste!L133,IF(Gruppenplanung!$T$34=5,Rangliste!N133,Rangliste!P133))","v":0},{"$f":"IF(Gruppenplanung!$T$34=4,Rangliste!Z133,IF(Gruppenplanung!$T$34=5,Rangliste!AB133,Rangliste!AD133))","v":0},{"$f":"IF(Gruppenplanung!$T$34=4,Rangliste!S133,IF(Gruppenplanung!$T$34=5,Rangliste!U133,Rangliste!W133))","v":0},{"$f":"IF(Gruppenplanung!$T$34=4,Rangliste!AG133,IF(Gruppenplanung!$T$34=5,Rangliste!AI133,Rangliste!AK133))","v":0},null,null,"Team 4",{"$f":"SUM(Liga_4D!$I$11,Liga_4D!$G$21,Liga_4D!$I$31)","v":0},null,{"$f":"SUM(Liga_4D!$I$11,Liga_4D!$I$31,Liga_4D!$G$38,Liga_4D!$I$48)","v":0},null,{"$f":"SUM(Liga_4D!$I$11,Liga_4D!$I$18,Liga_4D!$G$34,Liga_4D!$G$38,Liga_4D!$I$51)","v":0},null,"Team 4",{"$f":"SUM(Liga_4D!$I$10,Liga_4D!$G$20,Liga_4D!$I$30)","v":0},null,{"$f":"SUM(Liga_4D!$I$10,Liga_4D!$I$30,Liga_4D!$G$37,Liga_4D!$I$47)","v":0},null,{"$f":"SUM(Liga_4D!$I$10,Liga_4D!$I$17,Liga_4D!$G$33,Liga_4D!$G$37,Liga_4D!$I$50)","v":0},null,"Team 4",{"$f":"SUM(Liga_4D!$G$11,Liga_4D!$I$21,Liga_4D!$G$31)","v":0},null,{"$f":"SUM(Liga_4D!$G$11,Liga_4D!$G$31,Liga_4D!$I$38,Liga_4D!$G$48)","v":0},null,{"$f":"SUM(Liga_4D!$G$11,Liga_4D!$G$18,Liga_4D!$I$34,Liga_4D!$I$38,Liga_4D!$G$51)","v":0},null,"Team 4",{"$f":"SUM(Liga_4D!$G$10,Liga_4D!$I$20,Liga_4D!$G$30)","v":0},null,{"$f":"SUM(Liga_4D!$G$10,Liga_4D!$G$30,Liga_4D!$I$37,Liga_4D!$G$47)","v":0},null,{"$f":"SUM(Liga_4D!$G$10,Liga_4D!$G$17,Liga_4D!$I$33,Liga_4D!$I$37,Liga_4D!$G$50)","v":0}]
[null,null,4,{"$f":"Liga_4D!$G$9","v":0},{"$f":"IF(Gruppenplanung!$T$34=4,Rangliste!L134,IF(Gruppenplanung!$T$34=5,Rangliste!N134,Rangliste!P134))","v":0},{"$f":"IF(Gruppenplanung!$T$34=4,Rangliste!Z134,IF(Gruppenplanung!$T$34=5,Rangliste!AB134,Rangliste!AD134))","v":0},{"$f":"IF(Gruppenplanung!$T$34=4,Rangliste!S134,IF(Gruppenplanung!$T$34=5,Rangliste!U134,Rangliste!W134))","v":0},{"$f":"IF(Gruppenplanung!$T$34=4,Rangliste!AG134,IF(Gruppenplanung!$T$34=5,Rangliste!AI134,Rangliste!AK134))","v":0},null,null,"Team 5",null,null,{"$f":"SUM(Liga_4D!$I$21,Liga_4D!$I$28,Liga_4D!$I$41,Liga_4D!$G$48)","v":0},null,{"$f":"SUM(Liga_4D!$G$14,Liga_4D!$I$21,Liga_4D!$I$31,Liga_4D!$I$38,Liga_4D!$G$48)","v":0},null,"Team 5",null,null,{"$f":"SUM(Liga_4D!$I$20,Liga_4D!$I$27,Liga_4D!$I$40,Liga_4D!$G$47)","v":0},null,{"$f":"SUM(Liga_4D!$G$13,Liga_4D!$I$20,Liga_4D!$I$30,Liga_4D!$I$37,Liga_4D!$G$47)","v":0},null,"Team 5","-",null,{"$f":"SUM(Liga_4D!$G$21,Liga_4D!$G$28,Liga_4D!$G$41,Liga_4D!$I$48)","v":0},null,{"$f":"SUM(Liga_4D!$I$14,Liga_4D!$G$21,Liga_4D!$G$31,Liga_4D!$G$38,Liga_4D!$I$48)","v":0},null,"Team 5","-",null,{"$f":"SUM(Liga_4D!$G$20,Liga_4D!$G$27,Liga_4D!$G$40,Liga_4D!$I$47)","v":0},null,{"$f":"SUM(Liga_4D!$I$13,Liga_4D!$G$20,Liga_4D!$G$30,Liga_4D!$G$37,Liga_4D!$I$47)","v":0}]
[null,null,5,{"$f":"IF(Gruppenplanung!$T$34=6,Liga_4D!$I$12,\"-\")","v":"-"},{"$f":"IF(Gruppenplanung!$T$34=4,0,IF(Gruppenplanung!$T$34=5,0,Rangliste!P137))","v":0},{"$f":"IF(Gruppenplanung!$T$34=4,0,IF(Gruppenplanung!$T$34=5,0,Rangliste!AD137))","v":0},{"$f":"IF(Gruppenplanung!$T$34=4,0,IF(Gruppenplanung!$T$34=5,0,Rangliste!W137))","v":0},{"$f":"IF(Gruppenplanung!$T$34=4,0,IF(Gruppenplanung!$T$34=5,0,Rangliste!AK137))","v":0},null,null,"Team 6",null,null,null,null,{"$f":"SUM(Liga_4D!$I$14,Liga_4D!$I$24,Liga_4D!$I$34,Liga_4D!$I$41,Liga_4D!$I$54)","v":0},null,"Team 6",null,null,null,null,{"$f":"SUM(Liga_4D!$I$13,Liga_4D!$I$23,Liga_4D!$I$33,Liga_4D!$I$40,Liga_4D!$I$53)","v":0},null,"Team 6","-",null,"-",null,{"$f":"SUM(Liga_4D!$G$14,Liga_4D!$G$24,Liga_4D!$G$34,Liga_4D!$G$41,Liga_4D!$G$54)","v":0},null,"Team 6","-",null,"-",null,{"$f":"SUM(Liga_4D!$G$13,Liga_4D!$G$23,Liga_4D!$G$33,Liga_4D!$G$40,Liga_4D!$G$53)","v":0}]
[null,null,6,{"$f":"IF(Gruppenplanung!$T$34>4,Liga_4D!$G$46,\"-\")","v":"-"},{"$f":"IF(Gruppenplanung!$T$34=4,0,IF(Gruppenplanung!$T$34=5,Rangliste!N136,Rangliste!P136))","v":0},{"$f":"IF(Gruppenplanung!$T$34=4,0,IF(Gruppenplanung!$T$34=5,Rangliste!AB136,Rangliste!AD136))","v":0},{"$f":"IF(Gruppenplanung!$T$34=4,0,IF(Gruppenplanung!$T$34=5,Rangliste!U136,Rangliste!W136))","v":0},{"$f":"IF(Gruppenplanung!$T$34=4,0,IF(Gruppenplanung!$T$34=5,Rangliste!AI136,Rangliste!AK136))","v":0}]
[]
[null,null,"Liga 4E",null,null,null,null,null,null,null,null,"Punkte bei 4er Teams",null,"Punkte bei 5er Teams",null,"Punkte bei 6er Teams",null,null,"Spiele bei 4er Teams",null,"Spiele bei 5er Teams",null,"Spiele bei 6er Teams",null,null,"V. Punkte bei 4er Teams",null,"V. Punkte bei 5er Teams",null,"V. Punkte bei 6er Teams",null,null,"V. Spiele bei 4er Teams",null,"V. Spiele bei 5er Teams",null,"V. Spiele bei 6er Teams"]
[null,null,"Platz","Mannschaft","Punkte","V. Punkte","Spiele","V. Spiele",null,null,"Team 1",{"$f":"SUM(Liga_4E!$G$8,Liga_4E!$I$21,Liga_4E!$I$28)","v":0},null,{"$f":"SUM(Liga_4E!$G$8,Liga_4E!$G$21,Liga_4E!$I$38,Liga_4E!$G$51)","v":0},null,{"$f":"SUM(Liga_4E!$G$8,Liga_4E!$G$21,Liga_4E!$I$28,Liga_4E!$G$41,Liga_4E!$G$51)","v":0},null,"Team 1",{"$f":"SUM(Liga_4E!$G$7,Liga_4E!$I$20,Liga_4E!$I$27)","v":0},null,{"$f":"SUM(Liga_4E!$G$7,Liga_4E!$G$20,Liga_4E!$I$37,Liga_4E!$G$50)","v":0},null,{"$f":"SUM(Liga_4E!$G$7,Liga_4E!$G$20,Liga_4E!$I$27,Liga_4E!$G$40,Liga_4E!$G$50)","v":0},null,"Team 1",{"$f":"SUM(Liga_4E!$I$8,Liga_4E!$G$21,Liga_4E!$G$28)","v":0},null,{"$f":"SUM(Liga_4E!$I$8,Liga_4E!$I$21,Liga_4E!$G$38,Liga_4E!$I$51)","v":0},null,{"$f":"SUM(Liga_4E!$I$8,Liga_4E!$I$21,Liga_4E!$G$28,Liga_4E!$I$41,Liga_4E!$I$51)","v":0},null,"Team 1",{"$f":"SUM(Liga_4E!$I$7,Liga_4E!$G$20,Liga_4E!$G$27)","v":0},null,{"$f":"SUM(Liga_4E!$I$7,Liga_4E!$I$20,Liga_4E!$G$37,Liga_4E!$I$50)","v":0},null,{"$f":"SUM(Liga_4E!$I$7,Liga_4E!$I$20,Liga_4E!$G$27,Liga_4E!$I$40,Liga_4E!$I$50)","v":0}]
[null,null,1,{"$f":"Liga_4E!$I$9","v":0},{"$f":"IF(Gruppenplanung!$T$35=4,Rangliste!L144,IF(Gruppenplanung!$T$35=5,Rangliste!N144,Rangliste!P144))","v":0},{"$f":"IF(Gruppenplanung!$T$35=4,Rangliste!Z144,IF(Gruppenplanung!$T$35=5,Rangliste!AB144,Rangliste!AD144))","v":0},{"$f":"IF(Gruppenplanung!$T$35=4,Rangliste!S144,IF(Gruppenplanung!$T$35=5,Rangliste!U144,Rangliste!W144))","v":0},{"$f":"IF(Gruppenplanung!$T$35=4,Rangliste!AG144,IF(Gruppenplanung!$T$35=5,Rangliste!AI144,Rangliste!AK144))","v":0},null,null,"Team 2",{"$f":"SUM(Liga_4E!$I$8,Liga_4E!$G$18,Liga_4E!$G$31)","v":0},null,{"$f":"SUM(Liga_4E!$I$8,Liga_4E!$G$18,Liga_4E!$G$31,Liga_4E!$G$41)","v":0},null,{"$f":"SUM(Liga_4E!$I$8,Liga_4E!$G$18,Liga_4E!$G$31,Liga_4E!$G$44,Liga_4E!$G$54)","v":0},null,"Team 2",{"$f":"SUM(Liga_4E!$I$7,Liga_4E!$G$17,Liga_4E!$G$30)","v":0},null,{"$f":"SUM(Liga_4E!$I$7,Liga_4E!$G$17,Liga_4E!$G$30,Liga_4E!$G$40)","v":0},null,{"$f":"SUM(Liga_4E!$I$7,Liga_4E!$G$17,Liga_4E!$G$30,Liga_4E!$G$43,Liga_4E!$G$53)","v":0},null,"Team 2",{"$f":"SUM(Liga_4E!$G$8,Liga_4E!$I$18,Liga_4E!$I$31)","v":0},null,{"$f":"SUM(Liga_4E!$G$8,Liga_4E!$I$18,Liga_4E!$I$31,Liga_4E!$I$41)","v":0},null,{"$f":"SUM(Liga_4E!$G$8,Liga_4E!$I$18,Liga_4E!$I$31,Liga_4E!$I$44,Liga_4E!$I$54)","v":0},null,"Team 2",{"$f":"SUM(Liga_4E!$G$7,Liga_4E!$I$17,Liga_4E!$I$30)","v":0},null,{"$f":"SUM(Liga_4E!$G$7,Liga_4E!$I$17,Liga_4E!$I$30,Liga_4E!$I$40)","v":0},null,{"$f":"SUM(Liga_4E!$G$7,Liga_4E!$I$17,Liga_4E!$I$30,Liga_4E!$I$43,Liga_4E!$I$53)","v":0}]
[null,null,2,{"$f":"Liga_4E!$G$6","v":0},{"$f":"IF(Gruppenplanung!$T$35=4,Rangliste!L141,IF(Gruppenplanung!$T$35=5,Rangliste!N141,Rangliste!P141))","v":0},{"$f":"IF(Gruppenplanung!$T$35=4,Rangliste!Z141,IF(Gruppenplanung!$T$35=5,Rangliste!AB141,Rangliste!AD141))","v":0},{"$f":"IF(Gruppenplanung!$T$35=4,Rangliste!S141,IF(Gruppenplanung!$T$35=5,Rangliste!U141,Rangliste!W141))","v":0},{"$f":"IF(Gruppenplanung!$T$35=4,Rangliste!AG141,IF(Gruppenplanung!$T$35=5,Rangliste!AI141,Rangliste!AK141))","v":0},null,null,"Team 3",{"$f":"SUM(Liga_4E!$G$11,Liga_4E!$I$18,Liga_4E!$G$28)","v":0},null,{"$f":"SUM(Liga_4E!$G$11,Liga_4E!$I$18,Liga_4E!$G$28,Liga_4E!$I$51)","v":0},null,{"$f":"SUM(Liga_4E!$G$11,Liga_4E!$G$24,Liga_4E!$G$28,Liga_4E!$I$44,Liga_4E!$I$48)","v":0},null,"Team 3",{"$f":"SUM(Liga_4E!$G$10,Liga_4E!$I$17,Liga_4E!$G$27)","v":0},null,{"$f":"SUM(Liga_4E!$G$10,Liga_4E!$I$17,Liga_4E!$G$27,Liga_4E!$I$50)","v":0},null,{"$f":"SUM(Liga_4E!$G$10,Liga_4E!$G$23,Liga_4E!$G$27,Liga_4E!$I$43,Liga_4E!$I$47)","v":0},null,"Team 3",{"$f":"SUM(Liga_4E!$I$11,Liga_4E!$G$18,Liga_4E!$I$28)","v":0},null,{"$f":"SUM(Liga_4E!$I$11,Liga_4E!$G$18,Liga_4E!$I$28,Liga_4E!$G$51)","v":0},null,{"$f":"SUM(Liga_4E!$I$11,Liga_4E!$I$24,Liga_4E!$I$28,Liga_4E!$G$44,Liga_4E!$G$48)","v":0},null,"Team 3",{"$f":"SUM(Liga_4E!$I$10,Liga_4E!$G$17,Liga_4E!$I$27)","v":0},null,{"$f":"SUM(Liga_4E!$I$10,Liga_4E!$G$17,Liga_4E!$I$27,Liga_4E!$G$50)","v":0},null,{"$f":"SUM(Liga_4E!$I$10,Liga_4E!$I$23,Liga_4E!$I$27,Liga_4E!$G$43,Liga_4E!$G$47)","v":0}]
[null,null,3,{"$f":"Liga_4E!$I$6","v":0},{"$f":"IF(Gruppenplanung!$T$35=4,Rangliste!L142,IF(Gruppenplanung!$T$35=5,Rangliste!N142,Rangliste!P142))","v":0},{"$f":"IF(Gruppenplanung!$T$35=4,Rangliste!Z142,IF(Gruppenplanung!$T$35=5,Rangliste!AB142,Rangliste!AD142))","v":0},{"$f":"IF(Gruppenplanung!$T$35=4,Rangliste!S142,IF(Gruppenplanung!$T$35=5,Rangliste!U142,Rangliste!W142))","v":0},{"$f":"IF(Gruppenplanung!$T$35=4,Rangliste!AG142,IF(Gruppenplanung!$T$35=5,Rangliste!AI142,Rangliste!AK142))","v":0},null,null,"Team 4",{"$f":"SUM(Liga_4E!$I$11,Liga_4E!$G$21,Liga_4E!$I$31)","v":0},null,{"$f":"SUM(Liga_4E!$I$11,Liga_4E!$I$31,Liga_4E!$G$38,Liga_4E!$I$48)","v":0},null,{"$f":"SUM(Liga_4E!$I$11,Liga_4E!$I$18,Liga_4E!$G$34,Liga_4E!$G$38,Liga_4E!$I$51)","v":0},null,"Team 4",{"$f":"SUM(Liga_4E!$I$10,Liga_4E!$G$20,Liga_4E!$I$30)","v":0},null,{"$f":"SUM(Liga_4E!$I$10,Liga_4E!$I$30,Liga_4E!$G$37,Liga_4E!$I$47)","v":0},null,{"$f":"SUM(Liga_4E!$I$10,Liga_4E!$I$17,Liga_4E!$G$33,Liga_4E!$G$37,Liga_4E!$I$50)","v":0},null,"Team 4",{"$f":"SUM(Liga_4E!$G$11,Liga_4E!$I$21,Liga_4E!$G$31)","v":0},null,{"$f":"SUM(Liga_4E!$G$11,Liga_4E!$G$31,Liga_4E!$I$38,Liga_4E!$G$48)","v":0},null,{"$f":"SUM(Liga_4E!$G$11,Liga_4E!$G$18,Liga_4E!$I$34,Liga_4E!$I$38,Liga_4E!$G$51)","v":0},null,"Team 4",{"$f":"SUM(Liga_4E!$G$10,Liga_4E!$I$20,Liga_4E!$G$30)","v":0},null,{"$f":"SUM(Liga_4E!$G$10,Liga_4E!$G$30,Liga_4E!$I$37,Liga_4E!$G$47)","v":0},null,{"$f":"SUM(Liga_4E!$G$10,Liga_4E!$G$17,Liga_4E!$I$33,Liga_4E!$I$37,Liga_4E!$G$50)","v":0}]
[null,null,4,{"$f":"Liga_4E!$G$9","v":0},{"$f":"IF(Gruppenplanung!$T$35=4,Rangliste!L143,IF(Gruppenplanung!$T$35=5,Rangliste!N143,Rangliste!P143))","v":0},{"$f":"IF(Gruppenplanung!$T$35=4,Rangliste!Z143,IF(Gruppenplanung!$T$35=5,Rangliste!AB143,Rangliste!AD143))","v":0},{"$f":"IF(Gruppenplanung!$T$35=4,Rangliste!S143,IF(Gruppenplanung!$T$35=5,Rangliste!U143,Rangliste!W143))","v":0},{"$f":"IF(Gruppenplanung!$T$35=4,Rangliste!AG143,IF(Gruppenplanung!$T$35=5,Rangliste!AI143,Rangliste!AK143))","v":0},null,null,"Team 5",null,null,{"$f":"SUM(Liga_4E!$I$21,Liga_4E!$I$28,Liga_4E!$I$41,Liga_4E!$G$48)","v":0},null,{"$f":"SUM(Liga_4E!$G$14,Liga_4E!$I$21,Liga_4E!$I$31,Liga_4E!$I$38,Liga_4E!$G$48)","v":0},null,"Team 5",null,null,{"$f":"SUM(Liga_4E!$I$20,Liga_4E!$I$27,Liga_4E!$I$40,Liga_4E!$G$47)","v":0},null,{"$f":"SUM(Liga_4E!$G$13,Liga_4E!$I$20,Liga_4E!$I$30,Liga_4E!$I$37,Liga_4E!$G$47)","v":0},null,"Team 5","-",null,{"$f":"SUM(Liga_4E!$G$21,Liga_4E!$G$28,Liga_4E!$G$41,Liga_4E!$I$48)","v":0},null,{"$f":"SUM(Liga_4E!$I$14,Liga_4E!$G$21,Liga_4E!$G$31,Liga_4E!$G$38,Liga_4E!$I$48)","v":0},null,"Team 5","-",null,{"$f":"SUM(Liga_4E!$G$20,Liga_4E!$G$27,Liga_4E!$G$40,Liga_4E!$I$47)","v":0},null,{"$f":"SUM(Liga_4E!$I$13,Liga_4E!$G$20,Liga_4E!$G$30,Liga_4E!$G$37,Liga_4E!$I$47)","v":0}]
[null,null,5,{"$f":"IF(Gruppenplanung!$T$35=6,Liga_4E!$I$12,\"-\")","v":"-"},{"$f":"IF(Gruppenplanung!$T$35=4,0,IF(Gruppenplanung!$T$35=5,0,Rangliste!P146))","v":0},{"$f":"IF(Gruppenplanung!$T$35=4,0,IF(Gruppenplanung!$T$35=5,0,Rangliste!AD146))","v":0},{"$f":"IF(Gruppenplanung!$T$35=4,0,IF(Gruppenplanung!$T$35=5,0,Rangliste!W146))","v":0},{"$f":"IF(Gruppenplanung!$T$35=4,0,IF(Gruppenplanung!$T$35=5,0,Rangliste!AK146))","v":0},null,null,"Team 6",null,null,null,null,{"$f":"SUM(Liga_4E!$I$14,Liga_4E!$I$24,Liga_4E!$I$34,Liga_4E!$I$41,Liga_4E!$I$54)","v":0},null,"Team 6",null,null,null,null,{"$f":"SUM(Liga_4E!$I$13,Liga_4E!$I$23,Liga_4E!$I$33,Liga_4E!$I$40,Liga_4E!$I$53)","v":0},null,"Team 6","-",null,"-",null,{"$f":"SUM(Liga_4E!$G$14,Liga_4E!$G$24,Liga_4E!$G$34,Liga_4E!$G$41,Liga_4E!$G$54)","v":0},null,"Team 6","-",null,"-",null,{"$f":"SUM(Liga_4E!$G$13,Liga_4E!$G$23,Liga_4E!$G$33,Liga_4E!$G$40,Liga_4E!$G$53)","v":0}]
[null,null,6,{"$f":"IF(Gruppenplanung!$T$35>4,Liga_4E!$G$46,\"-\")","v":"-"},{"$f":"IF(Gruppenplanung!$T$35=4,0,IF(Gruppenplanung!$T$35=5,Rangliste!N145,Rangliste!P145))","v":0},{"$f":"IF(Gruppenplanung!$T$35=4,0,IF(Gruppenplanung!$T$35=5,Rangliste!AB145,Rangliste!AD145))","v":0},{"$f":"IF(Gruppenplanung!$T$35=4,0,IF(Gruppenplanung!$T$35=5,Rangliste!U145,Rangliste!W145))","v":0},{"$f":"IF(Gruppenplanung!$T$35=4,0,IF(Gruppenplanung!$T$35=5,Rangliste!AI145,Rangliste!AK145))","v":0}]

{"sheet":"Liga_1A","index":4,"n_rows":58,"n_cols":14,"rows_kept":58,"cut":false,"hidden":false,"merged":[[35,4,43,4],[45,4,53,4],[44,4,44,5],[1,4,2,8],[4,4,4,5],[14,4,14,5],[24,4,24,5],[34,4,34,5],[5,4,13,4],[15,4,23,4],[25,4,33,4]]}
[]
[null,null,null,null,"Liga 1A"]
[]
[]
[null,null,null,null,"Spielausrichtend:",null,{"$f":"Gruppenplanung!$E$8","v":"Deinster Geest"},"Am:","08.05.2025"]
[null,null,null,null,"Spieltag: 1",null,{"$f":"Gruppenplanung!$E$8","v":"Deinster Geest"},"gegen",{"$f":"Gruppenplanung!$E$9","v":"Oberneuland 1"}]
[null,null,null,null,null,"Spiele:",0,null,0]
[null,null,null,null,null,"Punkte:",{"$f":"IF(G7>I7,2,IF(G7<I7,0,IF(G7=0,0,1)))","v":0},null,{"$f":"IF(G7<I7,2,IF(G7>I7,0,IF(I7=0,0,1)))","v":0}]
[null,null,null,null,null,null,{"$f":"Gruppenplanung!$E$10","v":"Osnabrück"},"gegen",{"$f":"Gruppenplanung!$E$11","v":"Worpswede"}]
[null,null,null,null,null,"Spiele:",0,null,0]
[null,null,null,null,null,"Punkte:",{"$f":"IF(G10>I10,2,IF(G10<I10,0,IF(G10=0,0,1)))","v":0},null,{"$f":"IF(G10<I10,2,IF(G10>I10,0,IF(I10=0,0,1)))","v":0}]
[null,null,null,null,null,null,{"$f":"IF(Gruppenplanung!$T$17=6,Gruppenplanung!$E$12,\"-\")","v":"-"},"gegen",{"$f":"IF(Gruppenplanung!$T$17=6,Gruppenplanung!$E$13,\"-\")","v":"-"}]
[null,null,null,null,null,"Spiele:",0,null,0]
[null,null,null,null,null,"Punkte:",{"$f":"IF(G13>I13,2,IF(G13<I13,0,IF(G13=0,0,1)))","v":0},null,{"$f":"IF(G13<I13,2,IF(G13>I13,0,IF(I13=0,0,1)))","v":0}]
[null,null,null,null,"Spielausrichtend:",null,{"$f":"Gruppenplanung!$E$9","v":"Oberneuland 1"},"Am:","12.06.2025"]
[null,null,null,null,"Spieltag: 2",null,{"$f":"IF(OR(Gruppenplanung!$T$17=4,Gruppenplanung!$T$17=5),Gruppenplanung!$E$9,Gruppenplanung!$E$9)","v":"Oberneuland 1"},"gegen",{"$f":"IF(OR(Gruppenplanung!$T$17=4,Gruppenplanung!$T$17=5),Gruppenplanung!$E$10,Gruppenplanung!$E$11)","v":"Osnabrück"}]
[null,null,null,null,null,"Spiele:",0,null,0]
[null,null,null,null,null,"Punkte:",{"$f":"IF(G17>I17,2,IF(G17<I17,0,IF(G17=0,0,1)))","v":0},null,{"$f":"IF(G17<I17,2,IF(G17>I17,0,IF(I17=0,0,1)))","v":0}]
[null,null,null,null,null,null,{"$f":"IF(OR(Gruppenplanung!$T$17=5,Gruppenplanung!$T$17=6),Gruppenplanung!$E$8,Gruppenplanung!$E$11)","v":"Deinster Geest"},"gegen",{"$f":"IF(OR(Gruppenplanung!$T$17=5,Gruppenplanung!$T$17=6),Gruppenplanung!$E$12,Gruppenplanung!$E$8)","v":"Achim"}]
[null,null,null,null,null,"Spiele:",0,null,0]
[null,null,null,null,null,"Punkte:",{"$f":"IF(G20>I20,2,IF(G20<I20,0,IF(G20=0,0,1)))","v":0},null,{"$f":"IF(G20<I20,2,IF(G20>I20,0,IF(I20=0,0,1)))","v":0}]
[null,null,null,null,null,null,{"$f":"IF(Gruppenplanung!$T$17=6,Gruppenplanung!$E$10,\"-\")","v":"-"},"gegen",{"$f":"IF(Gruppenplanung!$T$17=6,Gruppenplanung!$E$13,\"-\")","v":"-"}]
[null,null,null,null,null,"Spiele:",0,null,0]
[null,null,null,null,null,"Punkte:",{"$f":"IF(G23>I23,2,IF(G23<I23,0,IF(G23=0,0,1)))","v":0},null,{"$f":"IF(G23<I23,2,IF(G23>I23,0,IF(I23=0,0,1)))","v":0}]
[null,null,null,null,"Spielausrichtend:",null,{"$f":"Gruppenplanung!$E$10","v":"Osnabrück"},"Am:","10.07.2025"]
[null,null,null,null,"Spieltag: 3",null,{"$f":"Gruppenplanung!$E$10","v":"Osnabrück"},"gegen",{"$f":"IF(OR(Gruppenplanung!$T$17=4,Gruppenplanung!$T$17=6),Gruppenplanung!$E$8,Gruppenplanung!$E$12)","v":"Achim"}]
[null,null,null,null,null,"Spiele:",0,null,0]
[null,null,null,null,null,"Punkte:",{"$f":"IF(G27>I27,2,IF(G27<I27,0,IF(G27=0,0,1)))","v":0},null,{"$f":"IF(G27<I27,2,IF(G27>I27,0,IF(I27=0,0,1)))","v":0}]
[null,null,null,null,null,null,{"$f":"Gruppenplanung!$E$9","v":"Oberneuland 1"},"gegen",{"$f":"IF(OR(Gruppenplanung!$T$17=4,Gruppenplanung!$T$17=5),Gruppenplanung!$E$11,Gruppenplanung!$E$12)","v":"Worpswede"}]
[null,null,null,null,null,"Spiele:",0,null,0]
[null,null,null,null,null,"Punkte:",{"$f":"IF(G30>I30,2,IF(G30<I30,0,IF(G30=0,0,1)))","v":0},null,{"$f":"IF(G30<I30,2,IF(G30>I30,0,IF(I30=0,0,1)))","v":0}]
[null,null,null,null,null,null,{"$f":"IF(Gruppenplanung!$T$17=6,Gruppenplanung!$E$11,\"-\")","v":"-"},"gegen",{"$f":"IF(Gruppenplanung!$T$17=6,Gruppenplanung!$E$13,\"-\")","v":"-"}]
[null,null,null,null,null,"Spiele:",0,null,0]
[null,null,null,null,null,"Punkte:",{"$f":"IF(G33>I33,2,IF(G33<I33,0,IF(G33=0,0,1)))","v":0},null,{"$f":"IF(G33<I33,2,IF(G33>I33,0,IF(I33=0,0,1)))","v":0}]
[null,null,null,null,"Spielausrichtend:",null,{"$f":"IF(Gruppenplanung!$T$17>4,Gruppenplanung!$E$11,\"-\")","v":"Worpswede"},"Am:","31.07.2025"]
[null,null,null,null,"Spieltag: 4",null,{"$f":"IF(OR(Gruppenplanung!$T$17=5,Gruppenplanung!$T$17=6),Gruppenplanung!$E$11,\"-\")","v":"Worpswede"},"gegen",{"$f":"IF(Gruppenplanung!$T$17=4,\"-\",IF(Gruppenplanung!$T$17=5,Gruppenplanung!$E$8,Gruppenplanung!$E$12))","v":"Deinster Geest"}]
[null,null,null,null,null,"Spiele:",0,null,0]
[null,null,null,null,null,"Punkte:",{"$f":"IF(G37>I37,2,IF(G37<I37,0,IF(G37=0,0,1)))","v":0},null,{"$f":"IF(G37<I37,2,IF(G37>I37,0,IF(I37=0,0,1)))","v":0}]
[null,null,null,null,null,null,{"$f":"IF(Gruppenplanung!$T$17=4,\"-\",IF(Gruppenplanung!$T$17=5,Gruppenplanung!$E$9,Gruppenplanung!$E$8))","v":"Oberneuland 1"},"gegen",{"$f":"IF(Gruppenplanung!$T$17=4,\"-\",IF(Gruppenplanung!$T$17=5,Gruppenplanung!$E$12,Gruppenplanung!$E$13))","v":"Achim"}]
[null,null,null,null,null,"Spiele:",0,null,0]
[null,null,null,null,null,"Punkte:",{"$f":"IF(G40>I40,2,IF(G40<I40,0,IF(G40=0,0,1)))","v":0},null,{"$f":"IF(G40<I40,2,IF(G40>I40,0,IF(I40=0,0,1)))","v":0}]
[null,null,null,null,null,null,{"$f":"IF(Gruppenplanung!$T$17=6,Gruppenplanung!$E$9,\"-\")","v":"-"},"gegen",{"$f":"IF(Gruppenplanung!$T$17=6,Gruppenplanung!$E$10,\"-\")","v":"-"}]
[null,null,null,null,null,"Spiele:",0,null,0]
[null,null,null,null,null,"Punkte:",{"$f":"IF(G43>I43,2,IF(G43<I43,0,IF(G43=0,0,1)))","v":0},null,{"$f":"IF(G43<I43,2,IF(G43>I43,0,IF(I43=0,0,1)))","v":0}]
[null,null,null,null,"Spielausrichtend:",null,{"$f":"IF(Gruppenplanung!$T$17>4,Gruppenplanung!$E$12,\"-\")","v":"Achim"},"Am:","28.08.2025"]
[null,null,null,null,"Spieltag: 5",null,{"$f":"IF(Gruppenplanung!$T$17=4,\"-\",IF(Gruppenplanung!$T$17=5,Gruppenplanung!$E$12,Gruppenplanung!$E$12))","v":"Achim"},"gegen",{"$f":"IF(Gruppenplanung!$T$17=4,\"-\",IF(Gruppenplanung!$T$17=5,Gruppenplanung!$E$11,Gruppenplanung!$E$10))","v":"Worpswede"}]
[null,null,null,null,null,"Spiele:",0,null,0]
[null,null,null,null,null,"Punkte:",{"$f":"IF(G47>I47,2,IF(G47<I47,0,IF(G47=0,0,1)))","v":0},null,{"$f":"IF(G47<I47,2,IF(G47>I47,0,IF(I47=0,0,1)))","v":0}]
[null,null,null,null,null,null,{"$f":"IF(Gruppenplanung!$T$17=4,\"-\",IF(Gruppenplanung!$T$17=5,Gruppenplanung!$E$8,Gruppenplanung!$E$8))","v":"Deinster Geest"},"gegen",{"$f":"IF(Gruppenplanung!$T$17=4,\"-\",IF(Gruppenplanung!$T$17=5,Gruppenplanung!$E$10,Gruppenplanung!$E$11))","v":"Osnabrück"}]
[null,null,null,null,null,"Spiele:",0,null,0]
[null,null,null,null,null,"Punkte:",{"$f":"IF(G50>I50,2,IF(G50<I50,0,IF(G50=0,0,1)))","v":0},null,{"$f":"IF(G50<I50,2,IF(G50>I50,0,IF(I50=0,0,1)))","v":0}]
[null,null,null,null,null,null,{"$f":"IF(Gruppenplanung!$T$17=6,Gruppenplanung!$E$9,\"-\")","v":"-"},"gegen",{"$f":"IF(Gruppenplanung!$T$17=6,Gruppenplanung!$E$13,\"-\")","v":"-"}]
[null,null,null,null,null,"Spiele:",0,null,0]
[null,null,null,null,null,"Punkte:",{"$f":"IF(G53>I53,2,IF(G53<I53,0,IF(G53=0,0,1)))","v":0},null,{"$f":"IF(G53<I53,2,IF(G53>I53,0,IF(I53=0,0,1)))","v":0}]
[]
[]
[]
[null,null,null,null,null,null,null,null,null,null,null,null,null," "]

{"sheet":"Liga_1B","index":5,"n_rows":58,"n_cols":14,"rows_kept":58,"cut":false,"hidden":false,"merged":[[24,4,24,5],[1,4,2,8],[4,4,4,5],[5,4,13,4],[14,4,14,5],[15,4,23,4],[3,4,3,5],[25,4,33,4],[34,4,34,5],[35,4,43,4],[44,4,44,5],[45,4,53,4]]}
[]
[null,null,null,null,"Liga 1B"]
[]
[]
[null,null,null,null,"Spielausrichtend:",null,{"$f":"Gruppenplanung!$Q$8","v":"Gleidingen"},"Am:","08.05.2025"]
[null,null,null,null,"Spieltag: 1",null,{"$f":"Gruppenplanung!$Q$8","v":"Gleidingen"},"gegen",{"$f":"Gruppenplanung!$Q$9","v":"Burgdorf"}]
[null,null,null,null,null,"Spiele:",0,null,0]
[null,null,null,null,null,"Punkte:",{"$f":"IF(G7>I7,2,IF(G7<I7,0,IF(G7=0,0,1)))","v":0},null,{"$f":"IF(G7<I7,2,IF(G7>I7,0,IF(I7=0,0,1)))","v":0}]
[null,null,null,null,null,null,{"$f":"Gruppenplanung!$Q$10","v":"Celle"},"gegen",{"$f":"Gruppenplanung!$Q$11","v":"Hedwigsburg"}]
[null,null,null,null,null,"Spiele:",0,null,0]
[null,null,null,null,null,"Punkte:",{"$f":"IF(G10>I10,2,IF(G10<I10,0,IF(G10=0,0,1)))","v":0},null,{"$f":"IF(G10<I10,2,IF(G10>I10,0,IF(I10=0,0,1)))","v":0}]
[null,null,null,null,null,null,{"$f":"IF(Gruppenplanung!$T$18=6,Gruppenplanung!$Q$12,\"-\")","v":"-"},"gegen",{"$f":"IF(Gruppenplanung!$T$18=6,Gruppenplanung!$Q$13,\"-\")","v":"-"}]
[null,null,null,null,null,"Spiele:",0,null,0]
[null,null,null,null,null,"Punkte:",{"$f":"IF(G13>I13,2,IF(G13<I13,0,IF(G13=0,0,1)))","v":0},null,{"$f":"IF(G13<I13,2,IF(G13>I13,0,IF(I13=0,0,1)))","v":0}]
[null,null,null,null,"Spielausrichtend:",null,{"$f":"Gruppenplanung!$Q$9","v":"Burgdorf"},"Am:","12.06.2025"]
[null,null,null,null,"Spieltag: 2",null,{"$f":"IF(OR(Gruppenplanung!$T$18=4,Gruppenplanung!$T$18=5),Gruppenplanung!$Q$9,Gruppenplanung!$Q$9)","v":"Burgdorf"},"gegen",{"$f":"IF(OR(Gruppenplanung!$T$18=4,Gruppenplanung!$T$18=5),Gruppenplanung!$Q$10,Gruppenplanung!$Q$11)","v":"Celle"}]
[null,null,null,null,null,"Spiele:",0,null,0]
[null,null,null,null,null,"Punkte:",{"$f":"IF(G17>I17,2,IF(G17<I17,0,IF(G17=0,0,1)))","v":0},null,{"$f":"IF(G17<I17,2,IF(G17>I17,0,IF(I17=0,0,1)))","v":0}]
[null,null,null,null,null,null,{"$f":"IF(OR(Gruppenplanung!$T$18=5,Gruppenplanung!$T$18=6),Gruppenplanung!$Q$8,Gruppenplanung!$Q$11)","v":"Gleidingen"},"gegen",{"$f":"IF(OR(Gruppenplanung!$T$18=5,Gruppenplanung!$T$18=6),Gruppenplanung!$Q$12,Gruppenplanung!$Q$8)","v":"Hardenberg"}]
[null,null,null,null,null,"Spiele:",0,null,0]
[null,null,null,null,null,"Punkte:",{"$f":"IF(G20>I20,2,IF(G20<I20,0,IF(G20=0,0,1)))","v":0},null,{"$f":"IF(G20<I20,2,IF(G20>I20,0,IF(I20=0,0,1)))","v":0}]
[null,null,null,null,null,null,{"$f":"IF(Gruppenplanung!$T$18=6,Gruppenplanung!$Q$10,\"-\")","v":"-"},"gegen",{"$f":"IF(Gruppenplanung!$T$18=6,Gruppenplanung!$Q$13,\"-\")","v":"-"}]
[null,null,null,null,null,"Spiele:",0,null,0]
[null,null,null,null,null,"Punkte:",{"$f":"IF(G23>I23,2,IF(G23<I23,0,IF(G23=0,0,1)))","v":0},null,{"$f":"IF(G23<I23,2,IF(G23>I23,0,IF(I23=0,0,1)))","v":0}]
[null,null,null,null,"Spielausrichtend:",null,{"$f":"Gruppenplanung!$Q$10","v":"Celle"},"Am:","03.07.2025"]
[null,null,null,null,"Spieltag: 3",null,{"$f":"Gruppenplanung!$Q$10","v":"Celle"},"gegen",{"$f":"IF(OR(Gruppenplanung!$T$18=4,Gruppenplanung!$T$18=6),Gruppenplanung!$Q$8,Gruppenplanung!$Q$12)","v":"Hardenberg"}]
[null,null,null,null,null,"Spiele:",0,null,0]
[null,null,null,null,null,"Punkte:",{"$f":"IF(G27>I27,2,IF(G27<I27,0,IF(G27=0,0,1)))","v":0},null,{"$f":"IF(G27<I27,2,IF(G27>I27,0,IF(I27=0,0,1)))","v":0}]
[null,null,null,null,null,null,{"$f":"Gruppenplanung!$Q$9","v":"Burgdorf"},"gegen",{"$f":"IF(OR(Gruppenplanung!$T$18=4,Gruppenplanung!$T$18=5),Gruppenplanung!$Q$11,Gruppenplanung!$Q$12)","v":"Hedwigsburg"}]
[null,null,null,null,null,"Spiele:",0,null,0]
[null,null,null,null,null,"Punkte:",{"$f":"IF(G30>I30,2,IF(G30<I30,0,IF(G30=0,0,1)))","v":0},null,{"$f":"IF(G30<I30,2,IF(G30>I30,0,IF(I30=0,0,1)))","v":0}]
[null,null,null,null,null,null,{"$f":"IF(Gruppenplanung!$T$18=6,Gruppenplanung!$Q$11,\"-\")","v":"-"},"gegen",{"$f":"IF(Gruppenplanung!$T$18=6,Gruppenplanung!$Q$13,\"-\")","v":"-"}]
[null,null,null,null,null,"Spiele:",0,null,0]
[null,null,null,null,null,"Punkte:",{"$f":"IF(G33>I33,2,IF(G33<I33,0,IF(G33=0,0,1)))","v":0},null,{"$f":"IF(G33<I33,2,IF(G33>I33,0,IF(I33=0,0,1)))","v":0}]
[null,null,null,null,"Spielausrichtend:",null,{"$f":"IF(Gruppenplanung!$T$18>4,Gruppenplanung!$Q$11,\"-\")","v":"Hedwigsburg"},"Am:","31.07.2025"]
[null,null,null,null,"Spieltag: 4",null,{"$f":"IF(OR(Gruppenplanung!$T$18=5,Gruppenplanung!$T$18=6),Gruppenplanung!$Q$11,\"-\")","v":"Hedwigsburg"},"gegen",{"$f":"IF(Gruppenplanung!$T$18=4,\"-\",IF(Gruppenplanung!$T$18=5,Gruppenplanung!$Q$8,Gruppenplanung!$Q$12))","v":"Gleidingen"}]
[null,null,null,null,null,"Spiele:",0,null,0]
[null,null,null,null,null,"Punkte:",{"$f":"IF(G37>I37,2,IF(G37<I37,0,IF(G37=0,0,1)))","v":0},null,{"$f":"IF(G37<I37,2,IF(G37>I37,0,IF(I37=0,0,1)))","v":0}]
[null,null,null,null,null,null,{"$f":"IF(Gruppenplanung!$T$18=4,\"-\",IF(Gruppenplanung!$T$18=5,Gruppenplanung!$Q$9,Gruppenplanung!$Q$8))","v":"Burgdorf"},"gegen",{"$f":"IF(Gruppenplanung!$T$18=4,\"-\",IF(Gruppenplanung!$T$18=5,Gruppenplanung!$Q$12,Gruppenplanung!$Q$13))","v":"Hardenberg"}]
[null,null,null,null,null,"Spiele:",0,null,0]
[null,null,null,null,null,"Punkte:",{"$f":"IF(G40>I40,2,IF(G40<I40,0,IF(G40=0,0,1)))","v":0},null,{"$f":"IF(G40<I40,2,IF(G40>I40,0,IF(I40=0,0,1)))","v":0}]
[null,null,null,null,null,null,{"$f":"IF(Gruppenplanung!$T$18=6,Gruppenplanung!$Q$9,\"-\")","v":"-"},"gegen",{"$f":"IF(Gruppenplanung!$T$18=6,Gruppenplanung!$Q$10,\"-\")","v":"-"}]
[null,null,null,null,null,"Spiele:",0,null,0]
[null,null,null,null,null,"Punkte:",{"$f":"IF(G43>I43,2,IF(G43<I43,0,IF(G43=0,0,1)))","v":0},null,{"$f":"IF(G43<I43,2,IF(G43>I43,0,IF(I43=0,0,1)))","v":0}]
[null,null,null,null,"Spielausrichtend:",null,{"$f":"IF(Gruppenplanung!$T$18>4,Gruppenplanung!$Q$12,\"-\")","v":"Hardenberg"},"Am:","21.08.2025"]
[null,null,null,null,"Spieltag: 5",null,{"$f":"IF(Gruppenplanung!$T$18=4,\"-\",IF(Gruppenplanung!$T$18=5,Gruppenplanung!$Q$12,Gruppenplanung!$Q$12))","v":"Hardenberg"},"gegen",{"$f":"IF(Gruppenplanung!$T$18=4,\"-\",IF(Gruppenplanung!$T$18=5,Gruppenplanung!$Q$11,Gruppenplanung!$Q$10))","v":"Hedwigsburg"}]
[null,null,null,null,null,"Spiele:",0,null,0]
[null,null,null,null,null,"Punkte:",{"$f":"IF(G47>I47,2,IF(G47<I47,0,IF(G47=0,0,1)))","v":0},null,{"$f":"IF(G47<I47,2,IF(G47>I47,0,IF(I47=0,0,1)))","v":0}]
[null,null,null,null,null,null,{"$f":"IF(Gruppenplanung!$T$18=4,\"-\",IF(Gruppenplanung!$T$18=5,Gruppenplanung!$Q$8,Gruppenplanung!$Q$8))","v":"Gleidingen"},"gegen",{"$f":"IF(Gruppenplanung!$T$18=4,\"-\",IF(Gruppenplanung!$T$18=5,Gruppenplanung!$Q$10,Gruppenplanung!$Q$11))","v":"Celle"}]
[null,null,null,null,null,"Spiele:",0,null,0]
[null,null,null,null,null,"Punkte:",{"$f":"IF(G50>I50,2,IF(G50<I50,0,IF(G50=0,0,1)))","v":0},null,{"$f":"IF(G50<I50,2,IF(G50>I50,0,IF(I50=0,0,1)))","v":0}]
[null,null,null,null,null,null,{"$f":"IF(Gruppenplanung!$T$18=6,Gruppenplanung!$Q$9,\"-\")","v":"-"},"gegen",{"$f":"IF(Gruppenplanung!$T$18=6,Gruppenplanung!$Q$13,\"-\")","v":"-"}]
[null,null,null,null,null,"Spiele:",0,null,0]
[null,null,null,null,null,"Punkte:",{"$f":"IF(G53>I53,2,IF(G53<I53,0,IF(G53=0,0,1)))","v":0},null,{"$f":"IF(G53<I53,2,IF(G53>I53,0,IF(I53=0,0,1)))","v":0}]
[]
[]
[]
[null,null,null,null,null,null,null,null,null,null,null,null,null," "]

{"sheet":"Liga_2A","index":6,"n_rows":58,"n_cols":14,"rows_kept":58,"cut":false,"hidden":false,"merged":[[24,4,24,5],[1,4,2,8],[4,4,4,5],[5,4,13,4],[14,4,14,5],[15,4,23,4],[25,4,33,4],[34,4,34,5],[35,4,43,4],[44,4,44,5],[45,4,53,4]]}
[]
[null,null,null,null,"Liga 2A"]
[]
[]
[null,null,null,null,"Spielausrichtend:",null,{"$f":"Gruppenplanung!$E$17","v":"Bremer Schweiz 1"},"Am:","15.05.2025"]
[null,null,null,null,"Spieltag: 1",null,{"$f":"Gruppenplanung!$E$17","v":"Bremer Schweiz 1"},"gegen",{"$f":"Gruppenplanung!$E$18","v":"Oberneuland 2"}]
[null,null,null,null,null,"Spiele:",0,null,0]
[null,null,null,null,null,"Punkte:",{"$f":"IF(G7>I7,2,IF(G7<I7,0,IF(G7=0,0,1)))","v":0},null,{"$f":"IF(G7<I7,2,IF(G7>I7,0,IF(I7=0,0,1)))","v":0}]
[null,null,null,null,null,null,{"$f":"Gruppenplanung!$E$19","v":"Lütetsburg"},"gegen",{"$f":"Gruppenplanung!$E$20","v":"Vechta"}]
[null,null,null,null,null,"Spiele:",0,null,0]
[null,null,null,null,null,"Punkte:",{"$f":"IF(G10>I10,2,IF(G10<I10,0,IF(G10=0,0,1)))","v":0},null,{"$f":"IF(G10<I10,2,IF(G10>I10,0,IF(I10=0,0,1)))","v":0}]
[null,null,null,null,null,null,{"$f":"IF(Gruppenplanung!$T$20=6,Gruppenplanung!$E$21,\"-\")","v":"-"},"gegen",{"$f":"IF(Gruppenplanung!$T$20=6,Gruppenplanung!$E$22,\"-\")","v":"-"}]
[null,null,null,null,null,"Spiele:",0,null,0]
[null,null,null,null,null,"Punkte:",{"$f":"IF(G13>I13,2,IF(G13<I13,0,IF(G13=0,0,1)))","v":0},null,{"$f":"IF(G13<I13,2,IF(G13>I13,0,IF(I13=0,0,1)))","v":0}]
[null,null,null,null,"Spielausrichtend:",null,{"$f":"Gruppenplanung!$E$18","v":"Oberneuland 2"},"Am:","12.06.2025"]
[null,null,null,null,"Spieltag: 2",null,{"$f":"IF(OR(Gruppenplanung!$T$20=4,Gruppenplanung!$T$20=5),Gruppenplanung!$E$18,Gruppenplanung!$E$18)","v":"Oberneuland 2"},"gegen",{"$f":"IF(OR(Gruppenplanung!$T$20=4,Gruppenplanung!$T$20=5),Gruppenplanung!$E$19,Gruppenplanung!$E$20)","v":"Lütetsburg"}]
[null,null,null,null,null,"Spiele:",0,null,0]
[null,null,null,null,null,"Punkte:",{"$f":"IF(G17>I17,2,IF(G17<I17,0,IF(G17=0,0,1)))","v":0},null,{"$f":"IF(G17<I17,2,IF(G17>I17,0,IF(I17=0,0,1)))","v":0}]
[null,null,null,null,null,null,{"$f":"IF(OR(Gruppenplanung!$T$20=5,Gruppenplanung!$T$20=6),Gruppenplanung!$E$17,Gruppenplanung!$E$20)","v":"Bremer Schweiz 1"},"gegen",{"$f":"IF(OR(Gruppenplanung!$T$20=5,Gruppenplanung!$T$20=6),Gruppenplanung!$E$21,Gruppenplanung!$E$17)","v":"Emstal-Lingen"}]
[null,null,null,null,null,"Spiele:",0,null,0]
[null,null,null,null,null,"Punkte:",{"$f":"IF(G20>I20,2,IF(G20<I20,0,IF(G20=0,0,1)))","v":0},null,{"$f":"IF(G20<I20,2,IF(G20>I20,0,IF(I20=0,0,1)))","v":0}]
[null,null,null,null,null,null,{"$f":"IF(Gruppenplanung!$T$20=6,Gruppenplanung!$E$19,\"-\")","v":"-"},"gegen",{"$f":"IF(Gruppenplanung!$T$20=6,Gruppenplanung!$E$22,\"-\")","v":"-"}]
[null,null,null,null,null,"Spiele:",0,null,0]
[null,null,null,null,null,"Punkte:",{"$f":"IF(G23>I23,2,IF(G23<I23,0,IF(G23=0,0,1)))","v":0},null,{"$f":"IF(G23<I23,2,IF(G23>I23,0,IF(I23=0,0,1)))","v":0}]
[null,null,null,null,"Spielausrichtend:",null,{"$f":"Gruppenplanung!$E$19","v":"Lütetsburg"},"Am:","26.06.2025"]
[null,null,null,null,"Spieltag: 3",null,{"$f":"Gruppenplanung!$E$19","v":"Lütetsburg"},"gegen",{"$f":"IF(OR(Gruppenplanung!$T$20=4,Gruppenplanung!$T$20=6),Gruppenplanung!$E$17,Gruppenplanung!$E$21)","v":"Emstal-Lingen"}]
[null,null,null,null,null,"Spiele:",0,null,0]
[null,null,null,null,null,"Punkte:",{"$f":"IF(G27>I27,2,IF(G27<I27,0,IF(G27=0,0,1)))","v":0},null,{"$f":"IF(G27<I27,2,IF(G27>I27,0,IF(I27=0,0,1)))","v":0}]
[null,null,null,null,null,null,{"$f":"Gruppenplanung!$E$18","v":"Oberneuland 2"},"gegen",{"$f":"IF(OR(Gruppenplanung!$T$20=4,Gruppenplanung!$T$20=5),Gruppenplanung!$E$20,Gruppenplanung!$E$21)","v":"Vechta"}]
[null,null,null,null,null,"Spiele:",0,null,0]
[null,null,null,null,null,"Punkte:",{"$f":"IF(G30>I30,2,IF(G30<I30,0,IF(G30=0,0,1)))","v":0},null,{"$f":"IF(G30<I30,2,IF(G30>I30,0,IF(I30=0,0,1)))","v":0}]
[null,null,null,null,null,null,{"$f":"IF(Gruppenplanung!$T$20=6,Gruppenplanung!$E$20,\"-\")","v":"-"},"gegen",{"$f":"IF(Gruppenplanung!$T$20=6,Gruppenplanung!$E$22,\"-\")","v":"-"}]
[null,null,null,null,null,"Spiele:",0,null,0]
[null,null,null,null,null,"Punkte:",{"$f":"IF(G33>I33,2,IF(G33<I33,0,IF(G33=0,0,1)))","v":0},null,{"$f":"IF(G33<I33,2,IF(G33>I33,0,IF(I33=0,0,1)))","v":0}]
[null,null,null,null,"Spielausrichtend:",null,{"$f":"IF(Gruppenplanung!$T$20>4,Gruppenplanung!$E$20,\"-\")","v":"Vechta"},"Am:","07.08.2025"]
[null,null,null,null,"Spieltag: 4",null,{"$f":"IF(OR(Gruppenplanung!$T$20=5,Gruppenplanung!$T$20=6),Gruppenplanung!$E$20,\"-\")","v":"Vechta"},"gegen",{"$f":"IF(Gruppenplanung!$T$20=4,\"-\",IF(Gruppenplanung!$T$20=5,Gruppenplanung!$E$17,Gruppenplanung!$E$21))","v":"Bremer Schweiz 1"}]
[null,null,null,null,null,"Spiele:",0,null,0]
[null,null,null,null,null,"Punkte:",{"$f":"IF(G37>I37,2,IF(G37<I37,0,IF(G37=0,0,1)))","v":0},null,{"$f":"IF(G37<I37,2,IF(G37>I37,0,IF(I37=0,0,1)))","v":0}]
[null,null,null,null,null,null,{"$f":"IF(Gruppenplanung!$T$20=4,\"-\",IF(Gruppenplanung!$T$20=5,Gruppenplanung!$E$18,Gruppenplanung!$E$17))","v":"Oberneuland 2"},"gegen",{"$f":"IF(Gruppenplanung!$T$20=4,\"-\",IF(Gruppenplanung!$T$20=5,Gruppenplanung!$E$21,Gruppenplanung!$E$22))","v":"Emstal-Lingen"}]
[null,null,null,null,null,"Spiele:",0,null,0]
[null,null,null,null,null,"Punkte:",{"$f":"IF(G40>I40,2,IF(G40<I40,0,IF(G40=0,0,1)))","v":0},null,{"$f":"IF(G40<I40,2,IF(G40>I40,0,IF(I40=0,0,1)))","v":0}]
[null,null,null,null,null,null,{"$f":"IF(Gruppenplanung!$T$20=6,Gruppenplanung!$E$18,\"-\")","v":"-"},"gegen",{"$f":"IF(Gruppenplanung!$T$20=6,Gruppenplanung!$E$19,\"-\")","v":"-"}]
[null,null,null,null,null,"Spiele:",0,null,0]
[null,null,null,null,null,"Punkte:",{"$f":"IF(G43>I43,2,IF(G43<I43,0,IF(G43=0,0,1)))","v":0},null,{"$f":"IF(G43<I43,2,IF(G43>I43,0,IF(I43=0,0,1)))","v":0}]
[null,null,null,null,"Spielausrichtend:",null,{"$f":"IF(Gruppenplanung!$T$20>4,Gruppenplanung!$E$21,\"-\")","v":"Emstal-Lingen"},"Am:","11.09.2025"]
[null,null,null,null,"Spieltag: 5",null,{"$f":"IF(Gruppenplanung!$T$20=4,\"-\",IF(Gruppenplanung!$T$20=5,Gruppenplanung!$E$21,Gruppenplanung!$E$21))","v":"Emstal-Lingen"},"gegen",{"$f":"IF(Gruppenplanung!$T$20=4,\"-\",IF(Gruppenplanung!$T$20=5,Gruppenplanung!$E$20,Gruppenplanung!$E$19))","v":"Vechta"}]
[null,null,null,null,null,"Spiele:",0,null,0]
[null,null,null,null,null,"Punkte:",{"$f":"IF(G47>I47,2,IF(G47<I47,0,IF(G47=0,0,1)))","v":0},null,{"$f":"IF(G47<I47,2,IF(G47>I47,0,IF(I47=0,0,1)))","v":0}]
[null,null,null,null,null,null,{"$f":"IF(Gruppenplanung!$T$20=4,\"-\",IF(Gruppenplanung!$T$20=5,Gruppenplanung!$E$17,Gruppenplanung!$E$17))","v":"Bremer Schweiz 1"},"gegen",{"$f":"IF(Gruppenplanung!$T$20=4,\"-\",IF(Gruppenplanung!$T$20=5,Gruppenplanung!$E$19,Gruppenplanung!$E$20))","v":"Lütetsburg"}]
[null,null,null,null,null,"Spiele:",0,null,0]
[null,null,null,null,null,"Punkte:",{"$f":"IF(G50>I50,2,IF(G50<I50,0,IF(G50=0,0,1)))","v":0},null,{"$f":"IF(G50<I50,2,IF(G50>I50,0,IF(I50=0,0,1)))","v":0}]
[null,null,null,null,null,null,{"$f":"IF(Gruppenplanung!$T$20=6,Gruppenplanung!$E$18,\"-\")","v":"-"},"gegen",{"$f":"IF(Gruppenplanung!$T$20=6,Gruppenplanung!$E$22,\"-\")","v":"-"}]
[null,null,null,null,null,"Spiele:",0,null,0]
[null,null,null,null,null,"Punkte:",{"$f":"IF(G53>I53,2,IF(G53<I53,0,IF(G53=0,0,1)))","v":0},null,{"$f":"IF(G53<I53,2,IF(G53>I53,0,IF(I53=0,0,1)))","v":0}]
[]
[]
[]
[null,null,null,null,null,null,null,null,null,null,null,null,null," "]

{"sheet":"Liga_2B","index":7,"n_rows":58,"n_cols":14,"rows_kept":58,"cut":false,"hidden":false,"merged":[[24,4,24,5],[1,4,2,8],[4,4,4,5],[5,4,13,4],[14,4,14,5],[15,4,23,4],[25,4,33,4],[34,4,34,5],[35,4,43,4],[44,4,44,5],[45,4,53,4]]}
[]
[null,null,null,null,"Liga 2B"]
[]
[]
[null,null,null,null,"Spielausrichtend:",null,{"$f":"Gruppenplanung!$H$17","v":"Syke"},"Am:","15.052025"]
[null,null,null,null,"Spieltag: 1",null,{"$f":"Gruppenplanung!$H$17","v":"Syke"},"gegen",{"$f":"Gruppenplanung!$H$18","v":"Rehburg-Loccum"}]
[null,null,null,null,null,"Spiele:",0,null,0]
[null,null,null,null,null,"Punkte:",{"$f":"IF(G7>I7,2,IF(G7<I7,0,IF(G7=0,0,1)))","v":0},null,{"$f":"IF(G7<I7,2,IF(G7>I7,0,IF(I7=0,0,1)))","v":0}]
[null,null,null,null,null,null,{"$f":"Gruppenplanung!$H$19","v":"Verden"},"gegen",{"$f":"Gruppenplanung!$H$20","v":"Bergen-Hohne"}]
[null,null,null,null,null,"Spiele:",0,null,0]
[null,null,null,null,null,"Punkte:",{"$f":"IF(G10>I10,2,IF(G10<I10,0,IF(G10=0,0,1)))","v":0},null,{"$f":"IF(G10<I10,2,IF(G10>I10,0,IF(I10=0,0,1)))","v":0}]
[null,null,null,null,null,null,{"$f":"IF(Gruppenplanung!$T$21=6,Gruppenplanung!$H$21,\"-\")","v":"-"},"gegen",{"$f":"IF(Gruppenplanung!$T$21=6,Gruppenplanung!$H$22,\"-\")","v":"-"}]
[null,null,null,null,null,"Spiele:",0,null,0]
[null,null,null,null,null,"Punkte:",{"$f":"IF(G13>I13,2,IF(G13<I13,0,IF(G13=0,0,1)))","v":0},null,{"$f":"IF(G13<I13,2,IF(G13>I13,0,IF(I13=0,0,1)))","v":0}]
[null,null,null,null,"Spielausrichtend:",null,{"$f":"Gruppenplanung!$H$18","v":"Rehburg-Loccum"},"Am:","12.06.2025"]
[null,null,null,null,"Spieltag: 2",null,{"$f":"IF(OR(Gruppenplanung!$T$21=4,Gruppenplanung!$T$21=5),Gruppenplanung!$H$18,Gruppenplanung!$H$18)","v":"Rehburg-Loccum"},"gegen",{"$f":"IF(OR(Gruppenplanung!$T$21=4,Gruppenplanung!$T$21=5),Gruppenplanung!$H$19,Gruppenplanung!$H$20)","v":"Verden"}]
[null,null,null,null,null,"Spiele:",0,null,0]
[null,null,null,null,null,"Punkte:",{"$f":"IF(G17>I17,2,IF(G17<I17,0,IF(G17=0,0,1)))","v":0},null,{"$f":"IF(G17<I17,2,IF(G17>I17,0,IF(I17=0,0,1)))","v":0}]
[null,null,null,null,null,null,{"$f":"IF(OR(Gruppenplanung!$T$21=5,Gruppenplanung!$T$21=6),Gruppenplanung!$H$17,Gruppenplanung!$H$20)","v":"Syke"},"gegen",{"$f":"IF(OR(Gruppenplanung!$T$21=5,Gruppenplanung!$T$21=6),Gruppenplanung!$H$21,Gruppenplanung!$H$17)","v":"Hainhaus 1"}]
[null,null,null,null,null,"Spiele:",0,null,0]
[null,null,null,null,null,"Punkte:",{"$f":"IF(G20>I20,2,IF(G20<I20,0,IF(G20=0,0,1)))","v":0},null,{"$f":"IF(G20<I20,2,IF(G20>I20,0,IF(I20=0,0,1)))","v":0}]
[null,null,null,null,null,null,{"$f":"IF(Gruppenplanung!$T$21=6,Gruppenplanung!$H$19,\"-\")","v":"-"},"gegen",{"$f":"IF(Gruppenplanung!$T$21=6,Gruppenplanung!$H$22,\"-\")","v":"-"}]
[null,null,null,null,null,"Spiele:",0,null,0]
[null,null,null,null,null,"Punkte:",{"$f":"IF(G23>I23,2,IF(G23<I23,0,IF(G23=0,0,1)))","v":0},null,{"$f":"IF(G23<I23,2,IF(G23>I23,0,IF(I23=0,0,1)))","v":0}]
[null,null,null,null,"Spielausrichtend:",null,{"$f":"Gruppenplanung!$H$19","v":"Verden"},"Am:","03.07.2025"]
[null,null,null,null,"Spieltag: 3",null,{"$f":"Gruppenplanung!$H$19","v":"Verden"},"gegen",{"$f":"IF(OR(Gruppenplanung!$T$21=4,Gruppenplanung!$T$21=6),Gruppenplanung!$H$17,Gruppenplanung!$H$21)","v":"Hainhaus 1"}]
[null,null,null,null,null,"Spiele:",0,null,0]
[null,null,null,null,null,"Punkte:",{"$f":"IF(G27>I27,2,IF(G27<I27,0,IF(G27=0,0,1)))","v":0},null,{"$f":"IF(G27<I27,2,IF(G27>I27,0,IF(I27=0,0,1)))","v":0}]
[null,null,null,null,null,null,{"$f":"Gruppenplanung!$H$18","v":"Rehburg-Loccum"},"gegen",{"$f":"IF(OR(Gruppenplanung!$T$21=4,Gruppenplanung!$T$21=5),Gruppenplanung!$H$20,Gruppenplanung!$H$21)","v":"Bergen-Hohne"}]
[null,null,null,null,null,"Spiele:",0,null,0]
[null,null,null,null,null,"Punkte:",{"$f":"IF(G30>I30,2,IF(G30<I30,0,IF(G30=0,0,1)))","v":0},null,{"$f":"IF(G30<I30,2,IF(G30>I30,0,IF(I30=0,0,1)))","v":0}]
[null,null,null,null,null,null,{"$f":"IF(Gruppenplanung!$T$21=6,Gruppenplanung!$H$20,\"-\")","v":"-"},"gegen",{"$f":"IF(Gruppenplanung!$T$21=6,Gruppenplanung!$H$22,\"-\")","v":"-"}]
[null,null,null,null,null,"Spiele:",0,null,0]
[null,null,null,null,null,"Punkte:",{"$f":"IF(G33>I33,2,IF(G33<I33,0,IF(G33=0,0,1)))","v":0},null,{"$f":"IF(G33<I33,2,IF(G33>I33,0,IF(I33=0,0,1)))","v":0}]
[null,null,null,null,"Spielausrichtend:",null,{"$f":"IF(Gruppenplanung!$T$21>4,Gruppenplanung!$H$20,\"-\")","v":"Bergen-Hohne"},"Am:","10.07.2025"]
[null,null,null,null,"Spieltag: 4",null,{"$f":"IF(OR(Gruppenplanung!$T$21=5,Gruppenplanung!$T$21=6),Gruppenplanung!$H$20,\"-\")","v":"Bergen-Hohne"},"gegen",{"$f":"IF(Gruppenplanung!$T$21=4,\"-\",IF(Gruppenplanung!$T$21=5,Gruppenplanung!$H$17,Gruppenplanung!$H$21))","v":"Syke"}]
[null,null,null,null,null,"Spiele:",0,null,0]
[null,null,null,null,null,"Punkte:",{"$f":"IF(G37>I37,2,IF(G37<I37,0,IF(G37=0,0,1)))","v":0},null,{"$f":"IF(G37<I37,2,IF(G37>I37,0,IF(I37=0,0,1)))","v":0}]
[null,null,null,null,null,null,{"$f":"IF(Gruppenplanung!$T$21=4,\"-\",IF(Gruppenplanung!$T$21=5,Gruppenplanung!$H$18,Gruppenplanung!$H$17))","v":"Rehburg-Loccum"},"gegen",{"$f":"IF(Gruppenplanung!$T$21=4,\"-\",IF(Gruppenplanung!$T$21=5,Gruppenplanung!$H$21,Gruppenplanung!$H$22))","v":"Hainhaus 1"}]
[null,null,null,null,null,"Spiele:",0,null,0]
[null,null,null,null,null,"Punkte:",{"$f":"IF(G40>I40,2,IF(G40<I40,0,IF(G40=0,0,1)))","v":0},null,{"$f":"IF(G40<I40,2,IF(G40>I40,0,IF(I40=0,0,1)))","v":0}]
[null,null,null,null,null,null,{"$f":"IF(Gruppenplanung!$T$21=6,Gruppenplanung!$H$18,\"-\")","v":"-"},"gegen",{"$f":"IF(Gruppenplanung!$T$21=6,Gruppenplanung!$H$19,\"-\")","v":"-"}]
[null,null,null,null,null,"Spiele:",0,null,0]
[null,null,null,null,null,"Punkte:",{"$f":"IF(G43>I43,2,IF(G43<I43,0,IF(G43=0,0,1)))","v":0},null,{"$f":"IF(G43<I43,2,IF(G43>I43,0,IF(I43=0,0,1)))","v":0}]
[null,null,null,null,"Spielausrichtend:",null,{"$f":"IF(Gruppenplanung!$T$21>4,Gruppenplanung!$H$21,\"-\")","v":"Hainhaus 1"},"Am:","11.09.2025"]
[null,null,null,null,"Spieltag: 5",null,{"$f":"IF(Gruppenplanung!$T$21=4,\"-\",IF(Gruppenplanung!$T$21=5,Gruppenplanung!$H$21,Gruppenplanung!$H$21))","v":"Hainhaus 1"},"gegen",{"$f":"IF(Gruppenplanung!$T$21=4,\"-\",IF(Gruppenplanung!$T$21=5,Gruppenplanung!$H$20,Gruppenplanung!$H$19))","v":"Bergen-Hohne"}]
[null,null,null,null,null,"Spiele:",0,null,0]
[null,null,null,null,null,"Punkte:",{"$f":"IF(G47>I47,2,IF(G47<I47,0,IF(G47=0,0,1)))","v":0},null,{"$f":"IF(G47<I47,2,IF(G47>I47,0,IF(I47=0,0,1)))","v":0}]
[null,null,null,null,null,null,{"$f":"IF(Gruppenplanung!$T$21=4,\"-\",IF(Gruppenplanung!$T$21=5,Gruppenplanung!$H$17,Gruppenplanung!$H$17))","v":"Syke"},"gegen",{"$f":"IF(Gruppenplanung!$T$21=4,\"-\",IF(Gruppenplanung!$T$21=5,Gruppenplanung!$H$19,Gruppenplanung!$H$20))","v":"Verden"}]
[null,null,null,null,null,"Spiele:",0,null,0]
[null,null,null,null,null,"Punkte:",{"$f":"IF(G50>I50,2,IF(G50<I50,0,IF(G50=0,0,1)))","v":0},null,{"$f":"IF(G50<I50,2,IF(G50>I50,0,IF(I50=0,0,1)))","v":0}]
[null,null,null,null,null,null,{"$f":"IF(Gruppenplanung!$T$21=6,Gruppenplanung!$H$18,\"-\")","v":"-"},"gegen",{"$f":"IF(Gruppenplanung!$T$21=6,Gruppenplanung!$H$22,\"-\")","v":"-"}]
[null,null,null,null,null,"Spiele:",0,null,0]
[null,null,null,null,null,"Punkte:",{"$f":"IF(G53>I53,2,IF(G53<I53,0,IF(G53=0,0,1)))","v":0},null,{"$f":"IF(G53<I53,2,IF(G53>I53,0,IF(I53=0,0,1)))","v":0}]
[]
[]
[]
[null,null,null,null,null,null,null,null,null,null,null,null,null," "]

{"sheet":"Liga_2C","index":8,"n_rows":58,"n_cols":14,"rows_kept":58,"cut":false,"hidden":false,"merged":[[25,4,33,4],[34,4,34,5],[35,4,43,4],[44,4,44,5],[45,4,53,4],[24,4,24,5],[1,4,2,8],[4,4,4,5],[5,4,13,4],[14,4,14,5],[15,4,23,4]]}
[]
[null,null,null,null,"Liga 2C"]
[]
[]
[null,null,null,null,"Spielausrichtend:",null,{"$f":"Gruppenplanung!$N$17","v":"Bad Pyrmont"},"Am:","24.04.2025"]
[null,null,null,null,"Spieltag: 1",null,{"$f":"Gruppenplanung!$N$17","v":"Bad Pyrmont"},"gegen",{"$f":"Gruppenplanung!$N$18","v":"Peine-Edemissen "}]
[null,null,null,null,null,"Spiele:",0,null,0]
[null,null,null,null,null,"Punkte:",{"$f":"IF(G7>I7,2,IF(G7<I7,0,IF(G7=0,0,1)))","v":0},null,{"$f":"IF(G7<I7,2,IF(G7>I7,0,IF(I7=0,0,1)))","v":0}]
[null,null,null,null,null,null,{"$f":"Gruppenplanung!$N$19","v":"Wolfsburg"},"gegen",{"$f":"Gruppenplanung!$N$20","v":"Schaumburg"}]
[null,null,null,null,null,"Spiele:",0,null,0]
[null,null,null,null,null,"Punkte:",{"$f":"IF(G10>I10,2,IF(G10<I10,0,IF(G10=0,0,1)))","v":0},null,{"$f":"IF(G10<I10,2,IF(G10>I10,0,IF(I10=0,0,1)))","v":0}]
[null,null,null,null,null,null,{"$f":"IF(Gruppenplanung!$T$22=6,Gruppenplanung!$N$21,\"-\")","v":"-"},"gegen",{"$f":"IF(Gruppenplanung!$T$22=6,Gruppenplanung!$N$22,\"-\")","v":"-"}]
[null,null,null,null,null,"Spiele:",0,null,0]
[null,null,null,null,null,"Punkte:",{"$f":"IF(G13>I13,2,IF(G13<I13,0,IF(G13=0,0,1)))","v":0},null,{"$f":"IF(G13<I13,2,IF(G13>I13,0,IF(I13=0,0,1)))","v":0}]
[null,null,null,null,"Spielausrichtend:",null,{"$f":"Gruppenplanung!$N$18","v":"Peine-Edemissen "},"Am:","22.05.2025"]
[null,null,null,null,"Spieltag: 2",null,{"$f":"IF(OR(Gruppenplanung!$T$22=4,Gruppenplanung!$T$22=5),Gruppenplanung!$N$18,Gruppenplanung!$N$18)","v":"Peine-Edemissen "},"gegen",{"$f":"IF(OR(Gruppenplanung!$T$22=4,Gruppenplanung!$T$22=5),Gruppenplanung!$N$19,Gruppenplanung!$N$20)","v":"Wolfsburg"}]
[null,null,null,null,null,"Spiele:",0,null,0]
[null,null,null,null,null,"Punkte:",{"$f":"IF(G17>I17,2,IF(G17<I17,0,IF(G17=0,0,1)))","v":0},null,{"$f":"IF(G17<I17,2,IF(G17>I17,0,IF(I17=0,0,1)))","v":0}]
[null,null,null,null,null,null,{"$f":"IF(OR(Gruppenplanung!$T$22=5,Gruppenplanung!$T$22=6),Gruppenplanung!$N$17,Gruppenplanung!$N$20)","v":"Bad Pyrmont"},"gegen",{"$f":"IF(OR(Gruppenplanung!$T$22=5,Gruppenplanung!$T$22=6),Gruppenplanung!$N$21,Gruppenplanung!$N$17)","v":"Wissmannshof"}]
[null,null,null,null,null,"Spiele:",0,null,0]
[null,null,null,null,null,"Punkte:",{"$f":"IF(G20>I20,2,IF(G20<I20,0,IF(G20=0,0,1)))","v":0},null,{"$f":"IF(G20<I20,2,IF(G20>I20,0,IF(I20=0,0,1)))","v":0}]
[null,null,null,null,null,null,{"$f":"IF(Gruppenplanung!$T$22=6,Gruppenplanung!$N$19,\"-\")","v":"-"},"gegen",{"$f":"IF(Gruppenplanung!$T$22=6,Gruppenplanung!$N$22,\"-\")","v":"-"}]
[null,null,null,null,null,"Spiele:",0,null,0]
[null,null,null,null,null,"Punkte:",{"$f":"IF(G23>I23,2,IF(G23<I23,0,IF(G23=0,0,1)))","v":0},null,{"$f":"IF(G23<I23,2,IF(G23>I23,0,IF(I23=0,0,1)))","v":0}]
[null,null,null,null,"Spielausrichtend:",null,{"$f":"Gruppenplanung!$N$19","v":"Wolfsburg"},"Am:","17.06.2025"]
[null,null,null,null,"Spieltag: 3",null,{"$f":"Gruppenplanung!$N$19","v":"Wolfsburg"},"gegen",{"$f":"IF(OR(Gruppenplanung!$T$22=4,Gruppenplanung!$T$22=6),Gruppenplanung!$N$17,Gruppenplanung!$N$21)","v":"Wissmannshof"}]
[null,null,null,null,null,"Spiele:",0,null,0]
[null,null,null,null,null,"Punkte:",{"$f":"IF(G27>I27,2,IF(G27<I27,0,IF(G27=0,0,1)))","v":0},null,{"$f":"IF(G27<I27,2,IF(G27>I27,0,IF(I27=0,0,1)))","v":0}]
[null,null,null,null,null,null,{"$f":"Gruppenplanung!$N$18","v":"Peine-Edemissen "},"gegen",{"$f":"IF(OR(Gruppenplanung!$T$22=4,Gruppenplanung!$T$22=5),Gruppenplanung!$N$20,Gruppenplanung!$N$21)","v":"Schaumburg"}]
[null,null,null,null,null,"Spiele:",0,null,0]
[null,null,null,null,null,"Punkte:",{"$f":"IF(G30>I30,2,IF(G30<I30,0,IF(G30=0,0,1)))","v":0},null,{"$f":"IF(G30<I30,2,IF(G30>I30,0,IF(I30=0,0,1)))","v":0}]
[null,null,null,null,null,null,{"$f":"IF(Gruppenplanung!$T$22=6,Gruppenplanung!$N$20,\"-\")","v":"-"},"gegen",{"$f":"IF(Gruppenplanung!$T$22=6,Gruppenplanung!$N$22,\"-\")","v":"-"}]
[null,null,null,null,null,"Spiele:",0,null,0]
[null,null,null,null,null,"Punkte:",{"$f":"IF(G33>I33,2,IF(G33<I33,0,IF(G33=0,0,1)))","v":0},null,{"$f":"IF(G33<I33,2,IF(G33>I33,0,IF(I33=0,0,1)))","v":0}]
[null,null,null,null,"Spielausrichtend:",null,{"$f":"IF(Gruppenplanung!$T$22>4,Gruppenplanung!$N$20,\"-\")","v":"Schaumburg"},"Am:","17.07.2025"]
[null,null,null,null,"Spieltag: 4",null,{"$f":"IF(OR(Gruppenplanung!$T$22=5,Gruppenplanung!$T$22=6),Gruppenplanung!$N$20,\"-\")","v":"Schaumburg"},"gegen",{"$f":"IF(Gruppenplanung!$T$22=4,\"-\",IF(Gruppenplanung!$T$22=5,Gruppenplanung!$N$17,Gruppenplanung!$N$21))","v":"Bad Pyrmont"}]
[null,null,null,null,null,"Spiele:",0,null,0]
[null,null,null,null,null,"Punkte:",{"$f":"IF(G37>I37,2,IF(G37<I37,0,IF(G37=0,0,1)))","v":0},null,{"$f":"IF(G37<I37,2,IF(G37>I37,0,IF(I37=0,0,1)))","v":0}]
[null,null,null,null,null,null,{"$f":"IF(Gruppenplanung!$T$22=4,\"-\",IF(Gruppenplanung!$T$22=5,Gruppenplanung!$N$18,Gruppenplanung!$N$17))","v":"Peine-Edemissen "},"gegen",{"$f":"IF(Gruppenplanung!$T$22=4,\"-\",IF(Gruppenplanung!$T$22=5,Gruppenplanung!$N$21,Gruppenplanung!$N$22))","v":"Wissmannshof"}]
[null,null,null,null,null,"Spiele:",0,null,0]
[null,null,null,null,null,"Punkte:",{"$f":"IF(G40>I40,2,IF(G40<I40,0,IF(G40=0,0,1)))","v":0},null,{"$f":"IF(G40<I40,2,IF(G40>I40,0,IF(I40=0,0,1)))","v":0}]
[null,null,null,null,null,null,{"$f":"IF(Gruppenplanung!$T$22=6,Gruppenplanung!$N$18,\"-\")","v":"-"},"gegen",{"$f":"IF(Gruppenplanung!$T$22=6,Gruppenplanung!$N$19,\"-\")","v":"-"}]
[null,null,null,null,null,"Spiele:",0,null,0]
[null,null,null,null,null,"Punkte:",{"$f":"IF(G43>I43,2,IF(G43<I43,0,IF(G43=0,0,1)))","v":0},null,{"$f":"IF(G43<I43,2,IF(G43>I43,0,IF(I43=0,0,1)))","v":0}]
[null,null,null,null,"Spielausrichtend:",null,{"$f":"IF(Gruppenplanung!$T$22>4,Gruppenplanung!$N$21,\"-\")","v":"Wissmannshof"},"Am:","11.09.2025"]
[null,null,null,null,"Spieltag: 5",null,{"$f":"IF(Gruppenplanung!$T$22=4,\"-\",IF(Gruppenplanung!$T$22=5,Gruppenplanung!$N$21,Gruppenplanung!$N$21))","v":"Wissmannshof"},"gegen",{"$f":"IF(Gruppenplanung!$T$22=4,\"-\",IF(Gruppenplanung!$T$22=5,Gruppenplanung!$N$20,Gruppenplanung!$N$19))","v":"Schaumburg"}]
[null,null,null,null,null,"Spiele:",0,null,0]
[null,null,null,null,null,"Punkte:",{"$f":"IF(G47>I47,2,IF(G47<I47,0,IF(G47=0,0,1)))","v":0},null,{"$f":"IF(G47<I47,2,IF(G47>I47,0,IF(I47=0,0,1)))","v":0}]
[null,null,null,null,null,null,{"$f":"IF(Gruppenplanung!$T$22=4,\"-\",IF(Gruppenplanung!$T$22=5,Gruppenplanung!$N$17,Gruppenplanung!$N$17))","v":"Bad Pyrmont"},"gegen",{"$f":"IF(Gruppenplanung!$T$22=4,\"-\",IF(Gruppenplanung!$T$22=5,Gruppenplanung!$N$19,Gruppenplanung!$N$20))","v":"Wolfsburg"}]
[null,null,null,null,null,"Spiele:",0,null,0]
[null,null,null,null,null,"Punkte:",{"$f":"IF(G50>I50,2,IF(G50<I50,0,IF(G50=0,0,1)))","v":0},null,{"$f":"IF(G50<I50,2,IF(G50>I50,0,IF(I50=0,0,1)))","v":0}]
[null,null,null,null,null,null,{"$f":"IF(Gruppenplanung!$T$22=6,Gruppenplanung!$N$18,\"-\")","v":"-"},"gegen",{"$f":"IF(Gruppenplanung!$T$22=6,Gruppenplanung!$N$22,\"-\")","v":"-"}]
[null,null,null,null,null,"Spiele:",0,null,0]
[null,null,null,null,null,"Punkte:",{"$f":"IF(G53>I53,2,IF(G53<I53,0,IF(G53=0,0,1)))","v":0},null,{"$f":"IF(G53<I53,2,IF(G53>I53,0,IF(I53=0,0,1)))","v":0}]
[]
[]
[]
[null,null,null,null,null,null,null,null,null,null,null,null,null," "]

{"sheet":"Liga_2D","index":9,"n_rows":58,"n_cols":14,"rows_kept":58,"cut":false,"hidden":true,"merged":[[25,4,33,4],[34,4,34,5],[35,4,43,4],[44,4,44,5],[45,4,53,4],[24,4,24,5],[1,4,2,8],[4,4,4,5],[5,4,13,4],[14,4,14,5],[15,4,23,4]]}
[]
[null,null,null,null,"Liga 2D"]
[]
[]
[null,null,null,null,"Spielausrichtend:",null,{"$f":"Gruppenplanung!$Q$17","v":0},"Am:","DATUM"]
[null,null,null,null,"Spieltag: 1",null,{"$f":"Gruppenplanung!$Q$17","v":0},"gegen",{"$f":"Gruppenplanung!$Q$18","v":0}]
[null,null,null,null,null,"Spiele:",0,null,0]
[null,null,null,null,null,"Punkte:",{"$f":"IF(G7>I7,2,IF(G7<I7,0,IF(G7=0,0,1)))","v":0},null,{"$f":"IF(G7<I7,2,IF(G7>I7,0,IF(I7=0,0,1)))","v":0}]
[null,null,null,null,null,null,{"$f":"Gruppenplanung!$Q$19","v":0},"gegen",{"$f":"Gruppenplanung!$Q$20","v":0}]
[null,null,null,null,null,"Spiele:",0,null,0]
[null,null,null,null,null,"Punkte:",{"$f":"IF(G10>I10,2,IF(G10<I10,0,IF(G10=0,0,1)))","v":0},null,{"$f":"IF(G10<I10,2,IF(G10>I10,0,IF(I10=0,0,1)))","v":0}]
[null,null,null,null,null,null,{"$f":"IF(Gruppenplanung!$T$23=6,Gruppenplanung!$Q$21,\"-\")","v":"-"},"gegen",{"$f":"IF(Gruppenplanung!$T$23=6,Gruppenplanung!$Q$22,\"-\")","v":"-"}]
[null,null,null,null,null,"Spiele:",0,null,0]
[null,null,null,null,null,"Punkte:",{"$f":"IF(G13>I13,2,IF(G13<I13,0,IF(G13=0,0,1)))","v":0},null,{"$f":"IF(G13<I13,2,IF(G13>I13,0,IF(I13=0,0,1)))","v":0}]
[null,null,null,null,"Spielausrichtend:",null,{"$f":"Gruppenplanung!$Q$18","v":0},"Am:","DATUM"]
[null,null,null,null,"Spieltag: 2",null,{"$f":"IF(OR(Gruppenplanung!$T$23=4,Gruppenplanung!$T$23=5),Gruppenplanung!$Q$18,Gruppenplanung!$Q$18)","v":0},"gegen",{"$f":"IF(OR(Gruppenplanung!$T$23=4,Gruppenplanung!$T$23=5),Gruppenplanung!$Q$19,Gruppenplanung!$Q$20)","v":0}]
[null,null,null,null,null,"Spiele:",0,null,0]
[null,null,null,null,null,"Punkte:",{"$f":"IF(G17>I17,2,IF(G17<I17,0,IF(G17=0,0,1)))","v":0},null,{"$f":"IF(G17<I17,2,IF(G17>I17,0,IF(I17=0,0,1)))","v":0}]
[null,null,null,null,null,null,{"$f":"IF(OR(Gruppenplanung!$T$23=5,Gruppenplanung!$T$23=6),Gruppenplanung!$Q$17,Gruppenplanung!$Q$20)","v":0},"gegen",{"$f":"IF(OR(Gruppenplanung!$T$23=5,Gruppenplanung!$T$23=6),Gruppenplanung!$Q$21,Gruppenplanung!$Q$17)","v":0}]
[null,null,null,null,null,"Spiele:",0,null,0]
[null,null,null,null,null,"Punkte:",{"$f":"IF(G20>I20,2,IF(G20<I20,0,IF(G20=0,0,1)))","v":0},null,{"$f":"IF(G20<I20,2,IF(G20>I20,0,IF(I20=0,0,1)))","v":0}]
[null,null,null,null,null,null,{"$f":"IF(Gruppenplanung!$T$23=6,Gruppenplanung!$Q$19,\"-\")","v":"-"},"gegen",{"$f":"IF(Gruppenplanung!$T$23=6,Gruppenplanung!$Q$22,\"-\")","v":"-"}]
[null,null,null,null,null,"Spiele:",0,null,0]
[null,null,null,null,null,"Punkte:",{"$f":"IF(G23>I23,2,IF(G23<I23,0,IF(G23=0,0,1)))","v":0},null,{"$f":"IF(G23<I23,2,IF(G23>I23,0,IF(I23=0,0,1)))","v":0}]
[null,null,null,null,"Spielausrichtend:",null,{"$f":"Gruppenplanung!$Q$19","v":0},"Am:","DATUM"]
[null,null,null,null,"Spieltag: 3",null,{"$f":"Gruppenplanung!$Q$19","v":0},"gegen",{"$f":"IF(OR(Gruppenplanung!$T$23=4,Gruppenplanung!$T$23=6),Gruppenplanung!$Q$17,Gruppenplanung!$Q$21)","v":0}]
[null,null,null,null,null,"Spiele:",0,null,0]
[null,null,null,null,null,"Punkte:",{"$f":"IF(G27>I27,2,IF(G27<I27,0,IF(G27=0,0,1)))","v":0},null,{"$f":"IF(G27<I27,2,IF(G27>I27,0,IF(I27=0,0,1)))","v":0}]
[null,null,null,null,null,null,{"$f":"Gruppenplanung!$Q$18","v":0},"gegen",{"$f":"IF(OR(Gruppenplanung!$T$23=4,Gruppenplanung!$T$23=5),Gruppenplanung!$Q$20,Gruppenplanung!$Q$21)","v":0}]
[null,null,null,null,null,"Spiele:",0,null,0]
[null,null,null,null,null,"Punkte:",{"$f":"IF(G30>I30,2,IF(G30<I30,0,IF(G30=0,0,1)))","v":0},null,{"$f":"IF(G30<I30,2,IF(G30>I30,0,IF(I30=0,0,1)))","v":0}]
[null,null,null,null,null,null,{"$f":"IF(Gruppenplanung!$T$23=6,Gruppenplanung!$Q$20,\"-\")","v":"-"},"gegen",{"$f":"IF(Gruppenplanung!$T$23=6,Gruppenplanung!$Q$22,\"-\")","v":"-"}]
[null,null,null,null,null,"Spiele:",0,null,0]
[null,null,null,null,null,"Punkte:",{"$f":"IF(G33>I33,2,IF(G33<I33,0,IF(G33=0,0,1)))","v":0},null,{"$f":"IF(G33<I33,2,IF(G33>I33,0,IF(I33=0,0,1)))","v":0}]
[null,null,null,null,"Spielausrichtend:",null,{"$f":"IF(Gruppenplanung!$T$23>4,Gruppenplanung!$Q$20,\"-\")","v":"-"},"Am:","DATUM"]
[null,null,null,null,"Spieltag: 4",null,{"$f":"IF(OR(Gruppenplanung!$T$23=5,Gruppenplanung!$T$23=6),Gruppenplanung!$Q$20,\"-\")","v":"-"},"gegen",{"$f":"IF(Gruppenplanung!$T$23=4,\"-\",IF(Gruppenplanung!$T$23=5,Gruppenplanung!$Q$17,Gruppenplanung!$Q$21))","v":0}]
[null,null,null,null,null,"Spiele:",0,null,0]
[null,null,null,null,null,"Punkte:",{"$f":"IF(G37>I37,2,IF(G37<I37,0,IF(G37=0,0,1)))","v":0},null,{"$f":"IF(G37<I37,2,IF(G37>I37,0,IF(I37=0,0,1)))","v":0}]
[null,null,null,null,null,null,{"$f":"IF(Gruppenplanung!$T$23=4,\"-\",IF(Gruppenplanung!$T$23=5,Gruppenplanung!$Q$18,Gruppenplanung!$Q$17))","v":0},"gegen",{"$f":"IF(Gruppenplanung!$T$23=4,\"-\",IF(Gruppenplanung!$T$23=5,Gruppenplanung!$Q$21,Gruppenplanung!$Q$22))","v":0}]
[null,null,null,null,null,"Spiele:",0,null,0]
[null,null,null,null,null,"Punkte:",{"$f":"IF(G40>I40,2,IF(G40<I40,0,IF(G40=0,0,1)))","v":0},null,{"$f":"IF(G40<I40,2,IF(G40>I40,0,IF(I40=0,0,1)))","v":0}]
[null,null,null,null,null,null,{"$f":"IF(Gruppenplanung!$T$23=6,Gruppenplanung!$Q$18,\"-\")","v":"-"},"gegen",{"$f":"IF(Gruppenplanung!$T$23=6,Gruppenplanung!$Q$19,\"-\")","v":"-"}]
[null,null,null,null,null,"Spiele:",0,null,0]
[null,null,null,null,null,"Punkte:",{"$f":"IF(G43>I43,2,IF(G43<I43,0,IF(G43=0,0,1)))","v":0},null,{"$f":"IF(G43<I43,2,IF(G43>I43,0,IF(I43=0,0,1)))","v":0}]
[null,null,null,null,"Spielausrichtend:",null,{"$f":"IF(Gruppenplanung!$T$23>4,Gruppenplanung!$Q$21,\"-\")","v":"-"},"Am:","DATUM"]
[null,null,null,null,"Spieltag: 5",null,{"$f":"IF(Gruppenplanung!$T$23=4,\"-\",IF(Gruppenplanung!$T$23=5,Gruppenplanung!$Q$21,Gruppenplanung!$Q$21))","v":0},"gegen",{"$f":"IF(Gruppenplanung!$T$23=4,\"-\",IF(Gruppenplanung!$T$23=5,Gruppenplanung!$Q$20,Gruppenplanung!$Q$19))","v":0}]
[null,null,null,null,null,"Spiele:",0,null,0]
[null,null,null,null,null,"Punkte:",{"$f":"IF(G47>I47,2,IF(G47<I47,0,IF(G47=0,0,1)))","v":0},null,{"$f":"IF(G47<I47,2,IF(G47>I47,0,IF(I47=0,0,1)))","v":0}]
[null,null,null,null,null,null,{"$f":"IF(Gruppenplanung!$T$23=4,\"-\",IF(Gruppenplanung!$T$23=5,Gruppenplanung!$Q$17,Gruppenplanung!$Q$17))","v":0},"gegen",{"$f":"IF(Gruppenplanung!$T$23=4,\"-\",IF(Gruppenplanung!$T$23=5,Gruppenplanung!$Q$19,Gruppenplanung!$Q$20))","v":0}]
[null,null,null,null,null,"Spiele:",0,null,0]
[null,null,null,null,null,"Punkte:",{"$f":"IF(G50>I50,2,IF(G50<I50,0,IF(G50=0,0,1)))","v":0},null,{"$f":"IF(G50<I50,2,IF(G50>I50,0,IF(I50=0,0,1)))","v":0}]
[null,null,null,null,null,null,{"$f":"IF(Gruppenplanung!$T$23=6,Gruppenplanung!$Q$18,\"-\")","v":"-"},"gegen",{"$f":"IF(Gruppenplanung!$T$23=6,Gruppenplanung!$Q$22,\"-\")","v":"-"}]
[null,null,null,null,null,"Spiele:",0,null,0]
[null,null,null,null,null,"Punkte:",{"$f":"IF(G53>I53,2,IF(G53<I53,0,IF(G53=0,0,1)))","v":0},null,{"$f":"IF(G53<I53,2,IF(G53>I53,0,IF(I53=0,0,1)))","v":0}]
[]
[]
[]
[null,null,null,null,null,null,null,null,null,null,null,null,null," "]

{"sheet":"Liga_3A","index":10,"n_rows":58,"n_cols":14,"rows_kept":58,"cut":false,"hidden":false,"merged":[[25,4,33,4],[34,4,34,5],[35,4,43,4],[44,4,44,5],[45,4,53,4],[24,4,24,5],[1,4,2,8],[4,4,4,5],[5,4,13,4],[14,4,14,5],[15,4,23,4]]}
[]
[null,null,null,null,"Liga 3A"]
[]
[]
[null,null,null,null,"Spielausrichtend:",null,{"$f":"Gruppenplanung!$E$26","v":"Oldenburger Land 1"},"Am:","15.05.2025"]
[null,null,null,null,"Spieltag: 1",null,{"$f":"Gruppenplanung!$E$26","v":"Oldenburger Land 1"},"gegen",{"$f":"Gruppenplanung!$E$27","v":"Lohne"}]
[null,null,null,null,null,"Spiele:"]
[null,null,null,null,null,"Punkte:",{"$f":"IF(G7>I7,2,IF(G7<I7,0,IF(G7=0,0,1)))","v":0},null,{"$f":"IF(G7<I7,2,IF(G7>I7,0,IF(I7=0,0,1)))","v":0}]
[null,null,null,null,null,null,{"$f":"Gruppenplanung!$E$28","v":"Bremer Schweiz 2"},"gegen",{"$f":"Gruppenplanung!$E$29","v":"Achim 2"}]
[null,null,null,null,null,"Spiele:"]
[null,null,null,null,null,"Punkte:",{"$f":"IF(G10>I10,2,IF(G10<I10,0,IF(G10=0,0,1)))","v":0},null,{"$f":"IF(G10<I10,2,IF(G10>I10,0,IF(I10=0,0,1)))","v":0}]
[null,null,null,null,null,null,{"$f":"IF(Gruppenplanung!$T$25=6,Gruppenplanung!$E$30,\"-\")","v":"-"},"gegen",{"$f":"IF(Gruppenplanung!$T$25=6,Gruppenplanung!$E$31,\"-\")","v":"-"}]
[null,null,null,null,null,"Spiele:",0,null,0]
[null,null,null,null,null,"Punkte:",{"$f":"IF(G13>I13,2,IF(G13<I13,0,IF(G13=0,0,1)))","v":0},null,{"$f":"IF(G13<I13,2,IF(G13>I13,0,IF(I13=0,0,1)))","v":0}]
[null,null,null,null,"Spielausrichtend:",null,{"$f":"Gruppenplanung!$E$27","v":"Lohne"},"Am:","19.06.2025"]
[null,null,null,null,"Spieltag: 2",null,{"$f":"IF(OR(Gruppenplanung!$T$25=4,Gruppenplanung!$T$25=5),Gruppenplanung!$E$27,Gruppenplanung!$E$27)","v":"Lohne"},"gegen",{"$f":"IF(OR(Gruppenplanung!$T$25=4,Gruppenplanung!$T$25=5),Gruppenplanung!$E$28,Gruppenplanung!$E$29)","v":"Bremer Schweiz 2"}]
[null,null,null,null,null,"Spiele:"]
[null,null,null,null,null,"Punkte:",{"$f":"IF(G17>I17,2,IF(G17<I17,0,IF(G17=0,0,1)))","v":0},null,{"$f":"IF(G17<I17,2,IF(G17>I17,0,IF(I17=0,0,1)))","v":0}]
[null,null,null,null,null,null,{"$f":"IF(OR(Gruppenplanung!$T$25=5,Gruppenplanung!$T$25=6),Gruppenplanung!$E$26,Gruppenplanung!$E$29)","v":"Oldenburger Land 1"},"gegen",{"$f":"IF(OR(Gruppenplanung!$T$25=5,Gruppenplanung!$T$25=6),Gruppenplanung!$E$30,Gruppenplanung!$E$26)","v":"Rastede"}]
[null,null,null,null,null,"Spiele:"]
[null,null,null,null,null,"Punkte:",{"$f":"IF(G20>I20,2,IF(G20<I20,0,IF(G20=0,0,1)))","v":0},null,{"$f":"IF(G20<I20,2,IF(G20>I20,0,IF(I20=0,0,1)))","v":0}]
[null,null,null,null,null,null,{"$f":"IF(Gruppenplanung!$T$25=6,Gruppenplanung!$E$28,\"-\")","v":"-"},"gegen",{"$f":"IF(Gruppenplanung!$T$25=6,Gruppenplanung!$E$31,\"-\")","v":"-"}]
[null,null,null,null,null,"Spiele:",0,null,0]
[null,null,null,null,null,"Punkte:",{"$f":"IF(G23>I23,2,IF(G23<I23,0,IF(G23=0,0,1)))","v":0},null,{"$f":"IF(G23<I23,2,IF(G23>I23,0,IF(I23=0,0,1)))","v":0}]
[null,null,null,null,"Spielausrichtend:",null,{"$f":"Gruppenplanung!$E$28","v":"Bremer Schweiz 2"},"Am:","03.07.2025"]
[null,null,null,null,"Spieltag: 3",null,{"$f":"Gruppenplanung!$E$28","v":"Bremer Schweiz 2"},"gegen",{"$f":"IF(OR(Gruppenplanung!$T$25=4,Gruppenplanung!$T$25=6),Gruppenplanung!$E$26,Gruppenplanung!$E$30)","v":"Rastede"}]
[null,null,null,null,null,"Spiele:"]
[null,null,null,null,null,"Punkte:",{"$f":"IF(G27>I27,2,IF(G27<I27,0,IF(G27=0,0,1)))","v":0},null,{"$f":"IF(G27<I27,2,IF(G27>I27,0,IF(I27=0,0,1)))","v":0}]
[null,null,null,null,null,null,{"$f":"Gruppenplanung!$E$27","v":"Lohne"},"gegen",{"$f":"IF(OR(Gruppenplanung!$T$25=4,Gruppenplanung!$T$25=5),Gruppenplanung!$E$29,Gruppenplanung!$E$30)","v":"Achim 2"}]
[null,null,null,null,null,"Spiele:"]
[null,null,null,null,null,"Punkte:",{"$f":"IF(G30>I30,2,IF(G30<I30,0,IF(G30=0,0,1)))","v":0},null,{"$f":"IF(G30<I30,2,IF(G30>I30,0,IF(I30=0,0,1)))","v":0}]
[null,null,null,null,null,null,{"$f":"IF(Gruppenplanung!$T$25=6,Gruppenplanung!$E$29,\"-\")","v":"-"},"gegen",{"$f":"IF(Gruppenplanung!$T$25=6,Gruppenplanung!$E$31,\"-\")","v":"-"}]
[null,null,null,null,null,"Spiele:",0,null,0]
[null,null,null,null,null,"Punkte:",{"$f":"IF(G33>I33,2,IF(G33<I33,0,IF(G33=0,0,1)))","v":0},null,{"$f":"IF(G33<I33,2,IF(G33>I33,0,IF(I33=0,0,1)))","v":0}]
[null,null,null,null,"Spielausrichtend:",null,{"$f":"IF(Gruppenplanung!$T$25>4,Gruppenplanung!$E$29,\"-\")","v":"Achim 2"},"Am:","28.08.2025"]
[null,null,null,null,"Spieltag: 4",null,{"$f":"IF(OR(Gruppenplanung!$T$25=5,Gruppenplanung!$T$25=6),Gruppenplanung!$E$29,\"-\")","v":"Achim 2"},"gegen",{"$f":"IF(Gruppenplanung!$T$25=4,\"-\",IF(Gruppenplanung!$T$25=5,Gruppenplanung!$E$26,Gruppenplanung!$E$30))","v":"Oldenburger Land 1"}]
[null,null,null,null,null,"Spiele:",0,null,0]
[null,null,null,null,null,"Punkte:",{"$f":"IF(G37>I37,2,IF(G37<I37,0,IF(G37=0,0,1)))","v":0},null,{"$f":"IF(G37<I37,2,IF(G37>I37,0,IF(I37=0,0,1)))","v":0}]
[null,null,null,null,null,null,{"$f":"IF(Gruppenplanung!$T$25=4,\"-\",IF(Gruppenplanung!$T$25=5,Gruppenplanung!$E$27,Gruppenplanung!$E$26))","v":"Lohne"},"gegen",{"$f":"IF(Gruppenplanung!$T$25=4,\"-\",IF(Gruppenplanung!$T$25=5,Gruppenplanung!$E$30,Gruppenplanung!$E$31))","v":"Rastede"}]
[null,null,null,null,null,"Spiele:",0,null,0]
[null,null,null,null,null,"Punkte:",{"$f":"IF(G40>I40,2,IF(G40<I40,0,IF(G40=0,0,1)))","v":0},null,{"$f":"IF(G40<I40,2,IF(G40>I40,0,IF(I40=0,0,1)))","v":0}]
[null,null,null,null,null,null,{"$f":"IF(Gruppenplanung!$T$25=6,Gruppenplanung!$E$27,\"-\")","v":"-"},"gegen",{"$f":"IF(Gruppenplanung!$T$25=6,Gruppenplanung!$E$28,\"-\")","v":"-"}]
[null,null,null,null,null,"Spiele:",0,null,0]
[null,null,null,null,null,"Punkte:",{"$f":"IF(G43>I43,2,IF(G43<I43,0,IF(G43=0,0,1)))","v":0},null,{"$f":"IF(G43<I43,2,IF(G43>I43,0,IF(I43=0,0,1)))","v":0}]
[null,null,null,null,"Spielausrichtend:",null,{"$f":"IF(Gruppenplanung!$T$25>4,Gruppenplanung!$E$30,\"-\")","v":"Rastede"},"Am:","11.09.2025"]
[null,null,null,null,"Spieltag: 5",null,{"$f":"IF(Gruppenplanung!$T$25=4,\"-\",IF(Gruppenplanung!$T$25=5,Gruppenplanung!$E$30,Gruppenplanung!$E$30))","v":"Rastede"},"gegen",{"$f":"IF(Gruppenplanung!$T$25=4,\"-\",IF(Gruppenplanung!$T$25=5,Gruppenplanung!$E$29,Gruppenplanung!$E$28))","v":"Achim 2"}]
[null,null,null,null,null,"Spiele:",0,null,0]
[null,null,null,null,null,"Punkte:",{"$f":"IF(G47>I47,2,IF(G47<I47,0,IF(G47=0,0,1)))","v":0},null,{"$f":"IF(G47<I47,2,IF(G47>I47,0,IF(I47=0,0,1)))","v":0}]
[null,null,null,null,null,null,{"$f":"IF(Gruppenplanung!$T$25=4,\"-\",IF(Gruppenplanung!$T$25=5,Gruppenplanung!$E$26,Gruppenplanung!$E$26))","v":"Oldenburger Land 1"},"gegen",{"$f":"IF(Gruppenplanung!$T$25=4,\"-\",IF(Gruppenplanung!$T$25=5,Gruppenplanung!$E$28,Gruppenplanung!$E$29))","v":"Bremer Schweiz 2"}]
[null,null,null,null,null,"Spiele:",0,null,0]
[null,null,null,null,null,"Punkte:",{"$f":"IF(G50>I50,2,IF(G50<I50,0,IF(G50=0,0,1)))","v":0},null,{"$f":"IF(G50<I50,2,IF(G50>I50,0,IF(I50=0,0,1)))","v":0}]
[null,null,null,null,null,null,{"$f":"IF(Gruppenplanung!$T$25=6,Gruppenplanung!$E$27,\"-\")","v":"-"},"gegen",{"$f":"IF(Gruppenplanung!$T$25=6,Gruppenplanung!$E$31,\"-\")","v":"-"}]
[null,null,null,null,null,"Spiele:",0,null,0]
[null,null,null,null,null,"Punkte:",{"$f":"IF(G53>I53,2,IF(G53<I53,0,IF(G53=0,0,1)))","v":0},null,{"$f":"IF(G53<I53,2,IF(G53>I53,0,IF(I53=0,0,1)))","v":0}]
[]
[]
[]
[null,null,null,null,null,null,null,null,null,null,null,null,null," "]

{"sheet":"Liga_3B","index":11,"n_rows":58,"n_cols":14,"rows_kept":58,"cut":false,"hidden":false,"merged":[[24,4,24,5],[1,4,2,8],[4,4,4,5],[5,4,13,4],[14,4,14,5],[15,4,23,4],[25,4,33,4],[34,4,34,5],[35,4,43,4],[44,4,44,5],[45,4,53,4]]}
[]
[null,null,null,null,"Liga 3B"]
[]
[]
[null,null,null,null,"Spielausrichtend:",null,{"$f":"Gruppenplanung!$H$26","v":"Bremer Schweiz 3"},"Am:","22.05.2025"]
[null,null,null,null,"Spieltag: 1",null,{"$f":"Gruppenplanung!$H$26","v":"Bremer Schweiz 3"},"gegen",{"$f":"Gruppenplanung!$H$27","v":"Sittensen"}]
[null,null,null,null,null,"Spiele:"]
[null,null,null,null,null,"Punkte:",{"$f":"IF(G7>I7,2,IF(G7<I7,0,IF(G7=0,0,1)))","v":0},null,{"$f":"IF(G7<I7,2,IF(G7>I7,0,IF(I7=0,0,1)))","v":0}]
[null,null,null,null,null,null,{"$f":"Gruppenplanung!$H$28","v":"Göhrde"},"gegen",{"$f":"Gruppenplanung!$H$29","v":"Oldenburger Land 2"}]
[null,null,null,null,null,"Spiele:"]
[null,null,null,null,null,"Punkte:",{"$f":"IF(G10>I10,2,IF(G10<I10,0,IF(G10=0,0,1)))","v":0},null,{"$f":"IF(G10<I10,2,IF(G10>I10,0,IF(I10=0,0,1)))","v":0}]
[null,null,null,null,null,null,{"$f":"IF(Gruppenplanung!$T$26=6,Gruppenplanung!$H$30,\"-\")","v":"-"},"gegen",{"$f":"IF(Gruppenplanung!$T$26=6,Gruppenplanung!$H$31,\"-\")","v":"-"}]
[null,null,null,null,null,"Spiele:",0,null,0]
[null,null,null,null,null,"Punkte:",{"$f":"IF(G13>I13,2,IF(G13<I13,0,IF(G13=0,0,1)))","v":0},null,{"$f":"IF(G13<I13,2,IF(G13>I13,0,IF(I13=0,0,1)))","v":0}]
[null,null,null,null,"Spielausrichtend:",null,{"$f":"Gruppenplanung!$H$27","v":"Sittensen"},"Am:","12.06.2025"]
[null,null,null,null,"Spieltag: 2",null,{"$f":"IF(OR(Gruppenplanung!$T$26=4,Gruppenplanung!$T$26=5),Gruppenplanung!$H$27,Gruppenplanung!$H$27)","v":"Sittensen"},"gegen",{"$f":"IF(OR(Gruppenplanung!$T$26=4,Gruppenplanung!$T$26=5),Gruppenplanung!$H$28,Gruppenplanung!$H$29)","v":"Göhrde"}]
[null,null,null,null,null,"Spiele:"]
[null,null,null,null,null,"Punkte:",{"$f":"IF(G17>I17,2,IF(G17<I17,0,IF(G17=0,0,1)))","v":0},null,{"$f":"IF(G17<I17,2,IF(G17>I17,0,IF(I17=0,0,1)))","v":0}]
[null,null,null,null,null,null,{"$f":"IF(OR(Gruppenplanung!$T$26=5,Gruppenplanung!$T$26=6),Gruppenplanung!$H$26,Gruppenplanung!$H$29)","v":"Bremer Schweiz 3"},"gegen",{"$f":"IF(OR(Gruppenplanung!$T$26=5,Gruppenplanung!$T$26=6),Gruppenplanung!$H$30,Gruppenplanung!$H$26)","v":"Wümme"}]
[null,null,null,null,null,"Spiele:"]
[null,null,null,null,null,"Punkte:",{"$f":"IF(G20>I20,2,IF(G20<I20,0,IF(G20=0,0,1)))","v":0},null,{"$f":"IF(G20<I20,2,IF(G20>I20,0,IF(I20=0,0,1)))","v":0}]
[null,null,null,null,null,null,{"$f":"IF(Gruppenplanung!$T$26=6,Gruppenplanung!$H$28,\"-\")","v":"-"},"gegen",{"$f":"IF(Gruppenplanung!$T$26=6,Gruppenplanung!$H$31,\"-\")","v":"-"}]
[null,null,null,null,null,"Spiele:",0,null,0]
[null,null,null,null,null,"Punkte:",{"$f":"IF(G23>I23,2,IF(G23<I23,0,IF(G23=0,0,1)))","v":0},null,{"$f":"IF(G23<I23,2,IF(G23>I23,0,IF(I23=0,0,1)))","v":0}]
[null,null,null,null,"Spielausrichtend:",null,{"$f":"Gruppenplanung!$H$28","v":"Göhrde"},"Am:","03.07.2025"]
[null,null,null,null,"Spieltag: 3",null,{"$f":"Gruppenplanung!$H$28","v":"Göhrde"},"gegen",{"$f":"IF(OR(Gruppenplanung!$T$26=4,Gruppenplanung!$T$26=6),Gruppenplanung!$H$26,Gruppenplanung!$H$30)","v":"Wümme"}]
[null,null,null,null,null,"Spiele:"]
[null,null,null,null,null,"Punkte:",{"$f":"IF(G27>I27,2,IF(G27<I27,0,IF(G27=0,0,1)))","v":0},null,{"$f":"IF(G27<I27,2,IF(G27>I27,0,IF(I27=0,0,1)))","v":0}]
[null,null,null,null,null,null,{"$f":"Gruppenplanung!$H$27","v":"Sittensen"},"gegen",{"$f":"IF(OR(Gruppenplanung!$T$26=4,Gruppenplanung!$T$26=5),Gruppenplanung!$H$29,Gruppenplanung!$H$30)","v":"Oldenburger Land 2"}]
[null,null,null,null,null,"Spiele:"]
[null,null,null,null,null,"Punkte:",{"$f":"IF(G30>I30,2,IF(G30<I30,0,IF(G30=0,0,1)))","v":0},null,{"$f":"IF(G30<I30,2,IF(G30>I30,0,IF(I30=0,0,1)))","v":0}]
[null,null,null,null,null,null,{"$f":"IF(Gruppenplanung!$T$26=6,Gruppenplanung!$H$29,\"-\")","v":"-"},"gegen",{"$f":"IF(Gruppenplanung!$T$26=6,Gruppenplanung!$H$31,\"-\")","v":"-"}]
[null,null,null,null,null,"Spiele:",0,null,0]
[null,null,null,null,null,"Punkte:",{"$f":"IF(G33>I33,2,IF(G33<I33,0,IF(G33=0,0,1)))","v":0},null,{"$f":"IF(G33<I33,2,IF(G33>I33,0,IF(I33=0,0,1)))","v":0}]
[null,null,null,null,"Spielausrichtend:",null,{"$f":"IF(Gruppenplanung!$T$26>4,Gruppenplanung!$H$29,\"-\")","v":"Oldenburger Land 2"},"Am:","07.08.2025"]
[null,null,null,null,"Spieltag: 4",null,{"$f":"IF(OR(Gruppenplanung!$T$26=5,Gruppenplanung!$T$26=6),Gruppenplanung!$H$29,\"-\")","v":"Oldenburger Land 2"},"gegen",{"$f":"IF(Gruppenplanung!$T$26=4,\"-\",IF(Gruppenplanung!$T$26=5,Gruppenplanung!$H$26,Gruppenplanung!$H$30))","v":"Bremer Schweiz 3"}]
[null,null,null,null,null,"Spiele:"]
[null,null,null,null,null,"Punkte:",{"$f":"IF(G37>I37,2,IF(G37<I37,0,IF(G37=0,0,1)))","v":0},null,{"$f":"IF(G37<I37,2,IF(G37>I37,0,IF(I37=0,0,1)))","v":0}]
[null,null,null,null,null,null,{"$f":"IF(Gruppenplanung!$T$26=4,\"-\",IF(Gruppenplanung!$T$26=5,Gruppenplanung!$H$27,Gruppenplanung!$H$26))","v":"Sittensen"},"gegen",{"$f":"IF(Gruppenplanung!$T$26=4,\"-\",IF(Gruppenplanung!$T$26=5,Gruppenplanung!$H$30,Gruppenplanung!$H$31))","v":"Wümme"}]
[null,null,null,null,null,"Spiele:",0,null,0]
[null,null,null,null,null,"Punkte:",{"$f":"IF(G40>I40,2,IF(G40<I40,0,IF(G40=0,0,1)))","v":0},null,{"$f":"IF(G40<I40,2,IF(G40>I40,0,IF(I40=0,0,1)))","v":0}]
[null,null,null,null,null,null,{"$f":"IF(Gruppenplanung!$T$26=6,Gruppenplanung!$H$27,\"-\")","v":"-"},"gegen",{"$f":"IF(Gruppenplanung!$T$26=6,Gruppenplanung!$H$28,\"-\")","v":"-"}]
[null,null,null,null,null,"Spiele:",0,null,0]
[null,null,null,null,null,"Punkte:",{"$f":"IF(G43>I43,2,IF(G43<I43,0,IF(G43=0,0,1)))","v":0},null,{"$f":"IF(G43<I43,2,IF(G43>I43,0,IF(I43=0,0,1)))","v":0}]
[null,null,null,null,"Spielausrichtend:",null,{"$f":"IF(Gruppenplanung!$T$26>4,Gruppenplanung!$H$30,\"-\")","v":"Wümme"},"Am:","21.08.2025"]
[null,null,null,null,"Spieltag: 5",null,{"$f":"IF(Gruppenplanung!$T$26=4,\"-\",IF(Gruppenplanung!$T$26=5,Gruppenplanung!$H$30,Gruppenplanung!$H$30))","v":"Wümme"},"gegen",{"$f":"IF(Gruppenplanung!$T$26=4,\"-\",IF(Gruppenplanung!$T$26=5,Gruppenplanung!$H$29,Gruppenplanung!$H$28))","v":"Oldenburger Land 2"}]
[null,null,null,null,null,"Spiele:",0,null,0]
[null,null,null,null,null,"Punkte:",{"$f":"IF(G47>I47,2,IF(G47<I47,0,IF(G47=0,0,1)))","v":0},null,{"$f":"IF(G47<I47,2,IF(G47>I47,0,IF(I47=0,0,1)))","v":0}]
[null,null,null,null,null,null,{"$f":"IF(Gruppenplanung!$T$26=4,\"-\",IF(Gruppenplanung!$T$26=5,Gruppenplanung!$H$26,Gruppenplanung!$H$26))","v":"Bremer Schweiz 3"},"gegen",{"$f":"IF(Gruppenplanung!$T$26=4,\"-\",IF(Gruppenplanung!$T$26=5,Gruppenplanung!$H$28,Gruppenplanung!$H$29))","v":"Göhrde"}]
[null,null,null,null,null,"Spiele:",0,null,0]
[null,null,null,null,null,"Punkte:",{"$f":"IF(G50>I50,2,IF(G50<I50,0,IF(G50=0,0,1)))","v":0},null,{"$f":"IF(G50<I50,2,IF(G50>I50,0,IF(I50=0,0,1)))","v":0}]
[null,null,null,null,null,null,{"$f":"IF(Gruppenplanung!$T$26=6,Gruppenplanung!$H$27,\"-\")","v":"-"},"gegen",{"$f":"IF(Gruppenplanung!$T$26=6,Gruppenplanung!$H$31,\"-\")","v":"-"}]
[null,null,null,null,null,"Spiele:",0,null,0]
[null,null,null,null,null,"Punkte:",{"$f":"IF(G53>I53,2,IF(G53<I53,0,IF(G53=0,0,1)))","v":0},null,{"$f":"IF(G53<I53,2,IF(G53>I53,0,IF(I53=0,0,1)))","v":0}]
[]
[]
[]
[null,null,null,null,null,null,null,null,null,null,null,null,null," "]

{"sheet":"Liga_3C","index":12,"n_rows":58,"n_cols":14,"rows_kept":58,"cut":false,"hidden":false,"merged":[[24,4,24,5],[1,4,2,8],[4,4,4,5],[5,4,13,4],[14,4,14,5],[15,4,23,4],[25,4,33,4],[34,4,34,5],[35,4,43,4],[44,4,44,5],[45,4,53,4]]}
[]
[null,null,null,null,"Liga 3C"]
[]
[]
[null,null,null,null,"Spielausrichtend:",null,{"$f":"Gruppenplanung!$K$26","v":"Steinhude"},"Am:","19.06.2025"]
[null,null,null,null,"Spieltag: 1",null,{"$f":"Gruppenplanung!$K$26","v":"Steinhude"},"gegen",{"$f":"Gruppenplanung!$K$27","v":"Bad Salzdetfurth"}]
[null,null,null,null,null,"Spiele:"]
[null,null,null,null,null,"Punkte:",{"$f":"IF(G7>I7,2,IF(G7<I7,0,IF(G7=0,0,1)))","v":0},null,{"$f":"IF(G7<I7,2,IF(G7>I7,0,IF(I7=0,0,1)))","v":0}]
[null,null,null,null,null,null,{"$f":"Gruppenplanung!$K$28","v":"Burgwedel "},"gegen",{"$f":"Gruppenplanung!$K$29","v":"Hainhaus 2"}]
[null,null,null,null,null,"Spiele:"]
[null,null,null,null,null,"Punkte:",{"$f":"IF(G10>I10,2,IF(G10<I10,0,IF(G10=0,0,1)))","v":0},null,{"$f":"IF(G10<I10,2,IF(G10>I10,0,IF(I10=0,0,1)))","v":0}]
[null,null,null,null,null,null,{"$f":"IF(Gruppenplanung!$T$27=6,Gruppenplanung!$K$30,\"-\")","v":"-"},"gegen",{"$f":"IF(Gruppenplanung!$T$27=6,Gruppenplanung!$K$31,\"-\")","v":"-"}]
[null,null,null,null,null,"Spiele:",0,null,0]
[null,null,null,null,null,"Punkte:",{"$f":"IF(G13>I13,2,IF(G13<I13,0,IF(G13=0,0,1)))","v":0},null,{"$f":"IF(G13<I13,2,IF(G13>I13,0,IF(I13=0,0,1)))","v":0}]
[null,null,null,null,"Spielausrichtend:",null,{"$f":"Gruppenplanung!$K$27","v":"Bad Salzdetfurth"},"Am:","24.07.2025"]
[null,null,null,null,"Spieltag: 2",null,{"$f":"IF(OR(Gruppenplanung!$T$27=4,Gruppenplanung!$T$27=5),Gruppenplanung!$K$27,Gruppenplanung!$K$27)","v":"Bad Salzdetfurth"},"gegen",{"$f":"IF(OR(Gruppenplanung!$T$27=4,Gruppenplanung!$T$27=5),Gruppenplanung!$K$28,Gruppenplanung!$K$29)","v":"Burgwedel "}]
[null,null,null,null,null,"Spiele:"]
[null,null,null,null,null,"Punkte:",{"$f":"IF(G17>I17,2,IF(G17<I17,0,IF(G17=0,0,1)))","v":0},null,{"$f":"IF(G17<I17,2,IF(G17>I17,0,IF(I17=0,0,1)))","v":0}]
[null,null,null,null,null,null,{"$f":"IF(OR(Gruppenplanung!$T$27=5,Gruppenplanung!$T$27=6),Gruppenplanung!$K$26,Gruppenplanung!$K$29)","v":"Hainhaus 2"},"gegen",{"$f":"IF(OR(Gruppenplanung!$T$27=5,Gruppenplanung!$T$27=6),Gruppenplanung!$K$30,Gruppenplanung!$K$26)","v":"Steinhude"}]
[null,null,null,null,null,"Spiele:"]
[null,null,null,null,null,"Punkte:",{"$f":"IF(G20>I20,2,IF(G20<I20,0,IF(G20=0,0,1)))","v":0},null,{"$f":"IF(G20<I20,2,IF(G20>I20,0,IF(I20=0,0,1)))","v":0}]
[null,null,null,null,null,null,{"$f":"IF(Gruppenplanung!$T$27=6,Gruppenplanung!$K$28,\"-\")","v":"-"},"gegen",{"$f":"IF(Gruppenplanung!$T$27=6,Gruppenplanung!$K$31,\"-\")","v":"-"}]
[null,null,null,null,null,"Spiele:",0,null,0]
[null,null,null,null,null,"Punkte:",{"$f":"IF(G23>I23,2,IF(G23<I23,0,IF(G23=0,0,1)))","v":0},null,{"$f":"IF(G23<I23,2,IF(G23>I23,0,IF(I23=0,0,1)))","v":0}]
[null,null,null,null,"Spielausrichtend:",null,{"$f":"Gruppenplanung!$K$28","v":"Burgwedel "},"Am:","07.08.2025"]
[null,null,null,null,"Spieltag: 3",null,{"$f":"Gruppenplanung!$K$28","v":"Burgwedel "},"gegen",{"$f":"IF(OR(Gruppenplanung!$T$27=4,Gruppenplanung!$T$27=6),Gruppenplanung!$K$26,Gruppenplanung!$K$30)","v":"Steinhude"}]
[null,null,null,null,null,"Spiele:"]
[null,null,null,null,null,"Punkte:",{"$f":"IF(G27>I27,2,IF(G27<I27,0,IF(G27=0,0,1)))","v":0},null,{"$f":"IF(G27<I27,2,IF(G27>I27,0,IF(I27=0,0,1)))","v":0}]
[null,null,null,null,null,null,{"$f":"Gruppenplanung!$K$27","v":"Bad Salzdetfurth"},"gegen",{"$f":"IF(OR(Gruppenplanung!$T$27=4,Gruppenplanung!$T$27=5),Gruppenplanung!$K$29,Gruppenplanung!$K$30)","v":"Hainhaus 2"}]
[null,null,null,null,null,"Spiele:"]
[null,null,null,null,null,"Punkte:",{"$f":"IF(G30>I30,2,IF(G30<I30,0,IF(G30=0,0,1)))","v":0},null,{"$f":"IF(G30<I30,2,IF(G30>I30,0,IF(I30=0,0,1)))","v":0}]
[null,null,null,null,null,null,{"$f":"IF(Gruppenplanung!$T$27=6,Gruppenplanung!$K$29,\"-\")","v":"-"},"gegen",{"$f":"IF(Gruppenplanung!$T$27=6,Gruppenplanung!$K$31,\"-\")","v":"-"}]
[null,null,null,null,null,"Spiele:",0,null,0]
[null,null,null,null,null,"Punkte:",{"$f":"IF(G33>I33,2,IF(G33<I33,0,IF(G33=0,0,1)))","v":0},null,{"$f":"IF(G33<I33,2,IF(G33>I33,0,IF(I33=0,0,1)))","v":0}]
[null,null,null,null,"Spielausrichtend:",null,{"$f":"Gruppenplanung!$K$29","v":"Hainhaus 2"},"Am:","11.09.2025"]
[null,null,null,null,"Spieltag: 4",null,{"$f":"IF(OR(Gruppenplanung!$T$27=5,Gruppenplanung!$T$27=6),Gruppenplanung!$K$29,\"-\")","v":"-"},"gegen",{"$f":"IF(Gruppenplanung!$T$27=4,\"-\",IF(Gruppenplanung!$T$27=5,Gruppenplanung!$K$26,Gruppenplanung!$K$30))","v":"-"}]
[null,null,null,null,null,"Spiele:",0,null,0]
[null,null,null,null,null,"Punkte:",{"$f":"IF(G37>I37,2,IF(G37<I37,0,IF(G37=0,0,1)))","v":0},null,{"$f":"IF(G37<I37,2,IF(G37>I37,0,IF(I37=0,0,1)))","v":0}]
[null,null,null,null,null,null,{"$f":"IF(Gruppenplanung!$T$27=4,\"-\",IF(Gruppenplanung!$T$27=5,Gruppenplanung!$K$27,Gruppenplanung!$K$26))","v":"-"},"gegen",{"$f":"IF(Gruppenplanung!$T$27=4,\"-\",IF(Gruppenplanung!$T$27=5,Gruppenplanung!$K$30,Gruppenplanung!$K$31))","v":"-"}]
[null,null,null,null,null,"Spiele:",0,null,0]
[null,null,null,null,null,"Punkte:",{"$f":"IF(G40>I40,2,IF(G40<I40,0,IF(G40=0,0,1)))","v":0},null,{"$f":"IF(G40<I40,2,IF(G40>I40,0,IF(I40=0,0,1)))","v":0}]
[null,null,null,null,null,null,{"$f":"IF(Gruppenplanung!$T$27=6,Gruppenplanung!$K$27,\"-\")","v":"-"},"gegen",{"$f":"IF(Gruppenplanung!$T$27=6,Gruppenplanung!$K$28,\"-\")","v":"-"}]
[null,null,null,null,null,"Spiele:",0,null,0]
[null,null,null,null,null,"Punkte:",{"$f":"IF(G43>I43,2,IF(G43<I43,0,IF(G43=0,0,1)))","v":0},null,{"$f":"IF(G43<I43,2,IF(G43>I43,0,IF(I43=0,0,1)))","v":0}]
[null,null,null,null,"Spielausrichtend:",null,{"$f":"IF(Gruppenplanung!$T$27>4,Gruppenplanung!$K$30,\"-\")","v":"-"},"Am:","DATUM"]
[null,null,null,null,"Spieltag: 5",null,{"$f":"IF(Gruppenplanung!$T$27=4,\"-\",IF(Gruppenplanung!$T$27=5,Gruppenplanung!$K$30,Gruppenplanung!$K$30))","v":"-"},"gegen",{"$f":"IF(Gruppenplanung!$T$27=4,\"-\",IF(Gruppenplanung!$T$27=5,Gruppenplanung!$K$29,Gruppenplanung!$K$28))","v":"-"}]
[null,null,null,null,null,"Spiele:",0,null,0]
[null,null,null,null,null,"Punkte:",{"$f":"IF(G47>I47,2,IF(G47<I47,0,IF(G47=0,0,1)))","v":0},null,{"$f":"IF(G47<I47,2,IF(G47>I47,0,IF(I47=0,0,1)))","v":0}]
[null,null,null,null,null,null,{"$f":"IF(Gruppenplanung!$T$27=4,\"-\",IF(Gruppenplanung!$T$27=5,Gruppenplanung!$K$26,Gruppenplanung!$K$26))","v":"-"},"gegen",{"$f":"IF(Gruppenplanung!$T$27=4,\"-\",IF(Gruppenplanung!$T$27=5,Gruppenplanung!$K$28,Gruppenplanung!$K$29))","v":"-"}]
[null,null,null,null,null,"Spiele:",0,null,0]
[null,null,null,null,null,"Punkte:",{"$f":"IF(G50>I50,2,IF(G50<I50,0,IF(G50=0,0,1)))","v":0},null,{"$f":"IF(G50<I50,2,IF(G50>I50,0,IF(I50=0,0,1)))","v":0}]
[null,null,null,null,null,null,{"$f":"IF(Gruppenplanung!$T$27=6,Gruppenplanung!$K$27,\"-\")","v":"-"},"gegen",{"$f":"IF(Gruppenplanung!$T$27=6,Gruppenplanung!$K$31,\"-\")","v":"-"}]
[null,null,null,null,null,"Spiele:",0,null,0]
[null,null,null,null,null,"Punkte:",{"$f":"IF(G53>I53,2,IF(G53<I53,0,IF(G53=0,0,1)))","v":0},null,{"$f":"IF(G53<I53,2,IF(G53>I53,0,IF(I53=0,0,1)))","v":0}]
[]
[]
[]
[null,null,null,null,null,null,null,null,null,null,null,null,null," "]

{"sheet":"Liga_3D","index":13,"n_rows":58,"n_cols":14,"rows_kept":58,"cut":false,"hidden":true,"merged":[[24,4,24,5],[1,4,2,8],[4,4,4,5],[5,4,13,4],[14,4,14,5],[15,4,23,4],[25,4,33,4],[34,4,34,5],[35,4,43,4],[44,4,44,5],[45,4,53,4]]}
[]
[null,null,null,null,"Liga 3D"]
[]
[]
[null,null,null,null,"Spielausrichtend:",null,{"$f":"Gruppenplanung!$N$26","v":0},"Am:","15.06.2023"]
[null,null,null,null,"Spieltag: 1",null,{"$f":"Gruppenplanung!$N$26","v":0},"gegen",{"$f":"Gruppenplanung!$N$27","v":0}]
[null,null,null,null,null,"Spiele:",0,null,0]
[null,null,null,null,null,"Punkte:",{"$f":"IF(G7>I7,2,IF(G7<I7,0,IF(G7=0,0,1)))","v":0},null,{"$f":"IF(G7<I7,2,IF(G7>I7,0,IF(I7=0,0,1)))","v":0}]
[null,null,null,null,null,null,{"$f":"Gruppenplanung!$N$28","v":0},"gegen",{"$f":"Gruppenplanung!$N$29","v":0}]
[null,null,null,null,null,"Spiele:",0,null,0]
[null,null,null,null,null,"Punkte:",{"$f":"IF(G10>I10,2,IF(G10<I10,0,IF(G10=0,0,1)))","v":0},null,{"$f":"IF(G10<I10,2,IF(G10>I10,0,IF(I10=0,0,1)))","v":0}]
[null,null,null,null,null,null,{"$f":"IF(Gruppenplanung!$T$28=6,Gruppenplanung!$N$30,\"-\")","v":"-"},"gegen",{"$f":"IF(Gruppenplanung!$T$28=6,Gruppenplanung!$N$31,\"-\")","v":"-"}]
[null,null,null,null,null,"Spiele:",0,null,0]
[null,null,null,null,null,"Punkte:",{"$f":"IF(G13>I13,2,IF(G13<I13,0,IF(G13=0,0,1)))","v":0},null,{"$f":"IF(G13<I13,2,IF(G13>I13,0,IF(I13=0,0,1)))","v":0}]
[null,null,null,null,"Spielausrichtend:",null,{"$f":"Gruppenplanung!$N$27","v":0},"Am:","13.07.2023"]
[null,null,null,null,"Spieltag: 2",null,{"$f":"IF(OR(Gruppenplanung!$T$28=4,Gruppenplanung!$T$28=5),Gruppenplanung!$N$27,Gruppenplanung!$N$27)","v":0},"gegen",{"$f":"IF(OR(Gruppenplanung!$T$28=4,Gruppenplanung!$T$28=5),Gruppenplanung!$N$28,Gruppenplanung!$N$29)","v":0}]
[null,null,null,null,null,"Spiele:",0,null,0]
[null,null,null,null,null,"Punkte:",{"$f":"IF(G17>I17,2,IF(G17<I17,0,IF(G17=0,0,1)))","v":0},null,{"$f":"IF(G17<I17,2,IF(G17>I17,0,IF(I17=0,0,1)))","v":0}]
[null,null,null,null,null,null,{"$f":"IF(OR(Gruppenplanung!$T$28=5,Gruppenplanung!$T$28=6),Gruppenplanung!$N$26,Gruppenplanung!$N$29)","v":0},"gegen",{"$f":"IF(OR(Gruppenplanung!$T$28=5,Gruppenplanung!$T$28=6),Gruppenplanung!$N$30,Gruppenplanung!$N$26)","v":0}]
[null,null,null,null,null,"Spiele:",0,null,0]
[null,null,null,null,null,"Punkte:",{"$f":"IF(G20>I20,2,IF(G20<I20,0,IF(G20=0,0,1)))","v":0},null,{"$f":"IF(G20<I20,2,IF(G20>I20,0,IF(I20=0,0,1)))","v":0}]
[null,null,null,null,null,null,{"$f":"IF(Gruppenplanung!$T$28=6,Gruppenplanung!$N$28,\"-\")","v":"-"},"gegen",{"$f":"IF(Gruppenplanung!$T$28=6,Gruppenplanung!$N$31,\"-\")","v":"-"}]
[null,null,null,null,null,"Spiele:",0,null,0]
[null,null,null,null,null,"Punkte:",{"$f":"IF(G23>I23,2,IF(G23<I23,0,IF(G23=0,0,1)))","v":0},null,{"$f":"IF(G23<I23,2,IF(G23>I23,0,IF(I23=0,0,1)))","v":0}]
[null,null,null,null,"Spielausrichtend:",null,{"$f":"Gruppenplanung!$N$28","v":0},"Am:","03.08.2023"]
[null,null,null,null,"Spieltag: 3",null,{"$f":"Gruppenplanung!$N$28","v":0},"gegen",{"$f":"IF(OR(Gruppenplanung!$T$28=4,Gruppenplanung!$T$28=6),Gruppenplanung!$N$26,Gruppenplanung!$N$30)","v":0}]
[null,null,null,null,null,"Spiele:",0,null,0]
[null,null,null,null,null,"Punkte:",{"$f":"IF(G27>I27,2,IF(G27<I27,0,IF(G27=0,0,1)))","v":0},null,{"$f":"IF(G27<I27,2,IF(G27>I27,0,IF(I27=0,0,1)))","v":0}]
[null,null,null,null,null,null,{"$f":"Gruppenplanung!$N$27","v":0},"gegen",{"$f":"IF(OR(Gruppenplanung!$T$28=4,Gruppenplanung!$T$28=5),Gruppenplanung!$N$29,Gruppenplanung!$N$30)","v":0}]
[null,null,null,null,null,"Spiele:",0,null,0]
[null,null,null,null,null,"Punkte:",{"$f":"IF(G30>I30,2,IF(G30<I30,0,IF(G30=0,0,1)))","v":0},null,{"$f":"IF(G30<I30,2,IF(G30>I30,0,IF(I30=0,0,1)))","v":0}]
[null,null,null,null,null,null,{"$f":"IF(Gruppenplanung!$T$28=6,Gruppenplanung!$N$29,\"-\")","v":"-"},"gegen",{"$f":"IF(Gruppenplanung!$T$28=6,Gruppenplanung!$N$31,\"-\")","v":"-"}]
[null,null,null,null,null,"Spiele:",0,null,0]
[null,null,null,null,null,"Punkte:",{"$f":"IF(G33>I33,2,IF(G33<I33,0,IF(G33=0,0,1)))","v":0},null,{"$f":"IF(G33<I33,2,IF(G33>I33,0,IF(I33=0,0,1)))","v":0}]
[null,null,null,null,"Spielausrichtend:",null,{"$f":"IF(Gruppenplanung!$T$28>4,Gruppenplanung!$N$29,\"-\")","v":"-"},"Am:","DATUM"]
[null,null,null,null,"Spieltag: 4",null,{"$f":"IF(OR(Gruppenplanung!$T$28=5,Gruppenplanung!$T$28=6),Gruppenplanung!$N$29,\"-\")","v":"-"},"gegen",{"$f":"IF(Gruppenplanung!$T$28=4,\"-\",IF(Gruppenplanung!$T$28=5,Gruppenplanung!$N$26,Gruppenplanung!$N$30))","v":0}]
[null,null,null,null,null,"Spiele:",0,null,0]
[null,null,null,null,null,"Punkte:",{"$f":"IF(G37>I37,2,IF(G37<I37,0,IF(G37=0,0,1)))","v":0},null,{"$f":"IF(G37<I37,2,IF(G37>I37,0,IF(I37=0,0,1)))","v":0}]
[null,null,null,null,null,null,{"$f":"IF(Gruppenplanung!$T$28=4,\"-\",IF(Gruppenplanung!$T$28=5,Gruppenplanung!$N$27,Gruppenplanung!$N$26))","v":0},"gegen",{"$f":"IF(Gruppenplanung!$T$28=4,\"-\",IF(Gruppenplanung!$T$28=5,Gruppenplanung!$N$30,Gruppenplanung!$N$31))","v":0}]
[null,null,null,null,null,"Spiele:",0,null,0]
[null,null,null,null,null,"Punkte:",{"$f":"IF(G40>I40,2,IF(G40<I40,0,IF(G40=0,0,1)))","v":0},null,{"$f":"IF(G40<I40,2,IF(G40>I40,0,IF(I40=0,0,1)))","v":0}]
[null,null,null,null,null,null,{"$f":"IF(Gruppenplanung!$T$28=6,Gruppenplanung!$N$27,\"-\")","v":"-"},"gegen",{"$f":"IF(Gruppenplanung!$T$28=6,Gruppenplanung!$N$28,\"-\")","v":"-"}]
[null,null,null,null,null,"Spiele:",0,null,0]
[null,null,null,null,null,"Punkte:",{"$f":"IF(G43>I43,2,IF(G43<I43,0,IF(G43=0,0,1)))","v":0},null,{"$f":"IF(G43<I43,2,IF(G43>I43,0,IF(I43=0,0,1)))","v":0}]
[null,null,null,null,"Spielausrichtend:",null,{"$f":"IF(Gruppenplanung!$T$28>4,Gruppenplanung!$N$30,\"-\")","v":"-"},"Am:","DATUM"]
[null,null,null,null,"Spieltag: 5",null,{"$f":"IF(Gruppenplanung!$T$28=4,\"-\",IF(Gruppenplanung!$T$28=5,Gruppenplanung!$N$30,Gruppenplanung!$N$30))","v":0},"gegen",{"$f":"IF(Gruppenplanung!$T$28=4,\"-\",IF(Gruppenplanung!$T$28=5,Gruppenplanung!$N$29,Gruppenplanung!$N$28))","v":0}]
[null,null,null,null,null,"Spiele:",0,null,0]
[null,null,null,null,null,"Punkte:",{"$f":"IF(G47>I47,2,IF(G47<I47,0,IF(G47=0,0,1)))","v":0},null,{"$f":"IF(G47<I47,2,IF(G47>I47,0,IF(I47=0,0,1)))","v":0}]
[null,null,null,null,null,null,{"$f":"IF(Gruppenplanung!$T$28=4,\"-\",IF(Gruppenplanung!$T$28=5,Gruppenplanung!$N$26,Gruppenplanung!$N$26))","v":0},"gegen",{"$f":"IF(Gruppenplanung!$T$28=4,\"-\",IF(Gruppenplanung!$T$28=5,Gruppenplanung!$N$28,Gruppenplanung!$N$29))","v":0}]
[null,null,null,null,null,"Spiele:",0,null,0]
[null,null,null,null,null,"Punkte:",{"$f":"IF(G50>I50,2,IF(G50<I50,0,IF(G50=0,0,1)))","v":0},null,{"$f":"IF(G50<I50,2,IF(G50>I50,0,IF(I50=0,0,1)))","v":0}]
[null,null,null,null,null,null,{"$f":"IF(Gruppenplanung!$T$28=6,Gruppenplanung!$N$27,\"-\")","v":"-"},"gegen",{"$f":"IF(Gruppenplanung!$T$28=6,Gruppenplanung!$N$31,\"-\")","v":"-"}]
[null,null,null,null,null,"Spiele:",0,null,0]
[null,null,null,null,null,"Punkte:",{"$f":"IF(G53>I53,2,IF(G53<I53,0,IF(G53=0,0,1)))","v":0},null,{"$f":"IF(G53<I53,2,IF(G53>I53,0,IF(I53=0,0,1)))","v":0}]
[]
[]
[]
[null,null,null,null,null,null,null,null,null,null,null,null,null," "]

{"sheet":"Liga_3E","index":14,"n_rows":58,"n_cols":14,"rows_kept":58,"cut":false,"hidden":true,"merged":[[24,4,24,5],[1,4,2,8],[4,4,4,5],[5,4,13,4],[14,4,14,5],[15,4,23,4],[25,4,33,4],[34,4,34,5],[35,4,43,4],[44,4,44,5],[45,4,53,4]]}
[]
[null,null,null,null,"Liga 3E"]
[]
[]
[null,null,null,null,"Spielausrichtend:",null,{"$f":"Gruppenplanung!$Q$26","v":0},"Am:","01.06.2023"]
[null,null,null,null,"Spieltag: 1",null,{"$f":"Gruppenplanung!$Q$26","v":0},"gegen",{"$f":"Gruppenplanung!$Q$27","v":0}]
[null,null,null,null,null,"Spiele:",0,null,0]
[null,null,null,null,null,"Punkte:",{"$f":"IF(G7>I7,2,IF(G7<I7,0,IF(G7=0,0,1)))","v":0},null,{"$f":"IF(G7<I7,2,IF(G7>I7,0,IF(I7=0,0,1)))","v":0}]
[null,null,null,null,null,null,{"$f":"Gruppenplanung!$Q$28","v":0},"gegen",{"$f":"Gruppenplanung!$Q$29","v":0}]
[null,null,null,null,null,"Spiele:",0,null,0]
[null,null,null,null,null,"Punkte:",{"$f":"IF(G10>I10,2,IF(G10<I10,0,IF(G10=0,0,1)))","v":0},null,{"$f":"IF(G10<I10,2,IF(G10>I10,0,IF(I10=0,0,1)))","v":0}]
[null,null,null,null,null,null,{"$f":"IF(Gruppenplanung!$T$29=6,Gruppenplanung!$Q$30,\"-\")","v":"-"},"gegen",{"$f":"IF(Gruppenplanung!$T$29=6,Gruppenplanung!$Q$31,\"-\")","v":"-"}]
[null,null,null,null,null,"Spiele:",0,null,0]
[null,null,null,null,null,"Punkte:",{"$f":"IF(G13>I13,2,IF(G13<I13,0,IF(G13=0,0,1)))","v":0},null,{"$f":"IF(G13<I13,2,IF(G13>I13,0,IF(I13=0,0,1)))","v":0}]
[null,null,null,null,"Spielausrichtend:",null,{"$f":"Gruppenplanung!$Q$27","v":0},"Am:"," 22.06.2023"]
[null,null,null,null,"Spieltag: 2",null,{"$f":"IF(OR(Gruppenplanung!$T$29=4,Gruppenplanung!$T$29=5),Gruppenplanung!$Q$27,Gruppenplanung!$Q$27)","v":0},"gegen",{"$f":"IF(OR(Gruppenplanung!$T$29=4,Gruppenplanung!$T$29=5),Gruppenplanung!$Q$28,Gruppenplanung!$Q$29)","v":0}]
[null,null,null,null,null,"Spiele:",0,null,0]
[null,null,null,null,null,"Punkte:",{"$f":"IF(G17>I17,2,IF(G17<I17,0,IF(G17=0,0,1)))","v":0},null,{"$f":"IF(G17<I17,2,IF(G17>I17,0,IF(I17=0,0,1)))","v":0}]
[null,null,null,null,null,null,{"$f":"IF(OR(Gruppenplanung!$T$29=5,Gruppenplanung!$T$29=6),Gruppenplanung!$Q$26,Gruppenplanung!$Q$29)","v":0},"gegen",{"$f":"IF(OR(Gruppenplanung!$T$29=5,Gruppenplanung!$T$29=6),Gruppenplanung!$Q$30,Gruppenplanung!$Q$26)","v":0}]
[null,null,null,null,null,"Spiele:",0,null,0]
[null,null,null,null,null,"Punkte:",{"$f":"IF(G20>I20,2,IF(G20<I20,0,IF(G20=0,0,1)))","v":0},null,{"$f":"IF(G20<I20,2,IF(G20>I20,0,IF(I20=0,0,1)))","v":0}]
[null,null,null,null,null,null,{"$f":"IF(Gruppenplanung!$T$29=6,Gruppenplanung!$Q$28,\"-\")","v":"-"},"gegen",{"$f":"IF(Gruppenplanung!$T$29=6,Gruppenplanung!$Q$31,\"-\")","v":"-"}]
[null,null,null,null,null,"Spiele:",0,null,0]
[null,null,null,null,null,"Punkte:",{"$f":"IF(G23>I23,2,IF(G23<I23,0,IF(G23=0,0,1)))","v":0},null,{"$f":"IF(G23<I23,2,IF(G23>I23,0,IF(I23=0,0,1)))","v":0}]
[null,null,null,null,"Spielausrichtend:",null,{"$f":"Gruppenplanung!$Q$28","v":0},"Am:","07.09.2023"]
[null,null,null,null,"Spieltag: 3",null,{"$f":"Gruppenplanung!$Q$28","v":0},"gegen",{"$f":"IF(OR(Gruppenplanung!$T$29=4,Gruppenplanung!$T$29=6),Gruppenplanung!$Q$26,Gruppenplanung!$Q$30)","v":0}]
[null,null,null,null,null,"Spiele:",0,null,0]
[null,null,null,null,null,"Punkte:",{"$f":"IF(G27>I27,2,IF(G27<I27,0,IF(G27=0,0,1)))","v":0},null,{"$f":"IF(G27<I27,2,IF(G27>I27,0,IF(I27=0,0,1)))","v":0}]
[null,null,null,null,null,null,{"$f":"Gruppenplanung!$Q$27","v":0},"gegen",{"$f":"IF(OR(Gruppenplanung!$T$29=4,Gruppenplanung!$T$29=5),Gruppenplanung!$Q$29,Gruppenplanung!$Q$30)","v":0}]
[null,null,null,null,null,"Spiele:",0,null,0]
[null,null,null,null,null,"Punkte:",{"$f":"IF(G30>I30,2,IF(G30<I30,0,IF(G30=0,0,1)))","v":0},null,{"$f":"IF(G30<I30,2,IF(G30>I30,0,IF(I30=0,0,1)))","v":0}]
[null,null,null,null,null,null,{"$f":"IF(Gruppenplanung!$T$29=6,Gruppenplanung!$Q$29,\"-\")","v":"-"},"gegen",{"$f":"IF(Gruppenplanung!$T$29=6,Gruppenplanung!$Q$31,\"-\")","v":"-"}]
[null,null,null,null,null,"Spiele:",0,null,0]
[null,null,null,null,null,"Punkte:",{"$f":"IF(G33>I33,2,IF(G33<I33,0,IF(G33=0,0,1)))","v":0},null,{"$f":"IF(G33<I33,2,IF(G33>I33,0,IF(I33=0,0,1)))","v":0}]
[null,null,null,null,"Spielausrichtend:",null,{"$f":"IF(Gruppenplanung!$T$29>4,Gruppenplanung!$Q$29,\"-\")","v":"-"},"Am:","DATUM"]
[null,null,null,null,"Spieltag: 4",null,{"$f":"IF(OR(Gruppenplanung!$T$29=5,Gruppenplanung!$T$29=6),Gruppenplanung!$Q$29,\"-\")","v":"-"},"gegen",{"$f":"IF(Gruppenplanung!$T$29=4,\"-\",IF(Gruppenplanung!$T$29=5,Gruppenplanung!$Q$26,Gruppenplanung!$Q$30))","v":0}]
[null,null,null,null,null,"Spiele:",0,null,0]
[null,null,null,null,null,"Punkte:",{"$f":"IF(G37>I37,2,IF(G37<I37,0,IF(G37=0,0,1)))","v":0},null,{"$f":"IF(G37<I37,2,IF(G37>I37,0,IF(I37=0,0,1)))","v":0}]
[null,null,null,null,null,null,{"$f":"IF(Gruppenplanung!$T$29=4,\"-\",IF(Gruppenplanung!$T$29=5,Gruppenplanung!$Q$27,Gruppenplanung!$Q$26))","v":0},"gegen",{"$f":"IF(Gruppenplanung!$T$29=4,\"-\",IF(Gruppenplanung!$T$29=5,Gruppenplanung!$Q$30,Gruppenplanung!$Q$31))","v":0}]
[null,null,null,null,null,"Spiele:",0,null,0]
[null,null,null,null,null,"Punkte:",{"$f":"IF(G40>I40,2,IF(G40<I40,0,IF(G40=0,0,1)))","v":0},null,{"$f":"IF(G40<I40,2,IF(G40>I40,0,IF(I40=0,0,1)))","v":0}]
[null,null,null,null,null,null,{"$f":"IF(Gruppenplanung!$T$29=6,Gruppenplanung!$Q$27,\"-\")","v":"-"},"gegen",{"$f":"IF(Gruppenplanung!$T$29=6,Gruppenplanung!$Q$28,\"-\")","v":"-"}]
[null,null,null,null,null,"Spiele:",0,null,0]
[null,null,null,null,null,"Punkte:",{"$f":"IF(G43>I43,2,IF(G43<I43,0,IF(G43=0,0,1)))","v":0},null,{"$f":"IF(G43<I43,2,IF(G43>I43,0,IF(I43=0,0,1)))","v":0}]
[null,null,null,null,"Spielausrichtend:",null,{"$f":"IF(Gruppenplanung!$T$29>4,Gruppenplanung!$Q$30,\"-\")","v":"-"},"Am:","DATUM"]
[null,null,null,null,"Spieltag: 5",null,{"$f":"IF(Gruppenplanung!$T$29=4,\"-\",IF(Gruppenplanung!$T$29=5,Gruppenplanung!$Q$30,Gruppenplanung!$Q$30))","v":0},"gegen",{"$f":"IF(Gruppenplanung!$T$29=4,\"-\",IF(Gruppenplanung!$T$29=5,Gruppenplanung!$Q$29,Gruppenplanung!$Q$28))","v":0}]
[null,null,null,null,null,"Spiele:",0,null,0]
[null,null,null,null,null,"Punkte:",{"$f":"IF(G47>I47,2,IF(G47<I47,0,IF(G47=0,0,1)))","v":0},null,{"$f":"IF(G47<I47,2,IF(G47>I47,0,IF(I47=0,0,1)))","v":0}]
[null,null,null,null,null,null,{"$f":"IF(Gruppenplanung!$T$29=4,\"-\",IF(Gruppenplanung!$T$29=5,Gruppenplanung!$Q$26,Gruppenplanung!$Q$26))","v":0},"gegen",{"$f":"IF(Gruppenplanung!$T$29=4,\"-\",IF(Gruppenplanung!$T$29=5,Gruppenplanung!$Q$28,Gruppenplanung!$Q$29))","v":0}]
[null,null,null,null,null,"Spiele:",0,null,0]
[null,null,null,null,null,"Punkte:",{"$f":"IF(G50>I50,2,IF(G50<I50,0,IF(G50=0,0,1)))","v":0},null,{"$f":"IF(G50<I50,2,IF(G50>I50,0,IF(I50=0,0,1)))","v":0}]
[null,null,null,null,null,null,{"$f":"IF(Gruppenplanung!$T$29=6,Gruppenplanung!$Q$27,\"-\")","v":"-"},"gegen",{"$f":"IF(Gruppenplanung!$T$29=6,Gruppenplanung!$Q$31,\"-\")","v":"-"}]
[null,null,null,null,null,"Spiele:",0,null,0]
[null,null,null,null,null,"Punkte:",{"$f":"IF(G53>I53,2,IF(G53<I53,0,IF(G53=0,0,1)))","v":0},null,{"$f":"IF(G53<I53,2,IF(G53>I53,0,IF(I53=0,0,1)))","v":0}]
[]
[]
[]
[null,null,null,null,null,null,null,null,null,null,null,null,null," "]

{"sheet":"Liga_4A","index":15,"n_rows":58,"n_cols":14,"rows_kept":58,"cut":false,"hidden":true,"merged":[[25,4,33,4],[34,4,34,5],[35,4,43,4],[44,4,44,5],[45,4,53,4],[24,4,24,5],[1,4,2,8],[4,4,4,5],[5,4,13,4],[14,4,14,5],[15,4,23,4]]}
[]
[null,null,null,null,"Liga 4A"]
[]
[]
[null,null,null,null,"Spielausrichtend:",null,{"$f":"Gruppenplanung!$E$35","v":0},"Am:","DATUM"]
[null,null,null,null,"Spieltag: 1",null,{"$f":"Gruppenplanung!$E$35","v":0},"gegen",{"$f":"Gruppenplanung!$E$36","v":0}]
[null,null,null,null,null,"Spiele:",0,null,0]
[null,null,null,null,null,"Punkte:",{"$f":"IF(G7>I7,2,IF(G7<I7,0,IF(G7=0,0,1)))","v":0},null,{"$f":"IF(G7<I7,2,IF(G7>I7,0,IF(I7=0,0,1)))","v":0}]
[null,null,null,null,null,null,{"$f":"Gruppenplanung!$E$37","v":0},"gegen",{"$f":"Gruppenplanung!$E$38","v":0}]
[null,null,null,null,null,"Spiele:",0,null,0]
[null,null,null,null,null,"Punkte:",{"$f":"IF(G10>I10,2,IF(G10<I10,0,IF(G10=0,0,1)))","v":0},null,{"$f":"IF(G10<I10,2,IF(G10>I10,0,IF(I10=0,0,1)))","v":0}]
[null,null,null,null,null,null,{"$f":"IF(Gruppenplanung!$T$31=6,Gruppenplanung!$E$39,\"-\")","v":"-"},"gegen",{"$f":"IF(Gruppenplanung!$T$31=6,Gruppenplanung!$E$40,\"-\")","v":"-"}]
[null,null,null,null,null,"Spiele:",0,null,0]
[null,null,null,null,null,"Punkte:",{"$f":"IF(G13>I13,2,IF(G13<I13,0,IF(G13=0,0,1)))","v":0},null,{"$f":"IF(G13<I13,2,IF(G13>I13,0,IF(I13=0,0,1)))","v":0}]
[null,null,null,null,"Spielausrichtend:",null,{"$f":"Gruppenplanung!$E$36","v":0},"Am:","DATUM"]
[null,null,null,null,"Spieltag: 2",null,{"$f":"IF(OR(Gruppenplanung!$T$31=4,Gruppenplanung!$T$31=5),Gruppenplanung!$E$36,Gruppenplanung!$E$36)","v":0},"gegen",{"$f":"IF(OR(Gruppenplanung!$T$31=4,Gruppenplanung!$T$31=5),Gruppenplanung!$E$37,Gruppenplanung!$E$38)","v":0}]
[null,null,null,null,null,"Spiele:",0,null,0]
[null,null,null,null,null,"Punkte:",{"$f":"IF(G17>I17,2,IF(G17<I17,0,IF(G17=0,0,1)))","v":0},null,{"$f":"IF(G17<I17,2,IF(G17>I17,0,IF(I17=0,0,1)))","v":0}]
[null,null,null,null,null,null,{"$f":"IF(OR(Gruppenplanung!$T$31=5,Gruppenplanung!$T$31=6),Gruppenplanung!$E$35,Gruppenplanung!$E$38)","v":0},"gegen",{"$f":"IF(OR(Gruppenplanung!$T$31=5,Gruppenplanung!$T$31=6),Gruppenplanung!$E$39,Gruppenplanung!$E$35)","v":0}]
[null,null,null,null,null,"Spiele:",0,null,0]
[null,null,null,null,null,"Punkte:",{"$f":"IF(G20>I20,2,IF(G20<I20,0,IF(G20=0,0,1)))","v":0},null,{"$f":"IF(G20<I20,2,IF(G20>I20,0,IF(I20=0,0,1)))","v":0}]
[null,null,null,null,null,null,{"$f":"IF(Gruppenplanung!$T$31=6,Gruppenplanung!$E$37,\"-\")","v":"-"},"gegen",{"$f":"IF(Gruppenplanung!$T$31=6,Gruppenplanung!$E$40,\"-\")","v":"-"}]
[null,null,null,null,null,"Spiele:",0,null,0]
[null,null,null,null,null,"Punkte:",{"$f":"IF(G23>I23,2,IF(G23<I23,0,IF(G23=0,0,1)))","v":0},null,{"$f":"IF(G23<I23,2,IF(G23>I23,0,IF(I23=0,0,1)))","v":0}]
[null,null,null,null,"Spielausrichtend:",null,{"$f":"Gruppenplanung!$E$37","v":0},"Am:","DATUM"]
[null,null,null,null,"Spieltag: 3",null,{"$f":"Gruppenplanung!$E$37","v":0},"gegen",{"$f":"IF(OR(Gruppenplanung!$T$31=4,Gruppenplanung!$T$31=6),Gruppenplanung!$E$35,Gruppenplanung!$E$39)","v":0}]
[null,null,null,null,null,"Spiele:",0,null,0]
[null,null,null,null,null,"Punkte:",{"$f":"IF(G27>I27,2,IF(G27<I27,0,IF(G27=0,0,1)))","v":0},null,{"$f":"IF(G27<I27,2,IF(G27>I27,0,IF(I27=0,0,1)))","v":0}]
[null,null,null,null,null,null,{"$f":"Gruppenplanung!$E$36","v":0},"gegen",{"$f":"IF(OR(Gruppenplanung!$T$31=4,Gruppenplanung!$T$31=5),Gruppenplanung!$E$38,Gruppenplanung!$E$39)","v":0}]
[null,null,null,null,null,"Spiele:",0,null,0]
[null,null,null,null,null,"Punkte:",{"$f":"IF(G30>I30,2,IF(G30<I30,0,IF(G30=0,0,1)))","v":0},null,{"$f":"IF(G30<I30,2,IF(G30>I30,0,IF(I30=0,0,1)))","v":0}]
[null,null,null,null,null,null,{"$f":"IF(Gruppenplanung!$T$31=6,Gruppenplanung!$E$38,\"-\")","v":"-"},"gegen",{"$f":"IF(Gruppenplanung!$T$31=6,Gruppenplanung!$E$40,\"-\")","v":"-"}]
[null,null,null,null,null,"Spiele:",0,null,0]
[null,null,null,null,null,"Punkte:",{"$f":"IF(G33>I33,2,IF(G33<I33,0,IF(G33=0,0,1)))","v":0},null,{"$f":"IF(G33<I33,2,IF(G33>I33,0,IF(I33=0,0,1)))","v":0}]
[null,null,null,null,"Spielausrichtend:",null,{"$f":"IF(Gruppenplanung!$T$31>4,Gruppenplanung!$E$38,\"-\")","v":"-"},"Am:","DATUM"]
[null,null,null,null,"Spieltag: 4",null,{"$f":"IF(OR(Gruppenplanung!$T$31=5,Gruppenplanung!$T$31=6),Gruppenplanung!$E$38,\"-\")","v":"-"},"gegen",{"$f":"IF(Gruppenplanung!$T$31=4,\"-\",IF(Gruppenplanung!$T$31=5,Gruppenplanung!$E$35,Gruppenplanung!$E$39))","v":0}]
[null,null,null,null,null,"Spiele:",0,null,0]
[null,null,null,null,null,"Punkte:",{"$f":"IF(G37>I37,2,IF(G37<I37,0,IF(G37=0,0,1)))","v":0},null,{"$f":"IF(G37<I37,2,IF(G37>I37,0,IF(I37=0,0,1)))","v":0}]
[null,null,null,null,null,null,{"$f":"IF(Gruppenplanung!$T$31=4,\"-\",IF(Gruppenplanung!$T$31=5,Gruppenplanung!$E$36,Gruppenplanung!$E$35))","v":0},"gegen",{"$f":"IF(Gruppenplanung!$T$31=4,\"-\",IF(Gruppenplanung!$T$31=5,Gruppenplanung!$E$39,Gruppenplanung!$E$40))","v":0}]
[null,null,null,null,null,"Spiele:",0,null,0]
[null,null,null,null,null,"Punkte:",{"$f":"IF(G40>I40,2,IF(G40<I40,0,IF(G40=0,0,1)))","v":0},null,{"$f":"IF(G40<I40,2,IF(G40>I40,0,IF(I40=0,0,1)))","v":0}]
[null,null,null,null,null,null,{"$f":"IF(Gruppenplanung!$T$31=6,Gruppenplanung!$E$36,\"-\")","v":"-"},"gegen",{"$f":"IF(Gruppenplanung!$T$31=6,Gruppenplanung!$E$37,\"-\")","v":"-"}]
[null,null,null,null,null,"Spiele:",0,null,0]
[null,null,null,null,null,"Punkte:",{"$f":"IF(G43>I43,2,IF(G43<I43,0,IF(G43=0,0,1)))","v":0},null,{"$f":"IF(G43<I43,2,IF(G43>I43,0,IF(I43=0,0,1)))","v":0}]
[null,null,null,null,"Spielausrichtend:",null,{"$f":"IF(Gruppenplanung!$T$31>4,Gruppenplanung!$E$39,\"-\")","v":"-"},"Am:","DATUM"]
[null,null,null,null,"Spieltag: 5",null,{"$f":"IF(Gruppenplanung!$T$31=4,\"-\",IF(Gruppenplanung!$T$31=5,Gruppenplanung!$E$39,Gruppenplanung!$E$39))","v":0},"gegen",{"$f":"IF(Gruppenplanung!$T$31=4,\"-\",IF(Gruppenplanung!$T$31=5,Gruppenplanung!$E$38,Gruppenplanung!$E$37))","v":0}]
[null,null,null,null,null,"Spiele:",0,null,0]
[null,null,null,null,null,"Punkte:",{"$f":"IF(G47>I47,2,IF(G47<I47,0,IF(G47=0,0,1)))","v":0},null,{"$f":"IF(G47<I47,2,IF(G47>I47,0,IF(I47=0,0,1)))","v":0}]
[null,null,null,null,null,null,{"$f":"IF(Gruppenplanung!$T$31=4,\"-\",IF(Gruppenplanung!$T$31=5,Gruppenplanung!$E$35,Gruppenplanung!$E$35))","v":0},"gegen",{"$f":"IF(Gruppenplanung!$T$31=4,\"-\",IF(Gruppenplanung!$T$31=5,Gruppenplanung!$E$37,Gruppenplanung!$E$38))","v":0}]
[null,null,null,null,null,"Spiele:",0,null,0]
[null,null,null,null,null,"Punkte:",{"$f":"IF(G50>I50,2,IF(G50<I50,0,IF(G50=0,0,1)))","v":0},null,{"$f":"IF(G50<I50,2,IF(G50>I50,0,IF(I50=0,0,1)))","v":0}]
[null,null,null,null,null,null,{"$f":"IF(Gruppenplanung!$T$31=6,Gruppenplanung!$E$36,\"-\")","v":"-"},"gegen",{"$f":"IF(Gruppenplanung!$T$31=6,Gruppenplanung!$E$40,\"-\")","v":"-"}]
[null,null,null,null,null,"Spiele:",0,null,0]
[null,null,null,null,null,"Punkte:",{"$f":"IF(G53>I53,2,IF(G53<I53,0,IF(G53=0,0,1)))","v":0},null,{"$f":"IF(G53<I53,2,IF(G53>I53,0,IF(I53=0,0,1)))","v":0}]
[]
[]
[]
[null,null,null,null,null,null,null,null,null,null,null,null,null," "]

{"sheet":"Liga_4B","index":16,"n_rows":58,"n_cols":14,"rows_kept":58,"cut":false,"hidden":true,"merged":[[25,4,33,4],[34,4,34,5],[35,4,43,4],[44,4,44,5],[45,4,53,4],[24,4,24,5],[1,4,2,8],[4,4,4,5],[5,4,13,4],[14,4,14,5],[15,4,23,4]]}
[]
[null,null,null,null,"Liga 4B"]
[]
[]
[null,null,null,null,"Spielausrichtend:",null,{"$f":"Gruppenplanung!$H$35","v":0},"Am:","DATUM"]
[null,null,null,null,"Spieltag: 1",null,{"$f":"Gruppenplanung!$H$35","v":0},"gegen",{"$f":"Gruppenplanung!$H$36","v":0}]
[null,null,null,null,null,"Spiele:",0,null,0]
[null,null,null,null,null,"Punkte:",{"$f":"IF(G7>I7,2,IF(G7<I7,0,IF(G7=0,0,1)))","v":0},null,{"$f":"IF(G7<I7,2,IF(G7>I7,0,IF(I7=0,0,1)))","v":0}]
[null,null,null,null,null,null,{"$f":"Gruppenplanung!$H$37","v":0},"gegen",{"$f":"Gruppenplanung!$H$38","v":0}]
[null,null,null,null,null,"Spiele:",0,null,0]
[null,null,null,null,null,"Punkte:",{"$f":"IF(G10>I10,2,IF(G10<I10,0,IF(G10=0,0,1)))","v":0},null,{"$f":"IF(G10<I10,2,IF(G10>I10,0,IF(I10=0,0,1)))","v":0}]
[null,null,null,null,null,null,{"$f":"IF(Gruppenplanung!$T$32=6,Gruppenplanung!$H$39,\"-\")","v":"-"},"gegen",{"$f":"IF(Gruppenplanung!$T$32=6,Gruppenplanung!$H$40,\"-\")","v":"-"}]
[null,null,null,null,null,"Spiele:",0,null,0]
[null,null,null,null,null,"Punkte:",{"$f":"IF(G13>I13,2,IF(G13<I13,0,IF(G13=0,0,1)))","v":0},null,{"$f":"IF(G13<I13,2,IF(G13>I13,0,IF(I13=0,0,1)))","v":0}]
[null,null,null,null,"Spielausrichtend:",null,{"$f":"Gruppenplanung!$H$36","v":0},"Am:","DATUM"]
[null,null,null,null,"Spieltag: 2",null,{"$f":"IF(OR(Gruppenplanung!$T$32=4,Gruppenplanung!$T$32=5),Gruppenplanung!$H$36,Gruppenplanung!$H$36)","v":0},"gegen",{"$f":"IF(OR(Gruppenplanung!$T$32=4,Gruppenplanung!$T$32=5),Gruppenplanung!$H$37,Gruppenplanung!$H$38)","v":0}]
[null,null,null,null,null,"Spiele:",0,null,0]
[null,null,null,null,null,"Punkte:",{"$f":"IF(G17>I17,2,IF(G17<I17,0,IF(G17=0,0,1)))","v":0},null,{"$f":"IF(G17<I17,2,IF(G17>I17,0,IF(I17=0,0,1)))","v":0}]
[null,null,null,null,null,null,{"$f":"IF(OR(Gruppenplanung!$T$32=5,Gruppenplanung!$T$32=6),Gruppenplanung!$H$35,Gruppenplanung!$H$38)","v":0},"gegen",{"$f":"IF(OR(Gruppenplanung!$T$32=5,Gruppenplanung!$T$32=6),Gruppenplanung!$H$39,Gruppenplanung!$H$35)","v":0}]
[null,null,null,null,null,"Spiele:",0,null,0]
[null,null,null,null,null,"Punkte:",{"$f":"IF(G20>I20,2,IF(G20<I20,0,IF(G20=0,0,1)))","v":0},null,{"$f":"IF(G20<I20,2,IF(G20>I20,0,IF(I20=0,0,1)))","v":0}]
[null,null,null,null,null,null,{"$f":"IF(Gruppenplanung!$T$32=6,Gruppenplanung!$H$37,\"-\")","v":"-"},"gegen",{"$f":"IF(Gruppenplanung!$T$32=6,Gruppenplanung!$H$40,\"-\")","v":"-"}]
[null,null,null,null,null,"Spiele:",0,null,0]
[null,null,null,null,null,"Punkte:",{"$f":"IF(G23>I23,2,IF(G23<I23,0,IF(G23=0,0,1)))","v":0},null,{"$f":"IF(G23<I23,2,IF(G23>I23,0,IF(I23=0,0,1)))","v":0}]
[null,null,null,null,"Spielausrichtend:",null,{"$f":"Gruppenplanung!$H$37","v":0},"Am:","DATUM"]
[null,null,null,null,"Spieltag: 3",null,{"$f":"Gruppenplanung!$H$37","v":0},"gegen",{"$f":"IF(OR(Gruppenplanung!$T$32=4,Gruppenplanung!$T$32=6),Gruppenplanung!$H$35,Gruppenplanung!$H$39)","v":0}]
[null,null,null,null,null,"Spiele:",0,null,0]
[null,null,null,null,null,"Punkte:",{"$f":"IF(G27>I27,2,IF(G27<I27,0,IF(G27=0,0,1)))","v":0},null,{"$f":"IF(G27<I27,2,IF(G27>I27,0,IF(I27=0,0,1)))","v":0}]
[null,null,null,null,null,null,{"$f":"Gruppenplanung!$H$36","v":0},"gegen",{"$f":"IF(OR(Gruppenplanung!$T$32=4,Gruppenplanung!$T$32=5),Gruppenplanung!$H$38,Gruppenplanung!$H$39)","v":0}]
[null,null,null,null,null,"Spiele:",0,null,0]
[null,null,null,null,null,"Punkte:",{"$f":"IF(G30>I30,2,IF(G30<I30,0,IF(G30=0,0,1)))","v":0},null,{"$f":"IF(G30<I30,2,IF(G30>I30,0,IF(I30=0,0,1)))","v":0}]
[null,null,null,null,null,null,{"$f":"IF(Gruppenplanung!$T$32=6,Gruppenplanung!$H$38,\"-\")","v":"-"},"gegen",{"$f":"IF(Gruppenplanung!$T$32=6,Gruppenplanung!$H$40,\"-\")","v":"-"}]
[null,null,null,null,null,"Spiele:",0,null,0]
[null,null,null,null,null,"Punkte:",{"$f":"IF(G33>I33,2,IF(G33<I33,0,IF(G33=0,0,1)))","v":0},null,{"$f":"IF(G33<I33,2,IF(G33>I33,0,IF(I33=0,0,1)))","v":0}]
[null,null,null,null,"Spielausrichtend:",null,{"$f":"IF(Gruppenplanung!$T$32>4,Gruppenplanung!$H$38,\"-\")","v":"-"},"Am:","DATUM"]
[null,null,null,null,"Spieltag: 4",null,{"$f":"IF(OR(Gruppenplanung!$T$32=5,Gruppenplanung!$T$32=6),Gruppenplanung!$H$38,\"-\")","v":"-"},"gegen",{"$f":"IF(Gruppenplanung!$T$32=4,\"-\",IF(Gruppenplanung!$T$32=5,Gruppenplanung!$H$35,Gruppenplanung!$H$39))","v":0}]
[null,null,null,null,null,"Spiele:",0,null,0]
[null,null,null,null,null,"Punkte:",{"$f":"IF(G37>I37,2,IF(G37<I37,0,IF(G37=0,0,1)))","v":0},null,{"$f":"IF(G37<I37,2,IF(G37>I37,0,IF(I37=0,0,1)))","v":0}]
[null,null,null,null,null,null,{"$f":"IF(Gruppenplanung!$T$32=4,\"-\",IF(Gruppenplanung!$T$32=5,Gruppenplanung!$H$36,Gruppenplanung!$H$35))","v":0},"gegen",{"$f":"IF(Gruppenplanung!$T$32=4,\"-\",IF(Gruppenplanung!$T$32=5,Gruppenplanung!$H$39,Gruppenplanung!$H$40))","v":0}]
[null,null,null,null,null,"Spiele:",0,null,0]
[null,null,null,null,null,"Punkte:",{"$f":"IF(G40>I40,2,IF(G40<I40,0,IF(G40=0,0,1)))","v":0},null,{"$f":"IF(G40<I40,2,IF(G40>I40,0,IF(I40=0,0,1)))","v":0}]
[null,null,null,null,null,null,{"$f":"IF(Gruppenplanung!$T$32=6,Gruppenplanung!$H$36,\"-\")","v":"-"},"gegen",{"$f":"IF(Gruppenplanung!$T$32=6,Gruppenplanung!$H$37,\"-\")","v":"-"}]
[null,null,null,null,null,"Spiele:",0,null,0]
[null,null,null,null,null,"Punkte:",{"$f":"IF(G43>I43,2,IF(G43<I43,0,IF(G43=0,0,1)))","v":0},null,{"$f":"IF(G43<I43,2,IF(G43>I43,0,IF(I43=0,0,1)))","v":0}]
[null,null,null,null,"Spielausrichtend:",null,{"$f":"IF(Gruppenplanung!$T$32>4,Gruppenplanung!$H$39,\"-\")","v":"-"},"Am:","DATUM"]
[null,null,null,null,"Spieltag: 5",null,{"$f":"IF(Gruppenplanung!$T$32=4,\"-\",IF(Gruppenplanung!$T$32=5,Gruppenplanung!$H$39,Gruppenplanung!$H$39))","v":0},"gegen",{"$f":"IF(Gruppenplanung!$T$32=4,\"-\",IF(Gruppenplanung!$T$32=5,Gruppenplanung!$H$38,Gruppenplanung!$H$37))","v":0}]
[null,null,null,null,null,"Spiele:",0,null,0]
[null,null,null,null,null,"Punkte:",{"$f":"IF(G47>I47,2,IF(G47<I47,0,IF(G47=0,0,1)))","v":0},null,{"$f":"IF(G47<I47,2,IF(G47>I47,0,IF(I47=0,0,1)))","v":0}]
[null,null,null,null,null,null,{"$f":"IF(Gruppenplanung!$T$32=4,\"-\",IF(Gruppenplanung!$T$32=5,Gruppenplanung!$H$35,Gruppenplanung!$H$35))","v":0},"gegen",{"$f":"IF(Gruppenplanung!$T$32=4,\"-\",IF(Gruppenplanung!$T$32=5,Gruppenplanung!$H$37,Gruppenplanung!$H$38))","v":0}]
[null,null,null,null,null,"Spiele:",0,null,0]
[null,null,null,null,null,"Punkte:",{"$f":"IF(G50>I50,2,IF(G50<I50,0,IF(G50=0,0,1)))","v":0},null,{"$f":"IF(G50<I50,2,IF(G50>I50,0,IF(I50=0,0,1)))","v":0}]
[null,null,null,null,null,null,{"$f":"IF(Gruppenplanung!$T$32=6,Gruppenplanung!$H$36,\"-\")","v":"-"},"gegen",{"$f":"IF(Gruppenplanung!$T$32=6,Gruppenplanung!$H$40,\"-\")","v":"-"}]
[null,null,null,null,null,"Spiele:",0,null,0]
[null,null,null,null,null,"Punkte:",{"$f":"IF(G53>I53,2,IF(G53<I53,0,IF(G53=0,0,1)))","v":0},null,{"$f":"IF(G53<I53,2,IF(G53>I53,0,IF(I53=0,0,1)))","v":0}]
[]
[]
[]
[null,null,null,null,null,null,null,null,null,null,null,null,null," "]

{"sheet":"Liga_4C","index":17,"n_rows":58,"n_cols":14,"rows_kept":58,"cut":false,"hidden":true,"merged":[[25,4,33,4],[34,4,34,5],[35,4,43,4],[44,4,44,5],[45,4,53,4],[24,4,24,5],[1,4,2,8],[4,4,4,5],[5,4,13,4],[14,4,14,5],[15,4,23,4]]}
[]
[null,null,null,null,"Liga 4C"]
[]
[]
[null,null,null,null,"Spielausrichtend:",null,{"$f":"Gruppenplanung!$K$35","v":0},"Am:","DATUM"]
[null,null,null,null,"Spieltag: 1",null,{"$f":"Gruppenplanung!$K$35","v":0},"gegen",{"$f":"Gruppenplanung!$K$36","v":0}]
[null,null,null,null,null,"Spiele:",0,null,0]
[null,null,null,null,null,"Punkte:",{"$f":"IF(G7>I7,2,IF(G7<I7,0,IF(G7=0,0,1)))","v":0},null,{"$f":"IF(G7<I7,2,IF(G7>I7,0,IF(I7=0,0,1)))","v":0}]
[null,null,null,null,null,null,{"$f":"Gruppenplanung!$K$37","v":0},"gegen",{"$f":"Gruppenplanung!$K$38","v":0}]
[null,null,null,null,null,"Spiele:",0,null,0]
[null,null,null,null,null,"Punkte:",{"$f":"IF(G10>I10,2,IF(G10<I10,0,IF(G10=0,0,1)))","v":0},null,{"$f":"IF(G10<I10,2,IF(G10>I10,0,IF(I10=0,0,1)))","v":0}]
[null,null,null,null,null,null,{"$f":"IF(Gruppenplanung!$T$33=6,Gruppenplanung!$K$39,\"-\")","v":"-"},"gegen",{"$f":"IF(Gruppenplanung!$T$33=6,Gruppenplanung!$K$40,\"-\")","v":"-"}]
[null,null,null,null,null,"Spiele:",0,null,0]
[null,null,null,null,null,"Punkte:",{"$f":"IF(G13>I13,2,IF(G13<I13,0,IF(G13=0,0,1)))","v":0},null,{"$f":"IF(G13<I13,2,IF(G13>I13,0,IF(I13=0,0,1)))","v":0}]
[null,null,null,null,"Spielausrichtend:",null,{"$f":"Gruppenplanung!$K$36","v":0},"Am:","DATUM"]
[null,null,null,null,"Spieltag: 2",null,{"$f":"IF(OR(Gruppenplanung!$T$33=4,Gruppenplanung!$T$33=5),Gruppenplanung!$K$36,Gruppenplanung!$K$36)","v":0},"gegen",{"$f":"IF(OR(Gruppenplanung!$T$33=4,Gruppenplanung!$T$33=5),Gruppenplanung!$K$37,Gruppenplanung!$K$38)","v":0}]
[null,null,null,null,null,"Spiele:",0,null,0]
[null,null,null,null,null,"Punkte:",{"$f":"IF(G17>I17,2,IF(G17<I17,0,IF(G17=0,0,1)))","v":0},null,{"$f":"IF(G17<I17,2,IF(G17>I17,0,IF(I17=0,0,1)))","v":0}]
[null,null,null,null,null,null,{"$f":"IF(OR(Gruppenplanung!$T$33=5,Gruppenplanung!$T$33=6),Gruppenplanung!$K$35,Gruppenplanung!$K$38)","v":0},"gegen",{"$f":"IF(OR(Gruppenplanung!$T$33=5,Gruppenplanung!$T$33=6),Gruppenplanung!$K$39,Gruppenplanung!$K$35)","v":0}]
[null,null,null,null,null,"Spiele:",0,null,0]
[null,null,null,null,null,"Punkte:",{"$f":"IF(G20>I20,2,IF(G20<I20,0,IF(G20=0,0,1)))","v":0},null,{"$f":"IF(G20<I20,2,IF(G20>I20,0,IF(I20=0,0,1)))","v":0}]
[null,null,null,null,null,null,{"$f":"IF(Gruppenplanung!$T$33=6,Gruppenplanung!$K$37,\"-\")","v":"-"},"gegen",{"$f":"IF(Gruppenplanung!$T$33=6,Gruppenplanung!$K$40,\"-\")","v":"-"}]
[null,null,null,null,null,"Spiele:",0,null,0]
[null,null,null,null,null,"Punkte:",{"$f":"IF(G23>I23,2,IF(G23<I23,0,IF(G23=0,0,1)))","v":0},null,{"$f":"IF(G23<I23,2,IF(G23>I23,0,IF(I23=0,0,1)))","v":0}]
[null,null,null,null,"Spielausrichtend:",null,{"$f":"Gruppenplanung!$K$37","v":0},"Am:","DATUM"]
[null,null,null,null,"Spieltag: 3",null,{"$f":"Gruppenplanung!$K$37","v":0},"gegen",{"$f":"IF(OR(Gruppenplanung!$T$33=4,Gruppenplanung!$T$33=6),Gruppenplanung!$K$35,Gruppenplanung!$K$39)","v":0}]
[null,null,null,null,null,"Spiele:",0,null,0]
[null,null,null,null,null,"Punkte:",{"$f":"IF(G27>I27,2,IF(G27<I27,0,IF(G27=0,0,1)))","v":0},null,{"$f":"IF(G27<I27,2,IF(G27>I27,0,IF(I27=0,0,1)))","v":0}]
[null,null,null,null,null,null,{"$f":"Gruppenplanung!$K$36","v":0},"gegen",{"$f":"IF(OR(Gruppenplanung!$T$33=4,Gruppenplanung!$T$33=5),Gruppenplanung!$K$38,Gruppenplanung!$K$39)","v":0}]
[null,null,null,null,null,"Spiele:",0,null,0]
[null,null,null,null,null,"Punkte:",{"$f":"IF(G30>I30,2,IF(G30<I30,0,IF(G30=0,0,1)))","v":0},null,{"$f":"IF(G30<I30,2,IF(G30>I30,0,IF(I30=0,0,1)))","v":0}]
[null,null,null,null,null,null,{"$f":"IF(Gruppenplanung!$T$33=6,Gruppenplanung!$K$38,\"-\")","v":"-"},"gegen",{"$f":"IF(Gruppenplanung!$T$33=6,Gruppenplanung!$K$40,\"-\")","v":"-"}]
[null,null,null,null,null,"Spiele:",0,null,0]
[null,null,null,null,null,"Punkte:",{"$f":"IF(G33>I33,2,IF(G33<I33,0,IF(G33=0,0,1)))","v":0},null,{"$f":"IF(G33<I33,2,IF(G33>I33,0,IF(I33=0,0,1)))","v":0}]
[null,null,null,null,"Spielausrichtend:",null,{"$f":"IF(Gruppenplanung!$T$33>4,Gruppenplanung!$K$38,\"-\")","v":"-"},"Am:","DATUM"]
[null,null,null,null,"Spieltag: 4",null,{"$f":"IF(OR(Gruppenplanung!$T$33=5,Gruppenplanung!$T$33=6),Gruppenplanung!$K$38,\"-\")","v":"-"},"gegen",{"$f":"IF(Gruppenplanung!$T$33=4,\"-\",IF(Gruppenplanung!$T$33=5,Gruppenplanung!$K$35,Gruppenplanung!$K$39))","v":0}]
[null,null,null,null,null,"Spiele:",0,null,0]
[null,null,null,null,null,"Punkte:",{"$f":"IF(G37>I37,2,IF(G37<I37,0,IF(G37=0,0,1)))","v":0},null,{"$f":"IF(G37<I37,2,IF(G37>I37,0,IF(I37=0,0,1)))","v":0}]
[null,null,null,null,null,null,{"$f":"IF(Gruppenplanung!$T$33=4,\"-\",IF(Gruppenplanung!$T$33=5,Gruppenplanung!$K$36,Gruppenplanung!$K$35))","v":0},"gegen",{"$f":"IF(Gruppenplanung!$T$33=4,\"-\",IF(Gruppenplanung!$T$33=5,Gruppenplanung!$K$39,Gruppenplanung!$K$40))","v":0}]
[null,null,null,null,null,"Spiele:",0,null,0]
[null,null,null,null,null,"Punkte:",{"$f":"IF(G40>I40,2,IF(G40<I40,0,IF(G40=0,0,1)))","v":0},null,{"$f":"IF(G40<I40,2,IF(G40>I40,0,IF(I40=0,0,1)))","v":0}]
[null,null,null,null,null,null,{"$f":"IF(Gruppenplanung!$T$33=6,Gruppenplanung!$K$36,\"-\")","v":"-"},"gegen",{"$f":"IF(Gruppenplanung!$T$33=6,Gruppenplanung!$K$37,\"-\")","v":"-"}]
[null,null,null,null,null,"Spiele:",0,null,0]
[null,null,null,null,null,"Punkte:",{"$f":"IF(G43>I43,2,IF(G43<I43,0,IF(G43=0,0,1)))","v":0},null,{"$f":"IF(G43<I43,2,IF(G43>I43,0,IF(I43=0,0,1)))","v":0}]
[null,null,null,null,"Spielausrichtend:",null,{"$f":"IF(Gruppenplanung!$T$33>4,Gruppenplanung!$K$39,\"-\")","v":"-"},"Am:","DATUM"]
[null,null,null,null,"Spieltag: 5",null,{"$f":"IF(Gruppenplanung!$T$33=4,\"-\",IF(Gruppenplanung!$T$33=5,Gruppenplanung!$K$39,Gruppenplanung!$K$39))","v":0},"gegen",{"$f":"IF(Gruppenplanung!$T$33=4,\"-\",IF(Gruppenplanung!$T$33=5,Gruppenplanung!$K$38,Gruppenplanung!$K$37))","v":0}]
[null,null,null,null,null,"Spiele:",0,null,0]
[null,null,null,null,null,"Punkte:",{"$f":"IF(G47>I47,2,IF(G47<I47,0,IF(G47=0,0,1)))","v":0},null,{"$f":"IF(G47<I47,2,IF(G47>I47,0,IF(I47=0,0,1)))","v":0}]
[null,null,null,null,null,null,{"$f":"IF(Gruppenplanung!$T$33=4,\"-\",IF(Gruppenplanung!$T$33=5,Gruppenplanung!$K$35,Gruppenplanung!$K$35))","v":0},"gegen",{"$f":"IF(Gruppenplanung!$T$33=4,\"-\",IF(Gruppenplanung!$T$33=5,Gruppenplanung!$K$37,Gruppenplanung!$K$38))","v":0}]
[null,null,null,null,null,"Spiele:",0,null,0]
[null,null,null,null,null,"Punkte:",{"$f":"IF(G50>I50,2,IF(G50<I50,0,IF(G50=0,0,1)))","v":0},null,{"$f":"IF(G50<I50,2,IF(G50>I50,0,IF(I50=0,0,1)))","v":0}]
[null,null,null,null,null,null,{"$f":"IF(Gruppenplanung!$T$33=6,Gruppenplanung!$K$36,\"-\")","v":"-"},"gegen",{"$f":"IF(Gruppenplanung!$T$33=6,Gruppenplanung!$K$40,\"-\")","v":"-"}]
[null,null,null,null,null,"Spiele:",0,null,0]
[null,null,null,null,null,"Punkte:",{"$f":"IF(G53>I53,2,IF(G53<I53,0,IF(G53=0,0,1)))","v":0},null,{"$f":"IF(G53<I53,2,IF(G53>I53,0,IF(I53=0,0,1)))","v":0}]
[]
[]
[]
[null,null,null,null,null,null,null,null,null,null,null,null,null," "]

{"sheet":"Liga_4D","index":18,"n_rows":58,"n_cols":14,"rows_kept":58,"cut":false,"hidden":true,"merged":[[25,4,33,4],[34,4,34,5],[35,4,43,4],[44,4,44,5],[45,4,53,4],[24,4,24,5],[1,4,2,8],[4,4,4,5],[5,4,13,4],[14,4,14,5],[15,4,23,4]]}
[]
[null,null,null,null,"Liga 4D"]
[]
[]
[null,null,null,null,"Spielausrichtend:",null,{"$f":"Gruppenplanung!$N$35","v":0},"Am:","DATUM"]
[null,null,null,null,"Spieltag: 1",null,{"$f":"Gruppenplanung!$N$35","v":0},"gegen",{"$f":"Gruppenplanung!$N$36","v":0}]
[null,null,null,null,null,"Spiele:",0,null,0]
[null,null,null,null,null,"Punkte:",{"$f":"IF(G7>I7,2,IF(G7<I7,0,IF(G7=0,0,1)))","v":0},null,{"$f":"IF(G7<I7,2,IF(G7>I7,0,IF(I7=0,0,1)))","v":0}]
[null,null,null,null,null,null,{"$f":"Gruppenplanung!$N$37","v":0},"gegen",{"$f":"Gruppenplanung!$N$38","v":0}]
[null,null,null,null,null,"Spiele:",0,null,0]
[null,null,null,null,null,"Punkte:",{"$f":"IF(G10>I10,2,IF(G10<I10,0,IF(G10=0,0,1)))","v":0},null,{"$f":"IF(G10<I10,2,IF(G10>I10,0,IF(I10=0,0,1)))","v":0}]
[null,null,null,null,null,null,{"$f":"IF(Gruppenplanung!$T$34=6,Gruppenplanung!$N$39,\"-\")","v":"-"},"gegen",{"$f":"IF(Gruppenplanung!$T$34=6,Gruppenplanung!$N$40,\"-\")","v":"-"}]
[null,null,null,null,null,"Spiele:",0,null,0]
[null,null,null,null,null,"Punkte:",{"$f":"IF(G13>I13,2,IF(G13<I13,0,IF(G13=0,0,1)))","v":0},null,{"$f":"IF(G13<I13,2,IF(G13>I13,0,IF(I13=0,0,1)))","v":0}]
[null,null,null,null,"Spielausrichtend:",null,{"$f":"Gruppenplanung!$N$36","v":0},"Am:","DATUM"]
[null,null,null,null,"Spieltag: 2",null,{"$f":"IF(OR(Gruppenplanung!$T$34=4,Gruppenplanung!$T$34=5),Gruppenplanung!$N$36,Gruppenplanung!$N$36)","v":0},"gegen",{"$f":"IF(OR(Gruppenplanung!$T$34=4,Gruppenplanung!$T$34=5),Gruppenplanung!$N$37,Gruppenplanung!$N$38)","v":0}]
[null,null,null,null,null,"Spiele:",0,null,0]
[null,null,null,null,null,"Punkte:",{"$f":"IF(G17>I17,2,IF(G17<I17,0,IF(G17=0,0,1)))","v":0},null,{"$f":"IF(G17<I17,2,IF(G17>I17,0,IF(I17=0,0,1)))","v":0}]
[null,null,null,null,null,null,{"$f":"IF(OR(Gruppenplanung!$T$34=5,Gruppenplanung!$T$34=6),Gruppenplanung!$N$35,Gruppenplanung!$N$38)","v":0},"gegen",{"$f":"IF(OR(Gruppenplanung!$T$34=5,Gruppenplanung!$T$34=6),Gruppenplanung!$N$39,Gruppenplanung!$N$35)","v":0}]
[null,null,null,null,null,"Spiele:",0,null,0]
[null,null,null,null,null,"Punkte:",{"$f":"IF(G20>I20,2,IF(G20<I20,0,IF(G20=0,0,1)))","v":0},null,{"$f":"IF(G20<I20,2,IF(G20>I20,0,IF(I20=0,0,1)))","v":0}]
[null,null,null,null,null,null,{"$f":"IF(Gruppenplanung!$T$34=6,Gruppenplanung!$N$37,\"-\")","v":"-"},"gegen",{"$f":"IF(Gruppenplanung!$T$34=6,Gruppenplanung!$N$40,\"-\")","v":"-"}]
[null,null,null,null,null,"Spiele:",0,null,0]
[null,null,null,null,null,"Punkte:",{"$f":"IF(G23>I23,2,IF(G23<I23,0,IF(G23=0,0,1)))","v":0},null,{"$f":"IF(G23<I23,2,IF(G23>I23,0,IF(I23=0,0,1)))","v":0}]
[null,null,null,null,"Spielausrichtend:",null,{"$f":"Gruppenplanung!$N$37","v":0},"Am:","DATUM"]
[null,null,null,null,"Spieltag: 3",null,{"$f":"Gruppenplanung!$N$37","v":0},"gegen",{"$f":"IF(OR(Gruppenplanung!$T$34=4,Gruppenplanung!$T$34=6),Gruppenplanung!$N$35,Gruppenplanung!$N$39)","v":0}]
[null,null,null,null,null,"Spiele:",0,null,0]
[null,null,null,null,null,"Punkte:",{"$f":"IF(G27>I27,2,IF(G27<I27,0,IF(G27=0,0,1)))","v":0},null,{"$f":"IF(G27<I27,2,IF(G27>I27,0,IF(I27=0,0,1)))","v":0}]
[null,null,null,null,null,null,{"$f":"Gruppenplanung!$N$36","v":0},"gegen",{"$f":"IF(OR(Gruppenplanung!$T$34=4,Gruppenplanung!$T$34=5),Gruppenplanung!$N$38,Gruppenplanung!$N$39)","v":0}]
[null,null,null,null,null,"Spiele:",0,null,0]
[null,null,null,null,null,"Punkte:",{"$f":"IF(G30>I30,2,IF(G30<I30,0,IF(G30=0,0,1)))","v":0},null,{"$f":"IF(G30<I30,2,IF(G30>I30,0,IF(I30=0,0,1)))","v":0}]
[null,null,null,null,null,null,{"$f":"IF(Gruppenplanung!$T$34=6,Gruppenplanung!$N$38,\"-\")","v":"-"},"gegen",{"$f":"IF(Gruppenplanung!$T$34=6,Gruppenplanung!$N$40,\"-\")","v":"-"}]
[null,null,null,null,null,"Spiele:",0,null,0]
[null,null,null,null,null,"Punkte:",{"$f":"IF(G33>I33,2,IF(G33<I33,0,IF(G33=0,0,1)))","v":0},null,{"$f":"IF(G33<I33,2,IF(G33>I33,0,IF(I33=0,0,1)))","v":0}]
[null,null,null,null,"Spielausrichtend:",null,{"$f":"IF(Gruppenplanung!$T$34>4,Gruppenplanung!$N$38,\"-\")","v":"-"},"Am:","DATUM"]
[null,null,null,null,"Spieltag: 4",null,{"$f":"IF(OR(Gruppenplanung!$T$34=5,Gruppenplanung!$T$34=6),Gruppenplanung!$N$38,\"-\")","v":"-"},"gegen",{"$f":"IF(Gruppenplanung!$T$34=4,\"-\",IF(Gruppenplanung!$T$34=5,Gruppenplanung!$N$35,Gruppenplanung!$N$39))","v":0}]
[null,null,null,null,null,"Spiele:",0,null,0]
[null,null,null,null,null,"Punkte:",{"$f":"IF(G37>I37,2,IF(G37<I37,0,IF(G37=0,0,1)))","v":0},null,{"$f":"IF(G37<I37,2,IF(G37>I37,0,IF(I37=0,0,1)))","v":0}]
[null,null,null,null,null,null,{"$f":"IF(Gruppenplanung!$T$34=4,\"-\",IF(Gruppenplanung!$T$34=5,Gruppenplanung!$N$36,Gruppenplanung!$N$35))","v":0},"gegen",{"$f":"IF(Gruppenplanung!$T$34=4,\"-\",IF(Gruppenplanung!$T$34=5,Gruppenplanung!$N$39,Gruppenplanung!$N$40))","v":0}]
[null,null,null,null,null,"Spiele:",0,null,0]
[null,null,null,null,null,"Punkte:",{"$f":"IF(G40>I40,2,IF(G40<I40,0,IF(G40=0,0,1)))","v":0},null,{"$f":"IF(G40<I40,2,IF(G40>I40,0,IF(I40=0,0,1)))","v":0}]
[null,null,null,null,null,null,{"$f":"IF(Gruppenplanung!$T$34=6,Gruppenplanung!$N$36,\"-\")","v":"-"},"gegen",{"$f":"IF(Gruppenplanung!$T$34=6,Gruppenplanung!$N$37,\"-\")","v":"-"}]
[null,null,null,null,null,"Spiele:",0,null,0]
[null,null,null,null,null,"Punkte:",{"$f":"IF(G43>I43,2,IF(G43<I43,0,IF(G43=0,0,1)))","v":0},null,{"$f":"IF(G43<I43,2,IF(G43>I43,0,IF(I43=0,0,1)))","v":0}]
[null,null,null,null,"Spielausrichtend:",null,{"$f":"IF(Gruppenplanung!$T$34>4,Gruppenplanung!$N$39,\"-\")","v":"-"},"Am:","DATUM"]
[null,null,null,null,"Spieltag: 5",null,{"$f":"IF(Gruppenplanung!$T$34=4,\"-\",IF(Gruppenplanung!$T$34=5,Gruppenplanung!$N$39,Gruppenplanung!$N$39))","v":0},"gegen",{"$f":"IF(Gruppenplanung!$T$34=4,\"-\",IF(Gruppenplanung!$T$34=5,Gruppenplanung!$N$38,Gruppenplanung!$N$37))","v":0}]
[null,null,null,null,null,"Spiele:",0,null,0]
[null,null,null,null,null,"Punkte:",{"$f":"IF(G47>I47,2,IF(G47<I47,0,IF(G47=0,0,1)))","v":0},null,{"$f":"IF(G47<I47,2,IF(G47>I47,0,IF(I47=0,0,1)))","v":0}]
[null,null,null,null,null,null,{"$f":"IF(Gruppenplanung!$T$34=4,\"-\",IF(Gruppenplanung!$T$34=5,Gruppenplanung!$N$35,Gruppenplanung!$N$35))","v":0},"gegen",{"$f":"IF(Gruppenplanung!$T$34=4,\"-\",IF(Gruppenplanung!$T$34=5,Gruppenplanung!$N$37,Gruppenplanung!$N$38))","v":0}]
[null,null,null,null,null,"Spiele:",0,null,0]
[null,null,null,null,null,"Punkte:",{"$f":"IF(G50>I50,2,IF(G50<I50,0,IF(G50=0,0,1)))","v":0},null,{"$f":"IF(G50<I50,2,IF(G50>I50,0,IF(I50=0,0,1)))","v":0}]
[null,null,null,null,null,null,{"$f":"IF(Gruppenplanung!$T$34=6,Gruppenplanung!$N$36,\"-\")","v":"-"},"gegen",{"$f":"IF(Gruppenplanung!$T$34=6,Gruppenplanung!$N$40,\"-\")","v":"-"}]
[null,null,null,null,null,"Spiele:",0,null,0]
[null,null,null,null,null,"Punkte:",{"$f":"IF(G53>I53,2,IF(G53<I53,0,IF(G53=0,0,1)))","v":0},null,{"$f":"IF(G53<I53,2,IF(G53>I53,0,IF(I53=0,0,1)))","v":0}]
[]
[]
[]
[null,null,null,null,null,null,null,null,null,null,null,null,null," "]

{"sheet":"Liga_4E","index":19,"n_rows":58,"n_cols":14,"rows_kept":58,"cut":false,"hidden":true,"merged":[[25,4,33,4],[34,4,34,5],[35,4,43,4],[44,4,44,5],[45,4,53,4],[24,4,24,5],[1,4,2,8],[4,4,4,5],[5,4,13,4],[14,4,14,5],[15,4,23,4]]}
[]
[null,null,null,null,"Liga 4E"]
[]
[]
[null,null,null,null,"Spielausrichtend:",null,{"$f":"Gruppenplanung!$Q$35","v":0},"Am:","DATUM"]
[null,null,null,null,"Spieltag: 1",null,{"$f":"Gruppenplanung!$Q$35","v":0},"gegen",{"$f":"Gruppenplanung!$Q$36","v":0}]
[null,null,null,null,null,"Spiele:",0,null,0]
[null,null,null,null,null,"Punkte:",{"$f":"IF(G7>I7,2,IF(G7<I7,0,IF(G7=0,0,1)))","v":0},null,{"$f":"IF(G7<I7,2,IF(G7>I7,0,IF(I7=0,0,1)))","v":0}]
[null,null,null,null,null,null,{"$f":"Gruppenplanung!$Q$37","v":0},"gegen",{"$f":"Gruppenplanung!$Q$38","v":0}]
[null,null,null,null,null,"Spiele:",0,null,0]
[null,null,null,null,null,"Punkte:",{"$f":"IF(G10>I10,2,IF(G10<I10,0,IF(G10=0,0,1)))","v":0},null,{"$f":"IF(G10<I10,2,IF(G10>I10,0,IF(I10=0,0,1)))","v":0}]
[null,null,null,null,null,null,{"$f":"IF(Gruppenplanung!$T$35=6,Gruppenplanung!$Q$39,\"-\")","v":"-"},"gegen",{"$f":"IF(Gruppenplanung!$T$35=6,Gruppenplanung!$Q$40,\"-\")","v":"-"}]
[null,null,null,null,null,"Spiele:",0,null,0]
[null,null,null,null,null,"Punkte:",{"$f":"IF(G13>I13,2,IF(G13<I13,0,IF(G13=0,0,1)))","v":0},null,{"$f":"IF(G13<I13,2,IF(G13>I13,0,IF(I13=0,0,1)))","v":0}]
[null,null,null,null,"Spielausrichtend:",null,{"$f":"Gruppenplanung!$Q$36","v":0},"Am:","DATUM"]
[null,null,null,null,"Spieltag: 2",null,{"$f":"IF(OR(Gruppenplanung!$T$35=4,Gruppenplanung!$T$35=5),Gruppenplanung!$Q$36,Gruppenplanung!$Q$36)","v":0},"gegen",{"$f":"IF(OR(Gruppenplanung!$T$35=4,Gruppenplanung!$T$35=5),Gruppenplanung!$Q$37,Gruppenplanung!$Q$38)","v":0}]
[null,null,null,null,null,"Spiele:",0,null,0]
[null,null,null,null,null,"Punkte:",{"$f":"IF(G17>I17,2,IF(G17<I17,0,IF(G17=0,0,1)))","v":0},null,{"$f":"IF(G17<I17,2,IF(G17>I17,0,IF(I17=0,0,1)))","v":0}]
[null,null,null,null,null,null,{"$f":"IF(OR(Gruppenplanung!$T$35=5,Gruppenplanung!$T$35=6),Gruppenplanung!$Q$35,Gruppenplanung!$Q$38)","v":0},"gegen",{"$f":"IF(OR(Gruppenplanung!$T$35=5,Gruppenplanung!$T$35=6),Gruppenplanung!$Q$39,Gruppenplanung!$Q$35)","v":0}]
[null,null,null,null,null,"Spiele:",0,null,0]
[null,null,null,null,null,"Punkte:",{"$f":"IF(G20>I20,2,IF(G20<I20,0,IF(G20=0,0,1)))","v":0},null,{"$f":"IF(G20<I20,2,IF(G20>I20,0,IF(I20=0,0,1)))","v":0}]
[null,null,null,null,null,null,{"$f":"IF(Gruppenplanung!$T$35=6,Gruppenplanung!$Q$37,\"-\")","v":"-"},"gegen",{"$f":"IF(Gruppenplanung!$T$35=6,Gruppenplanung!$Q$40,\"-\")","v":"-"}]
[null,null,null,null,null,"Spiele:",0,null,0]
[null,null,null,null,null,"Punkte:",{"$f":"IF(G23>I23,2,IF(G23<I23,0,IF(G23=0,0,1)))","v":0},null,{"$f":"IF(G23<I23,2,IF(G23>I23,0,IF(I23=0,0,1)))","v":0}]
[null,null,null,null,"Spielausrichtend:",null,{"$f":"Gruppenplanung!$Q$37","v":0},"Am:","DATUM"]
[null,null,null,null,"Spieltag: 3",null,{"$f":"Gruppenplanung!$Q$37","v":0},"gegen",{"$f":"IF(OR(Gruppenplanung!$T$35=4,Gruppenplanung!$T$35=6),Gruppenplanung!$Q$35,Gruppenplanung!$Q$39)","v":0}]
[null,null,null,null,null,"Spiele:",0,null,0]
[null,null,null,null,null,"Punkte:",{"$f":"IF(G27>I27,2,IF(G27<I27,0,IF(G27=0,0,1)))","v":0},null,{"$f":"IF(G27<I27,2,IF(G27>I27,0,IF(I27=0,0,1)))","v":0}]
[null,null,null,null,null,null,{"$f":"Gruppenplanung!$Q$36","v":0},"gegen",{"$f":"IF(OR(Gruppenplanung!$T$35=4,Gruppenplanung!$T$35=5),Gruppenplanung!$Q$38,Gruppenplanung!$Q$39)","v":0}]
[null,null,null,null,null,"Spiele:",0,null,0]
[null,null,null,null,null,"Punkte:",{"$f":"IF(G30>I30,2,IF(G30<I30,0,IF(G30=0,0,1)))","v":0},null,{"$f":"IF(G30<I30,2,IF(G30>I30,0,IF(I30=0,0,1)))","v":0}]
[null,null,null,null,null,null,{"$f":"IF(Gruppenplanung!$T$35=6,Gruppenplanung!$Q$38,\"-\")","v":"-"},"gegen",{"$f":"IF(Gruppenplanung!$T$35=6,Gruppenplanung!$Q$40,\"-\")","v":"-"}]
[null,null,null,null,null,"Spiele:",0,null,0]
[null,null,null,null,null,"Punkte:",{"$f":"IF(G33>I33,2,IF(G33<I33,0,IF(G33=0,0,1)))","v":0},null,{"$f":"IF(G33<I33,2,IF(G33>I33,0,IF(I33=0,0,1)))","v":0}]
[null,null,null,null,"Spielausrichtend:",null,{"$f":"IF(Gruppenplanung!$T$35>4,Gruppenplanung!$Q$38,\"-\")","v":"-"},"Am:","DATUM"]
[null,null,null,null,"Spieltag: 4",null,{"$f":"IF(OR(Gruppenplanung!$T$35=5,Gruppenplanung!$T$35=6),Gruppenplanung!$Q$38,\"-\")","v":"-"},"gegen",{"$f":"IF(Gruppenplanung!$T$35=4,\"-\",IF(Gruppenplanung!$T$35=5,Gruppenplanung!$Q$35,Gruppenplanung!$Q$39))","v":0}]
[null,null,null,null,null,"Spiele:",0,null,0]
[null,null,null,null,null,"Punkte:",{"$f":"IF(G37>I37,2,IF(G37<I37,0,IF(G37=0,0,1)))","v":0},null,{"$f":"IF(G37<I37,2,IF(G37>I37,0,IF(I37=0,0,1)))","v":0}]
[null,null,null,null,null,null,{"$f":"IF(Gruppenplanung!$T$35=4,\"-\",IF(Gruppenplanung!$T$35=5,Gruppenplanung!$Q$36,Gruppenplanung!$Q$35))","v":0},"gegen",{"$f":"IF(Gruppenplanung!$T$35=4,\"-\",IF(Gruppenplanung!$T$35=5,Gruppenplanung!$Q$39,Gruppenplanung!$Q$40))","v":0}]
[null,null,null,null,null,"Spiele:",0,null,0]
[null,null,null,null,null,"Punkte:",{"$f":"IF(G40>I40,2,IF(G40<I40,0,IF(G40=0,0,1)))","v":0},null,{"$f":"IF(G40<I40,2,IF(G40>I40,0,IF(I40=0,0,1)))","v":0}]
[null,null,null,null,null,null,{"$f":"IF(Gruppenplanung!$T$35=6,Gruppenplanung!$Q$36,\"-\")","v":"-"},"gegen",{"$f":"IF(Gruppenplanung!$T$35=6,Gruppenplanung!$Q$37,\"-\")","v":"-"}]
[null,null,null,null,null,"Spiele:",0,null,0]
[null,null,null,null,null,"Punkte:",{"$f":"IF(G43>I43,2,IF(G43<I43,0,IF(G43=0,0,1)))","v":0},null,{"$f":"IF(G43<I43,2,IF(G43>I43,0,IF(I43=0,0,1)))","v":0}]
[null,null,null,null,"Spielausrichtend:",null,{"$f":"IF(Gruppenplanung!$T$35>4,Gruppenplanung!$Q$39,\"-\")","v":"-"},"Am:","DATUM"]
[null,null,null,null,"Spieltag: 5",null,{"$f":"IF(Gruppenplanung!$T$35=4,\"-\",IF(Gruppenplanung!$T$35=5,Gruppenplanung!$Q$39,Gruppenplanung!$Q$39))","v":0},"gegen",{"$f":"IF(Gruppenplanung!$T$35=4,\"-\",IF(Gruppenplanung!$T$35=5,Gruppenplanung!$Q$38,Gruppenplanung!$Q$37))","v":0}]
[null,null,null,null,null,"Spiele:",0,null,0]
[null,null,null,null,null,"Punkte:",{"$f":"IF(G47>I47,2,IF(G47<I47,0,IF(G47=0,0,1)))","v":0},null,{"$f":"IF(G47<I47,2,IF(G47>I47,0,IF(I47=0,0,1)))","v":0}]
[null,null,null,null,null,null,{"$f":"IF(Gruppenplanung!$T$35=4,\"-\",IF(Gruppenplanung!$T$35=5,Gruppenplanung!$Q$35,Gruppenplanung!$Q$35))","v":0},"gegen",{"$f":"IF(Gruppenplanung!$T$35=4,\"-\",IF(Gruppenplanung!$T$35=5,Gruppenplanung!$Q$37,Gruppenplanung!$Q$38))","v":0}]
[null,null,null,null,null,"Spiele:",0,null,0]
[null,null,null,null,null,"Punkte:",{"$f":"IF(G50>I50,2,IF(G50<I50,0,IF(G50=0,0,1)))","v":0},null,{"$f":"IF(G50<I50,2,IF(G50>I50,0,IF(I50=0,0,1)))","v":0}]
[null,null,null,null,null,null,{"$f":"IF(Gruppenplanung!$T$35=6,Gruppenplanung!$Q$36,\"-\")","v":"-"},"gegen",{"$f":"IF(Gruppenplanung!$T$35=6,Gruppenplanung!$Q$40,\"-\")","v":"-"}]
[null,null,null,null,null,"Spiele:",0,null,0]
[null,null,null,null,null,"Punkte:",{"$f":"IF(G53>I53,2,IF(G53<I53,0,IF(G53=0,0,1)))","v":0},null,{"$f":"IF(G53<I53,2,IF(G53>I53,0,IF(I53=0,0,1)))","v":0}]
[]
[]
[]
[null,null,null,null,null,null,null,null,null,null,null,null,null," "]